Workbook

Sheet Design Regulator
A1: LM(2)5149/-Q1 Synchronous Buck Controller Design Tool
N2: http://www.ti.com/product/lm5175
A3: About | C3: xx | F3: = Input Box | N3: TERMS OF USE
A5: Step 1: Operating Specifications
D6: Input Voltage – Min, VIN(min) | E6: 52 | F6: V
D7: Input Voltage – Nom, VIN(nom) | E7: 54 | F7: V
D8: Input Voltage – Max, VIN(max) | E8: 56 | F8: V
D9: Output Voltage, VOUT | E9: 50 | F9: V
D10: Full Load Output Current, IOUT | E10: 15 | F10: A
D11: Switching Frequency, FSW | E11: 450 | F11: kHz
D12: Frequency Set Resistor, RT | E12: ='Variable Management'!C442 -> 48.7 | F12: kΩ
D13: Ambient Temperature, TA | E13: 25 | F13: °C
A15: Step 2: Current Sense Resistor
D16: Required IOCP Setpoint at VIN(nom) | E16: 20 | F16: A
D17: Recommended Sense Resistance | E17: =Rs_ideal*1000 -> 2.939387835 | F17: mΩ
D18: Sense Resistance, RS | E18: 3 | F18: mΩ
D19: Min Inductor Sat Current, ILO(SAT) | E19: ='Variable Management'!B95 -> 20 | F19: A
D20: Max power loss in shunt | E20: ='Variable Management'!B105 -> 1.174487696 | F20: W
D21: VIN(min) | E21: ='Variable Management'!B97 -> 19.78586907 | F21: A
C22: IOUT(typ) at OCP Inception: | D22: VIN(nom) | E22: ='Variable Management'!B98 -> 19.58758648 | F22: A
D23: VIN(max) | E23: ='Variable Management'!B99 -> 19.40345556 | F23: A
A25: Step 3: Buck Inductance
D26: Recommended Inductance | E26: =Lopt*1000000 -> 13.88888889 | F26: µH
D27: Inductance, LO | E27: 10 | F27: µH
D28: Inductor DCR | E28: 7 | F28: mΩ
D29: DIL as a % at VIN(nom) | E29: ='Variable Management'!B68*100 -> 5.498846983 | F29: %
A31: Step 4: Output Capacitors
D32: Output Voltage Ripple Spec | E32: 100 | F32: mVpk-pk
D33: Minimum Output Capacitance | E33: ='Variable Management'!B121 -> 2.291186243 | F33: µF
D34: Output Capacitance (derated), COUT | E34: 470 | F34: µF | K34: =CHOOSE(SCH_MODE, "", "** For Single-Output Operation in 2-Phase Mode, tie MODE to VDDA and use FB1 to set VOUT **", "** For Single-Output Operation in 3-Phase Mode, tie both MODE pins to VDDA. Use FB1 of master IC to set VOUT. Connect FB2 of master IC to AGND. Connect FB2 of slave IC to VDDA to configure it as a slave **", "** For Single-Output Operation in 4-Phase Mode, tie both MODE pins to VDDA. Use FB1 of master IC to set VOUT. Connect FB2 of master IC to AGND. Connect FB2 of slave IC to VDDA to configure it as a slave **") -> 
D35: Maximum Permitted ESR | E35: ='Variable Management'!B125 -> 121.2360968 | F35: mΩ
D36: Output Capacitor ESR | E36: 10 | F36: mΩ | K36: =CHOOSE(SCH_MODE, "", "** Tie VCCX to GND if not used **", "** Slave controller (CNTRL2) not shown **","** Slave controller (CNTRL2) not shown **") ->  | P36: =IF(SCH_MODE=1, "** Tie VCCX to GND if not used **", "") -> ** Tie VCCX to GND if not used **
D37: Resulting Output Voltage Ripple (max) | E37: ='Variable Management'!B127*1000 -> 8.262663544 | F37: mVpk-pk | K37: =IF(OR(SCH_MODE=3, SCH_MODE=4),"** Tie VCCX to GND if not used **", "") -> 
D38: Output Capacitor RMS Current (max) | E38: ='Variable Management'!B114 -> 0.344415095 | F38: A (rms)
A40: Step 5: Input Capacitors and AEF - See Next Tab
D41: Input Voltage Ripple Spec | E41: 300 | F41: mVpk-pk
D42: Minimum Input Capacitance | E42: ='Variable Management'!B148 -> 27.77777778 | F42: µF
D43: Input Capacitance (derated), CIN | E43: 470 | F43: µF
D44: Maximum Permitted ESR | E44: ='Variable Management'!B154 -> 18.80002153 | F44: mΩ
D45: Input Capacitor ESR | E45: 10 | F45: mΩ
D46: Resulting Input Voltage Ripple (max) | E46: ='Variable Management'!B161*1000 -> 173.6959409 | F46: mVpk-pk
D47: Input Capacitor RMS Current (max) | E47: ='Variable Management'!B138 -> 7.5 | F47: A (rms)
D48: AEF Filter Inductor | E48: 0.68 | F48: µH
A49: ="Recommended Cinj "&'Standard Value Calculator'!S24&" µF" -> Recommended Cinj 1,5 µF | D49: CINJ | E49: 0.47 | F49: µF
A50: =CHOOSE(OSC,"Cdamp: DNP","Recommended Caefdamp "&'Standard Value Calculator'!S25&" µF") -> Recommended Caefdamp 0,68 µF | D50: CDAMP | E50: 0 | F50: µF
A51: ="Recommended Raefdamp "&Rdamp_AEFstd&" Ω" -> Recommended Raefdamp 41,2 Ω | D51: RDAMP | E51: 6.81 | F51: Ω
D52: Filter Attenuation Fsw | E52: =-'Variable Management'!B302 -> 0 | F52: dB
D53: VIN Ripple | E53: =VinRipple_dBuV -> 104.7957934 | F53: dBµV
D54: Fsw Conducted EMC | E54: ='Variable Management'!B303 -> 104.7957934 | F54: dBµV
A56: Step 6: Enable, CNFG, FPWM/PFM
D59: Input Voltage UVLO Turn-ON | E59: 5.5 | F59: V
D60: Input Voltage UVLO Turn-OFF | E60: 4.5 | F60: V
D61: Upper Enable Resistor, RUV1 | E61: =IF(UVLO_TYPE=1,'Variable Management'!B187,0) -> 0 | F61: kΩ
D62: Lower Enable Resistor, RUV2 | E62: =IF(UVLO_TYPE=1,'Variable Management'!B188,"DNP") -> DNP | F62: kΩ
D63: Configuration Resistor, RCNFG | E63: =IF(DITHER=1,"41.2","29.4") -> 41.2 | F63: kΩ
D64: =IF(DEMB=1, "* Tie PFM to GND", "* Tie PFM to VDDA") -> * Tie PFM to GND
A66: Step 7: Compensation Design
D67: Load Pole Frequency | E67: =Fp_dominant -> 115.6073572 | F67: Hz
D68: ESR Zero Frequency | E68: =Fesr/1000 -> 33.86275389 | F68: kHz
D69: Desired Crossover Frequency | E69: 48 | F69: =" kHz " -> kHz
D70: Error Amp Pole Frequency | E70: =Fp1_u -> 16.51747365 | F70: Hz
D71: =CHOOSE(VOUT_setting, "Upper Feedback Resistor","","","") -> Upper Feedback Resistor | E71: 100 | F71: kΩ
D72: =CHOOSE(VOUT_setting, "Lower Feedback Resistor", "PULLUP FB to VDDA with "&'Variable Management'!D418,"TIE FB TO VDDA","PULLUP FB to VDDA with"&'Variable Management'!D418) -> Lower Feedback Resistor | E72: =IF(Vout=Vref,"OPEN",Rfb2_u/1000) -> 1.62 | F72: =IF(Vout=Vref,"","kΩ") -> kΩ
A74: Compensation Components
B75: Calculated / | C75: Std Values | D75: =C75 -> Std Values | F75: Actual P/Z Frequencies
A76: RC1 | B76: =Rcea1/1000 -> 221.4822818 | C76: ='Standard Value Calculator'!S32 -> 221 | D76: 237 | E76: kΩ | F76: =Fp1_u -> 16.51747365 | G76: Hz (FPEA)
A77: CC1 | B77: =Cc1ea*1000000000 -> 0.1497062409 | C77: ='Standard Value Calculator'!S33 -> 0.15 | D77: 0.15 | E77: nF | F77: =Fz1_u/1000 -> 4.4769323 | G77: kHz (FZCOMP)
A78: CC2 | B78: =IF(Cc2ea<0, "N/A", Cc2ea*1000000000000) -> N/A | C78: ='Standard Value Calculator'!S34 -> 0 | D78: 0 | E78: pF | F78: =Fp2_u/1000 -> 21.09704641 | G78: kHz (FPCOMP)
M79: ** Specify Inductor Core Loss ** | N79: 0.1 | O79: W
A81: Efficiency / Power Loss Analyzer
A83: Step 8: Efficiency
F84: Power MOSFETs | G84: (Q1, Q2)
E85: IAUC60N04S6L039 / IAUC60N04S6L039
E86: High-side | F86: Low-side
D87: On-State Resistance, RDS(on) | E87: 7.5 | F87: 7.5 | G87: mΩ
D88: Total Gate Charge, QG | E88: 11 | F88: 11 | G88: nC
D89: Gate-Drain Charge, QGD | E89: 3.9 | F89: 3.9 | G89: nC
D90: Gate-Source Charge, QGS | E90: 4.3 | F90: 4.3 | G90: nC
D91: Output Charge, QOSS | F91: 23 | G91: nC
D92: Output Capacitance, COSS | E92: 220 | F92: 220 | G92: pF
D93: Gate Resistance, RG | E93: 1.5 | F93: 1.5 | G93: Ω
D94: Transconductance, gFS | E94: 47 | F94: 47 | G94: S
D95: Gate-Source Threshold Voltage, VTH | E95: 1.6 | F95: 1.6 | G95: V
D96: Body Diode Forward Voltage, VBD | E96: 0.8 | F96: 0.8 | G96: V
D97: Body Diode Rev Recovery Charge, QRR | F97: 20 | G97: nC
D98: Thermal Resistance, θJA | E98: 50 | F98: 50 | G98: °C/W
A100: External Schottky Diode (if applicable)
D101: Schottky Fwd Voltage, VFWDsch | F101: 0 | G101: V
D102: Schottky Rev Recovery Charge, QRRsch | F102: 0 | G102: nC
A106: Step 9: IC Power Loss
D107: IC Power Dissipation | E107: ='Variable Management'!B361 -> 0.0495 | F107: W
D108: IC Junction Temperature (estimate) | E108: ='Variable Management'!B363 -> 26.68795 | F108: °C
E109: =CHOOSE(Ext_VCC, "", "* Tie VCCX to PGND") -> 

Sheet Input Filters
A1: LM(2)5149-Q1 Synchronous Buck Controller Design Tool
O2: http://www.ti.com/product/lm5175
A3: About | C3: xx | F3: = Input Box | O3: TERMS OF USE
E7: AEF | M7: Passive
B9: Design tab - LAEF | C9: ='Design Regulator'!E48 & " µH" -> 0,68 µH | F9: LAEF | G9: 1 | H9: µH | J9: Suggested LIN Inductor | K9: 0.1-10 | L9: µH | N9: Chosen LIN | O9: 0.68 | P9: µH
B10: Design tab - CINJ | C10: ='Design Regulator'!E49 & " µF" -> 0,47 µF | F10: CINJ | G10: 1 | H10: µF | J10: Suggested CF | K10: 0.1-10 | L10: µF | N10: Chosen CF | O10: 0.47 | P10: µF
B11: Design tab - CDAMP | C11: ='Design Regulator'!E50 & " µF" -> 0 µF | F11: CDAMP | G11: 1 | H11: µF | J11: Suggested CDAMP | K11: 1-10 | L11: µF | N11: Chosen CDAMP | O11: 1 | P11: µF
B12: Design tab - RDAMP | C12: ='Design Regulator'!E51 & " Ω" -> 6,81 Ω | F12: RDAMP | G12: 10 | H12: Ω | J12: Suggested RDAMP | K12: =Rdamp_PassiveStd -> 0.0681 | L12: Ω | N12: Chosen RDAMP | O12: 0.35 | P12: Ω
C14: VIN Ripple at Fsw | F14: =VinRipple_dBuV -> 104.7957934 | G14: dBµV | H14: VIN Ripple | I14: =VinRipple_dBuV -> 104.7957934 | J14: dBµV
D16: AEF Attenuation at Fsw | E16: =-'Input Filter Calculations'!AM97 -> 32.3492999 | F16: dB | L16: Passive Attenuation at Fsw | M16: =-'Input Filter Calculations'!AA97 -> 14.13134248 | N16: dB
D17: AEF EMI at Fsw | E17: =VinRipple_dBuV-E16 -> 72.44649349 | F17: dB-µV | L17: Passive EMI at Fsw | M17: =VinRipple_dBuV-M16 -> 90.66445091 | N17: dB-µV

Sheet Design Input Filter (hidden)
A1: LM5149-Q1 Synchronous Buck Controller Design Tool
O2: http://www.ti.com/product/lm5175
A3: About | C3: xx | F3: = Input Box | O3: TERMS OF USE
B7: Choose Filter
B8: Suggested Inductor | C8: =CHOOSE(INFILTER_TYPE,"","0.01-1","0.1-10") ->  | D8: µH | F8: Chosen Inductor | G8: 1 | H8: µH
B9: =CHOOSE(INFILTER_TYPE,"","Suggested Cinj","Suggested Cf") ->  | C9: =CHOOSE(INFILTER_TYPE,"",'Standard Value Calculator'!S24,'Standard Value Calculator'!S23) ->  | D9: µF | F9: =CHOOSE(INFILTER_TYPE,"","Chosen Cinj","Chosen Cf") ->  | G9: 0.068 | H9: µF
B10: Suggested Cdamp | C10: =CHOOSE(INFILTER_TYPE,"",CHOOSE(OSC,"DNP",'Standard Value Calculator'!S25),'Standard Value Calculator'!S28) ->  | D10: µF | F10: Chosen Cdamp | G10: 0.033 | H10: µF
B11: Suggested Rdamp | C11: =CHOOSE(INFILTER_TYPE,"",'Standard Value Calculator'!S26,Rdamp_PassiveStd) ->  | D11: Ω | F11: Chosen Rdamp | G11: 43.2 | H11: Ω
F12: Filter Attenuation | G12: =-'Variable Management'!B302 -> 0 | H12: dB
F13: VIN Ripple | G13: =VinRipple_dBuV -> 104.7957934 | H13: dB-µV
F14: Fsw Conducted EMC | G14: ='Variable Management'!B303 -> 104.7957934 | H14: dB-µV

Sheet BOM & Schematic (hidden)
A36: ** Tie DEMB to VDDA for FPWM, AGND for DEM **
A37: ** Tie VCCX to GND if not used ** | I37: =IF(OR(SCH_MODE=3, SCH_MODE=4),"** Tie VCCX to GND if not used **", "") -> 
A38: ** Tie DITH to VDDA to disable spread spectrum **
A39: ** Tie OSC to VDDA for 2.2MHz, AGND for 440kHz **
A40: ="VIN = "&VIN_min&" V to "&VIN_max&" V, VOUT = "& Vout &" V, IOUT = " &Iout & " A, Fsw = " & Fsw/1000 &" kHz, Current Limit = "&ROUNDUP(Ilimit_DC,0)&" A" -> VIN = 52 V to 56 V, VOUT = 50 V, IOUT = 15 A, Fsw = 450 kHz, Current Limit = 20 A
A41: High Efficiency Synchronous Buck Regulator BOM
A42: Count | B42: Ref Des | C42: Value | D42: Description | H42: Size | I42: Part Number | J42: MFR
A43: 1 | B43: CBOOT | C43: 0.1 | D43: =C43 -> 0.1 | H43: 0603 | I43: Std | J43: Std
A44: 1 | B44: CC1 | C44: ='Design Regulator'!D77 -> 0.15 | D44: 0.15 | H44: 0603 | I44: Std | J44: Std
A45: 1 | B45: CC2 | C45: ='Design Regulator'!D78 -> 0 | D45: 0 | H45: 0603 | I45: Std | J45: Std
A46: 1 | B46: CRES | C46: =Cres_u*1000000000 -> 82 | D46: =C46 -> 82 | H46: 0603 | I46: Std | J46: Std
A47: 1 | B47: CDITH | C47: =Cdither*1000000000 ->  | D47: =C47 ->  | H47: 0603 | I47: Std | J47: Std
A48: =ROUNDUP('Design Regulator'!E43/10,0) -> 47 | B48: CIN | C48: 10 | D48: =C48 -> 10 | H48: 1210 | I48: Std | J48: Std
A49: =ROUNDUP('Design Regulator'!E34/47,0) -> 10 | B49: COUT | C49: 47 | D49: =C49 -> 47 | H49: 1210 | I49: Std | J49: Std
A50: 1 | B50: CSS | C50: ='Design Regulator'!#REF! ->  | D50: =C50 ->  | H50: 0603 | I50: Std | J50: Std
A51: 2 | B51: CVCC, CVCCX | C51: 2.2 | D51: 2.2 | H51: 0603 | I51: Std | J51: Std
A52: 1 | B52: CVDDA | C52: 0.47 | D52: 0.47 | H52: 0603 | I52: Std | J52: Std
A53: 1 | B53: DBOOT | C53: See description | D53: Schottky Diode, 60V, 200mA | H53: - | I53: - | J53: Various
A54: 1 | B54: LO | C54: ='Design Regulator'!E27 -> 10 | D54: ="Inductor, "&Lf*1000000&"µH, "&Rdcr*1000&"mΩ, >"&ROUNDUP(Ilimit_DC*1.1,0)&"A" -> Inductor, 10µH, 7mΩ, >22A | H54: - | I54: - | J54: Various
A55: 2 | B55: Q1, Q2 | C55: See description | D55: ='Design Regulator'!E87 -> 7.5 | H55: Std | I55: ='Design Regulator'!E85 -> IAUC60N04S6L039 / IAUC60N04S6L039 | J55: -
A56: 1 | B56: RC1 | C56: ='Design Regulator'!D76 -> 237 | D56: =C56 -> 237 | H56: 0603 | I56: Std | J56: Std
A57: 1 | B57: RS | C57: =Rs*1000 -> 3 | D57: 3 | H57: 0508 | I57: Std | J57: Std
A58: 1 | B58: RT | C58: ='Design Regulator'!E12 -> 48.7 | D58: 48.7 | H58: 0603 | I58: Std | J58: Std
A59: 1 | B59: RFB1 | C59: ='Design Regulator'!E71 -> 100 | D59: 100 | H59: 0603 | I59: Std | J59: Std
A60: 1 | B60: RFB2 | C60: ='Design Regulator'!E72 -> 1.62 | D60: 1.62 | H60: 0603 | I60: Std | J60: Std
A61: 1 | B61: RPGOOD | C61: 100 | D61: 100 | H61: 0603 | I61: Std | J61: Std
A62: 1 | B62: RCS | C62: 100 | D62: 100 | H62: 0603 | I62: Std | J62: Std
A63: 1 | B63: RDEMB | C63: 100 | D63: 100 | H63: 0603 | I63: Std | J63: Std
A64: 1 | B64: RVIN | C64: 2.2 | D64: 2.2 | H64: 0603 | I64: Std | J64: Std
A65: 1 | B65: U1 | C65: LM5141-Q1 | D65: IC, LM5141-Q1, Synchronous Buck PWM Controller, 3.8V–65V Input | H65: VQFN-24 | I65: LM5141QRGEQ1 | J65: TI
A68: NOTES:
A69: ** For information on TI NexFETTM MOSFETs, see ** | D69: http://www.ti.com/nexfet | E69: **
A70: ** Inductor saturation current should be higher than the peak inductor current at the OCP setpoint for all input voltages and operating temperatures **
A71: ** Effective input and output capacitances should be appropriately derated for applied voltage and temperature, particularly with ceramics **

Sheet EVM
A1: LM25149-Q1 Quickstart Design Tool
B6: LM25149-Q1EVM-2100 PCB Layout

Sheet Variable Management (hidden)
A1: EXCEL Variables Names/Calculations
B2: Input from user =
B3: Output =
B4: Constant
A5: Variable Name | B5: Value | C5: STD Units | E5: Notes | I5: Iteration
A6: Step 1: Operational Specs
A7: VIN_min | B7: ='Design Regulator'!E6 -> 52 | C7: V | D7: Minimum input voltage | I7: 1
A8: VIN_nom | B8: ='Design Regulator'!E7 -> 54 | C8: V | D8: Nominal input voltage | K8: =CHOOSE(SCH_MODE, "Efficiency vs. IOUT (Ch1)", "Efficiency vs. IOUT - 2 Ph", "Efficiency vs. IOUT - 3 Ph", "Efficiency vs. IOUT - 4 Ph") -> Efficiency vs. IOUT (Ch1) | L8: 1 | N8: DITHER Enabled | O8: 1 | T8: Dual Outputs | U8: 1 | W8: FPWM | X8: 1 | Z8: =CHOOSE(SCH_MODE, "Bode Plot (Ch1)", "Bode Plot - 2 Ph", "Bode Plot - 3 Ph", "Bode Plot - 4 Ph") -> Bode Plot (Ch1) | AA8: 1
A9: VIN_max | B9: ='Design Regulator'!E8 -> 56 | C9: V | D9: Maximum input voltage | K9: =IF(MODE=1, "Efficiency vs. IOUT (Ch2)", "N/A - Do Not Use") -> Efficiency vs. IOUT (Ch2) | L9: 2 | N9: DITHER Disabled | O9: 2 | T9: Single Output – 2 Phases | U9: 2 | W9: PFM | X9: 2 | Z9: =IF(MODE=1, "AEF Gain", "N/A - Do Not Use") -> AEF Gain | AA9: 2
K10: PLOT_TYPE | L10: 1 | N10: DITHER Yes/No | O10: 1 | P10: 1 = Yes, 2 = No | T10: Single Output – 3 Phases | U10: 3 | W10: FPWM/PFM | X10: 1 | Z10: BODE_PLOT_TYPE | AA10: 1
A11: Vout | B11: ='Design Regulator'!E9 -> 50 | C11: V | D11: Output voltage - channel 1 | T11: Single Output – 4 Phases | U11: 4
A12: Iout | B12: ='Design Regulator'!E10 -> 15 | C12: A | D12: Output current - channel 1 | I12: 1 | T12: Single/Dual Yes/No | U12: 1
I13: 1 | K13: Adjustable | L13: 1 | N13: 3.3V | O13: 1 | T13: MODE (Single/Dual), DUAL = 1, SINGLE = 2 | U13: =IF(U12=1, 1, 2) -> 1 | W13: VCCX Connected | X13: 1
A14: Rout | B14: =Vout/Iout -> 3.333333333 | C14: W | D14: Load resistance - Channel 1 | K14: 5V | L14: 2 | N14: 5V | O14: 2 | T14: SINGLE OUTPUT (1 = YES) | U14: =IF(U12=1, 2, 1) -> 2 | W14: No External VCC | X14: 2
K15: 3.3V | L15: 3 | N15: Adjustable | O15: 3 | T15: Number of Phases | U15: =SCH_MODE -> 1 | W15: Ext_VCC | X15: 1
A16: Pout | B16: =Vout*Iout -> 750 | C16: W | D16: Output power | K16: 12V | L16: 4 | N16: Ch2 Output Setting | O16: =IF(Vout2=3.3, 1, IF(Vout2=5, 2, 3)) -> 3
K17: Output Voltage Setting | L17: =IF(Vout=3.3, 3, IF(Vout=5, 2, IF(Vout=12,4,1))) -> 1
A18: Efficiency | B18: 0.9 | D18: Estimate of efficiency
A19: Pin | B19: =Pout/Efficiency -> 833.3333333 | C19: W | D19: Calculate input power assuming finite efficiency | W19: 2.2 MHz Fsw Setting | X19: 1 | Z19: Internal Compensation | AA19: 1
W20: 440 kHz Fsw Setting | X20: 2 | Z20: External Compensation | AA20: 2
A21: Iin_Vinmin | B21: =Pin/VIN_min -> 16.02564103 | C21: A | L21: =Vout -> 50 | W21: OSC | X21: =IF(Fsw>1000000,1,2) -> 2 | Z21: COMP_TYPE | AA21: 2
A22: Iin_Vinnom | B22: =Pin/VIN_nom -> 15.43209877 | C22: A | D22: Input currents at min, nom, max Vin | H22: =AND(OSC=1, OR(Fsw/1000>2530, Fsw/1000<1800)) -> FALSE
A23: Iin_Vinmax | B23: =Pin/VIN_max -> 14.88095238 | C23: A | H23: =AND(OSC=2, OR(Fsw/1000>500, Fsw/1000<300)) -> FALSE
H24: =OR(H22,H23) -> FALSE
A25: OSC setting | B25: =CHOOSE(OSC, 2200, 440) -> 440 | C25: kHz | K25: SetVout_IntComp_nAEF | L25: 1 | W25: No Input Filter | X25: 1 | Z25: UVLO Divider | AA25: 1
A26: Fsw | B26: ='Design Regulator'!E11*1000 -> 450000 | C26: Hz | D26: Nominal switching frequency - determines RT resistor (SYNCIN must be 80-120% of this) | K26: SetVout_IntComp_AEF | L26: 2 | W26: AEF Input Filter | X26: 2 | Z26: No UVLO Divider | AA26: 2
A27: RT resistor to AGND | B27: =((1000000000/Fsw)-53)/45+0.1 -> 48.30493827 | C27: kΩ | K27: SetVout_ExtComp_nAEF | L27: 3 | W27: Passive LC Filter | X27: 3 | Z27: UVLO_TYPE | AA27: 2
C28: kΩ | I28: 1 | K28: SetVout_ExtComp_AEF | L28: 4 | W28: INFILTER_TYPE | X28: 1
A29: Tsw | B29: =1/Fsw -> 2.222222222e-06 | C29: sec | D29: Switching period | K29: AdjVout_IntComp_nAEF | L29: 5
A30: Vref | B30: 0.8 | C30: V | D30: Reference voltage | K30: AdjVout_IntComp_AEF | L30: 6
A31: Rt | B31: ='Standard Value Calculator'!S12/1000 -> 48.7 | C31: kΩ | D31: Frequency set resistor | F31: =IF(OR((Fsw=440000),(Fsw=2200000)),"N/A",Rfadj/1000) -> 0.0487 | K31: AdjVout_ExtComp_nAEF | L31: 7
K32: AdjVout_ExtComp_AEF | L32: 8
A33: Step 2: Buck Inductor | B33: Channel 1 | K33: Schematic setting | L33: =(IF(OR(Vout=3.3,Vout=5,Vout=12),CHOOSE(COMP_TYPE,IF(INFILTER_TYPE=1,1,2),IF(INFILTER_TYPE=1,3,4)),CHOOSE(COMP_TYPE,IF(INFILTER_TYPE=1,5,6),IF(INFILTER_TYPE=1,7,8)))) -> 7
A34: Don1 | B34: =Vout/VIN_nom -> 0.9259259259 | F34: Ideal Duty Cycle at VIN(nom)
A35: Doff1 | B35: =1-34:34 -> 0.07407407407 | F35: Ideal 1- Duty Cycle at VIN(nom)
A37: D_Vinmin | B37: =Vout/VIN_min -> 0.9615384615
A38: D_Vinnom | B38: =Vout/VIN_nom -> 0.9259259259
A39: D_Vinmax | B39: =Vout/VIN_max -> 0.8928571429
A41: L_Vinnom | B41: =(VIN_nom-Vout)*D1_Vinnom/(Fsw*(Iout/Number_of_Phases)*0.3) -> 1.828989483e-06 | C41: H | F41: Calculated inductance for 35% ripple at VIN(nom)
A42: L_slopecomp | B42: =1000*Vout*Rs/24/Fsw -> 1.388888889e-05 | C42: H | F42: Calculated inductance based on one times inductor downslope
A44: Lopt | B44: =B42 -> 1.388888889e-05 | C44: H | F44: Slope comp
A46: Lo | B46: ='Design Regulator'!E27/1000000 -> 1e-05 | C46: H | F46: Chosen inductance
A47: Rdcr | B47: ='Design Regulator'!E28/1000 -> 0.007 | C47: W | F47: Chosen inductor DCR
A49: Don2 | B49: =(Vout+Iout*(Rdcr+Rs))/(Vin+Iout*Rs) -> 0.9279304283
A50: Doff2 | B50: =1-_Don2 -> 0.07206957165
A52: D_Vinmin_2 | B52: =CHOOSE(MODE, (Vout+Iout*(Rdcr+Rs))/(VIN_min+Iout*Rs), (Vout+Iout/Number_of_Phases*(Rdcr+Rs))/(VIN_min+Iout/Number_of_Phases*Rs)) -> 0.9635892017 | F52: Duty cycles adjusted for DCR/shunt voltage drops
A53: D_Vinnom_2 | B53: =CHOOSE(MODE, (Vout+Iout*(Rdcr+Rs))/(VIN_nom+Iout*Rs), (Vout+Iout/Number_of_Phases*(Rdcr+Rs))/(VIN_nom+Iout/Number_of_Phases*Rs)) -> 0.9279304283 | F53: need to include RDS(on) later
A54: D_Vinmax_2 | B54: =CHOOSE(MODE, (Vout+Iout*(Rdcr+Rs))/(VIN_max+Iout*Rs), (Vout+Iout/Number_of_Phases*(Rdcr+Rs))/(VIN_max+Iout/Number_of_Phases*Rs)) -> 0.8948166652
A56: Iripple_Vinmin | B56: =(VIN_min-Vout)*D1_Vinmin_2/(Fsw*Lf) -> 0.4282618674 | C56: A
A57: Iripple_Vinnom | B57: =(VIN_nom-Vout)*D1_Vinnom_2/(Fsw*Lf) -> 0.8248270474 | C57: A
A58: Iripple_Vinmax | B58: =(VIN_max-Vout)*D1_Vinmax_2/(Fsw*Lf) -> 1.193088887 | C58: A
A60: Ishunt_rms_Vinmin | B60: =SQRT((Iout/Number_of_Phases)^2+(Iripple_Vinmin^2)/12) -> 15.00050946 | C60: A
A61: Ishunt_rms_Vinnom | B61: =SQRT((Iout/Number_of_Phases)^2+(Iripple_Vinnom^2)/12) -> 15.00188971 | C61: A
A62: Ishunt_rms_Vinmax | B62: =SQRT((Iout/Number_of_Phases)^2+(Iripple_Vinmax^2)/12) -> 15.00395354 | C62: A
A63: Max shunt power loss at full load | B63: =B61^2*Rs -> 0.6751700849 | C63: W | F63: Note this is power loss at full load - not loss near OCP!
A65: Max inductor ripple current | B65: =MAX(B56:B58) -> 1.193088887 | C65: A | F65: Ripple current at Vin(max)
B67: =B56/(Iout/Number_of_Phases) -> 0.02855079116
A68: % ripple current | B68: =B57/(Iout/Number_of_Phases) -> 0.05498846983
B69: =B58/(Iout/Number_of_Phases) -> 0.07953925913
A71: Inductor copper temerature | B71: 100 | C71: °C
A72: DCR at hot | B72: =Rdcr*(1+0.0039*(B71-25)) -> 0.0090475 | C72: W
A75: Step 3: Sense Resistors, Slope Comp, Current Limit
A77: Ilimit_DC | B77: ='Design Regulator'!E16 -> 20 | C77: A | F77: Chosen OCP level - based on output current
A79: Ilimit_inductor_Vinmin | B79: =CHOOSE(MODE, Ilimit_DC+Iripple_Vinmin/2, Ilimit_DC/Number_of_Phases+Iripple_Vinmin/2) -> 20.21413093 | C79: A | F79: Peak inductor current at current limit inception
A80: Ilimit_inductor_Vinnom | B80: =CHOOSE(MODE, Ilimit_DC+Iripple_Vinnom/2, Ilimit_DC/Number_of_Phases+Iripple_Vinnom/2) -> 20.41241352 | C80: A
A81: Ilimit_inductor_Vinmax | B81: =CHOOSE(MODE, Ilimit_DC+Iripple_Vinmax/2, Ilimit_DC/Number_of_Phases+Iripple_Vinmax/2) -> 20.59654444 | C81: A
A84: CS threshold_min | B84: 0.052 | C84: V
A85: CS threshold | B85: 0.06 | C85: V
A86: CS threshold_max | B86: 0.068 | C86: V
A88: Shunt required to get OCP at VIN(min) | B88: =Buck_CS_threshold/B79 -> 0.002968220607 | C88: W
A89: Shunt required to get OCP at VIN(nom) | B89: =Buck_CS_threshold/B80 -> 0.002939387835 | C89: W
A90: Shunt required to get OCP at VIN(max) | B90: =Buck_CS_threshold/B81 -> 0.00291311002 | C90: W
A92: Rs_ideal | B92: =B89 -> 0.002939387835 | C92: W | F92: Ideal Rs for the required OCP -- based on 73mV CL threshold
A93: Rs | B93: ='Design Regulator'!E18/1000 -> 0.003 | C93: W | F93: Selected (starndard value) current limit sense resistor
A95: Current limit - peak | B95: =Buck_CS_threshold/Rs -> 20 | C95: A | F95: Peak inductor current limit = min sat current
A97: Iout_OCP_Vinmin | B97: =Number_of_Phases*(Buck_CS_threshold/Rs-Iripple_Vinmin/2) -> 19.78586907 | C97: A | F97: Current limit setpoints (i.e. IOUT) after standard components are selected
A98: Iout_OCP_Vinnom | B98: =Number_of_Phases*(Buck_CS_threshold/Rs-Iripple_Vinnom/2) -> 19.58758648 | C98: A
A99: Iout_OCP_Vinmax | B99: =Number_of_Phases*(Buck_CS_threshold/Rs-Iripple_Vinmax/2) -> 19.40345556 | C99: A
A101: Irms_OCP_Vinmin | B101: =SQRT((Iout_OCP_Vinmin/Number_of_Phases)^2+(Iripple_Vinmin^2)/12) -> 19.7862553 | C101: A
A102: Irms_OCP_Vinnom | B102: =SQRT((Iout_OCP_Vinnom/Number_of_Phases)^2+(Iripple_Vinnom^2)/12) -> 19.58903364 | C102: A
A103: Irms_OCP_Vinmax | B103: =SQRT((Iout_OCP_Vinmax/Number_of_Phases)^2+(Iripple_Vinmax^2)/12) -> 19.40651203 | C103: A
A105: Pshunt_Vinmin | B105: =B101^2*Rs -> 1.174487696 | C105: W | F105: Max power dissipations in shunt
A106: Pshunt_Vinnom | B106: =B102^2*Rs -> 1.151190717 | C106: W
A107: Pshunt_Vinmax | B107: =B103^2*Rs -> 1.129838128 | C107: W
A110: Step 4: Output Capacitor
A111: Icoutrms_VINmin | B111: =Iripple_Vinmin/SQRT(12) -> 0.1236285522 | C111: A | F111: Output Cap RMS current
A112: Icoutrms_VINnom | B112: =Iripple_Vinnom/SQRT(12) -> 0.2381070589 | C112: A
A113: Icoutrms_VINmax | B113: =Iripple_Vinmax/SQRT(12) -> 0.344415095 | C113: A
A114: Max Cout rms current | B114: =MAX(B111:B113) -> 0.344415095 | C114: A
A116: Vripple1 | B116: ='Design Regulator'!E32/1000 -> 0.1 | C116: V | F116: Output voltage ripple spec(pk-pk)
A118: Output Ripple Spec (pk-pk) | B118: =Vo1_ripple*1000 -> 100 | C118: mV | F118: Vout ripple spec at Vin(nom)
A120: Coutmin | B120: =Iripple_Vinnom/(Fsw*8*Vo1_ripple) -> 2.291186243e-06 | C120: F | F120: Minimum output capacitnace | H120: =Vo2_ripple -> 0 | I120: 1
A121: Reported Coutmin | B121: =IF(Cout_min*1000000<2, 2.2,Cout_min*1000000) -> 2.291186243 | C121: uF
A122: Cout | B122: ='Design Regulator'!E34/1000000 -> 0.00047 | C122: F | F122: Chosen output capacitance | I122: 1
A123: Resrmax | B123: =SQRT((Vo1_ripple/Iripple_Vinnom)^2-(1/(Fsw*Cout*8))^2) -> 0.1212360968 | C123: W | F123: Max ESR before ripple exceeds Vripple1 | I123: 1
A125: Reported Cout ESR max | B125: =IF(OR(CoutEsrMax>0.3, CoutEsrMax<0, (ISERROR(CoutEsrMax))), "N/A", CoutEsrMax*1000) -> 121.2360968 | C125: mΩ
A126: CoutEsr | B126: ='Design Regulator'!E36/1000 -> 0.01 | C126: W | F126: Chosen ESR | I126: 1 | K126: =ISERROR(CoutEsrMax) -> FALSE | L126: =ISERROR(B125) -> FALSE
A127: Vripple | B127: =Iripple_Vinnom*SQRT(Cout_ESR^2+(1/(8*Fsw*Cout))^2) -> 0.008262663544 | C127: Vp-p | L127: =OR(CoutEsrMax>0.3,CoutEsrMax<0) -> FALSE
K128: =OR(TRUE, FALSE, TRUE) -> TRUE
A129: Step 5: Input Capacitor
K130: Two channels operating at full load
A131: Icinrms_VINmin | B131: =SQRT(D1_Vinmin_2*(Iout^2*(1-D1_Vinmin_2)+Iripple_Vinmin^2/12)) -> 2.8122703 | C131: A | D131: =D1_Vinmax -> 0.8928571429 | F131: Calculate input cap rms current with one output unloaded | K131: =SQRT(Iout^2*D1_Vinmin*(1-D1_Vinmin)+Iout2^2*D2_Vinmin*(1-D2_Vinmin)-2*Iout*Iout2*D1_Vinmin*D2_Vinmin) ->  | L131: A | M131: =SQRT(Iout^2*D1_Vinmin*(1-D1_Vinmin)+Iout2^2*D2_Vinmin*(1-D2_Vinmin)-2*Iout*Iout2*(0.5-D2_Vinmin*(1-D1_Vinmin))) ->  | N131: A
A132: Icinrms_VINnom | B132: =SQRT(D1_Vinnom_2*(Iout^2*(1-D1_Vinnom_2)+Iripple_Vinnom^2/12)) -> 3.885821329 | C132: A | D132: =D1_Vinmin -> 0.9615384615 | K132: =SQRT(Iout^2*D1_Vinnom*(1-D1_Vinnom)+Iout2^2*D2_Vinnom*(1-D2_Vinnom)-2*Iout*Iout2*D1_Vinnom*D2_Vinnom) ->  | L132: A
A133: Icinrms_VINmax | B133: =SQRT(D1_Vinmax_2*(Iout^2*(1-D1_Vinmax_2)+Iripple_Vinmax^2/12)) -> 4.613361023 | C133: A | K133: =SQRT(Iout^2*D1_Vinmax*(1-D1_Vinmax)+Iout2^2*D2_Vinmax*(1-D2_Vinmax)-2*Iout*Iout2*D1_Vinmax*D2_Vinmax) ->  | L133: A
A134: Icinrms - multiphase | B134: =Iout*SQRT((D1_Vinmin-F136/Number_of_Phases)*((F136+1)/Number_of_Phases-D1_Vinmin)) -> 2.884615385 | C134: A | K134: =MAX(K131:K133) ->  | L134: A
A135: Max Cin rms current | B135: =MAX(B131:B133) -> 4.613361023 | C135: A | F135: =Number_of_Phases*D1_Vinnom -> 0.9259259259 | G135: N*D
F136: =FLOOR(Number_of_Phases*D1_Vinnom,1) -> 0 | G136: floor(N*D)
A137: Icinrms - multiphase - max | B137: =Iout/2/Number_of_Phases -> 7.5 | C137: A
A138: Final result | B138: =IF(D1_Vinmin<0.5, B135, B137) -> 7.5 | C138: A | D138: …report this
A140: Vinripple1 | B140: ='Design Regulator'!E41/1000 -> 0.3 | C140: Vp-p | F140: Input voltage ripple spec (pk-pk)
A142: Cinmin_Vinmin | B142: =Iout/Number_of_Phases*D1_Vinmin*(1-D1_Vinmin)/(Vinripple1*Fsw) -> 4.109138725e-06 | C142: F
A143: Cinmin_Vinnom | B143: =Iout/Number_of_Phases*D1_Vinnom*(1-D1_Vinnom)/(Vinripple1*Fsw) -> 7.620789514e-06 | C143: F
A144: Cinmin_Vinmax | B144: =Iout/Number_of_Phases*D1_Vinmax*(1-D1_Vinmax)/(Vinripple1*Fsw) -> 1.06292517e-05 | C144: F | F144: Calculate cap at Vinmax and 50% duty cycle (Vin = 2*Vout)
A146: Cinmin_50%D | B146: =Iout*0.5*(1-0.5)/(Vinripple1*Fsw) -> 2.777777778e-05 | C146: F | F146: Buck 50% typically worst case
A147: Cinmin | B147: =IF(D1_Vinmin<0.5, B142,B146) -> 2.777777778e-05 | C147: F | D147: =(VIN_min+VIN_max)/2 -> 54
A148: Reported Cinmin | B148: =IF(Cinmin*1000000<2.2, 2.2,Cinmin*1000000) -> 27.77777778 | C148: uF | D148: =2*Vout -> 100 | F148: …report this
A150: Cin | B150: ='Design Regulator'!E43/1000000 -> 0.00047 | C150: F | F150: Input capacitance
A151: CinEsrMax_Vinmax | B151: =-(Iout/Number_of_Phases*D1_Vinmax*(1-D1_Vinmax)/(Cin*Fsw)-Vinripple1)/(Iout/Number_of_Phases+Iripple_Vinmax/2) -> 0.01880002153 | C151: W
A152: CinEsrMax_50%D | B152: =-(Iout/Number_of_Phases*0.5*(1-0.5)/(Cin*Fsw)-Vinripple1)/(Iout/Number_of_Phases+Iripple_Vinmax/2) -> 0.01809820788 | C152: W | F152: Calculate ESR at Vinmax and 50% duty cycle (Vin = 2*Vout)
A153: CinEsrMax | B153: =IF(VIN_max<2*Vout, B151,B152) -> 0.01880002153 | C153: W
A154: Reported Cin ESR max | B154: =IF(OR(CinEsrMax>0.3, CinEsrMax<0), "N/A",CinEsrMax*1000) -> 18.80002153 | C154: mΩ | F154: …report this
A155: RCinEsr | B155: ='Design Regulator'!E45/1000 -> 0.01 | C155: W | F155: Input capacitance series resistance (ESR)
A157: Vinripple2_Vinmin | B157: =Iout/Number_of_Phases*D1_Vinmin_2*(1-D1_Vinmin_2)/(Cin*Fsw)+(Iout/Number_of_Phases +Iripple_Vinmin/2)*RCinEsr -> 0.1546296109 | C157: Vp-p
A158: Vinripple2_Vinnom | B158: =Iout/Number_of_Phases*D1_Vinnom_2*(1-D1_Vinnom_2)/(Cin*Fsw)+(Iout/Number_of_Phases +Iripple_Vinnom/2)*RCinEsr -> 0.1588670819 | C158: Vp-p
A159: Vinripple2_Vinmax | B159: =Iout/Number_of_Phases*D1_Vinmax_2*(1-D1_Vinmax_2)/(Cin*Fsw)+(Iout/Number_of_Phases +Iripple_Vinmax/2)*RCinEsr -> 0.1626406076 | C159: Vp-p
A160: Vinripple2_50%D | B160: =Iout/Number_of_Phases*0.5*(1-0.5)/(Cin*Fsw)+(Iout/Number_of_Phases +Iripple_Vinmax/2)*RCinEsr -> 0.1736959409 | C160: Vp-p | F160: Calculate ripple at Vinmax and 50% duty cycle (Vin = 2*Vout)
A161: Vinripple2 | B161: =IF(D1_Vinmin<0.5, B157,B160) -> 0.1736959409 | C161: Vp-p | F161: …report highest of these
B163: =Iout*D1_Vinmax_2*(1-D1_Vinmax_2)/(Cin*Fsw) -> 0.006675163184 | C163: Vp-p
A165: Step 6a: Soft Start
A166: Tss | B166: ='Design Regulator'!E57/1000 -> 0 | C166: s | D166: Soft-start time
A167: Iss | B167: =Cout*Vout/Tss ->  | C167: A | D167: Load cap current during soft start
A168: Css | B168: =0.000022*Tss/1.2 -> 0 | C168: F
A169: Css_u | B169: ='Standard Value Calculator'!B4 -> 0 | C169: F
A171: Step 6b: Other Components - Dither, Hiccup, DEMB, MODE
A172: Tres | B172: ='Design Regulator'!E60/1000 -> 0.0045 | C172: s | D172: Hiccup time
A173: Cres | B173: =0.00002*Tres/1.2 -> 7.5e-08 | C173: F
A174: Cres_u | B174: ='Standard Value Calculator'!G4 -> 8.2e-08 | C174: F
A176: RPG1/2 | B176: 100 | C176: kΩ
A177: RFB1/2 | C177: W | E177: Tie to VDDA or AGND for 3.3V/5V output, respectively.
A178: R_MODE | C178: W | E178: Tie to VDDA or AGND for Single/Dual operation, respectively.
A179: R_DEMB | C179: W | E179: Tie to VDDA or AGND for FPWM/DEM, respectively.
A181: Enable Hysteresis Current | B181: 1e-05 | C181: A | E181: 10 µA Hysteresis Current
A182: Turn ON Voltage | B182: ='Design Regulator'!E59 -> 5.5
A183: Hysteresis Voltage | B183: ='Design Regulator'!E59-'Design Regulator'!E60 -> 1
A185: Upper FB resistor | B185: =B183/B181 -> 100000 | C185: W
A186: Lower FB resister | B186: =B185/(B182-1) -> 22222.22222 | C186: W
A187: Standard upper FB resistor | B187: ='Standard Value Calculator'!S40 -> 100 | C187: kΩ
A188: Standard lower FB resistor | B188: ='Standard Value Calculator'!S41 -> 22.1 | C188: kΩ
A190: Dither Modulation Frequency | B190: ='Design Regulator'!E63*1000 ->  | C190: Hz
A191: Cdither_calculated | B191: =10*10^-6/Fdither/0.12 ->  | C191: F
A192: Cdither_stdvalue | B192: ='Standard Value Calculator'!S21 ->  | C192: F
A195: Step 7: Compensation
A196: Pi | B196: 3.14159265 | D196: p
A197: CS Amp Gain | B197: 10
A198: Ri | B198: =Rs*CSAmp_gain -> 0.03 | C198: W | F198: Current Sense effective resistance = shunt resistor Rs * CS amp gain
A199: gm | B199: =IF(COMP_TYPE=1,0.00003,0.0012) -> 0.0012 | C199: S | F199: Error Amp Transconductance
A201: Se_ext | B201: =B205/Ri*1000 -> 3409090.909 | C201: A/s | F201: Slope Comp Slope - referred to inductor current
A202: Sn | B202: =(Vin-Vout)/Lf -> 400000 | C202: A/s | F202: On-time Slope
A203: Sf | B203: =Vout/Lf -> 5000000 | C203: A/s | F203: Off-time Slope
A205: Se_int | B205: =Fsw*0.001*(5/22) -> 102.2727273 | C205: mV/μs | F205: Slope Comp Slope - referred to IC
A206: Sn_int | B206: =Sn*Ri/1000 -> 12 | C206: mV/μs | F206: etc
A207: Sf_int | B207: =Sf*Ri/1000 -> 150 | C207: mV/μs | F207: etc
A209: mc_buck | B209: =1+Se_ext/Sn -> 9.522727273 | F209: mc = 1 + Se/Sn for peak current-mode buck
A210: k_buck | B210: =mc_buck*(1-D1_Vinnom_2) -> 0.6862988755 | F210: mc*(1-d)
A212: mc | B212: =1+Se_ext/Sn -> 9.522727273
A213: k | B213: =mc_buck*(1-D1_Vinnom_2) -> 0.6862988755
A214: Q | B214: =1/Pi/(k-0.5) -> 1.708598002 | F214: 1/(Pi*(k-0.5)) | H214: Q = 2/Pi = 0.636 gives ideal one-cycle damping
A216: Error Amp (EA)
A217: GBW | B217: 6 | C217: MHz | F217: EA gain-bandwidth product
A218: Cbw | B218: =gm/(2*Pi*GBW*1000000) -> 3.183098865e-11 | C218: F | F218: EA effective bandwidth limiting capacitance = gm/(2*Pi*GBW)
A219: RoEA | B219: 64000000 | C219: W | F219: EA output resistance
A220: AEA | B220: =gm*RoEA -> 76800 | C220: V/V | F220: EA DC gain = gm*RoEA
A221: Afb | B221: =IF(VOUT_setting=1,Vref/Vout,SQRT((1+(Fcross*zterm1)^2)/((1+Afbr-pterm4*(Fcross)^2)^2+(Fcross*pterm3)^2))) -> 0.016 | C221: V/V | F221: Feedback gain from Vout to FB
A222: Acs | B222: =1/Ri -> 33.33333333 | F222: Acs = 1/Ri
A223: Am_buck | B223: =(Ro/Number_of_Phases)/Ri/((1+Ro/Number_of_Phases*(k-0.5)/(Fsw*Lf))) -> 97.6372517
A224: Am | B224: =(Ro*Number_of_Phases)/Ri/((1+Ro*Number_of_Phases*(k-0.5)/(Fsw*Lf))) -> 97.6372517 | F224: Buck modulator gain
A226: Scaling factor to calculate Rcomp - buck | B226: =2*Pi*Ri/gm -> 157.0796325 | F226: 2*Pi*Ri/gm -- scaling factor to calculate Rcomp given desired buck crossover frequency
A227: DC Gain is Adc = AEA*Afb*Am
A229: Ro | B229: =Rout -> 3.333333333 | C229: W | F229: Output Resistance
A231: Fp_load_buck | B231: =1/(2*Pi*Ro*Cout)+(k-0.5)/(2*Pi*Fsw*Lf*Cout/Number_of_Phases) -> 115.6073572 | C231: Hz | F231: Buck dominant pole frequency -- note slope comp influence
A232: Fp_dominant | B232: =Fload_u -> 115.6073572 | C232: Hz
B233: =Cbw -> 3.183098865e-11
A234: Fp_EA | B234: =1/(2*Pi*(RoEA+Rcea1_u)*Cc1ea_u) -> 16.51747365 | C234: Hz | F234: Error Amp LF pole -- related to amplifier ouptut resistance and comp cap
A235: Fp_HF | B235: =1/(2*Pi*Rcea1_u*(Cc2ea_u+Cbw)) -> 21097.04641 | C235: Hz | F235: Error Amp HF pole cancels zero related to Output Cap ESR
A236: Fesr | B236: =1/(2*Pi*Cout*Cout_ESR) -> 33862.75389 | C236: Hz | F236: Cout ESR zero frequency
A237: F_mod | B237: =Fsw/2 -> 225000 | C237: Hz | F237: Zero-order sample-and-hold effects of current-mode control modeled as pole at Fsw/2
D238: Internal Comp Crossover
A239: Desired Crossover Frequency | B239: =CHOOSE(COMP_TYPE,Fcross_Ch2,'Design Regulator'!E69*1000) -> 48000 | C239: Hz | D239: =Fsw/50 -> 9000
A240: Rcea1 | B240: =Fcross*Cout/Number_of_Phases*2*Pi*Ri/(gm*Afb) -> 221482.2818 | C240: W | F240: This component will largely determine the crossover frequency | K240: =Fcross/Fp_dominant/(gm*Afb*Am) -> 221482.2818
A241: Cc1ea, Cc3ea | B241: =10/(Rcea1*Fcross*2*Pi) -> 1.497062409e-10 | C241: F | F241: This along with Rcea1 will set a zero at Fcrossover/5 to optimize phase margin
A242: Cc2ea, Cc4ea | B242: =MAX(1/(Rcea1*2*Pi*Fesr)-Cbw, 1/(Rcea1*2*Pi*(Fsw/2))-Cbw) -> -1.061032955e-11 | C242: F | F242: This along with Rcea1 places a pole at the output cap ESR zero
A244: =CHOOSE(COMP_TYPE,"Internal Compensation","External Compensation") -> External Compensation
A245: Chosen Compensation Components from the standard value sheet | D245: Internal Values
A246: Rcea1_u | B246: =CHOOSE(COMP_TYPE,D246,'Design Regulator'!D76*1000) -> 237000 | C246: W | D246: 400000 | G246: =1/(Rcea1*2*Pi*(Fsw/2))-Cbw -> -2.863725551e-11
A247: Cc1ea_u | B247: =CHOOSE(COMP_TYPE,Cc3ea_u,'Design Regulator'!D77*0.000000001) -> 1.5e-10 | C247: F | D247: =50*0.000000000001 -> 5e-11
A248: Cc2ea_u | B248: =CHOOSE(COMP_TYPE,Cc4ea_u,'Design Regulator'!D78*0.000000000001) -> 0 | C248: F | D248: =0.000000000001 -> 1e-12
A250: Resulting Pole/Zero Locations | F250: =Cout -> 0.00047 | G250: =Cout_ESR -> 0.01
A251: Fz1 | B251: =1/(2*Pi*Rcea1_u*Cc1ea_u) -> 4476.9323 | C251: Hz | F251: This zero is set at or close to the dominant load pole
A252: Fp2 | B252: =1/(2*Pi*Rcea1_u*(Cc1ea_u*(Cc2ea_u+Cbw)/(Cc1ea_u+Cc2ea_u+Cbw))) -> 25573.97871 | C252: Hz | F252: This pole cancels the zero from the Output Cap ESR
D253: Internal Values
... 154 more rows

Sheet Schematic Management (hidden)
N1: 3.3V or 5V fixed (FB1/2)
A2: =IF(MODE=1, CHOOSE(SCH_SETTING, "SCH_SetVout_IntComp_nAEF","SCH_SetVout_IntComp_AEF","SCH_SetVout_ExtComp_nAEF","SCH_SetVout_ExtComp_AEF","SCH_AdjVout_IntComp_nAEF","SCH_AdjVout_IntComp_AEF","SCH_AdjVout_ExtComp_nAEF","SCH_AdjVout_ExtComp_AEF")) -> SCH_AdjVout_ExtComp_nAEF | J2: With/without dither (DITH) | N2: With/without VOUT connected to VCCX
J3: FPWM or DEM (DEMB)
J4: Shunt or inductor DCR current sensing

Sheet Stability Calculations (hidden)
A2: Divider Network & EA Poles/Zeros | E2: Modulator | J2: Power Stage Poles/Zeros | M2: Complex Pole Pair | P2: Feedback natural frequencies | T2: Total System
B3: Afb1 | C3: =Afb -> 0.016 | D3: V/V | E3: Acs | F3: =Acs -> 33.33333333 | G3: A/V | H3: gm | I3: =gm -> 0.0012 | J3: z_ESR | K3: =Fesr -> 33862.75389 | L3: Hz | M3: p3 | N3: =Fsw/2 -> 225000 | O3: Hz | P3: zterm1 | Q3: =((1/wffHz)+(1/wfftHz)) -> 2.767114806e-07 | T3: Adc | U3: =IF(VOUT_setting=1,Am*Afb*AEA,Am*AEA) -> 119976.6549 | V3: V/V
B4: EA zero, z1 | C4: =Fz1_u -> 4476.9323 | D4: Hz | E4: Am | F4: =Am -> 97.6372517 | G4: V/V | J4: p_dom | K4: =Fp_dominant -> 115.6073572 | L4: Hz | M4: pterm1 | N4: =Q*pole3 -> 384434.5505 | P4: pterm3 | Q4: =((1/wfbtHz)+(1/wffHz)+(1/wfftHz)+(Afbr/wffHz)) -> 4.505838179e-06 | T4: Crossover | U4: =AI7 -> 38.2405 | V4: kHz
B5: EA pole, p1 | C5: =Fp1_u -> 16.51747365 | D5: Hz | E5: Q | F5: =Q -> 1.708598002 | M5: pterm2 | N5: =pole3^2 -> 50625000000 | P5: pterm4 | Q5: =1/(wffHz*wfbtHz) -> 6.37497486e-14 | T5: Phase Margin | U5: =AI9 -> 65.03180268 | V5: °
B6: Aea | C6: =AEA -> 76800 | D6: V/V | E6: mc | F6: =mc -> 9.522727273 | P6: Afbr | Q6: =Rfb1_/Rfb2_u -> 61.72839506 | T6: radconv | U6: =180/Pi -> 57.29577958 | AH6: XOVER SEARCH
B7: EA pole, p2 | C7: =Fp2_u -> 21097.04641 | D7: Hz | E7: k | F7: =k -> 0.6862988755 | AH7: xover | AI7: =SUM(AH12:AH613)/1000 -> 38.2405
AH9: phase margin | AI9: =SUM(AI13:AI613) -> 65.03180268
A10: Freq (Hz) | C10: Power Stage | I10: Error Amplifier | O10: Feedback Gain | S10: Sampling Double Pole | U10: System Response | AB10: ERROR AMP Response | AE10: PLANT Response
C11: p_dom | E11: z_ESR | G11: z_RHP | I11: p1 | K11: z1 | M11: p2 | O11: z1 | Q11: p1p2 | S11: p3
C12: Gain(V/V) | D12: Phase(rad) | E12: Gain(V/V) | F12: Phase(rad) | G12: Gain(V/V) | H12: Phase(rad) | I12: Gain(V/V) | J12: Phase(rad) | K12: Gain(V/V) | L12: Phase(rad) | M12: Gain(V/V) | N12: Phase(rad) | O12: Gain(V/V) | P12: Phase(rad) | Q12: Gain(V/V) | R12: Phase(rad) | S12: Gain(V/V) | T12: Phase(rad) | U12: Gain (dB) | V12: Phase (°) | W12: Phase Margin (°) | Z12: Fsquare | AB12: Gain(dB) | AC12: Phase(Deg) | AE12: Gain(dB) | AF12: Phase(Deg)
A13: 1 | B13: =A13/1000 -> 0.001 | C13: =SQRT(1+(A13/pole1)^2) -> 1.00003741 | D13: =ATAN(A13/pole1) -> 0.008649752793 | E13: =SQRT(1+(A13/Zero1)^2) -> 1 | F13: =ATAN(A13/Zero1) -> 2.95309709e-05 | G13: =IF(VIN_nom>Vout, 1, SQRT(1+(A13/z_RHP)^2)) -> 1 | H13: =IF(VIN_nom>Vout, 0, -ATAN(A13/z_RHP)) -> 0 | I13: =SQRT(1+(A13/Pole2)^2) -> 1.001830987 | J13: =ATAN(A13/Pole2) -> 0.06046813968 | K13: =SQRT(1+(A13/Zero2)^2) -> 1.000000025 | L13: =ATAN(A13/Zero2) -> 0.0002233672337 | M13: =SQRT(1+(A13/pole4)^2) -> 1.000000001 | N13: =ATAN(A13/pole4) -> 4.739999996e-05 | O13: =IF(VOUT_setting=1,1,SQRT(1+(A13*zterm1)^2)) -> 1 | P13: =IF(VOUT_setting=1,0,ATAN(((A13*zterm1)))) -> 0 | Q13: =IF(VOUT_setting=1,1,SQRT((1+Afbr-pterm4*(A13)^2)^2+(A13*$Q$4)^2)) -> 1 | R13: =IF(VOUT_setting=1,0,ATAN(A13*$Q$4/(1+Afbr-$Q$5*(A13)^2))) -> 0 | S13: =SQRT((1-(Z13/pterm2))^2+(A13/pterm1)^2) -> 1 | T13: =IF((ATAN((A13/pterm1)/(1-A13^2/pterm2))>0),ATAN((A13/pterm1)/(1-A13^2/pterm2)),PI()+ATAN((A13/pterm1)/(1-A13^2/pterm2))) -> 2.601223013e-06 | U13: =20*LOG10(((E13*K13*G13*O13)/(C13*I13*S13*M13*Q13))*Adc) -> 101.565721 | V13: =((F13+L13+H13+P13)-(D13+J13+T13+N13+R13))*radconv -> -3.948538392 | W13: =IF(V13>0,V13,V13+180) -> 176.0514616 | Y13: =IF(U13<0,A13,1000000000) -> 1000000000 | Z13: =A13^2 -> 1 | AB13: =20*LOG10((K13/(I13*M13))*AEA) -> 97.6913354 | AC13: =(L13-(J13+N13))*radconv -> -3.454487023 | AE13: =20*LOG10((E13*G13/(C13*S13))*Acs*Am) -> 70.2495609 | AF13: =(F13+H13-(D13+T13))*radconv -> -0.4940513685 | AH13: =SUM((U14<0)*(U13>0))*A13 -> 0 | AI13: =IF(AH13>0,W11,0) -> 0
A14: 1.0965 | B14: =A14/1000 -> 0.0010965 | C14: 1.000044979 | D14: 0.009484406085 | E14: 1.000000001 | F14: 3.238070959e-05 | G14: 1 | H14: 0 | I14: 1.002201012 | J14: 0.06628698542 | K14: 1.00000003 | L14: 0.0002449221709 | M14: 1.000000001 | N14: 5.197409995e-05 | O14: 1 | P14: 0 | Q14: =IF(VOUT_setting=1,1,SQRT((1+Afbr-pterm4*(A14)^2)^2+(A14*$Q$4)^2)) -> 1 | R14: 0 | S14: 1 | T14: 2.852241034e-06 | U14: 101.5624478 | V14: -4.328633979 | W14: 175.671366 | Y14: 1000000000 | Z14: 1.20231225 | AB14: 97.68812791 | AC14: -3.786909396 | AE14: 70.24949517 | AF14: -0.5417245838 | AH14: 0 | AI14: 0
A15: 1.2023 | B15: 0.0012023 | C15: 1.000054077 | D15: 0.01039948224 | E15: 1.000000001 | F15: 3.550508631e-05 | G15: 1 | H15: 0 | I15: 1.002645662 | J15: 0.07266143471 | K15: 1.000000036 | L15: 0.0002685544231 | M15: 1.000000002 | N15: 5.698901994e-05 | O15: 1 | P15: 0 | Q15: =IF(VOUT_setting=1,1,SQRT((1+Afbr-$Q$5*(A15)^2)^2+(A15*$Q$4)^2)) -> 1 | R15: 0 | S15: 1 | T15: 3.127450429e-06 | U15: 101.558516 | V15: -4.745063082 | W15: 175.2549369 | Y15: 1000000000 | Z15: 1.44552529 | AB15: 97.68427512 | AC15: -4.151071742 | AE15: 70.24941614 | AF15: -0.59399134 | AH15: 0 | AI15: 0
A16: 1.3183 | B16: 0.0013183 | C16: 1.000065015 | D16: 0.01140275927 | E16: 1.000000001 | F16: 3.893067893e-05 | G16: 1 | H16: 0 | I16: 1.003179957 | J16: 0.0796436232 | K16: 1.000000043 | L16: 0.0002944650206 | M16: 1.000000002 | N16: 6.248741992e-05 | O16: 1 | P16: 0 | Q16: 1 | R16: 0 | S16: 1 | T16: 3.429192299e-06 | U16: 101.5537937 | V16: -5.201248039 | W16: 174.798752 | Y16: 1000000000 | Z16: 1.73791489 | AB16: 97.67964783 | AC16: -4.549952143 | AE16: 70.24932115 | AF16: -0.6512958962 | AH16: 0 | AI16: 0
A17: 1.4454 | B17: 0.0014454 | C17: 1.000078155 | D17: 0.0125020131 | E17: 1.000000001 | F17: 4.268406533e-05 | G17: 1 | H17: 0 | I17: 1.003821465 | J17: 0.08728498618 | K17: 1.000000052 | L17: 0.0003228549937 | M17: 1.000000002 | N17: 6.851195989e-05 | O17: 1 | P17: 0 | Q17: 1 | R17: 0 | S17: 1 | T17: 3.759807744e-06 | U17: 101.548127 | V17: -5.700570937 | W17: 174.2994291 | Y17: 1000000000 | Z17: 2.08918116 | AB17: 97.67409528 | AC17: -4.986488546 | AE17: 70.24920702 | AF17: -0.7140823912 | AH17: 0 | AI17: 0
A18: 1.5849 | B18: 0.0015849 | C18: 1.000093969 | D18: 0.01370847633 | E18: 1.000000001 | F18: 4.680363576e-05 | G18: 1 | H18: 0 | I18: 1.004592935 | J18: 0.09566006811 | K18: 1.000000063 | L18: 0.0003540147198 | M18: 1.000000003 | N18: 7.512425986e-05 | O18: 1 | P18: 0 | Q18: 1 | R18: 0 | S18: 1 | T18: 4.122678354e-06 | U18: 101.541317 | V18: -6.24793133 | W18: 173.7520687 | Y18: 1000000000 | Z18: 2.51190801 | AB18: 97.66742253 | AC18: -5.464938931 | AE18: 70.24906968 | AF18: -0.7829923996 | AH18: 0 | AI18: 0
A19: 1.7378 | B19: 0.0017378 | C19: 1.000112973 | D19: 0.01503078325 | E19: 1.000000001 | F19: 5.13189212e-05 | G19: 1 | H19: 0 | I19: 1.005519319 | J19: 0.1048241593 | K19: 1.000000075 | L19: 0.0003881675657 | M19: 1.000000003 | N19: 8.237171981e-05 | O19: 1 | P19: 0 | Q19: 1 | R19: 0 | S19: 1 | T19: 4.520405353e-06 | U19: 101.533146 | V19: -6.846980202 | W19: 173.1530198 | Y19: 1000000000 | Z19: 3.01994884 | AB19: 97.65941664 | AC19: -5.988461115 | AE19: 70.24890463 | AF19: -0.8585190865 | AH19: 0 | AI19: 0
A20: 1.9055 | B20: 0.0019055 | C20: 1.000135827 | D20: 0.01648102264 | E20: 1.000000002 | F20: 5.627126501e-05 | G20: 1 | H20: 0 | I20: 1.00663228 | J20: 0.1148549565 | K20: 1.000000091 | L20: 0.0004256262452 | M20: 1.000000004 | N20: 9.032069975e-05 | O20: 1 | P20: 0 | Q20: 1 | R20: 0 | S20: 0.9999999999 | T20: 4.956630452e-06 | U20: 101.523339 | V20: -7.502845608 | W20: 172.4971544 | Y20: 1000000000 | Z20: 3.63093025 | AB20: 97.64980809 | AC20: -6.56149268 | AE20: 70.24870615 | AF20: -0.9413529283 | AH20: 0 | AI20: 0
A21: 2.0893 | B21: 0.0020893 | C21: 1.000163292 | D21: 0.01807041207 | E21: 1.000000002 | F21: 6.169905744e-05 | G21: 1 | H21: 0 | I21: 1.007968151 | J21: 0.1258220849 | K21: 1.000000109 | L21: 0.0004666811353 | M21: 1.000000005 | N21: 9.903281968e-05 | O21: 1 | P21: 0 | Q21: 1 | R21: 0 | S21: 0.9999999999 | T21: 5.434735242e-06 | U21: 101.5115815 | V21: -8.220144385 | W21: 171.7798556 | Y21: 1000000000 | Z21: 4.36517449 | AB21: 97.63828911 | AC21: -7.188009747 | AE21: 70.24846763 | AF21: -1.032134639 | AH21: 0 | AI21: 0
A22: 2.2909 | B22: 0.0022909 | C22: 1.000196322 | D22: 0.01981361967 | E22: 1.000000002 | F22: 6.765250115e-05 | G22: 1 | H22: 0 | I22: 1.009572411 | J22: 0.1378163332 | K22: 1.000000131 | L22: 0.0005117119595 | M22: 1.000000006 | N22: 0.0001085886596 | O22: 1 | P22: 0 | Q22: 1 | R22: 0 | S22: 0.9999999999 | T22: 5.959141802e-06 | U22: 101.4974815 | V22: -9.004899001 | W22: 170.995101 | Y22: 1000000000 | Z22: 5.24822281 | AB22: 97.624476 | AC22: -7.873196985 | AE22: 70.24818079 | AF22: -1.131702016 | AH22: 0 | AI22: 0
A23: 2.5119 | B23: 0.0025119 | C23: 1.000236022 | D23: 0.02172443765 | E23: 1.000000003 | F23: 7.417884569e-05 | G23: 1 | H23: 0 | I23: 1.011497356 | J23: 0.1509189745 | K23: 1.000000157 | L23: 0.0005610761048 | M23: 1.000000007 | N23: 0.0001190640594 | O23: 1 | P23: 0 | Q23: 1 | R23: 0 | S23: 0.9999999999 | T23: 6.534012088e-06 | U23: 101.4805915 | V23: -9.862537699 | W23: 170.1374623 | Y23: 1000000000 | Z23: 6.30964161 | AB23: 97.60793067 | AC23: -8.621694871 | AE23: 70.24783604 | AF23: -1.240842828 | AH23: 0 | AI23: 0
A24: 2.7542 | B24: 0.0027542 | C24: 1.000283745 | D24: 0.02381923761 | E24: 1.000000003 | F24: 8.13341999e-05 | G24: 1 | H24: 0 | I24: 1.013806575 | J24: 0.1652245307 | K24: 1.000000189 | L24: 0.0006151979677 | M24: 1.000000009 | N24: 0.0001305490793 | O24: 1 | P24: 0 | Q24: 1 | R24: 0 | S24: 0.9999999999 | T24: 7.164288425e-06 | U24: 101.4603703 | V24: -10.79939212 | W24: 169.2006079 | Y24: 1000000000 | Z24: 7.58561764 | AB24: 97.5881239 | AC24: -9.438899957 | AE24: 70.24742163 | AF24: -1.360492165 | AH24: 0 | AI24: 0
A25: 3.02 | B25: 0.00302 | C25: 1.000341145 | D25: 0.02611696522 | E25: 1.000000004 | F25: 8.918353191e-05 | G25: 1 | H25: 0 | I25: 1.016577223 | J25: 0.1808392264 | K25: 1.000000228 | L25: 0.0006745689547 | M25: 1.00000001 | N25: 0.000143147999 | O25: 1 | P25: 0 | Q25: 1 | R25: 0 | S25: 0.9999999999 | T25: 7.855693502e-06 | U25: 101.4361668 | V25: -11.82260842 | W25: 168.1773916 | Y25: 1000000000 | Z25: 9.1204 | AB25: 97.56441879 | AC25: -10.33087628 | AE25: 70.24692323 | AF25: -1.49173214 | AH25: 0 | AI25: 0
A26: 3.3113 | B26: 0.0033113 | C26: 1.000410116 | D26: 0.0286348118 | E26: 1.000000005 | F26: 9.778590366e-05 | G26: 1 | H26: 0 | I26: 1.019896682 | J26: 0.1978498899 | K26: 1.000000274 | L26: 0.0007396357984 | M26: 1.000000012 | N26: 0.0001569556187 | O26: 1 | P26: 0 | Q26: 1 | R26: 0 | S26: 0.9999999998 | T26: 8.613429766e-06 | U26: 101.4072522 | V26: -12.93812322 | W26: 167.0618768 | Y26: 1000000000 | Z26: 10.96470769 | AB26: 97.53610309 | AC26: -11.30257856 | AE26: 70.24632438 | AF26: -1.635544659 | AH26: 0 | AI26: 0
A27: 3.6308 | B27: 0.0036308 | C27: 1.000493056 | D27: 0.03139598587 | E27: 1.000000006 | F27: 0.0001072210488 | G27: 1 | H27: 0 | I27: 1.023874475 | J27: 0.2163745046 | K27: 1.000000329 | L27: 0.0008110015878 | M27: 1.000000015 | N27: 0.0001720999183 | O27: 1 | P27: 0 | Q27: 1 | R27: 0 | S27: 0.9999999998 | T27: 9.444520519e-06 | U27: 101.3727219 | V27: -14.15399485 | W27: 165.8460051 | Y27: 1000000000 | Z27: 13.18270864 | AB27: 97.5022928 | AC27: -12.36073955 | AE27: 70.24560431 | AF27: -1.793255304 | AH27: 0 | AI27: 0
A28: 3.9811 | B28: 0.0039811 | C28: 1.000592757 | D28: 0.03442278705 | E28: 1.000000007 | F28: 0.0001175657477 | G28: 1 | H28: 0 | I28: 1.028636159 | J28: 0.2365125523 | K28: 1.000000395 | L28: 0.0008892470745 | M28: 1.000000018 | N28: 0.0001887041378 | O28: 1 | P28: 0 | Q28: 1 | R28: 0 | S28: 0.9999999997 | T28: 1.035572894e-05 | U28: 101.3315555 | V28: -15.47717065 | W28: 164.5228294 | Y28: 1000000000 | Z28: 15.84915721 | AB28: 97.46199195 | AC28: -13.51103291 | AE28: 70.2447388 | AF28: -1.966137738 | AH28: 0 | AI28: 0
A29: 4.3652 | B29: 0.0043652 | C29: 1.000712611 | D29: 0.03774091327 | E29: 1.000000008 | F29: 0.0001289085935 | G29: 1 | H29: 0 | I29: 1.034332009 | J29: 0.258370708 | K29: 1.000000475 | L29: 0.0009750423558 | M29: 1.000000021 | N29: 0.000206910477 | O29: 1 | P29: 0 | Q29: 1 | R29: 0 | S29: 0.9999999997 | T29: 1.13548587e-05 | U29: 101.2825522 | V29: -16.91520014 | W29: 163.0847999 | Y29: 1000000000 | Z29: 19.05497104 | AB29: 97.41402905 | AC29: -14.75954042 | AE29: 70.24369845 | AF29: -2.155659715 | AH29: 0 | AI29: 0
A30: 4.7863 | B30: 0.0047863 | C30: 1.000856669 | D30: 0.04137771367 | E30: 1.00000001 | F30: 0.0001413440851 | G30: 1 | H30: 0 | I30: 1.041137726 | J30: 0.2820470196 | K30: 1.000000571 | L30: 0.001069102201 | M30: 1.000000026 | N30: 0.0002268706161 | O30: 1 | P30: 0 | Q30: 1 | R30: 0 | S30: 0.9999999996 | T30: 1.245023371e-05 | U30: 101.2243384 | V30: -18.47523084 | W30: 161.5247692 | Y30: 1000000000 | Z30: 22.90866769 | AB30: 97.35706547 | AC30: -16.11184755 | AE30: 70.24244818 | AF30: -2.363383288 | AH30: 0 | AI30: 0
A31: 5.2481 | B31: 0.0052481 | C31: 1.001029864 | D31: 0.04536475452 | E31: 1.000000012 | F31: 0.0001549814872 | G31: 1 | H31: 0 | I31: 1.049262823 | J31: 0.3076426163 | K31: 1.000000687 | L31: 0.001172253062 | M31: 1.000000031 | N31: 0.0002487599349 | O31: 1 | P31: 0 | Q31: 1 | R31: 0 | S31: 0.9999999995 | T31: 1.36514785e-05 | U31: 101.1553144 | V31: -20.16482264 | W31: 159.8351774 | Y31: 1000000000 | Z31: 27.54255361 | AB31: 97.28954439 | AC31: -17.57371127 | AE31: 70.24094526 | AF31: -2.591111362 | AH31: 0 | AI31: 0
A32: 5.7544 | B32: 0.0057544 | C32: 1.001238028 | D32: 0.04973433222 | E32: 1.000000014 | F32: 0.0001699330174 | G32: 1 | H32: 0 | I32: 1.058947788 | J32: 0.33523318 | K32: 1.000000826 | L32: 0.001285343723 | M32: 1.000000037 | N32: 0.0002727585532 | O32: 1 | P32: 0 | Q32: 1 | R32: 0 | S32: 0.9999999995 | T32: 1.496847772e-05 | U32: 101.0737043 | V32: -21.99011805 | W32: 158.0098819 | Y32: 1000000000 | Z32: 33.11311936 | AB32: 97.2097403 | AC32: -19.14942953 | AE32: 70.23913924 | AF32: -2.840688522 | AH32: 0 | AI32: 0
A33: 6.3096 | B33: 0.0063096 | C33: 1.001488263 | D33: 0.05452374694 | E33: 1.000000017 | F33: 0.0001863286119 | G33: 1 | H33: 0 | I33: 1.070476779 | J33: 0.3648895299 | K33: 1.000000993 | L33: 0.001409356988 | M33: 1.000000045 | N33: 0.0002990750311 | O33: 1 | P33: 0 | Q33: 1 | R33: 0 | S33: 0.9999999993 | T33: 1.641267674e-05 | U33: 100.9774811 | V33: -23.95726073 | W33: 156.0427393 | Y33: 1000000000 | Z33: 39.81105216 | AB33: 97.11568762 | AC33: -20.84301561 | AE33: 70.23696871 | AF33: -3.11424512 | AH33: 0 | AI33: 0
A34: 6.9183 | B34: 0.0069183 | C34: 1.001788997 | D34: 0.05977179376 | E34: 1.000000021 | F34: 0.0002043041132 | G34: 1 | H34: 0 | I34: 1.084173925 | J34: 0.3966477736 | K34: 1.000001194 | L34: 0.001545320329 | M34: 1.000000054 | N34: 0.0003279274082 | O34: 1 | P34: 0 | Q34: 1 | R34: 0 | S34: 0.9999999992 | T34: 1.799604119e-05 | U34: 100.8644408 | V34: -26.07048878 | W34: 153.9295112 | Y34: 1000000000 | Z34: 47.86287489 | AB34: 97.00525515 | AC34: -22.65649193 | AE34: 70.23436088 | AF34: -3.413996854 | AH34: 0 | AI34: 0
A35: 7.5858 | B35: 0.0075858 | C35: 1.002150479 | D35: 0.06552300071 | E35: 1.000000025 | F35: 0.0002240160354 | G35: 1 | H35: 0 | I35: 1.10041761 | J35: 0.430527059 | K35: 1.000001436 | L35: 0.001694417568 | M35: 1.000000065 | N35: 0.0003595669045 | O35: 1 | P35: 0 | Q35: 1 | R35: 0 | S35: 0.9999999991 | T35: 1.973235756e-05 | U35: 100.7321377 | V35: -28.33338898 | W35: 151.666611 | Y35: 1000000000 | Z35: 57.54436164 | AB35: 96.87608567 | AC35: -24.59090217 | AE35: 70.2312273 | AF35: -3.742486814 | AH35: 0 | AI35: 0
A36: 8.3176 | B36: 0.0083176 | C36: 1.002584843 | D36: 0.07182322096 | E36: 1.00000003 | F36: 0.0002456267987 | G36: 1 | H36: 0 | I36: 1.119632257 | J36: 0.4664944959 | K36: 1.000001726 | L36: 0.001857877196 | M36: 1.000000078 | N36: 0.0003942542196 | O36: 1 | P36: 0 | Q36: 1 | R36: 0 | S36: 0.9999999989 | T36: 2.163593256e-05 | U36: 100.5780188 | V36: -30.7466401 | W36: 149.2533599 | Y36: 1000000000 | Z36: 69.18246976 | AB36: 96.72573067 | AC36: -26.6443064 | AE36: 70.22746341 | AF36: -4.102333705 | AH36: 0 | AI36: 0
A37: 9.1201 | B37: 0.0091201 | C37: 1.003106878 | D37: 0.07872553435 | E37: 1.000000036 | F37: 0.0002693254013 | G37: 1 | H37: 0 | I37: 1.142308224 | J37: 0.5044913132 | K37: 1.000002075 | L37: 0.002037128724 | M37: 1.000000093 | N37: 0.0004322927131 | O37: 1 | P37: 0 | Q37: 1 | R37: 0 | S37: 0.9999999986 | T37: 2.372341404e-05 | U37: 100.3993423 | V37: -33.30984166 | W37: 146.6901583 | Y37: 1000000000 | Z37: 83.17622401 | AB37: 96.55157554 | AC37: -28.81327275 | AE37: 70.222942 | AF37: -4.496568906 | AH37: 0 | AI37: 0
A38: 10 | B38: 0.01 | C38: 1.003734126 | D38: 0.0862849127 | E38: 1.000000044 | F38: 0.0002953097005 | G38: 1 | H38: 0 | I38: 1.168987906 | J38: 0.5443948723 | K38: 1.000002495 | L38: 0.002233668659 | M38: 1.000000112 | N38: 0.0004739999645 | O38: 1 | P38: 0 | Q38: 1 | R38: 0 | S38: 0.9999999984 | T38: 2.601223018e-05 | U38: 100.1933819 | V38: -36.01903875 | W38: 143.9809613 | Y38: 1000000000 | Z38: 100 | AB38: 96.35104473 | AC38: -31.09070702 | AE38: 70.21751243 | AF38: -4.928331731 | AH38: 0 | AI38: 0
A39: 10.965 | B39: 0.010965 | C39: 1.004487897 | D39: 0.09456401794 | E39: 1.000000052 | F39: 0.0003238070847 | G39: 1 | H39: 0 | I39: 1.200286126 | J39: 0.5860448197 | K39: 1.000002999 | L39: 0.002449216861 | M39: 1.000000135 | N39: 0.0005197409532 | O39: 1 | P39: 0 | Q39: 1 | R39: 0 | S39: 0.999999998 | T39: 2.85224104e-05 | U39: 99.95737044 | V39: -38.86854455 | W39: 141.1314555 | Y39: 1000000000 | Z39: 120.231225 | AB39: 96.12155356 | AC39: -33.46734399 | AE39: 70.21099214 | AF39: -5.401200563 | AH39: 0 | AI39: 0
A40: 12.023 | B40: 0.012023 | C40: 1.005393308 | D40: 0.1036260468 | E40: 1.000000063 | F40: 0.0003550508483 | G40: 1 | H40: 0 | I40: 1.236863906 | J40: 0.6292037008 | K40: 1.000003606 | L40: 0.002685537839 | M40: 1.000000162 | N40: 0.0005698901383 | O40: 1 | P40: 0 | Q40: 1 | R40: 0 | S40: 0.9999999976 | T40: 3.127450437e-05 | U40: 99.68880734 | V40: -41.84828298 | W40: 138.151717 | Y40: 1000000000 | Z40: 144.552529 | AB40: 95.86081599 | AC40: -35.92949886 | AE40: 70.2031666 | AF40: -5.918784117 | AH40: 0 | AI40: 0
A41: 13.183 | B41: 0.013183 | C41: 1.00648071 | D41: 0.1135420849 | E41: 1.000000076 | F41: 0.0003893067698 | G41: 1 | H41: 0 | I41: 1.279454055 | J41: 0.6735962831 | K41: 1.000004335 | L41: 0.00294464178 | M41: 1.000000195 | N41: 0.0006248741187 | O41: 1 | P41: 0 | Q41: 1 | R41: 0 | S41: 0.9999999972 | T41: 3.429192309e-05 | U41: 99.38536861 | V41: -44.94645268 | W41: 135.0535473 | Y41: 1000000000 | Z41: 173.791489 | AB41: 95.56676646 | AC41: -38.46131126 | AE41: 70.1937774 | AF41: -6.485141418 | AH41: 0 | AI41: 0
A42: 14.454 | B42: 0.014454 | C42: 1.007785524 | D42: 0.1243812295 | E42: 1.000000091 | F42: 0.0004268406276 | G42: 1 | H42: 0 | I42: 1.328816489 | J42: 0.718871507 | K42: 1.000005212 | L42: 0.003228538832 | M42: 1.000000235 | N42: 0.0006851194928 | O42: 1 | P42: 0 | Q42: 1 | R42: 0 | S42: 0.9999999966 | T42: 3.759807757e-05 | U42: 99.04531655 | V42: -48.14679377 | W42: 131.8532062 | Y42: 1000000000 | Z42: 208.918116 | AB42: 95.23796746 | AC42: -41.04257622 | AE42: 70.18252434 | AF42: -7.104217555 | AH42: 0 | AI42: 0
A43: 15.849 | B43: 0.015849 | C43: 1.009353549 | D43: 0.1362440372 | E43: 1.00000011 | F43: 0.0004680363238 | G43: 1 | H43: 0 | I43: 1.385891946 | J43: 0.7647478251 | K43: 1.000006266 | L43: 0.003540132557 | M43: 1.000000282 | N43: 0.0007512424587 | O43: 1 | P43: 0 | Q43: 1 | R43: 0 | S43: 0.9999999959 | T43: 4.122678372e-05 | U43: 98.66653424 | V43: -51.43878513 | W43: 128.5612149 | Y43: 1000000000 | Z43: 251.190801 | AB43: 94.87268896 | AC43: -43.65703119 | AE43: 70.16902053 | AF43: -7.78175394 | AH43: 0 | AI43: 0
A44: 17.378 | B44: 0.017378 | C44: 1.011234813 | D44: 0.149202063 | E44: 1.000000132 | F44: 0.0005131891674 | G44: 1 | H44: 0 | I44: 1.451519919 | J44: 0.8107803589 | K44: 1.000007534 | L44: 0.003881656356 | M44: 1.000000339 | N44: 0.0008237170137 | O44: 1 | P44: 0 | Q44: 1 | R44: 0 | S44: 0.9999999951 | T44: 4.520405377e-05 | U44: 98.24849841 | V44: -54.80092065 | W44: 125.1990793 | Y44: 1000000000 | Z44: 301.994884 | AB44: 94.47082689 | AC44: -46.27908571 | AE44: 70.15284677 | AF44: -8.521834942 | AH44: 0 | AI44: 0
A45: 19.055 | B45: 0.019055 | C45: 1.013492639 | D45: 0.1633563983 | E45: 1.000000158 | F45: 0.0005627125913 | G45: 1 | H45: 0 | I45: 1.526713711 | J45: 0.8566115225 | K45: 1.000009058 | L45: 0.004256237007 | M45: 1.000000408 | N45: 0.0009032067544 | O45: 1 | P45: 0 | Q45: 1 | R45: 0 | S45: 0.9999999941 | T45: 4.956630484e-05 | U45: 97.79044744 | V45: -58.21834157 | W45: 121.7816584 | Y45: 1000000000 | Z45: 363.093025 | AB45: 94.03214742 | AC45: -48.88811049 | AE45: 70.13347528 | AF45: -9.330231073 | AH45: 0 | AI45: =IF(AH45>0,W43,0) -> 0
A46: 20.893 | B46: 0.020893 | C46: 1.016199335 | D46: 0.178793927 | E46: 1.00000019 | F46: 0.0006169904969 | G46: 1 | H46: 0 | I46: 1.61244513 | J46: 0.9018291049 | K46: 1.00001089 | L46: 0.004666777812 | M46: 1.00000049 | N46: 0.0009903278762 | O46: 1 | P46: 0 | Q46: 1 | R46: 0 | S46: 0.9999999929 | T46: 5.434735283e-05 | U46: 97.29274999 | V46: -61.6722569 | W46: 118.3277431 | Y46: 1000000000 | Z46: 436.517449 | AB46: 93.55761583 | AC46: -51.46035655 | AE46: 70.11030942 | AF46: -10.21190036 | AH46: 0 | AI46: 0
A47: 22.909 | B47: 0.022909 | C47: 1.019445059 | D47: 0.195627753 | E47: 1.000000229 | F47: 0.0006765249094 | G47: 1 | H47: 0 | I47: 1.709867072 | J47: 0.9461125667 | K47: 1.000013092 | L47: 0.005117075379 | M47: 1.00000059 | N47: 0.001085886173 | O47: 1 | P47: 0 | Q47: 1 | R47: 0 | S47: 0.9999999914 | T47: 5.959141856e-05 | U47: 96.75552215 | V47: -65.15058388 | W47: 114.8494161 | Y47: 1000000000 | Z47: 524.822281 | AB47: 93.04808602 | AC47: -53.97728695 | AE47: 70.08261139 | AF47: -11.17329693 | AH47: 0 | AI47: 0
A48: 25.119 | B48: 0.025119 | C48: 1.023332777 | D48: 0.2139530237 | E48: 1.000000275 | F48: 0.0007417883222 | G48: 1 | H48: 0 | I48: 1.820079703 | J48: 0.9891186386 | K48: 1.00001574 | L48: 0.005610702761 | M48: 1.000000709 | N48: 0.001190640037 | O48: 1 | P48: 0 | Q48: 1 | R48: 0 | S48: 0.9999999897 | T48: 6.53401216e-05 | U48: 96.1799222 | V48: -68.63892022 | W48: 111.3610798 | Y48: 1000000000 | Z48: 630.964161 | AB48: 92.50554683 | AC48: -56.41907256 | AE48: 70.04955062 | AF48: -12.21984766 | AH48: 0 | AI48: 0
A49: 27.542 | B49: 0.027542 | C49: 1.027986904 | D49: 0.2338777429 | E49: 1.000000331 | F49: 0.0008133418215 | G49: 1 | H49: 0 | I49: 1.944319186 | J49: 1.030583124 | K49: 1.000018923 | L49: 0.006151902844 | M49: 1.000000852 | N49: 0.001305490058 | O49: 1 | P49: 0 | Q49: 1 | R49: 0 | S49: 0.9999999876 | T49: 7.164288519e-05 | U49: 95.56699205 | V49: -72.12809589 | W49: 107.8719041 | Y49: 1000000000 | Z49: 758.561764 | AB49: 91.93203013 | AC49: -58.7703845 | AE49: 70.01013718 | AF49: -13.35771139 | AH49: 0 | AI49: 0
A50: 30.2 | B50: 0.0302 | C50: 1.033557263 | D50: 0.2555189399 | E50: 1.000000398 | F50: 0.000891835085 | G50: 1 | H50: 0 | I50: 2.083968583 | J50: 1.070308394 | K50: 1.000022752 | L50: 0.006745588253 | M50: 1.000001025 | N50: 0.001431479022 | O50: 1 | P50: 0 | Q50: 1 | R50: 0 | S50: 0.9999999851 | T50: 7.855693626e-05 | U50: 94.91761307 | V50: -75.61323723 | W50: 104.3867628 | Y50: 1000000000 | Z50: 912.04 | AB50: 91.32958977 | AC50: -61.01967778 | AE50: 69.96319855 | AF50: -14.59355946 | AH50: 0 | AI50: 0
A51: 33.113 | B51: 0.033113 | C51: 1.040211559 | D51: 0.2789579119 | E51: 1.000000478 | F51: 0.0009778587281 | G51: 1 | H51: 0 | I51: 2.240295556 | J51: 1.108092027 | K51: 1.000027353 | L51: 0.007396224462 | M51: 1.000001232 | N51: 0.001569554911 | O51: 1 | P51: 0 | Q51: 1 | R51: 0 | S51: 0.9999999821 | T51: 8.61342993e-05 | U51: 94.23362632 | V51: -79.08717193 | W51: 100.9128281 | Y51: 1000000000 | Z51: 1096.470769 | AB51: 90.70134493 | AC51: -63.15515295 | AE51: 69.90745664 | AF51: -15.93201899 | AH51: 0 | AI51: 0
A52: 36.308 | B52: 0.036308 | C52: 1.048158196 | D52: 0.304308229 | E52: 1.000000575 | F52: 0.001072210081 | G52: 1 | H52: 0 | I52: 2.414931491 | J52: 1.143853029 | K52: 1.000032886 | L52: 0.008109839858 | M52: 1.000001481 | N52: 0.001720997501 | O52: 1 | P52: 0 | Q52: 1 | R52: 0 | S52: 0.9999999784 | T52: 9.444520735e-05 | U52: 93.51557995 | V52: -82.55145271 | W52: 97.44854729 | Y52: 1000000000 | Z52: 1318.270864 | AB52: 90.04940088 | AC52: -65.1718973 | AE52: 69.84135432 | AF52: -17.37955541 | AH52: 0 | AI52: 0
A53: 39.811 | B53: 0.039811 | C53: 1.057632494 | D53: 0.3316449951 | E53: 1.000000691 | F53: 0.001175656941 | G53: 1 | H53: 0 | I53: 2.609451047 | J53: 1.177513839 | K53: 1.000039537 | L53: 0.008892238706 | M53: 1.00000178 | N53: 0.00188703916 | O53: 1 | P53: 0 | Q53: 1 | R53: 0 | S53: 0.9999999741 | T53: 0.0001035572923 | U53: 92.76459037 | V53: -86.00563674 | W53: 93.99436326 | Y53: 1000000000 | Z53: 1584.915721 | AB53: 89.37656927 | AC53: -67.06520498 | AE53: 69.76319635 | AF53: -18.94043175 | AH53: 0 | AI53: 0
A54: 43.652 | B54: 0.043652 | C54: 1.068912073 | D54: 0.3610380417 | E54: 1.000000831 | F54: 0.001289085228 | G54: 1 | H54: 0 | I54: 2.825645137 | J54: 1.209057052 | K54: 1.000047534 | L54: 0.009750117672 | M54: 1.000002141 | N54: 0.002069101847 | O54: 1 | P54: 0 | Q54: 1 | R54: 0 | S54: 0.9999999688 | T54: 0.0001135485908 | U54: 91.98114471 | V54: -89.45237932 | W54: 90.54762068 | Y54: 1000000000 | Z54: 1905.497104 | AB54: 88.68526629 | AC54: -68.83377656 | AE54: 69.67105368 | AF54: -20.61860277 | AH54: 0 | AI54: 0
A55: 47.863 | B55: 0.047863 | C55: 1.082315634 | D55: 0.3925282573 | E55: 1.000000999 | F55: 0.001413439919 | G55: 1 | H55: 0 | I55: 3.065416182 | J55: 1.238494305 | K55: 1.000057147 | L55: 0.01069061879 | M55: 1.000002574 | N55: 0.002268702308 | O55: 1 | P55: 0 | Q55: 1 | R55: 0 | S55: 0.9999999625 | T55: 0.0001245023421 | U55: 91.16555044 | V55: -92.89431825 | W55: 87.10568175 | Y55: 1000000000 | Z55: 2290.866769 | AB55: 87.97790949 | AC55: -70.47795643 | AE55: 69.5628162 | AF55: -22.41636182 | AH55: 0 | AI55: 0
A56: 52.481 | B56: 0.052481 | C56: 1.098216177 | D56: 0.4261413497 | E56: 1.000001201 | F56: 0.001549813643 | G56: 1 | H56: 0 | I56: 3.330952897 | J56: 1.265878921 | K56: 1.000068707 | L56: 0.01172199907 | M56: 1.000003094 | N56: 0.002487594269 | O56: 1 | P56: 0 | Q56: 1 | R56: 0 | S56: 0.9999999549 | T56: 0.0001365147915 | U56: 90.31738913 | V56: -96.33555197 | W56: 83.66444803 | Y56: 1000000000 | Z56: 2754.255361 | AB56: 87.25642446 | AC56: -72.00042718 | AE56: 69.43613992 | AF56: -24.33512478 | AH56: 0 | AI56: 0
A57: 57.544 | B57: 0.057544 | C57: 1.117031259 | D57: 0.4618490257 | E57: 1.000001444 | F57: 0.001699328554 | G57: 1 | H57: 0 | I57: 3.624505737 | J57: 1.291270732 | K57: 1.000082602 | L57: 0.01285273654 | M57: 1.00000372 | N57: 0.002727578836 | O57: 1 | P57: 0 | Q57: 1 | R57: 0 | S57: 0.9999999458 | T57: 0.0001496847858 | U57: 89.43635076 | V57: -99.77744638 | W57: 80.22255362 | Y57: 1000000000 | Z57: 3311.311936 | AB57: 86.5229337 | AC57: -73.40423445 | AE57: 69.28859231 | AF57: -26.37321193 | AH57: 0 | AI57: 0
A58: 63.096 | B58: 0.063096 | C58: 1.139242765 | D58: 0.4995962932 | E58: 1.000001736 | F58: 0.001863283984 | G58: 1 | H58: 0 | I58: 3.948677423 | J58: 1.314758693 | K58: 1.00009931 | L58: 0.01409264619 | M58: 1.000004472 | N58: 0.002990741483 | O58: 1 | P58: 0 | Q58: 1 | R58: 0 | S58: 0.9999999348 | T58: 0.0001641267787 | U58: 88.52141561 | V58: -103.2214366 | W58: 76.77856343 | Y58: 1000000000 | Z58: 3981.105216 | AB58: 85.77901497 | AC58: -74.69403202 | AE58: 69.1175759 | AF58: -28.52740455 | AH58: 0 | AI58: 0
A59: 69.183 | B59: 0.069183 | C59: 1.165383795 | D59: 0.5392648574 | E59: 1.000002087 | F59: 0.002043038318 | G59: 1 | H59: 0 | I59: 4.306194365 | J59: 1.336433159 | K59: 1.000119394 | L59: 0.01545198568 | M59: 1.000005377 | N59: 0.003279262445 | O59: 1 | P59: 0 | Q59: 1 | R59: 0 | S59: 0.9999999216 | T59: 0.0001799604268 | U59: 87.57169201 | V59: -106.6653879 | W59: 73.33461206 | Y59: 1000000000 | Z59: 4786.287489 | AB59: 85.02634211 | AC59: -75.87453404 | AE59: 68.92052515 | AF59: -30.7908539 | AH59: 0 | AI59: 0
A60: 75.858 | B60: 0.075858 | C60: 1.196059432 | D60: 0.5806999525 | E60: 1.000002509 | F60: 0.002240156644 | G60: 1 | H60: 0 | I60: 4.700201232 | J60: 1.356400785 | K60: 1.000143543 | L60: 0.01694257058 | M60: 1.000006464 | N60: 0.003595653704 | O60: 1 | P60: 0 | Q60: 1 | R60: 0 | S60: 0.9999999058 | T60: 0.0001973235952 | U60: 86.5857639 | V60: -110.1059291 | W60: 69.89407086 | Y60: 1000000000 | Z60: 5754.436164 | AB60: 84.26608592 | AC60: -76.95131838 | AE60: 68.69485324 | AF60: -33.15461076 | AH60: 0 | AI60: 0
A61: 83.176 | B61: 0.083176 | C61: 1.23192401 | D61: 0.6236737697 | E61: 1.000003017 | F61: 0.002456263097 | G61: 1 | H61: 0 | I61: 5.133969136 | J61: 1.374762087 | K61: 1.000172571 | L61: 0.01857665616 | M61: 1.000007772 | N61: 0.003942521973 | O61: 1 | P61: 0 | Q61: 1 | R61: 0 | S61: 0.9999998867 | T61: 0.0002163593516 | U61: 85.56265 | V61: -113.5351292 | W61: 66.46487081 | Y61: 1000000000 | Z61: 6918.246976 | AB61: 83.49959063 | AC61: -77.92959138 | AE61: 68.43823463 | AF61: -35.60553781 | AH61: 0 | AI61: 0
A62: 91.201 | B62: 0.091201 | C62: 1.273711416 | D62: 0.6679271415 | E62: 1.000003627 | F62: 0.002693247566 | G62: 1 | H62: 0 | I62: 5.611310716 | J62: 1.39162779 | K62: 1.000207474 | L62: 0.02036849815 | M62: 1.000009344 | N62: 0.004322900472 | O62: 1 | P62: 0 | Q62: 1 | R62: 0 | S62: 0.9999998638 | T62: 0.0002372341746 | U62: 84.50098123 | V62: -116.9437411 | W62: 63.05625887 | Y62: 1000000000 | Z62: 8317.622401 | AB62: 82.7276588 | AC62: -78.81505406 | AE62: 68.14849769 | AF62: -38.12868707 | AH62: 0 | AI62: 0
A63: 100 | B63: 0.1 | C63: 1.322202539 | D63: 0.7131363358 | E63: 1.00000436 | F63: 0.002953088507 | G63: 1 | H63: 0 | I63: 6.136226234 | J63: 1.407099607 | K63: 1.000249434 | L63: 0.02233301004 | M63: 1.000011234 | N63: 0.004739964502 | O63: 1 | P63: 0 | Q63: 1 | R63: 0 | S63: 0.9999998363 | T63: 0.0002601223469 | U63: 83.40005599 | V63: -120.3182684 | W63: 59.6817316 | Y63: 1000000000 | Z63: 10000 | AB63: 81.95126585 | AC63: -79.61286169 | AE63: 67.82396539 | AF63: -40.70540671 | AH63: 0 | AI63: 0
A64: 109.65 | B64: 0.10965 | C64: 1.378257427 | D64: 0.7589574341 | E64: 1.000005243 | F64: 0.003238059643 | G64: 1 | H64: 0 | I64: 6.713320967 | J64: 1.421282326 | K64: 1.000299889 | L64: 0.02448732197 | M64: 1.000013506 | N64: 0.005197363201 | O64: 1 | P64: 0 | Q64: 1 | R64: 0 | S64: 0.9999998032 | T64: 0.0002852241634 | U64: 82.25911427 | V64: -123.6441185 | W64: 56.35588154 | Y64: 1000000000 | Z64: 12023.1225 | AB64: 81.17096327 | AC64: -80.32824562 | AE64: 67.46332625 | AF64: -43.31587284 | AH64: 0 | AI64: 0
A65: 120.23 | B65: 0.12023 | C65: 1.442764807 | D65: 0.8049966317 | E65: 1.000006303 | F65: 0.003550493713 | G65: 1 | H65: 0 | I65: 7.347328236 | J65: 1.434268684 | K65: 1.000360542 | L65: 0.02684898957 | M65: 1.000016239 | N65: 0.005698840306 | O65: 1 | P65: 0 | Q65: 1 | R65: 0 | S65: 0.9999997634 | T65: 0.000312745122 | U65: 81.07848216 | V65: -126.9031284 | W65: 53.09687165 | Y65: 1000000000 | Z65: 14455.2529 | AB65: 80.38762558 | AC65: -80.96572811 | AE65: 67.06603183 | AF65: -45.93740024 | AH65: 0 | AI65: 0
A66: 131.83 | B66: 0.13183 | C66: 1.516687807 | D66: 0.8508670913 | E66: 1.000007578 | F66: 0.003893048227 | G66: 1 | H66: 0 | I66: 8.043647672 | J66: 1.446152122 | K66: 1.000433454 | L66: 0.02943799635 | M66: 1.000019523 | N66: 0.006248660671 | O66: 1 | P66: 0 | Q66: 1 | R66: 0 | S66: 0.9999997155 | T66: 0.0003429193341 | U66: 79.85861313 | V66: -130.0774481 | W66: 49.92255191 | Y66: 1000000000 | Z66: 17379.1489 | AB66: 79.60175816 | AC66: -81.52976218 | AE66: 66.63203022 | AF66: -48.54768591 | AH66: 0 | AI66: 0
A67: 144.54 | B67: 0.14454 | C67: 1.60098913 | D67: 0.8961593515 | E67: 1.00000911 | F67: 0.004268380613 | G67: 1 | H67: 0 | I67: 8.807685629 | J67: 1.457013768 | K67: 1.000521041 | L67: 0.03227428987 | M67: 1.000023469 | N67: 0.006851088807 | O67: 1 | P67: 0 | Q67: 1 | R67: 0 | S67: 0.999999658 | T67: 0.0003759809118 | U67: 78.60133399 | V67: -133.1472282 | W67: 46.85277184 | Y67: 1000000000 | Z67: 20891.8116 | AB67: 78.81430898 | AC67: -82.02409757 | AE67: 66.16220026 | AF67: -51.12313059 | AH67: 0 | AI67: 0
A68: 158.49 | B68: 0.15849 | C68: 1.696896783 | D68: 0.9405905293 | E68: 1.000010953 | F68: 0.004680329404 | G68: 1 | H68: 0 | I68: 9.647261193 | J68: 1.466953436 | K68: 1.000626436 | L68: 0.03538669543 | M68: 1.000028218 | N68: 0.00751228468 | O68: 1 | P68: 0 | Q68: 1 | R68: 0 | S68: 0.9999995888 | T68: 0.0004122680166 | U68: 77.30603878 | V68: -136.1004804 | W68: 43.89951962 | Y68: 1000000000 | Z68: 25119.0801 | AB68: 78.02433802 | AC68: -82.45315464 | AE68: 65.65687602 | AF68: -53.64732574 | AH68: 0 | AI68: 0
A69: 173.78 | B69: 0.17378 | C69: 1.805432019 | D69: 0.9837742876 | E69: 1.000013168 | F69: 0.005131847074 | G69: 1 | H69: 0 | I69: 10.56839664 | J69: 1.476032827 | K69: 1.000753087 | L69: 0.03879728053 | M69: 1.000033925 | N69: 0.008236985707 | O69: 1 | P69: 0 | Q69: 1 | R69: 0 | S69: 0.9999995056 | T69: 0.0004520407741 | U69: 75.97649287 | V69: -138.9174572 | W69: 41.08254285 | Y69: 1000000000 | Z69: 30199.4884 | AB69: 77.23328642 | AC69: -82.81947557 | AE69: 65.1183817 | AF69: -56.09798158 | AH69: 0 | AI69: 0
A70: 190.55 | B70: 0.19055 | C70: 1.927883039 | D70: 1.025462336 | E70: 1.000015832 | F70: 0.005627067115 | G70: 1 | H70: 0 | I70: 11.57952829 | J70: 1.484329318 | K70: 1.000905379 | L70: 0.04253695316 | M70: 1.000040788 | N70: 0.009031824405 | O70: 1 | P70: 0 | Q70: 1 | R70: 0 | S70: 0.9999994056 | T70: 0.0004956633601 | U70: 74.61415283 | V70: -141.5867591 | W70: 38.41324086 | Y70: 1000000000 | Z70: 36309.3025 | AB70: 76.44091322 | AC70: -83.12610294 | AE70: 64.54841486 | AF70: -58.4606562 | AH70: 0 | AI70: 0
A71: 208.93 | B71: 0.20893 | C71: 2.065456102 | D71: 1.065399649 | E71: 1.000019034 | F71: 0.006169827463 | G71: 1 | H71: 0 | I71: 12.68849596 | J71: 1.491902964 | K71: 1.001088364 | L71: 0.04663428141 | M71: 1.000049036 | N71: 0.009902958264 | O71: 1 | P71: 0 | Q71: 1 | R71: 0 | S71: 0.9999992854 | T71: 0.0005434739393 | U71: 73.22260657 | V71: -144.0957307 | W71: 35.90426928 | Y71: 1000000000 | Z71: 43651.7449 | AB71: 75.64804385 | AC71: -83.37519359 | AE71: 63.94973798 | AF71: -60.72053713 | AH71: 0 | AI71: 0
A72: 229.09 | B72: 0.22909 | C72: 2.219644776 | D72: 1.10344577 | E72: 1.000022884 | F72: 0.006765146917 | G72: 1 | H72: 0 | I72: 13.90555789 | J72: 1.498820506 | K72: 1.00130839 | L72: 0.05112660667 | M72: 1.000058956 | N72: 0.01085843922 | O72: 1 | P72: 0 | Q72: 1 | R72: 0 | S72: 0.9999991409 | T72: 0.0005959147274 | U72: 71.80354836 | V72: -146.4382079 | W72: 33.56179205 | Y72: 1000000000 | Z72: 52482.2281 | AB72: 74.85430109 | AC72: -83.5688933 | AE72: 63.32442252 | AF72: -62.86931465 | AH72: 0 | AI72: 0
A73: 251.19 | B73: 0.25119 | C73: 2.391860621 | D73: 1.139460598 | E73: 1.000027512 | F73: 0.007417748531 | G73: 1 | H73: 0 | I73: 15.24037443 | J73: 1.505133967 | K73: 1.001572795 | L73: 0.05604885053 | M73: 1.000070879 | N73: 0.01190584342 | O73: 1 | P73: 0 | Q73: 1 | R73: 0 | S73: 0.9999989671 | T73: 0.0006534019301 | U73: 70.36058758 | V73: -148.6073307 | W73: 31.39266926 | Y73: 1000000000 | Z73: 63096.4161 | AB73: 74.06034644 | AC73: -83.70861599 | AE73: 62.67541639 | AF73: -64.89871475 | AH73: 0 | AI73: 0
A74: 275.42 | B74: 0.27542 | C74: 2.583739044 | D74: 1.173381447 | E74: 1.000033076 | F74: 0.008133240666 | G74: 1 | H74: 0 | I74: 16.70442186 | J74: 1.510896124 | K74: 1.001890556 | L74: 0.06144236924 | M74: 1.000085212 | N74: 0.01305416642 | O74: 1 | P74: 0 | Q74: 1 | R74: 0 | S74: 0.9999987582 | T74: 0.0007164297933 | U74: 68.89629666 | V74: -150.6003843 | W74: 29.39961573 | Y74: 1000000000 | Z74: 75856.1764 | AB74: 73.26626097 | AC74: -83.79553149 | AE74: 62.00521095 | AF74: -66.80485278 | AH74: 0 | AI74: 0
A75: 302 | B75: 0.302 | C75: 2.797152413 | D75: 1.205199823 | E75: 1.000039768 | F75: 0.00891811678 | G75: 1 | H75: 0 | I75: 18.31099412 | J75: 1.516157144 | K75: 1.002272635 | L75: 0.06735486475 | M75: 1.000102452 | N75: 0.01431382235 | O75: 1 | P75: 0 | Q75: 1 | R75: 0 | S75: 0.999998507 | T75: 0.0007855706037 | U75: 67.4125599 | V75: -152.4172805 | W75: 27.5827195 | Y75: 1000000000 | Z75: 91204 | AB75: 72.47181356 | AC75: -83.83037768 | AE75: 61.31592159 | AF75: -68.58690282 | AH75: 0 | AI75: 0
A76: 331.13 | B76: 0.33113 | C76: 3.03381092 | D76: 1.234896934 | E76: 1.000047809 | F76: 0.009778278736 | G76: 1 | H76: 0 | I76: 20.07218019 | J76: 1.520955496 | K76: 1.002731576 | L76: 0.07382915891 | M76: 1.000123168 | N76: 0.01569427332 | O76: 1 | P76: 0 | Q76: 1 | R76: 0 | S76: 0.9999982051 | T76: 0.000861344629 | U76: 65.91332875 | V76: -154.0569271 | W76: 25.9430729 | Y76: 1000000000 | Z76: 109647.0769 | AB76: 71.67795752 | AC76: -83.81344725 | AE76: 60.61054648 | AF76: -70.24347985 | AH76: 0 | AI76: 0
A77: 363.08 | B77: 0.36308 | C77: =SQRT(1+(A77/pole1)^2) -> 3.295991562 | D77: =ATAN(A77/pole1) -> 1.26253872 | E77: =SQRT(1+(A77/Zero1)^2) -> 1.00005748 | F77: =ATAN(A77/Zero1) -> 0.01072169406 | G77: =IF(VIN_nom>Vout, 1, SQRT(1+(A77/z_RHP)^2)) -> 1 | H77: =IF(VIN_nom>Vout, 0, -ATAN(A77/z_RHP)) -> 0 | I77: =SQRT(1+(A77/Pole2)^2) -> 22.00430437 | J77: =ATAN(A77/Pole2) -> 1.525335015 | K77: =SQRT(1+(A77/Zero2)^2) -> 1.00328323 | L77: =ATAN(A77/Zero2) -> 0.08092306989 | M77: =SQRT(1+(A77/pole4)^2) -> 1.000148081 | N77: =ATAN(A77/pole4) -> 0.01720829319 | O77: =IF(VOUT_setting=1,1,SQRT(1+(A77*zterm1)^2)) -> 1 | P77: =IF(VOUT_setting=1,0,ATAN(((A77*zterm1)))) -> 0 | Q77: 1 | R77: =IF(VOUT_setting=1,0,ATAN(A77*$Q$4/(1+Afbr-$Q$5*(A77)^2))) -> 0 | S77: =SQRT((1-(Z77/pterm2))^2+(A77/pterm1)^2) -> 0.999997842 | T77: =IF((ATAN((A77/pterm1)/(1-A77^2/pterm2))>0),ATAN((A77/pterm1)/(1-A77^2/pterm2)),PI()+ATAN((A77/pterm1)/(1-A77^2/pterm2))) -> 0.0009444542303 | U77: =20*LOG10(((E77*K77*G77*O77)/(C77*I77*S77*M77*Q77))*Adc) -> 64.39976322 | V77: =((F77+L77+H77+P77)-(D77+J77+T77+N77+R77))*radconv -> -155.5226166 | W77: =IF(V77>0,V77,V77+180) -> 24.47738338 | Y77: =IF(U77<0,A77,1000000000) -> 1000000000 | Z77: =A77^2 -> 131827.0864 | AB77: =20*LOG10((K77/(I77*M77))*AEA) -> 70.88425647 | AC77: =(L77-(J77+N77))*radconv -> -83.74467101 | AE77: =20*LOG10((E77*G77/(C77*S77))*Acs*Am) -> 59.890682 | AF77: =(F77+H77-(D77+T77))*radconv -> -71.77794561 | AH77: =SUM((U78<0)*(U77>0))*A77 -> 0 | AI77: =IF(AH77>0,W75,0) -> 0
A78: 398.11 | B78: =A78/1000 -> 0.39811 | C78: 3.58589589 | D78: 1.288178747 | E78: 1.000069106 | F78: 0.01175603322 | G78: 1 | H78: 0 | I78: 24.12309011 | J78: 1.529330386 | K78: 1.003946018 | L78: 0.08869144278 | M78: 1.00017803 | N78: 0.01886817461 | O78: 1 | P78: 0 | Q78: 1 | R78: 0 | S78: 0.9999974055 | T78: 0.001035575766 | U78: 62.87460645 | V78: -156.8165667 | W78: 23.18343331 | Y78: 1000000000 | Z78: 158491.5721 | AB78: 70.09122664 | AC78: -83.62359811 | AE78: 59.15855507 | AF78: -73.19296858 | AH78: 0 | AI78: 0
A79: 436.52 | B79: 0.43652 | C79: 3.906059642 | D79: 1.311901387 | E79: 1.000083084 | F79: 0.01289014545 | G79: 1 | H79: 0 | I79: 26.44668304 | J79: 1.532975386 | K79: 1.004742296 | L79: 0.09719702349 | M79: 1.000214037 | N79: 0.02068809601 | O79: 1 | P79: 0 | Q79: =IF(VOUT_setting=1,1,SQRT((1+Afbr-$Q$5*(A79)^2)^2+(A79*$Q$4)^2)) -> 1 | R79: 0 | S79: 0.9999968807 | T79: 0.001135489656 | U79: 61.33971689 | V79: -157.9423017 | W79: 22.05769831 | Y79: 1000000000 | Z79: 190549.7104 | AB79: 69.29903499 | AC79: -83.44938115 | AE79: 58.41585715 | AF79: -74.49292054 | AH79: 0 | AI79: 0
A80: 478.63 | B80: 0.47863 | C80: 4.259191604 | D80: 1.333797571 | E80: 1.000099886 | F80: 0.01413346745 | G80: 1 | H80: 0 | I80: 28.99444149 | J80: 1.536300116 | K80: 1.005698665 | L80: 0.1065057105 | M80: 1.000257318 | N80: 0.02268317084 | O80: 1 | P80: 0 | Q80: 1 | R80: 0 | S80: 0.9999962499 | T80: 0.001245028362 | U80: 59.79711932 | V80: -158.9033535 | W80: 21.09664648 | Y80: 1000000000 | Z80: 229086.6769 | AB80: 68.50805217 | AC80: -83.22083507 | AE80: 57.66424241 | AF80: -75.68251845 | AH80: 0 | AI80: 0
A81: 524.81 | B81: 0.52481 | C81: 4.648427387 | D81: 1.353974947 | E81: 1.000120089 | F81: 0.01549690818 | G81: 1 | H81: 0 | I81: 31.78875147 | J81: 1.539333468 | K81: 1.006847449 | L81: 0.1166927823 | M81: 1.00030936 | N81: 0.02487086469 | O81: 1 | P81: 0 | Q81: 1 | R81: 0 | S81: 0.9999954913 | T81: 0.001365154429 | U81: 58.24801355 | V81: -159.703663 | W81: 20.296337 | Y81: 1000000000 | Z81: 275425.5361 | AB81: 67.71834181 | AC81: -82.93630272 | AE81: 56.90484699 | AF81: -76.76736027 | AH81: 0 | AI81: 0
A82: 575.44 | B82: 0.57544 | C82: 5.076995509 | D82: 1.372533092 | E82: 1.000144376 | F82: 0.01699166645 | G82: 1 | H82: 0 | I82: 34.85260656 | J82: 1.54210013 | K82: 1.008226712 | L82: 0.1278335344 | M82: 1.000371917 | N82: 0.02726909486 | O82: 1 | P82: 0 | Q82: 1 | R82: 0 | S82: 0.9999945794 | T82: 0.001496856444 | U82: 56.69432931 | V82: -160.3464774 | W82: 19.65352256 | Y82: 1000000000 | Z82: 331131.1936 | AB82: 66.93045329 | AC82: -82.59391117 | AE82: 56.13905127 | AF82: -77.75256626 | AH82: 0 | AI82: 0
A83: 630.96 | B83: 0.63096 | C83: 5.548640165 | D83: 1.389581808 | E83: 1.000173577 | F83: 0.01863070551 | G83: 1 | H83: 0 | I83: 38.21263324 | J83: 1.544623983 | K83: 1.009882616 | L83: 0.1400136265 | M83: 1.000447129 | N83: 0.02989859177 | O83: 1 | P83: 0 | Q83: 1 | R83: 0 | S83: 0.999993483 | T83: 0.001641279106 | U83: 55.13716365 | V83: -160.835059 | W83: 19.16494096 | Y83: 1000000000 | Z83: 398110.5216 | AB83: 66.14462016 | AC83: -82.1913085 | AE83: 55.36771875 | AF83: -78.64375054 | AH83: 0 | AI83: 0
A84: 691.83 | B84: 0.69183 | C84: 6.06728431 | D84: 1.405222452 | E84: 1.000208679 | F84: 0.02042756975 | G84: 1 | H84: 0 | I84: 41.89667041 | J84: 1.546925815 | K84: 1.011869649 | L84: 0.1533193999 | M84: 1.000537537 | N84: 0.03278099487 | O84: 1 | P84: 0 | Q84: 1 | R84: 0 | S84: 0.9999921649 | T84: 0.001799619189 | U84: 53.57816194 | V84: -161.1719915 | W84: 18.82800847 | Y84: 1000000000 | Z84: 478628.7489 | AB84: 65.36145785 | AC84: -81.72597862 | AE84: 54.59187934 | AF84: -79.4460129 | AH84: 0 | AI84: 0
A85: 758.58 | B85: 0.75858 | C85: 6.637455581 | D85: 1.419560324 | E85: 1.000250884 | F85: 0.02239785776 | G85: 1 | H85: 0 | I85: 45.9367953 | J85: 1.549025566 | K85: 1.014253698 | L85: 0.1678477017 | M85: 1.000646233 | N85: 0.03594120807 | O85: 1 | P85: 0 | Q85: 1 | R85: 0 | S85: 0.9999905801 | T85: 0.001973255622 | U85: 52.01826995 | V85: -161.3595139 | W85: 18.6404861 | Y85: 1000000000 | Z85: 575443.6164 | AB85: 64.58133122 | AC85: -81.19494199 | AE85: 53.81211398 | AF85: -80.16457191 | AH85: 0 | AI85: 0
A86: 831.76 | B86: 0.83176 | C86: 7.263861002 | D86: 1.432689886 | E86: 1.000301617 | F86: 0.02455774239 | G86: 1 | H86: 0 | I86: 50.36629735 | J86: 1.550940475 | K86: 1.017112165 | L86: 0.1836935175 | M86: 1.00077688 | N86: 0.03940501588 | O86: 1 | P86: 0 | Q86: 1 | R86: 0 | S86: 0.9999886749 | T86: 0.002163619445 | U86: 50.45913346 | V86: -161.3992166 | W86: 18.60078336 | Y86: 1000000000 | Z86: 691824.6976 | AB86: 63.80505559 | AC86: -80.59522144 | AE86: 53.02925312 | AF86: -80.80399521 | AH86: 0 | AI86: 0
A87: 912.01 | B87: 0.91201 | C87: 7.951985741 | D87: 1.44470774 | E87: 1.000362615 | F87: 0.02692603167 | G87: 1 | H87: 0 | I87: 55.22391507 | J87: 1.55268724 | K87: 1.020538607 | L87: 0.2009633376 | M87: 1.000933949 | N87: 0.04320237563 | O87: 1 | P87: 0 | Q87: 1 | R87: 0 | S87: 0.9999863842 | T87: 0.002372375928 | U87: 48.901627 | V87: -161.2922239 | W87: 18.70777606 | Y87: 1000000000 | Z87: 831762.2401 | AB87: 63.03316094 | AC87: -79.92338857 | AE87: 52.24364131 | AF87: -81.36883537 | AH87: 0 | AI87: 0
A88: 1000 | B88: 1 | C88: 8.70758034 | D88: 1.455699912 | E88: 1.000435944 | F88: 0.02952239096 | G88: 1 | H88: 0 | I88: 60.55020429 | J88: 1.554280355 | K88: 1.024642827 | L88: 0.2197598131 | M88: 1.00112275 | N88: 0.04736454897 | O88: 1 | P88: 0 | Q88: 1 | R88: 0 | S88: 0.9999836302 | T88: 0.002601268529 | U88: 47.34730432 | V88: -161.0391782 | W88: 18.96082185 | Y88: 1000000000 | Z88: 1000000 | AB88: 62.26661562 | AC88: -79.17618357 | AE88: 51.45586395 | AF88: -81.86299458 | AH88: 0 | AI88: 0
A89: 1096.5 | B89: 1.0965 | C89: 9.537261322 | D89: 1.465751345 | E89: 1.000524118 | F89: 0.03236939955 | G89: 1 | H89: 0 | I89: 66.3917754 | J89: 1.555733651 | K89: 1.029556639 | L89: 0.2401938542 | M89: 1.001349743 | N89: 0.05192737637 | O89: 1 | P89: 0 | Q89: 1 | R89: 0 | S89: 0.9999803184 | T89: 0.00285230104 | U89: 45.79718693 | V89: -160.6402585 | W89: 19.35974149 | Y89: 1000000000 | Z89: 1202312.25 | AB89: 61.50622781 | AC89: -78.35009771 | AE89: 50.66613437 | AF89: -82.29016079 | AH89: 0 | AI89: 0
A90: 1202.3 | B90: 1.2023 | C90: 10.44782412 | D90: 1.474935871 | E90: 1.000630107 | F90: 0.03549017823 | G90: 1 | H90: 0 | I90: 72.79645061 | J90: 1.557058961 | K90: 1.035432992 | L90: 0.2623639962 | M90: 1.001622558 | N90: 0.05692744461 | O90: 1 | P90: 0 | Q90: 1 | R90: 0 | S90: 0.999976337 | T90: 0.003127529534 | U90: 44.25324873 | V90: -160.095617 | W90: 19.90438297 | Y90: 1000000000 | Z90: 1445525.29 | AB90: 60.75337835 | AC90: -77.44225966 | AE90: 49.87504563 | AF90: -82.65335737 | AH90: 0 | AI90: =IF(AH90>0,W90,0) -> 0
A91: 1318.3 | B91: 1.3183 | C91: 11.44701666 | D91: 1.483325822 | E91: 1.000757512 | F91: 0.03891102907 | G91: 1 | H91: 0 | I91: 79.81871201 | J91: 1.558267608 | K91: 1.04245367 | L91: 0.2863711359 | M91: 1.001950437 | N91: 0.06240627894 | O91: 1 | P91: 0 | Q91: 1 | R91: 0 | S91: 0.9999715507 | T91: 0.003429296581 | U91: 42.71702913 | V91: -159.4052722 | W91: 20.59472782 | Y91: 1000000000 | Z91: 1737914.89 | AB91: 60.00934056 | AC91: -76.44991634 | AE91: 49.08286382 | AF91: -82.95535584 | AH91: 0 | AI91: 0
A92: 1445.4 | B92: 1.4454 | C92: 12.54259222 | D92: 1.490983282 | E92: 1.00091055 | F92: 0.0426581712 | G92: 1 | H92: 0 | I92: 87.51304254 | J92: 1.55936921 | K92: 1.050826034 | L92: 0.3122906028 | M92: 1.002344197 | N92: 0.06840506505 | O92: 1 | P92: 0 | Q92: 1 | R92: 0 | S92: 0.9999658006 | T92: 0.00375994519 | U92: 41.19121453 | V92: -158.5700078 | W92: 21.42999219 | Y92: 1000000000 | Z92: 2089181.16 | AB92: 59.27604761 | AC92: -75.37166252 | AE92: 48.29034217 | AF92: -83.19834529 | AH92: 0 | AI92: 0
A93: 1584.9 | B93: 1.5849 | C93: 13.74575822 | D93: 1.497982286 | E93: 1.001094691 | F93: 0.04676950494 | G93: 1 | H93: 0 | I93: 95.95814115 | J93: 1.560374928 | K93: 1.060814042 | L93: 0.3402469335 | M93: 1.002817857 | N93: 0.07498341151 | O93: 1 | P93: 0 | Q93: 1 | R93: 0 | S93: 0.9999588807 | T93: 0.004122859563 | U93: 39.67512879 | V93: -157.5890077 | W93: 22.41099228 | Y93: 1000000000 | Z93: 2511908.01 | AB93: 58.5539319 | AC93: -74.20441762 | AE93: 47.49637215 | AF93: -83.3845901 | AH93: 0 | AI93: 0
A94: 1737.8 | B94: 1.7378 | C94: 15.06514113 | D94: 1.504369083 | E94: 1.00131595 | F94: 0.05127394059 | G94: 1 | H94: 0 | I94: 105.2145463 | J94: 1.561291794 | K94: 1.072694772 | L94: 0.3702645882 | M94: 1.003386815 | N94: 0.08218617466 | O94: 1 | P94: 0 | Q94: 1 | R94: 0 | S94: 0.9999505643 | T94: 0.004520644231 | U94: 38.17296273 | V94: -156.464986 | W94: 23.53501397 | Y94: 1000000000 | Z94: 3019948.84 | AB94: 57.84586415 | AC94: -72.94975323 | AE94: 46.70227383 | AF94: -83.5152328 | AH94: 0 | AI94: 0
A95: 1905.5 | B95: 1.9055 | C95: 16.51282233 | D95: 1.51020025 | E95: 1.001581976 | F95: 0.05621198417 | G95: 1 | H95: 0 | I95: 115.3670124 | J95: 1.562128229 | K95: 1.086810803 | L95: 0.4024009849 | M95: 1.004070629 | N95: 0.09007628827 | O95: 1 | P95: 0 | Q95: 1 | R95: 0 | S95: 0.9999405628 | T95: 0.004956945378 | U95: 36.68591586 | V95: -155.199871 | W95: 24.80012902 | Y95: 1000000000 | Z95: 3630930.25 | AB95: 57.15338515 | AC95: -71.60846772 | AE95: 45.90770597 | AF95: -83.59140326 | AH95: 0 | AI95: 0
A96: 2089.3 | B96: 2.0893 | C96: 18.10002461 | D96: 1.515519638 | E96: 1.001901579 | F96: 0.06162094441 | G96: 1 | H96: 0 | I96: 126.4942408 | J96: 1.562890746 | K96: 1.103535823 | L96: 0.4366390687 | M96: 1.004891785 | N96: 0.09871095711 | O96: 1 | P96: 0 | Q96: 1 | R96: 0 | S96: 0.9999285437 | T96: 0.005435150376 | U96: 35.21740132 | V96: -153.7988593 | W96: 26.20114066 | Y96: 1000000000 | Z96: 4365174.49 | AB96: 56.47915214 | AC96: -70.1851891 | AE96: 45.11342443 | AF96: -83.61367024 | AH96: 0 | AI96: 0
A97: 2290.9 | B97: 2.2909 | C97: 19.8414287 | D97: 1.520375369 | E97: 1.002285818 | F97: 0.06754957174 | G97: 1 | H97: 0 | I97: 138.6991493 | J97: 1.563586415 | K97: 1.123320602 | L97: 0.4729732519 | M97: 1.00587847 | N97: 0.1081648468 | O97: 1 | P97: 0 | Q97: 1 | R97: 0 | S97: 0.9999140888 | T97: 0.005959689082 | U97: 33.7687424 | V97: -152.2671723 | W97: 27.73282772 | Y97: 1000000000 | Z97: 5248222.81 | AB97: 55.82491268 | AC97: -68.6849206 | AE97: 44.31900497 | AF97: -83.58225168 | AH97: 0 | AI97: 0
A98: 2511.9 | B98: 2.5119 | C98: 21.75085569 | D98: 1.524804912 | E98: 1.002747476 | F98: 0.07404323687 | G98: 1 | H98: 0 | I98: 152.0786023 | J98: 1.564220732 | K98: 1.146650104 | L98: 0.5113071937 | M98: 1.007063181 | N98: 0.1185061703 | O98: 1 | P98: 0 | Q98: 1 | R98: 0 | S98: 0.9998967142 | T98: 0.006534733536 | U98: 32.34325846 | V98: -150.6143393 | W98: 29.38566073 | Y98: 1000000000 | Z98: 6309641.61 | AB98: 55.19334609 | AC98: -67.11740544 | AE98: 43.52508762 | AF98: -83.49693382 | AH98: 0 | AI98: 0
A99: 2754.2 | B99: 2.7542 | C99: 23.84472153 | D99: 1.528846021 | E99: 1.003302174 | F99: 0.08115555985 | G99: 1 | H99: 0 | I99: 166.7476266 | J99: 1.564799204 | K99: 1.174082039 | L99: 0.5515196479 | M99: 1.008485529 | N99: 0.1298149209 | O99: 1 | P99: 0 | Q99: 1 | R99: 0 | S99: 0.9998758277 | T99: 0.007165239452 | U99: 30.94318582 | V99: -148.8515807 | W99: 31.14841928 | Y99: 1000000000 | Z99: 7585617.64 | AB99: 54.58660665 | AC99: -65.49448919 | AE99: 42.73175442 | AF99: -83.35709153 | AH99: 0 | AI99: 0
A100: 3020 | B100: 3.02 | C100: 26.14203821 | D100: 1.532534427 | E100: 1.003968975 | F100: 0.08894820773 | G100: 1 | H100: 0 | I100: 182.8394119 | J100: 1.565327019 | K100: 1.206251803 | L100: 0.593453554 | M100: 1.010193719 | N100: 0.142182083 | O100: 1 | P100: 0 | Q100: 1 | R100: 0 | S100: 0.999850705 | T100: 0.007856947328 | U100: 29.5701187 | V100: -146.9922489 | W100: 33.00775111 | Y100: 1000000000 | Z100: 9120400 | AB100: 54.00649432 | AC100: -63.83068113 | AE100: 41.93879963 | AF100: -83.16156776 | AH100: 0 | AI100: 0
A101: 3311.3 | B101: 3.3113 | C101: 28.66009193 | D101: 1.53589752 | E101: 1.004769667 | F101: 0.09747600105 | G101: 1 | H101: 0 | I101: 200.4750403 | J101: 1.565808154 | K101: 1.243809195 | L101: 0.6368350423 | M101: 1.012242593 | N101: 0.1556854712 | O101: 1 | P101: 0 | Q101: 1 | R101: 0 | S101: 0.9998205161 | T101: 0.008615082581 | U101: 28.22744975 | V101: -145.0554492 | W101: 34.94455077 | Y101: 1000000000 | Z101: 10964707.69 | AB101: 53.45540133 | AC101: -62.14635908 | AE101: 41.14722368 | AF101: -82.90909015 | AH101: 0 | AI101: 0
A102: 3630.8 | B102: 3.6308 | C102: 31.42222204 | D102: 1.538966341 | E102: 1.00573175 | F102: 0.1068129766 | G102: 1 | H102: 0 | I102: 219.8179726 | J102: 1.566247093 | K102: 1.287526258 | L102: 0.681413427 | M102: 1.01470113 | N102: 0.1704303834 | O102: 1 | P102: 0 | Q102: 1 | R102: 0 | S102: 0.9997842109 | T102: 0.009446699485 | U102: 26.91580991 | V102: -143.0597758 | W102: 36.94022415 | Y102: 1000000000 | Z102: 13182708.64 | AB102: 52.93431946 | AC102: -60.46217634 | AE102: 40.35666571 | AF102: -82.59759951 | AH102: 0 | AI102: 0
A103: 3981.1 | B103: 3.9811 | C103: 34.45090614 | D103: 1.541765436 | E103: 1.006887136 | F103: 0.1170285433 | G103: 1 | H103: 0 | I103: 241.0256162 | J103: 1.566647378 | K103: 1.338193101 | L103: 0.7268425259 | M103: 1.017648885 | N103: 0.1865109405 | O103: 1 | P103: 0 | Q103: 1 | R103: 0 | S103: 0.9997405661 | T103: 0.01035860151 | U103: 25.63694403 | V103: -141.0284786 | W103: 38.97152142 | Y103: 1000000000 | Z103: 15849157.21 | AB103: 52.44437688 | AC103: -58.80356345 | AE103: 39.5677424 | AF103: -82.22491513 | AH103: 0 | AI103: 0
A104: 4365.2 | B104: 4.3652 | C104: 37.77208219 | D104: 1.544318653 | E104: 1.008274479 | F104: 0.1282015871 | G104: 1 | H104: 0 | I104: 264.2795951 | J104: 1.567012446 | K104: 1.396677557 | L104: 0.7727624835 | M104: 1.021181642 | N104: 0.2040313361 | O104: 1 | P104: 0 | Q104: 1 | R104: 0 | S104: 0.9996880941 | T104: 0.0113586457 | U104: 24.39139202 | V104: -138.985639 | W104: 41.01436099 | Y104: 1000000000 | Z104: 19054971.04 | AB104: 51.98581486 | AC104: -57.19730527 | AE104: 38.78075241 | AF104: -81.78833375 | AH104: 0 | AI104: 0
A105: 4786.3 | B105: 4.7863 | C105: 41.41341947 | D105: 1.546647217 | E105: 1.009939677 | F105: 0.1404139459 | G105: 1 | H105: 0 | I105: 289.7736422 | J105: 1.56734535 | K105: 1.463892205 | L105: 0.8187831359 | M105: 1.025412248 | N105: 0.2230942105 | O105: 1 | P105: 0 | Q105: 1 | R105: 0 | S105: 0.9996250193 | T105: 0.01245522609 | U105: 23.17931386 | V105: -136.9566758 | W105: 43.0433242 | Y105: 1000000000 | Z105: 22908667.69 | AB105: 51.55825876 | AC105: -55.67181236 | AE105: 37.99623035 | AF105: -81.28486344 | AH105: 0 | AI105: 0
A106: 5248.1 | B106: 5.2481 | C106: 45.40691266 | D106: 1.548771468 | E106: 1.011938369 | F106: 0.1537582228 | G106: 1 | H106: 0 | I106: 317.7317611 | J106: 1.567649013 | K106: 1.540836948 | L106: 0.8645297661 | M106: 1.03047635 | N106: 0.2438112077 | O106: 1 | P106: 0 | Q106: 1 | R106: 0 | S106: 0.9995491774 | T106: 0.0136580603 | U106: 21.99965394 | V106: -134.9660392 | W106: 45.03396081 | Y106: 1000000000 | Z106: 27542553.61 | AB106: 51.1603849 | AC106: -54.25511859 | AE106: 37.21444429 | AF106: -80.7109206 | AH106: 0 | AI106: 0
A107: 5370.3 | B107: 5.3703 | C107: 46.46368828 | D107: 1.549272482 | E107: 1.01249733 | F107: 0.1572803244 | G107: 1 | H107: 0 | I107: 325.1299511 | J107: 1.567720629 | K107: 1.561703552 | L107: 0.8758732043 | M107: 1.031889932 | N107: 0.2492584951 | O107: 1 | P107: 0 | Q107: 1 | R107: 0 | S107: 0.9995279408 | T107: 0.01397640044 | U107: 21.70980519 | V107: -134.4774619 | W107: 45.52253808 | Y107: 1000000000 | Z107: 28840122.09 | AB107: 51.06538928 | AC107: -53.92139732 | AE107: 37.01959117 | AF107: -80.55606459 | AH107: 0 | AI107: 0
A108: 5432.85 | B108: 5.43285 | C108: 47.00461993 | D108: 1.549520217 | E108: 1.012788299 | F108: 0.1590816521 | G108: 1 | H108: 0 | I108: 328.9168321 | J108: 1.56775604 | K108: 1.572460645 | L108: 0.8815626604 | M108: 1.03262532 | N108: 0.2520409625 | O108: 1 | P108: 0 | Q108: 1 | R108: 0 | S108: 0.9995168814 | T108: 0.01413935633 | U108: 21.56471323 | V108: -134.233255 | W108: 45.76674497 | Y108: 1000000000 | Z108: 29515859.12 | AB108: 51.01824273 | AC108: -53.75686805 | AE108: 36.92164576 | AF108: -80.47638698 | AH108: 0 | AI108: 0
A109: 5495.4 | B109: 5.4954 | C109: 47.54555439 | D109: 1.549762315 | E109: 1.013082552 | F109: 0.1608819391 | G109: 1 | H109: 0 | I109: 332.7037135 | J109: 1.567790645 | K109: 1.583267945 | L109: 0.8871746242 | M109: 1.033368691 | N109: 0.254819448 | O109: 1 | P109: 0 | Q109: 1 | R109: 0 | S109: 0.9995056941 | T109: 0.01430231803 | U109: 21.42175737 | V109: -133.9929508 | W109: 46.00704922 | Y109: 1000000000 | Z109: 30199421.16 | AB109: 50.97205383 | AC109: -53.59650443 | AE109: 36.82487878 | AF109: -80.39644635 | AH109: 0 | AI109: 0
A110: 5559.4 | B110: 5.5594 | C110: 48.09903133 | D110: 1.550004389 | E110: 1.013387024 | F110: 0.1627228712 | G110: 1 | H110: 0 | I110: 336.5783808 | J110: 1.567825246 | K110: 1.594376677 | L110: 0.8928377527 | M110: 1.034137539 | N110: 0.2576581859 | O110: 1 | P110: 0 | Q110: 1 | R110: 0 | S110: 0.9994941149 | T110: 0.0144690635 | U110: 21.27763858 | V110: -133.7510536 | W110: 46.24894638 | Y110: 1000000000 | Z110: 30906928.36 | AB110: 50.92575265 | AC110: -53.43666128 | AE110: 36.72706118 | AF110: -80.31439234 | AH110: 0 | AI110: 0
A111: 5623.4 | B111: 5.6234 | C111: 48.65251102 | D111: 1.550240956 | E111: 1.013694927 | F111: 0.1645626912 | G111: 1 | H111: 0 | I111: 340.4530484 | J111: 1.56785906 | K111: 1.605535834 | L111: 0.8984223359 | M111: 1.034914709 | N111: 0.2604926831 | O111: 1 | P111: 0 | Q111: 1 | R111: 0 | S111: 0.9994824017 | T111: 0.01463581521 | U111: 21.13563654 | V111: -133.5131172 | W111: 46.48688282 | Y111: 1000000000 | Z111: 31622627.56 | AB111: 50.88038873 | AC111: -53.28103034 | AE111: 36.63042307 | AF111: -80.23208684 | AH111: 0 | AI111: 0
A112: 5688.9 | B112: 5.6889 | C112: 49.21896564 | D112: 1.550477557 | E112: 1.014013598 | F112: 0.1664444685 | G112: 1 | H112: 0 | I112: 344.418529 | J112: 1.567892878 | K112: 1.617007655 | L112: 0.904057817 | M112: 1.03571869 | N112: 0.2633891854 | O112: 1 | P112: 0 | Q112: 1 | R112: 0 | S112: 0.9994702752 | T112: 0.01480648168 | U112: 20.99243836 | V112: -133.2736398 | W112: 46.72636023 | Y112: 1000000000 | Z112: 32363583.21 | AB112: 50.8348995 | AC112: -53.12603607 | AE112: 36.53271411 | AF112: -80.1476037 | AH112: 0 | AI112: 0
A113: 5754.4 | B113: 5.7544 | C113: 49.78542296 | D113: 1.550708775 | E113: 1.014335857 | F113: 0.1683250568 | G113: 1 | H113: 0 | I113: 348.3840099 | J113: 1.567925927 | K113: 1.628530106 | L113: 0.9096137262 | M113: 1.036531346 | N113: 0.2662811702 | O113: 1 | P113: 0 | Q113: 1 | R113: 0 | S113: 0.9994580084 | T113: 0.01497715482 | U113: 20.85133823 | V113: -133.0381786 | W113: 46.96182143 | Y113: 1000000000 | Z113: 33113119.36 | AB113: 50.79032715 | AC113: -52.97529799 | AE113: 36.43618633 | AF113: -80.06288058 | AH113: 0 | AI113: 0
A114: 5821.4 | B114: 5.8214 | C114: 50.36485527 | D114: 1.550939907 | E114: 1.014669205 | F114: 0.1702474691 | G114: 1 | H114: 0 | I114: 352.4403038 | J114: 1.567958963 | K114: 1.640367699 | L114: 0.9152159383 | M114: 1.037371568 | N114: 0.2692346703 | O114: 1 | P114: 0 | Q114: 1 | R114: 0 | S114: 0.9994453154 | T114: 0.01515174351 | U114: 20.70911806 | V114: -132.8014113 | W114: 47.19858867 | Y114: 1000000000 | Z114: 33888697.96 | AB114: 50.74565042 | AC114: -52.82543079 | AE114: 36.33864289 | AF114: -79.97598054 | AH114: 0 | AI114: 0
A115: 5888.4 | B115: 5.8884 | C115: 50.94429022 | D115: 1.551165781 | E115: 1.015006301 | F115: 0.1721686116 | G115: 1 | H115: 0 | I115: 356.4965981 | J115: 1.567991247 | K115: 1.652256037 | L115: 0.9207377033 | M115: 1.038220825 | N115: 0.2721833642 | O115: 1 | P115: 0 | Q115: 1 | R115: 0 | S115: 0.9994324756 | T115: 0.01532633933 | U115: 20.56897472 | V115: -132.5687068 | W115: 47.43129317 | Y115: 1000000000 | Z115: 34673254.56 | AB115: 50.70186883 | AC115: -52.67985442 | AE115: 36.24228114 | AF115: -79.88885241 | AH115: 0 | AI115: 0
A116: 5957 | B116: 5.957 | C116: 51.53756504 | D116: 1.551391786 | E116: 1.015355325 | F116: 0.174134303 | G116: 1 | H116: 0 | I116: 360.6497594 | J116: 1.56802355 | K116: 1.664479715 | L116: 0.9263094323 | M116: 1.0390997 | N116: 0.2751974538 | O116: 1 | P116: 0 | Q116: 1 | R116: 0 | S116: 0.999419177 | T116: 0.01550511211 | U116: 20.42757733 | V116: -132.334582 | W116: 47.66541802 | Y116: 1000000000 | Z116: 35485849 | AB116: 50.65793722 | AC116: -52.5351633 | AE116: 36.14481536 | AF116: -79.79941868 | AH116: 0 | AI116: 0
A117: 6025.6 | B117: 6.0256 | C117: 52.13084244 | D117: 1.551612648 | E117: 1.01570827 | F117: 0.1760986358 | G117: 1 | H117: 0 | I117: 364.8029211 | J117: 1.568055117 | K117: 1.676754312 | L117: 0.9317997545 | M117: 1.039987999 | N117: 0.2782064218 | O117: 1 | P117: 0 | Q117: 1 | R117: 0 | S117: 0.9994057244 | T117: 0.01568389255 | U117: 20.28823918 | V117: -132.1045693 | W117: 47.89543066 | Y117: 1000000000 | Z117: 36307855.36 | AB117: 50.61488034 | AC117: -52.39480084 | AE117: 36.04853409 | AF117: -79.7097685 | AH117: 0 | AI117: 0
A118: 6095.8 | B118: 6.0958 | C118: 52.73795979 | D118: 1.551833516 | E118: 1.016073502 | F118: 0.1781073633 | G118: 1 | H118: 0 | I118: 369.05295 | J118: 1.568086685 | K118: 1.689366752 | L118: 0.9373353638 | M118: 1.040906747 | N118: 0.2812802245 | O118: 1 | P118: 0 | Q118: 1 | R118: 0 | S118: 0.9993917987 | T118: 0.01586685084 | U118: 20.14772414 | V118: -131.8733729 | W118: 48.12662712 | Y118: 1000000000 | Z118: 37158777.64 | AB118: 50.57169316 | AC118: -52.25555842 | AE118: 35.95120623 | AF118: -79.61781446 | AH118: 0 | AI118: 0
A119: 6166 | B119: 6.166 | C119: 53.34507965 | D119: 1.552049357 | E119: 1.01644283 | F119: 0.1801146391 | G119: 1 | H119: 0 | I119: 373.3029792 | J119: 1.568117534 | K119: 1.702030191 | L119: 0.9427887661 | M119: 1.041835312 | N119: 0.2843485769 | O119: 1 | P119: 0 | Q119: 1 | R119: 0 | S119: 0.9993777118 | T119: 0.01604981734 | U119: 20.00924817 | V119: -131.6463287 | W119: 48.35367133 | Y119: 1000000000 | Z119: 38019556 | AB119: 50.529359 | AC119: -52.12067266 | AE119: 35.85506442 | AF119: -79.52565601 | AH119: 0 | AI119: 0
A120: 6237.8 | B120: 6.2378 | C120: 53.96603951 | D120: 1.552265094 | E120: 1.01682481 | F120: 0.1821661479 | G120: 1 | H120: 0 | I120: 377.6498755 | J120: 1.568148368 | K120: 1.715033834 | L120: 0.9482829874 | M120: 1.04279517 | N120: 0.2874811803 | O120: 1 | P120: 0 | Q120: 1 | R120: 0 | S120: 0.9993631371 | T120: 0.01623696262 | U120: 19.86966692 | V120: -131.4183252 | W120: 48.58167477 | Y120: 1000000000 | Z120: 38910148.84 | AB120: 50.48691111 | AC120: -51.98712858 | AE120: 35.75793106 | AF120: -79.43119665 | AH120: 0 | AI120: 0
A121: 6309.6 | B121: 6.3096 | C121: 54.58700183 | D121: 1.552475923 | E121: 1.017211066 | F121: 0.1842161073 | G121: 1 | H121: 0 | I121: 381.9967721 | J121: 1.568178501 | K121: 1.728088467 | L121: 0.9536943592 | M121: 1.043765242 | N121: 0.2906079914 | O121: 1 | P121: 0 | Q121: 1 | R121: 0 | S121: 0.9993483937 | T121: 0.0164241167 | U121: 19.73210226 | V121: -131.1945047 | W121: 48.80549531 | Y121: 1000000000 | Z121: 39811052.16 | AB121: 50.44529337 | AC121: -51.85795934 | AE121: 35.66198415 | AF121: -79.33654535 | AH121: 0 | AI121: 0
A122: 6383.05 | B122: 6.38305 | C122: 55.22223662 | D122: 1.55268669 | E122: 1.017610618 | F122: 0.1863115565 | G122: 1 | H122: 0 | I122: 386.443563 | J122: 1.568208624 | K122: 1.741494669 | L122: 0.9591459758 | M122: 1.044768146 | N122: 0.293800618 | O122: 1 | P122: 0 | Q122: 1 | R122: 0 | S122: 0.9993331371 | T122: 0.01661558088 | U122: 19.59340493 | V122: -130.9697858 | W122: 49.03021419 | Y122: 1000000000 | Z122: 40743327.3 | AB122: 50.40354738 | AC122: -51.73025469 | AE122: 35.56503281 | AF122: -79.23953112 | AH122: 0 | AI122: 0
A123: 6456.5 | B123: 6.4565 | C123: 55.85747382 | D123: 1.552892663 | E123: 1.018014634 | F123: 0.1884053517 | G123: 1 | H123: 0 | I123: 390.8903542 | J123: 1.568238062 | K123: 1.754951836 | L123: 0.9645141426 | M123: 1.045781678 | N123: 0.2969870887 | O123: 1 | P123: 0 | Q123: 1 | R123: 0 | S123: 0.9993177039 | T123: 0.01680705449 | U123: 19.45670235 | V123: -130.7492769 | W123: 49.2507231 | Y123: 1000000000 | Z123: 41686392.25 | AB123: 50.36260879 | AC123: -51.60693937 | AE123: 35.46926882 | AF123: -79.14233752 | AH123: 0 | AI123: 0
A124: 6531.7 | B124: 6.5317 | C124: 56.5078484 | D124: 1.553098746 | E124: 1.018432897 | F124: 0.1905473023 | G124: 1 | H124: 0 | I124: 395.4430939 | J124: 1.568267515 | K124: 1.768781218 | L124: 0.969925424 | M124: 1.046830338 | N124: 0.3002430529 | O124: 1 | P124: 0 | Q124: 1 | R124: 0 | S124: 0.9993017203 | T124: 0.01700309997 | U124: 19.31875168 | V124: -130.5277894 | W124: 49.47221059 | Y124: 1000000000 | Z124: 42663104.89 | AB124: 50.32150084 | AC124: -51.48513635 | AE124: 35.37242609 | AF124: -79.04265306 | AH124: 0 | AI124: 0
A125: 6606.9 | B125: 6.6069 | C125: 57.15822533 | D125: 1.553300139 | E125: 1.018855828 | F125: 0.1926874845 | G125: 1 | H125: 0 | I125: 399.9958338 | J125: 1.568296298 | K125: 1.782661588 | L125: 0.9752525913 | M125: 1.047890074 | N125: 0.3034924659 | O125: 1 | P125: 0 | Q125: 1 | R125: 0 | S125: 0.9992855517 | T125: 0.01719915557 | U125: 19.18277702 | V125: -130.3105407 | W125: 49.68945927 | Y125: 1000000000 | Z125: 43651127.61 | AB125: 50.28117864 | AC125: -51.36773894 | AE125: 35.27677363 | AF125: -78.94280179 | AH125: 0 | AI125: 0
A126: 6683.85 | B126: 6.68385 | C126: 57.8237397 | D126: 1.55350153 | E126: 1.019293428 | F126: 0.1948756226 | G126: 1 | H126: 0 | I126: 404.6545222 | J126: 1.56832508 | K126: 1.796916522 | L126: 0.9806183776 | M126: 1.048985901 | N126: 0.3068106646 | O126: 1 | P126: 0 | Q126: 1 | R126: 0 | S126: 0.9992688153 | T126: 0.01739978421 | U126: 19.04562631 | V126: -130.0925346 | W126: 49.9074654 | Y126: 1000000000 | Z126: 44673850.82 | AB126: 50.24070145 | AC126: -51.25206991 | AE126: 35.18010011 | AF126: -78.84046469 | AH126: 0 | AI126: 0
A127: 6760.8 | B127: 6.7608 | C127: 58.48925637 | D127: 1.553698337 | E127: 1.019735905 | F127: 0.1970618723 | G127: 1 | H127: 0 | I127: 409.3132109 | J127: 1.568353208 | K127: 1.811222377 | L127: 0.9858995512 | M127: 1.050093254 | N127: 0.3101219014 | O127: 1 | P127: 0 | Q127: 1 | R127: 0 | S127: 0.9992518853 | T127: 0.01760042369 | U127: 18.91043057 | V127: -129.8787862 | W127: 50.12121376 | Y127: 1000000000 | Z127: 45708416.64 | AB127: 50.20098729 | AC127: -51.14081241 | AE127: 35.08461853 | AF127: -78.73797383 | AH127: 0 | AI127: 0
A128: 6839.55 | B128: 6.83955 | C128: 59.17034297 | D128: 1.553895164 | E128: 1.020193774 | F128: 0.1992972879 | G128: 1 | H128: 0 | I128: 414.0808751 | J128: 1.568381337 | K128: 1.825914345 | L128: 0.9912184277 | M128: 1.051238405 | N128: 0.3135033333 | O128: 1 | P128: 0 | Q128: 1 | R128: 0 | S128: 0.9992343587 | T128: 0.01780576783 | U128: 18.77403964 | V128: -129.6643534 | W128: 50.3356466 | Y128: 1000000000 | Z128: 46779444.2 | AB128: 50.16110459 | AC128: -51.03141673 | AE128: 34.9881103 | AF128: -78.63293667 | AH128: 0 | AI128: 0
A129: 6918.3 | B129: 6.9183 | C129: 59.85143181 | D129: 1.554087511 | E129: 1.020656736 | F129: 0.2015306867 | G129: 1 | H129: 0 | I129: 418.8485396 | J129: 1.568408827 | K129: 1.840657143 | L129: 0.9964522469 | M129: 1.05239555 | N129: 0.3168773677 | O129: 1 | P129: 0 | Q129: 1 | R129: 0 | S129: 0.9992166293 | T129: 0.01801112358 | U129: 18.639583 | V129: -129.454193 | W129: 50.54580701 | Y129: 1000000000 | Z129: 47862874.89 | AB129: 50.12196225 | AC129: -50.92643393 | AE129: 34.892796 | AF129: -78.52775906 | AH129: 0 | AI129: 0
A130: 6998.9 | B130: 6.9989 | C130: 60.54852307 | D130: 1.554279896 | E130: 1.021135841 | F130: 0.2038144438 | G130: 1 | H130: 0 | I130: 423.7282067 | J130: 1.568436321 | K130: 1.855797652 | L130: 1.001722761 | M130: 1.053592256 | N130: 0.3203229503 | O130: 1 | P130: 0 | Q130: 1 | R130: 0 | S130: 0.9991982734 | T130: 0.01822131573 | U130: 18.50391431 | V130: -129.2434238 | W130: 50.75657624 | Y130: 1000000000 | Z130: 48984601.21 | AB130: 50.08263792 | AC130: -50.82344837 | AE130: 34.79645165 | AF130: -78.41997539 | AH130: 0 | AI130: 0
A131: 7079.5 | B131: 7.0795 | C131: 61.24561653 | D131: 1.554467902 | E131: 1.021620266 | F131: 0.2060960471 | G131: 1 | H131: 0 | I131: 428.6078741 | J131: 1.56846319 | K131: 1.870988876 | L131: 1.006907831 | M131: 1.054801443 | N131: 0.3237606739 | O131: 1 | P131: 0 | Q131: 1 | R131: 0 | S131: 0.9991797051 | T131: 0.01843152033 | U131: 18.37015957 | V131: -129.0369372 | W131: 50.96306284 | Y131: 1000000000 | Z131: 50119320.25 | AB131: 50.0440313 | AC131: -50.72487224 | AE131: 34.70130353 | AF131: -78.31206492 | AH131: 0 | AI131: 0
A132: 7161.95 | B132: 7.16195 | C132: 61.95871245 | D132: 1.554655846 | E132: 1.022121309 | F132: 0.2084277694 | G132: 1 | H132: 0 | I132: 433.5995441 | J132: 1.568490049 | K132: 1.88657998 | L132: 1.01212537 | M132: 1.056051252 | N132: 0.327269115 | O132: 1 | P132: 0 | Q132: 1 | R132: 0 | S132: 0.9991604907 | T132: 0.01864656275 | U132: 18.23525927 | V132: -128.8300436 | W132: 51.16995643 | Y132: 1000000000 | Z132: 51293527.8 | AB132: 50.00525258 | AC132: -50.6284871 | AE132: 34.60518194 | AF132: -78.20155648 | AH132: 0 | AI132: 0
A133: 7244.4 | B133: 7.2444 | C133: 62.67181052 | D133: 1.554839513 | E133: 1.022627903 | F133: 0.2107571942 | G133: 1 | H133: 0 | I133: 438.5912145 | J133: 1.568516297 | K133: 1.902221599 | L133: 1.017257241 | M133: 1.057314029 | N133: 0.3307692185 | O133: 1 | P133: 0 | Q133: 1 | R133: 0 | S133: 0.999141054 | T133: 0.0188616185 | U133: 18.10225056 | V133: -128.627433 | W133: 51.37256699 | Y133: 1000000000 | Z133: 52481331.36 | AB133: 49.96716812 | AC133: -50.53649763 | AE133: 34.51025769 | AF133: -78.09093538 | AH133: 0 | AI133: 0
A134: 7328.75 | B134: 7.32875 | C134: 63.40134354 | D134: 1.555023136 | E134: 1.023151907 | F134: 0.2131378986 | G134: 1 | H134: 0 | I134: 443.6979145 | J134: 1.568542539 | K134: 1.918274654 | L134: 1.022420627 | M134: 1.058619278 | N134: 0.3343412935 | O134: 1 | P134: 0 | Q134: 1 | R134: 0 | S134: 0.9991209394 | T134: 0.01908164401 | U134: 17.96807896 | V134: -128.4244842 | W134: 51.57551576 | Y134: 1000000000 | Z134: 53710576.56 | AB134: 49.92889646 | AC134: -50.44682577 | AE134: 34.41435775 | AF134: -77.97765847 | AH134: 0 | AI134: 0
A135: 7413.1 | B135: 7.4131 | C135: 64.13087866 | D135: 1.555202582 | E135: 1.023681705 | F135: 0.2155161522 | G135: 1 | H135: 0 | I135: 448.8046148 | J135: 1.568568184 | K135: 1.934378001 | L135: 1.027498178 | M135: 1.059938001 | N135: 0.3379045254 | O135: 1 | P135: 0 | Q135: 1 | R135: 0 | S135: 0.9991005921 | T135: 0.0193016838 | U135: 17.83577704 | V135: -128.2258144 | W135: 51.77418556 | Y135: 1000000000 | Z135: 54954051.61 | AB135: 49.89129576 | AC135: -50.36153101 | AE135: 34.31965653 | AF135: -77.86428343 | AH135: 0 | AI135: 0
A136: 7499.45 | B136: 7.49945 | C136: 64.87771368 | D136: 1.555382103 | E136: 1.024230056 | F136: 0.2179482332 | G136: 1 | H136: 0 | I136: 454.0323991 | J136: 1.568593839 | K136: 1.950913966 | L136: 1.032609159 | M136: 1.061301896 | N136: 0.3415430242 | O136: 1 | P136: 0 | Q136: 1 | R136: 0 | S136: 0.9990795213 | T136: 0.01952695585 | U136: 17.70222008 | V136: -128.0267623 | W136: 51.9732377 | Y136: 1000000000 | Z136: 56241750.3 | AB136: 49.85347106 | AC136: -50.27863394 | AE136: 34.22392427 | AF136: -77.74812836 | AH136: 0 | AI136: 0
A137: 7585.8 | B137: 7.5858 | C137: 65.62455074 | D137: 1.555557537 | E137: 1.024784458 | F137: 0.2203776971 | G137: 1 | H137: 0 | I137: 459.2601836 | J137: 1.56861891 | K137: 1.967500036 | L137: 1.037634097 | M137: 1.062679806 | N137: 0.3451721353 | O137: 1 | P137: 0 | Q137: 1 | R137: 0 | S137: 0.9990582068 | T137: 0.01975224322 | U137: 17.57051341 | V137: -127.8319854 | W137: 52.16801462 | Y137: 1000000000 | Z137: 57544361.64 | AB137: 49.81629492 | AC137: -50.20009537 | AE137: 34.12939374 | AF137: -77.63189 | AH137: 0 | AI137: 0
A138: 7674.15 | B138: 7.67415 | C138: 66.38868774 | D138: 1.55573295 | E138: 1.025357955 | F138: 0.2228606969 | G138: 1 | H138: 0 | I138: 464.609052 | J138: 1.568643978 | K138: 1.984520813 | L138: 1.042688356 | M138: 1.064104078 | N138: 0.3488755245 | O138: 1 | P138: 0 | Q138: 1 | R138: 0 | S138: 0.9990361462 | T138: 0.01998276463 | U138: 17.43761703 | V138: -127.6370154 | W138: 52.36298457 | Y138: 1000000000 | Z138: 58892578.22 | AB138: 49.77890207 | AC138: -50.12413253 | AE138: 34.03389022 | AF138: -77.5128829 | AH138: 0 | AI138: 0
A139: 7762.5 | B139: 7.7625 | C139: 67.15282675 | D139: 1.55590437 | E139: 1.025937767 | F139: 0.2253409055 | G139: 1 | H139: 0 | I139: 469.9579207 | J139: 1.568668475 | K139: 2.001591422 | L139: 1.047656529 | M139: 1.065542905 | N139: 0.3525689627 | O139: 1 | P139: 0 | Q139: 1 | R139: 0 | S139: 0.9990138304 | T139: 0.02021330245 | U139: 17.30654966 | V139: -127.4463071 | W139: 52.55369289 | Y139: 1000000000 | Z139: 60256406.25 | AB139: 49.74213472 | AC139: -50.05249918 | AE139: 33.93959019 | AF139: -77.39380793 | AH139: 0 | AI139: 0
A140: 7852.9 | B140: 7.8529 | C140: 67.93469819 | D140: 1.556075777 | E140: 1.026537556 | F140: 0.2278757467 | G140: 1 | H140: 0 | I140: 475.4309003 | J140: 1.56869297 | K140: 2.019108387 | L140: 1.0526529 | M140: 1.067030122 | N140: 0.3563377374 | O140: 1 | P140: 0 | Q140: 1 | R140: 0 | S140: 0.9989907326 | T140: 0.02044920666 | U140: 17.1742806 | V140: -127.255476 | W140: 52.74452402 | Y140: 1000000000 | Z140: 61668038.41 | AB140: 49.70513536 | AC140: -49.98356658 | AE140: 33.8443205 | AF140: -77.2719094 | AH140: 0 | AI140: 0
A141: 7943.3 | B141: 7.9433 | C141: =SQRT(1+(A141/pole1)^2) -> 68.71657159 | D141: =ATAN(A141/pole1) -> 1.556243283 | E141: =SQRT(1+(A141/Zero1)^2) -> 1.027143934 | F141: =ATAN(A141/Zero1) -> 0.2304076113 | G141: =IF(VIN_nom>Vout, 1, SQRT(1+(A141/z_RHP)^2)) -> 1 | H141: =IF(VIN_nom>Vout, 0, -ATAN(A141/z_RHP)) -> 0 | I141: =SQRT(1+(A141/Pole2)^2) -> 480.9038803 | J141: =ATAN(A141/Pole2) -> 1.568716908 | K141: =SQRT(1+(A141/Zero2)^2) -> 2.036674887 | L141: =ATAN(A141/Zero2) -> 1.057563203 | M141: =SQRT(1+(A141/pole4)^2) -> 1.068532453 | N141: =ATAN(A141/pole4) -> 0.3600959678 | O141: =IF(VOUT_setting=1,1,SQRT(1+(A141*zterm1)^2)) -> 1 | P141: =IF(VOUT_setting=1,0,ATAN(((A141*zterm1)))) -> 0 | Q141: 1 | R141: =IF(VOUT_setting=1,0,ATAN(A141*$Q$4/(1+Afbr-$Q$5*(A141)^2))) -> 0 | S141: =SQRT((1-(Z141/pterm2))^2+(A141/pterm1)^2) -> 0.9989673677 | T141: =IF((ATAN((A141/pterm1)/(1-A141^2/pterm2))>0),ATAN((A141/pterm1)/(1-A141^2/pterm2)),PI()+ATAN((A141/pterm1)/(1-A141^2/pterm2))) -> 0.02068512845 | U141: =20*LOG10(((E141*K141*G141*O141)/(C141*I141*S141*M141*Q141))*Adc) -> 17.0438196 | V141: =((F141+L141+H141+P141)-(D141+J141+T141+N141+R141))*radconv -> -127.0688881 | W141: =IF(V141>0,V141,V141+180) -> 52.93111187 | Y141: =IF(U141<0,A141,1000000000) -> 1000000000 | Z141: =A141^2 -> 63096014.89 | AB141: =20*LOG10((K141/(I141*M141))*AEA) -> 49.66873861 | AC141: =(L141-(J141+N141))*radconv -> -49.91892919 | AE141: =20*LOG10((E141*G141/(C141*S141))*Acs*Am) -> 33.75025624 | AF141: =(F141+H141-(D141+T141))*radconv -> -77.14995894 | AH141: =SUM((U142<0)*(U141>0))*A141 -> 0 | AI141: 0
A142: 8035.8 | B142: =A142/1000 -> 8.0358 | C142: 69.51660993 | D142: 1.556410779 | E142: 1.027771206 | F142: 0.2329951818 | G142: 1 | H142: 0 | I142: 486.5039984 | J142: 1.568740844 | K142: 2.05469941 | L142: 1.062500542 | M142: 1.07008526 | N142: 0.3639305234 | O142: 1 | P142: 0 | Q142: 1 | R142: 0 | S142: 0.9989431834 | T142: 0.02092654913 | U142: 16.91214646 | V142: -126.8822471 | W142: 53.11775291 | Y142: 1000000000 | Z142: 64574081.64 | AB142: 49.63209441 | AC142: -49.85711578 | AE142: 33.65522731 | AF142: -77.02513131 | AH142: 0 | AI142: 0
A143: 8128.3 | B143: 8.1283 | C143: 70.31665017 | D143: 1.556574465 | E143: 1.028405351 | F143: 0.2355795784 | G143: 1 | H143: 0 | I143: 492.1041167 | J143: 1.568764235 | K143: 2.07277315 | L143: 1.067351895 | M143: 1.071653756 | N143: 0.3677539104 | O143: 1 | P143: 0 | Q143: =IF(VOUT_setting=1,1,SQRT((1+Afbr-$Q$5*(A143)^2)^2+(A143*$Q$4)^2)) -> 1 | R143: 0 | S143: 0.9989187194 | T143: 0.02116798865 | U143: 16.78226075 | V143: -126.6998261 | W143: 53.30017385 | Y143: 1000000000 | Z143: 66069260.89 | AB143: 49.59603011 | AC143: -49.79955792 | AE143: 33.56140589 | AF143: -76.90026823 | AH143: 0 | AI143: 0
A144: 8222.95 | B144: 8.22295 | C144: 71.13528784 | D144: 1.556738143 | E144: 1.029061336 | F144: 0.2382207296 | G144: 1 | H144: 0 | I144: 497.8344002 | J144: 1.568787625 | K144: 2.091316596 | L144: 1.072229091 | M144: 1.073274877 | N144: 0.371654539 | O144: 1 | P144: 0 | Q144: 1 | R144: 0 | S144: 0.9988933973 | T144: 0.02141505973 | U144: 16.65115384 | V144: -126.5174205 | W144: 53.4825795 | Y144: 1000000000 | Z144: 67616906.7 | AB144: 49.55970275 | AC144: -49.74494486 | AE144: 33.46662634 | AF144: -76.77247564 | AH144: 0 | AI144: 0
A145: 8270.275 | B145: 8.270275 | C145: 71.54460738 | D145: 1.556818578 | E145: 1.029392018 | F145: 0.2395400383 | G145: 1 | H145: 0 | I145: 500.699542 | J145: 1.56879912 | K145: 2.100606726 | L145: 1.07463537 | M145: 1.074091547 | N145: 0.3736004232 | O145: 1 | P145: 0 | Q145: 1 | R145: 0 | S145: 0.9988806264 | T145: 0.02153860283 | U145: 16.58626619 | V145: -126.4277966 | W145: 53.57220336 | Y145: 1000000000 | Z145: 68397448.58 | AB145: 49.54174958 | AC145: -49.71922476 | AE145: 33.41969187 | AF145: -76.70857188 | AH145: 0 | AI145: 0
A146: 8317.6 | B146: 8.3176 | C146: 71.95392738 | D146: 1.556898097 | E146: 1.029724491 | F146: 0.2408584973 | G146: 1 | H146: 0 | I146: 503.5646839 | J146: 1.568810483 | K146: 2.109908913 | L146: 1.077020445 | M146: 1.074912278 | N146: 0.3755433432 | O146: 1 | P146: 0 | Q146: 1 | R146: 0 | S146: 0.9988677823 | T146: 0.02166215101 | U146: 16.52181401 | V146: -126.3392069 | W146: 53.66079311 | Y146: 1000000000 | Z146: 69182469.76 | AB146: 49.52393277 | AC146: -49.69454222 | AE146: 33.37305649 | AF146: -76.64466467 | AH146: 0 | AI146: 0
A147: 8366.05 | B147: 8.36605 | C147: 72.37297812 | D147: 1.556978575 | E147: 1.03006672 | F147: 0.2422074143 | G147: 1 | H147: 0 | I147: 506.4979355 | J147: 1.568821984 | K147: 2.119444552 | L147: 1.079440515 | M147: 1.075756717 | N147: 0.3775293709 | O147: 1 | P147: 0 | Q147: 1 | R147: 0 | S147: 0.998854557 | T147: 0.02178864143 | U147: 16.45627438 | V147: -126.2495682 | W147: 53.75043179 | Y147: 1000000000 | Z147: 69990792.6 | AB147: 49.50583067 | AC147: -49.67033237 | AE147: 33.32561896 | AF147: -76.57923583 | AH147: 0 | AI147: 0
A148: 8414.5 | B148: 8.4145 | C148: 72.79202931 | D148: 1.557058127 | E148: 1.030410822 | F148: 0.2435554329 | G148: 1 | H148: 0 | I148: 509.4311871 | J148: 1.568833352 | K148: =SQRT(1+(A148/Zero2)^2) -> 2.128992493 | L148: =ATAN(A148/Zero2) -> 1.081838892 | M148: 1.076605391 | N148: 0.3795122754 | O148: 1 | P148: 0 | Q148: 1 | R148: 0 | S148: 0.998841255 | T148: 0.02191513724 | U148: 16.39117826 | V148: -126.1609846 | W148: 53.83901542 | Y148: 1000000000 | Z148: 70803810.25 | AB148: 49.48786542 | AC148: -49.64717888 | AE148: 33.27848809 | AF148: -76.5138057 | AH148: 0 | AI148: 0
A149: 8462.95 | B149: 8.46295 | C149: 73.21108097 | D149: 1.557136768 | E149: 1.030756796 | F149: 0.244902549 | G149: 1 | H149: 0 | I149: 512.3644388 | J149: 1.56884459 | K149: 2.138552571 | L149: 1.08421584 | M149: 1.077458293 | N149: 0.3814920484 | O149: 1 | P149: 0 | Q149: 1 | R149: 0 | S149: 0.9988278762 | T149: 0.02204163846 | U149: 16.32651931 | V149: -126.0734417 | W149: 53.92655826 | Y149: 1000000000 | Z149: 71621522.7 | AB149: 49.47003407 | AC149: -49.62506634 | AE149: 33.23166049 | AF149: -76.4483754 | AH149: 0 | AI149: 0
A150: 8511.4 | B150: 8.5114 | C150: 73.63013307 | D150: 1.557214513 | E150: 1.031104638 | F150: 0.2462487586 | G150: 1 | H150: 0 | I150: 515.2976905 | J150: 1.5688557 | K150: 2.148124624 | L150: 1.086571617 | M150: 1.07831541 | N150: 0.3834686817 | O150: 1 | P150: 0 | Q150: 1 | R150: 0 | S150: 0.9988144208 | T150: 0.02216814512 | U150: 16.26229132 | V150: -125.9869256 | W150: 54.01307439 | Y150: 1000000000 | Z150: 72443929.96 | AB150: 49.45233371 | AC150: -49.60397954 | AE150: 33.18513286 | AF150: -76.38294606 | AH150: 0 | AI150: 0
A151: 8560.95 | B151: 8.56095 | C151: 74.0586997 | D151: 1.557293114 | E151: 1.03146231 | F151: 0.2476245906 | G151: 1 | H151: 0 | I151: 518.2975383 | J151: 1.568866932 | K151: 2.157926219 | L151: 1.08895925 | M151: 1.079196338 | N151: 0.3854869367 | O151: 1 | P151: 0 | Q151: 1 | R151: 0 | S151: 0.9988005804 | T151: 0.02229752964 | U151: 16.19704452 | V151: -125.8994927 | W151: 54.10050731 | Y151: 1000000000 | Z151: 73289864.9 | AB151: 49.43436405 | AC151: -49.58345932 | AE151: 33.13785573 | AF151: -76.31603337 | AH151: 0 | AI151: 0
A152: 8610.5 | B152: 8.6105 | C152: 74.48726679 | D152: 1.55737081 | E152: 1.031821932 | F152: 0.2489994662 | G152: 1 | H152: 0 | I152: 521.2973862 | J152: 1.568878035 | K152: 2.167740005 | L152: 1.091325277 | M152: 1.080081655 | N152: 0.3875018912 | O152: 1 | P152: 0 | Q152: 1 | R152: 0 | S152: 0.9987866598 | T152: 0.02242691991 | U152: 16.13223575 | V152: -125.8131045 | W152: 54.18689554 | Y152: 1000000000 | Z152: 74140710.25 | AB152: 49.41652551 | AC152: -49.56398048 | AE152: 33.0908855 | AF152: -76.24912399 | AH152: 0 | AI152: 0
A153: 8660.05 | B153: 8.66005 | C153: 74.91583433 | D153: 1.557447617 | E153: 1.032183504 | F153: 0.2503733812 | G153: 1 | H153: 0 | I153: 524.2972341 | J153: 1.568889011 | K153: 2.177565816 | L153: 1.093669965 | M153: 1.08097135 | N153: 0.389513537 | O153: 1 | P153: 0 | Q153: 1 | R153: 0 | S153: 0.998772659 | T153: 0.02255631598 | U153: 16.06785875 | V153: -125.7277465 | W153: 54.27225352 | Y153: 1000000000 | Z153: 74996466 | AB153: 49.3988152 | AC153: -49.54552744 | AE153: 33.0442188 | AF153: -76.18221904 | AH153: 0 | AI153: 0
A154: 8709.6 | B154: 8.7096 | C154: 75.3444023 | D154: 1.557523551 | E154: 1.032547023 | F154: 0.2517463313 | G154: 1 | H154: 0 | I154: 527.2970821 | J154: 1.568899862 | K154: 2.187403492 | L154: 1.095993576 | M154: 1.081865412 | N154: 0.391521866 | O154: 1 | P154: 0 | Q154: 1 | R154: 0 | S154: 0.9987585779 | T154: 0.02268571788 | U154: 16.0039074 | V154: -125.6434045 | W154: 54.3565955 | Y154: 1000000000 | Z154: 75857132.16 | AB154: 49.38123033 | AC154: -49.52808486 | AE154: 32.99785232 | AF154: -76.11531965 | AH154: 0 | AI154: =IF(AH154>0,W154,0) -> 0
A155: 8760.325 | B155: 8.760325 | C155: 75.78313353 | D155: 1.557600396 | E155: 1.032921177 | F155: 0.2531508351 | G155: 1 | H155: 0 | I155: 530.3680669 | J155: 1.568910843 | K155: 2.197486574 | L155: 1.098350723 | M155: 1.082785188 | N155: 0.3935743755 | O155: 1 | P155: 0 | Q155: 1 | R155: 0 | S155: 0.9987440798 | T155: 0.02281819441 | U155: 15.9388742 | V155: -125.5581003 | W155: 54.44189974 | Y155: 1000000000 | Z155: 76743294.11 | AB155: 49.36335553 | AC155: -49.51125954 | AE155: 32.95069392 | AF155: -76.04684072 | AH155: 0 | AI155: 0
A156: 8811.05 | B156: 8.81105 | C156: 76.2218652 | D156: 1.557676355 | E156: 1.033297366 | F156: 0.254554319 | G156: 1 | H156: 0 | I156: 533.4390517 | J156: 1.568921697 | K156: 2.207581755 | L156: 1.100686326 | M156: 1.083709518 | N156: 0.3956233922 | O156: 1 | P156: 0 | Q156: 1 | R156: 0 | S156: 0.9987294976 | T156: 0.02295067712 | U156: 15.8742745 | V156: -125.4738312 | W156: 54.52616878 | Y156: 1000000000 | Z156: 77634602.1 | AB156: 49.34560645 | AC156: -49.49546132 | AE156: 32.9038433 | AF156: -75.9783699 | AH156: 0 | AI156: 0
A157: 8861.775 | B157: 8.861775 | C157: 76.66059731 | D157: 1.557751446 | E157: 1.03367559 | F157: 0.2559567785 | G157: 1 | H157: 0 | I157: 536.5100365 | J157: 1.568932428 | K157: 2.217688869 | L157: 1.103000652 | M157: 1.084638389 | N157: 0.397668908 | O157: 1 | P157: 0 | Q157: 1 | R157: 0 | S157: 0.9987148313 | T157: 0.02308316605 | U157: 15.81010212 | V157: -125.3905828 | W157: 54.60941724 | Y157: 1000000000 | Z157: 78531056.15 | AB157: 49.32798028 | AC157: -49.48067445 | AE157: 32.85729708 | AF157: -75.90990831 | AH157: 0 | AI157: 0
A158: 8912.5 | B158: 8.9125 | C158: 77.09932984 | D158: 1.557825682 | E158: 1.034055845 | F158: 0.2573582093 | G158: 1 | H158: 0 | I158: 539.5810214 | J158: 1.568943036 | K158: =SQRT(1+(A158/Zero2)^2) -> 2.227807753 | L158: =ATAN(A158/Zero2) -> 1.105293966 | M158: 1.085571792 | N158: 0.3997109148 | O158: 1 | P158: 0 | Q158: 1 | R158: 0 | S158: 0.9987000809 | T158: 0.02321566123 | U158: 15.746351 | V158: -125.3083405 | W158: 54.69165955 | Y158: 1000000000 | Z158: 79432656.25 | AB158: 49.31047431 | AC158: -49.46688339 | AE158: 32.81105195 | AF158: -75.84145706 | AH158: 0 | AI158: 0
A159: 8964.4 | B159: 8.9644 | C159: 77.54822566 | D159: 1.557900768 | E159: 1.034447009 | F159: 0.2587910338 | G159: 1 | H159: 0 | I159: 542.7231431 | J159: 1.568953766 | K159: 2.238173047 | L159: 1.107618928 | M159: 1.086531492 | N159: 0.4017965826 | O159: 1 | P159: 0 | Q159: 1 | R159: 0 | S159: 0.9986849018 | T159: 0.02335123206 | U159: 15.68155299 | V159: -125.2252196 | W159: 54.77478037 | Y159: 1000000000 | Z159: 80360467.36 | AB159: 49.29268443 | AC159: -49.45378762 | AE159: 32.76404381 | AF159: -75.77143201 | AH159: 0 | AI159: 0
A160: 9016.3 | B160: 9.0163 | C160: 77.99712192 | D160: 1.55797499 | E160: 1.034840295 | F160: 0.2602227721 | G160: 1 | H160: 0 | I160: 545.8652648 | J160: 1.568964372 | K160: 2.248550329 | L160: 1.109922442 | M160: 1.087495911 | N160: 0.4038785603 | O160: 1 | P160: 0 | Q160: 1 | R160: 0 | S160: 0.9986696347 | T160: 0.0234868095 | U160: 15.61718357 | V160: -125.1431222 | W160: 54.85687775 | Y160: 1000000000 | Z160: 81293665.69 | AB160: 49.27501481 | AC160: -49.44170219 | AE160: 32.71734401 | AF160: -75.70142006 | AH160: 0 | AI160: 0
A161: 9068.2 | B161: 9.0682 | C161: 78.4460186 | D161: 1.558048362 | E161: 1.035235701 | F161: 0.2616534197 | G161: 1 | H161: 0 | I161: 549.0073865 | J161: 1.568974857 | K161: 2.258939432 | L161: 1.11220478 | M161: 1.088465035 | N161: 0.4059568395 | O161: 1 | P161: 0 | Q161: 1 | R161: 0 | S161: 0.9986542796 | T161: 0.0236223936 | U161: 15.55323664 | V161: -125.0620335 | W161: 54.93796648 | Y161: 1000000000 | Z161: 82232251.24 | AB161: 49.25746272 | AC161: -49.4306112 | AE161: 32.67094917 | AF161: -75.63142232 | AH161: 0 | AI161: 0
A162: 9120.1 | B162: 9.1201 | C162: 78.89491569 | D162: 1.558120899 | E162: 1.035633224 | F162: 0.2630829719 | G162: 1 | H162: 0 | I162: 552.1495083 | J162: 1.568985222 | K162: 2.269340195 | L162: 1.11446621 | M162: 1.089438852 | N162: 0.4080314123 | O162: 1 | P162: 0 | Q162: 1 | R162: 0 | S162: 0.9986388364 | T162: 0.0237579844 | U162: 15.48970624 | V162: -124.9819389 | W162: 55.01806112 | Y162: 1000000000 | Z162: 83176224.01 | AB162: 49.24002553 | AC162: -49.42049901 | AE162: 32.62485597 | AF162: -75.56143988 | AH162: 0 | AI162: 0
A163: 9173.2 | B163: 9.1732 | C163: 79.35419234 | D163: 1.558194265 | E163: 1.036042127 | F163: 0.2645444389 | G163: 1 | H163: 0 | I163: 555.3642804 | J163: 1.568995706 | K163: 2.279993337 | L163: 1.116758561 | M163: 1.090440029 | N163: 0.4101501078 | O163: 1 | P163: 0 | Q163: 1 | R163: 0 | S163: 0.998622945 | T163: 0.02389671723 | U163: 15.42513192 | V163: -124.9010062 | W163: 55.09899376 | Y163: 1000000000 | Z163: 84147598.24 | AB163: 49.22230137 | AC163: -49.41114993 | AE163: 32.57800581 | AF163: -75.48985631 | AH163: 0 | AI163: 0
A164: 9226.3 | B164: 9.2263 | C164: 79.8134694 | D164: 1.558266785 | E164: 1.036453241 | F164: 0.2660047496 | G164: 1 | H164: 0 | I164: 558.5790526 | J164: 1.569006069 | K164: 2.29065835 | L164: 1.119029579 | M164: 1.091446092 | N164: 0.4122649068 | O164: 1 | P164: 0 | Q164: 1 | R164: 0 | S164: 0.9986069615 | T164: 0.02403545714 | U164: 15.36098136 | V164: -124.8210841 | W164: 55.17891594 | Y164: 1000000000 | Z164: 85124611.69 | AB164: 49.20469208 | AC164: -49.40279304 | AE164: 32.53146454 | AF164: -75.41829102 | AH164: 0 | AI164: 0
A165: 9279.4 | B165: 9.2794 | C165: 80.27274688 | D165: 1.558338476 | E165: 1.036866564 | F165: 0.2674638992 | G165: 1 | H165: 0 | I165: 561.7938248 | J165: 1.569016313 | K165: 2.301335067 | L165: 1.121279535 | M165: 1.092457028 | N165: 0.4143758013 | O165: 1 | P165: 0 | Q165: 1 | R165: 0 | S165: 0.9985908859 | T165: 0.02417420419 | U165: 15.29724855 | V165: -124.7421574 | W165: 55.25784256 | Y165: 1000000000 | Z165: 86107264.36 | AB165: 49.18719502 | AC165: -49.39541232 | AE165: 32.48522878 | AF165: -75.34674512 | AH165: 0 | AI165: 0
A166: 9332.5 | B166: 9.3325 | C166: 80.73202477 | D166: 1.558409352 | E166: 1.037282093 | F166: 0.2689218828 | G166: 1 | H166: 0 | I166: 565.0085971 | J166: 1.569026441 | K166: 2.312023326 | L166: 1.123508701 | M166: 1.093472822 | N166: 0.4164827834 | O166: 1 | P166: 0 | Q166: 1 | R166: 0 | S166: 0.9985747181 | T166: 0.02431295842 | U166: 15.23392761 | V166: -124.6642117 | W166: 55.33578829 | Y166: 1000000000 | Z166: 87095556.25 | AB166: 49.16980764 | AC166: -49.38899201 | AE166: 32.43929522 | AF166: -75.2752197 | AH166: 0 | AI166: 0
A167: 9386.85 | B167: 9.38685 | C167: 81.2021147 | D167: 1.558481065 | E167: 1.037709684 | F167: 0.2704129757 | G167: 1 | H167: 0 | I167: 568.2990467 | J167: 1.569036689 | K167: 2.322974979 | L167: 1.125769087 | M167: 1.094517546 | N167: 0.4186353049 | O167: 1 | P167: 0 | Q167: 1 | R167: 0 | S167: 0.9985580744 | T167: 0.02445498646 | U167: 15.16953656 | V167: -124.5854318 | W167: 55.41456817 | Y167: 1000000000 | Z167: 88112952.92 | AB167: 49.15212193 | AC167: -49.38339897 | AE167: 32.39258988 | AF167: -75.20203286 | AH167: 0 | AI167: 0
A168: 9441.2 | B168: 9.4412 | C168: 81.67220505 | D168: 1.558551953 | E168: 1.038139582 | F168: 0.2719028369 | G168: 1 | H168: 0 | I168: 571.5894964 | J168: 1.569046819 | K168: 2.33393839 | L168: 1.128008249 | M168: 1.095567331 | N168: 0.4207837112 | O168: 1 | P168: 0 | Q168: 1 | R168: 0 | S168: 0.9985413341 | T168: 0.02459702212 | U168: 15.1055649 | V168: -124.5076492 | W168: 55.49235082 | Y168: 1000000000 | Z168: 89136257.44 | AB168: 49.13454589 | AC168: -49.37877945 | AE168: 32.34619427 | AF168: -75.12886972 | AH168: 0 | AI168: 0
A169: 9495.55 | B169: 9.49555 | C169: 82.1422958 | D169: 1.55862203 | E169: 1.038571781 | F169: 0.2733914614 | G169: 1 | H169: 0 | I169: 574.8799462 | J169: 1.569056832 | K169: 2.344913393 | L169: 1.130226461 | M169: 1.096622164 | N169: 0.4229279944 | O169: 1 | P169: 0 | Q169: 1 | R169: 0 | S169: 0.9985244973 | T169: 0.02473906542 | U169: 15.0420067 | V169: -124.4308487 | W169: 55.56915126 | Y169: 1000000000 | Z169: 90165469.8 | AB169: 49.11707697 | AC169: -49.37511735 | AE169: 32.30010498 | AF169: -75.0557314 | AH169: 0 | AI169: 0
A170: 9549.9 | B170: 9.5499 | C170: 82.61238695 | D170: 1.558691309 | E170: 1.03900628 | F170: 0.2748788442 | G170: 1 | H170: 0 | I170: 578.170396 | J170: 1.569066732 | K170: 2.355899826 | L170: 1.132423996 | M170: 1.097682029 | N170: 0.4250681465 | O170: 1 | P170: 0 | Q170: 1 | R170: 0 | S170: 0.9985075639 | T170: 0.02488111641 | U170: 14.97885614 | V170: -124.3550157 | W170: 55.64498426 | Y170: 1000000000 | Z170: 91200590.01 | AB170: 49.0997127 | AC170: -49.37239678 | AE170: 32.25431869 | AF170: -74.98261896 | AH170: 0 | AI170: 0
A171: 9605.525 | B171: 9.605525 | C171: 83.0935064 | D171: 1.558761402 | E171: 1.03945335 | F171: 0.2763998285 | G171: 1 | H171: 0 | I171: 581.5380368 | J171: 1.569076748 | K171: 2.367155661 | L171: 1.13465195 | M171: 1.098771954 | N171: 0.4272542191 | O171: 1 | P171: 0 | Q171: 1 | R171: 0 | S171: 0.9984901334 | T171: 0.02502650781 | U171: 14.9146403 | V171: -124.2783903 | W171: 55.72160967 | Y171: 1000000000 | Z171: 92266110.53 | AB171: 49.08204692 | AC171: -49.37057103 | AE171: 32.20776863 | AF171: -74.9078193 | AH171: 0 | AI171: 0
A172: 9661.15 | B172: 9.66115 | C172: 83.57462625 | D172: 1.558830687 | E172: 1.039902823 | F172: 0.2779195015 | G172: 1 | H172: 0 | I172: 584.9056776 | J172: 1.569086649 | K172: 2.378423135 | L172: 1.136858806 | M172: 1.099867119 | N172: 0.4294359488 | O172: 1 | P172: 0 | Q172: 1 | R172: 0 | S172: 0.9984726018 | T172: 0.02517190735 | U172: 14.85083952 | V172: -124.2027477 | W172: 55.79725232 | Y172: 1000000000 | Z172: 93337819.32 | AB172: 49.0644857 | AC172: -49.36969868 | AE172: 32.16152907 | AF172: -74.83304901 | AH172: 0 | AI172: 0
A173: 9716.775 | B173: 9.716775 | C173: 84.0557465 | D173: 1.55889918 | E173: 1.040354695 | F173: 0.2794378579 | G173: 1 | H173: 0 | I173: 588.2733184 | J173: 1.569096436 | K173: 2.389702083 | L173: 1.13904484 | M173: 1.100967509 | N173: 0.4316133275 | O173: 1 | P173: 0 | Q173: 1 | R173: 0 | S173: 0.9984549692 | T173: 0.02531731511 | U173: 14.78744794 | V173: -124.1280727 | W173: 55.8719273 | Y173: 1000000000 | Z173: 94415716.4 | AB173: 49.04702657 | AC173: -49.36976353 | AE173: 32.11559662 | AF173: -74.75830917 | AH173: 0 | AI173: 0
A174: 9772.4 | B174: 9.7724 | C174: 84.53686714 | D174: 1.558966892 | E174: 1.040808964 | F174: 0.2809548924 | G174: 1 | H174: 0 | I174: 591.6409593 | J174: 1.569106112 | K174: 2.400992343 | L174: 1.141210325 | M174: 1.102073108 | N174: 0.4337863479 | O174: 1 | P174: 0 | Q174: 1 | R174: 0 | S174: 0.9984372354 | T174: 0.02546273111 | U174: 14.72445984 | V174: -124.0543505 | W174: 55.9456495 | Y174: 1000000000 | Z174: 95499801.76 | AB174: 49.02966715 | AC174: -49.37074962 | AE174: 32.06996794 | AF174: -74.68360088 | AH174: 0 | AI174: 0
A175: 9829.3 | B175: 9.8293 | C175: 85.02901612 | D175: 1.559035364 | E175: 1.041276121 | F175: 0.2825053263 | G175: 1 | H175: 0 | I175: 595.0857912 | J175: 1.569115896 | K175: 2.41255293 | L175: 1.143404466 | M175: 1.103209422 | N175: 0.4360046598 | O175: 1 | P175: 0 | Q175: 1 | R175: 0 | S175: 0.9984189906 | T175: 0.02561148882 | U175: 14.66043957 | V175: -123.979909 | W175: 56.02009095 | Y175: 1000000000 | Z175: 96615138.49 | AB175: 49.01201055 | AC175: -49.37269513 | AE175: 32.02360428 | AF175: -74.60721391 | AH175: 0 | AI175: 0
A176: 9886.2 | B176: 9.8862 | C176: 85.52116548 | D176: 1.559103048 | E176: 1.041745779 | F176: 0.2840543658 | G176: 1 | H176: 0 | I176: 598.5306231 | J176: 1.569125568 | K176: 2.424125021 | L176: 1.145577669 | M176: 1.104351154 | N176: 0.4382183957 | O176: 1 | P176: 0 | Q176: 1 | R176: 0 | S176: 0.99840064 | T176: 0.02576025527 | U176: 14.59682973 | V176: -123.9064338 | W176: 56.09356615 | Y176: 1000000000 | Z176: 97736950.44 | AB176: 48.99445339 | AC176: -49.37557167 | AE176: 31.97755159 | AF176: -74.53086218 | AH176: 0 | AI176: 0
A177: 9943.1 | B177: 9.9431 | C177: 86.01331523 | D177: 1.559169958 | E177: 1.042217934 | F177: 0.2856020056 | G177: 1 | H177: 0 | I177: 601.975455 | J177: 1.569135129 | K177: 2.435708452 | L177: 1.147730211 | M177: 1.105498286 | N177: 0.4404275482 | O177: 1 | P177: 0 | Q177: 1 | R177: 0 | S177: 0.9983821836 | T177: 0.02590903051 | U177: 14.53362455 | V177: -123.8339098 | W177: 56.16609024 | Y177: 1000000000 | Z177: 98865237.61 | AB177: 48.97699331 | AC177: -49.37936298 | AE177: 31.93180649 | AF177: -74.45454678 | AH177: 0 | AI177: 0
A178: 10000 | B178: 10 | C178: 86.50546537 | D178: 1.559236106 | E178: 1.042692584 | F178: 0.28714824 | G178: 1 | H178: 0 | I178: 605.420287 | J178: 1.569144581 | K178: 2.447303062 | L178: 1.149862368 | M178: 1.106650803 | N178: 0.44263211 | O178: 1 | P178: 0 | Q178: 1 | R178: 0 | S178: 0.9983636215 | T178: 0.02605781458 | U178: 14.47081839 | V178: -123.7623219 | W178: 56.23767813 | Y178: 1000000000 | Z178: 100000000 | AB178: 48.95962801 | AC178: -49.38405309 | AE178: 31.88636563 | AF178: -74.37826878 | AH178: 0 | AI178: 0
A179: 10058.25 | B179: 10.05825 | C179: 87.00929256 | D179: 1.559303048 | E179: 1.043181075 | F179: 0.2887296987 | G179: 1 | H179: 0 | I179: 608.9468506 | J179: 1.569154147 | K179: 2.459184178 | L179: 1.152024274 | M179: 1.107836224 | N179: 0.4448842142 | O179: 1 | P179: 0 | Q179: 1 | R179: 0 | S179: 0.9983445094 | T179: 0.02621013788 | U179: 14.40692966 | V179: -123.68999 | W179: 56.31001003 | Y179: 1000000000 | Z179: 101168393.1 | AB179: 48.94194651 | AC179: -49.3897691 | AE179: 31.8401584 | AF179: -74.30022087 | AH179: 0 | AI179: 0
A180: 10116.5 | B180: 10.1165 | C180: 87.51312014 | D180: 1.55936922 | E180: 1.043672172 | F180: 0.290309673 | G180: 1 | H180: 0 | I180: 612.4734143 | J180: 1.569163602 | K180: 2.471076677 | L180: 1.154165382 | M180: 1.109027251 | N180: 0.4471314925 | O180: 1 | P180: 0 | Q180: 1 | R180: 0 | S180: 0.9983252865 | T180: 0.02636247055 | U180: 14.3434475 | V180: -123.6186084 | W180: 56.38139161 | Y180: 1000000000 | Z180: 102343572.2 | AB180: 48.92435964 | AC180: -49.39639401 | AE180: 31.79426312 | AF180: -74.22221438 | AH180: 0 | AI180: 0
A181: 10174.75 | B181: 10.17475 | C181: 88.0169481 | D181: 1.559434634 | E181: 1.044165872 | F181: 0.2918881572 | G181: 1 | H181: 0 | I181: 615.9999779 | J181: 1.569172949 | K181: 2.482980396 | L181: 1.156285969 | M181: 1.110223868 | N181: 0.4493739378 | O181: 1 | P181: 0 | Q181: 1 | R181: 0 | S181: 0.9983059527 | T181: 0.02651481264 | U181: 14.28036623 | V181: -123.5481619 | W181: 56.4518381 | Y181: 1000000000 | Z181: 103525537.6 | AB181: 48.90686509 | AC181: -49.4039115 | AE181: 31.74867639 | AF181: -74.14425041 | AH181: 0 | AI181: 0
A182: 10233 | B182: 10.233 | C182: 88.52077643 | D182: 1.559499304 | E182: 1.044662172 | F182: 0.2934651455 | G182: 1 | H182: 0 | I182: 619.5265417 | J182: 1.56918219 | K182: 2.494895175 | L182: 1.158386312 | M182: 1.111426055 | N182: 0.4516115432 | O182: 1 | P182: 0 | Q182: 1 | R182: 0 | S182: 0.9982865081 | T182: 0.02666716421 | U182: 14.21768028 | V182: -123.4786356 | W182: 56.52136444 | Y182: 1000000000 | Z182: 104714289 | AB182: 48.88946064 | AC182: -49.41230554 | AE182: 31.70339488 | AF182: -74.06633002 | AH182: 0 | AI182: 0
A183: 10292.5 | B183: 10.2925 | C183: 89.03541691 | D183: 1.559564605 | E183: 1.045171801 | F183: 0.2950744245 | G183: 1 | H183: 0 | I183: 623.1287828 | J183: 1.569191521 | K183: 2.507076888 | L183: 1.160511106 | M183: 1.112659773 | N183: 0.4538921621 | O183: 1 | P183: 0 | Q183: 1 | R183: 0 | S183: 0.9982665319 | T183: 0.02682279497 | U183: 14.15405159 | V183: -123.4085519 | W183: 56.59144809 | Y183: 1000000000 | Z183: 105935556.2 | AB183: 48.87177349 | AC183: -49.42176829 | AE183: 31.65745336 | AF183: -73.98678362 | AH183: 0 | AI183: 0
A184: 10352 | B184: 10.352 | C184: 89.55005776 | D184: 1.559629156 | E184: 1.045684134 | F184: 0.2966821306 | G184: 1 | H184: 0 | I184: 626.731024 | J184: 1.569200745 | K184: 2.519269812 | L184: 1.162615341 | M184: 1.113899265 | N184: 0.4561677173 | O184: 1 | P184: 0 | Q184: 1 | R184: 0 | S184: 0.99824644 | T184: 0.02697843573 | U184: 14.09082399 | V184: -123.3393976 | W184: 56.66060244 | Y184: 1000000000 | Z184: 107163904 | AB184: 48.85417584 | AC184: -49.43211266 | AE184: 31.6118234 | AF184: -73.9072849 | AH184: 0 | AI184: 0
A185: 10411.5 | B185: 10.4115 | C185: 90.06469897 | D185: 1.559692969 | E185: 1.046199168 | F185: 0.298288258 | G185: 1 | H185: 0 | I185: 630.3332652 | J185: 1.569209864 | K185: 2.531473782 | L185: 1.164699298 | M185: 1.115144512 | N185: 0.4584382022 | O185: 1 | P185: 0 | Q185: 1 | R185: 0 | S185: 0.9982262324 | T185: 0.02713408656 | U185: 14.02799188 | V185: -123.2711573 | W185: 56.72884266 | Y185: 1000000000 | Z185: 108399332.2 | AB185: 48.8366655 | AC185: -49.4433224 | AE185: 31.56650163 | AF185: -73.82783494 | AH185: 0 | AI185: 0
A186: 10471 | B186: 10.471 | C186: 90.57934056 | D186: 1.559756057 | E186: 1.046716898 | F186: 0.2998928007 | G186: 1 | H186: 0 | I186: 633.9355065 | J186: 1.569218879 | K186: 2.543688641 | L186: 1.166763249 | M186: 1.116395496 | N186: 0.4607036103 | O186: 1 | P186: 0 | Q186: 1 | R186: 0 | S186: 0.9982059093 | T186: 0.0272897475 | U186: 13.96554982 | V186: -123.2038164 | W186: 56.79618362 | Y186: 1000000000 | Z186: 109641841 | AB186: 48.81924036 | AC186: -49.45538156 | AE186: 31.52148472 | AF186: -73.74843482 | AH186: 0 | AI186: 0
A187: 10532 | B187: 10.532 | C187: 91.10695667 | D187: 1.559819996 | E187: 1.047250474 | F187: 0.3015361427 | G187: 1 | H187: 0 | I187: 637.6285607 | J187: 1.569228015 | K187: 2.556222578 | L187: 1.168858746 | M187: 1.117683951 | N187: 0.4630208527 | O187: 1 | P187: 0 | Q187: 1 | R187: 0 | S187: 0.9981849537 | T187: 0.02744934325 | U187: 13.90193292 | V187: -123.135696 | W187: 56.86430404 | Y187: 1000000000 | Z187: 110923024 | AB187: 48.8014622 | AC187: -49.46861012 | AE187: 31.47564597 | AF187: -73.66708584 | AH187: 0 | AI187: 0
A188: 10593 | B188: 10.593 | C188: 91.63457314 | D188: 1.559883199 | E188: 1.047786876 | F188: 0.3031778065 | G188: 1 | H188: 0 | I188: 641.3216149 | J188: 1.569237046 | K188: 2.56876763 | L188: 1.170933784 | M188: 1.118978393 | N188: 0.4653327464 | O188: 1 | P188: 0 | Q188: 1 | R188: 0 | S188: 0.9981638767 | T188: 0.02760894975 | U188: 13.83871471 | V188: -123.0684898 | W188: 56.93151019 | Y188: 1000000000 | Z188: 112211649 | AB188: 48.78376923 | AC188: -49.48269838 | AE188: 31.43012072 | AF188: -73.58579143 | AH188: 0 | AI188: 0
A189: 10654 | B189: 10.654 | C189: 92.16218998 | D189: 1.559945677 | E189: 1.048326099 | F189: 0.304817786 | G189: 1 | H189: 0 | I189: 645.0146691 | J189: 1.569245974 | K189: 2.581323634 | L189: 1.172988644 | M189: 1.120278803 | N189: 0.467639285 | O189: 1 | P189: 0 | Q189: 1 | R189: 0 | S189: 0.9981426781 | T189: 0.02776856708 | U189: 13.77588967 | V189: -123.0021827 | W189: 56.9978173 | Y189: 1000000000 | Z189: 113507716 | AB189: 48.76615935 | AC189: -49.49763 | AE189: 31.38490557 | AF189: -73.5045527 | AH189: 0 | AI189: 0
A190: 10715 | B190: 10.715 | C190: 92.68980718 | D190: 1.560007445 | E190: 1.048868138 | F190: 0.3064560748 | G190: 1 | H190: 0 | I190: 648.7077234 | J190: 1.5692548 | K190: 2.593890433 | L190: 1.175023603 | M190: 1.121585159 | N190: 0.4699404629 | O190: 1 | P190: 0 | Q190: 1 | R190: 0 | S190: 0.998121358 | T190: 0.0279281953 | U190: 13.71345239 | V190: -122.9367597 | W190: 57.06324035 | Y190: 1000000000 | Z190: 114811225 | AB190: 48.7486305 | AC190: -49.51338895 | AE190: 31.33999714 | AF190: -73.4233707 | AH190: 0 | AI190: 0
A191: 10777.5 | B191: 10.7775 | C191: 93.23039893 | D191: 1.560070006 | E191: 1.049426423 | F191: 0.3081328894 | G191: 1 | H191: 0 | I191: 652.4915906 | J191: 1.569263739 | K191: 2.606777284 | L191: 1.177088242 | M191: 1.122929783 | N191: 0.4722926611 | O191: 1 | P191: 0 | Q191: 1 | R191: 0 | S191: 0.9980993877 | T191: 0.02809176016 | U191: 13.64987641 | V191: -122.8706294 | W191: 57.12937059 | Y191: 1000000000 | Z191: 116154506.2 | AB191: 48.73075257 | AC191: -49.53037704 | AE191: 31.2942991 | AF191: -73.34025237 | AH191: 0 | AI191: 0
A192: 10840 | B192: 10.84 | C192: 93.77099104 | D192: 1.560131846 | E192: 1.049987656 | F192: 0.3098079162 | G192: 1 | H192: 0 | I192: 656.2754578 | J192: 1.569272576 | K192: 2.619675137 | L192: 1.17913256 | M192: 1.124280606 | N192: 0.4746392198 | O192: 1 | P192: 0 | Q192: 1 | R192: 0 | S192: 0.9980772897 | T192: 0.02825533659 | U192: 13.58669636 | V192: -122.8053963 | W192: 57.19460374 | Y192: 1000000000 | Z192: 117505600 | AB192: 48.71295551 | AC192: -49.54820045 | AE192: 31.2489161 | AF192: -73.25719581 | AH192: 0 | AI192: 0
A193: 10902.5 | B193: 10.9025 | C193: 94.31158351 | D193: 1.560192977 | E193: 1.050551831 | F193: 0.3114811486 | G193: 1 | H193: 0 | I193: 660.0593251 | J193: 1.569281311 | K193: 2.632583831 | L193: 1.181156838 | M193: 1.125637605 | N193: 0.4769801338 | O193: 1 | P193: 0 | Q193: 1 | R193: 0 | S193: 0.9980550643 | T193: 0.02841892465 | U193: 13.52390678 | V193: -122.7410449 | W193: 57.25895506 | Y193: 1000000000 | Z193: 118864506.2 | AB193: 48.6952373 | AC193: -49.56684284 | AE193: 31.20384473 | AF193: -73.1742021 | AH193: 0 | AI193: 0
A194: 10965 | B194: 10.965 | C194: 94.85217632 | D194: 1.560253411 | E194: 1.051118944 | F194: 0.3131525802 | G194: 1 | H194: 0 | I194: 663.8431924 | J194: 1.569289946 | K194: 2.645503208 | L194: 1.183161353 | M194: 1.127000757 | N194: 0.4793153976 | O194: 1 | P194: 0 | Q194: 1 | R194: 0 | S194: 0.9980327112 | T194: 0.02858252441 | U194: 13.46150231 | V194: -122.6775605 | W194: 57.32243954 | Y194: 1000000000 | Z194: 120231225 | AB194: 48.67759597 | AC194: -49.58628814 | AE194: 31.15908159 | AF194: -73.09127232 | AH194: 0 | AI194: 0
A195: 11028.75 | B195: 11.02875 | C195: 95.40358134 | D195: 1.560314348 | E195: 1.051700422 | F195: 0.3148555785 | G195: 1 | H195: 0 | I195: 667.7027371 | J195: 1.569298654 | K195: 2.658691815 | L195: 1.18518588 | M195: 1.128397489 | N195: 0.4816915408 | O195: 1 | P195: 0 | Q195: 1 | R195: 0 | S195: 0.9980097797 | T195: 0.02874940829 | U195: 13.39824107 | V195: -122.613684 | W195: 57.38631596 | Y195: 1000000000 | Z195: 121633326.6 | AB195: 48.65967902 | AC195: -49.60693314 | AE195: 31.1137373 | AF195: -73.0067509 | AH195: 0 | AI195: 0
A196: 11092.5 | B196: 11.0925 | C196: 95.95498672 | D196: 1.560374585 | E196: 1.052284946 | F196: 0.3165566897 | G196: 1 | H196: 0 | I196: 671.5622818 | J196: 1.569307261 | K196: 2.671891212 | L196: 1.187190413 | M196: 1.129800576 | N196: 0.4840617956 | O196: 1 | P196: 0 | Q196: 1 | R196: 0 | S196: 0.9979867156 | T196: 0.02891630448 | U196: 13.33536961 | V196: -122.5506788 | W196: 57.44932121 | Y196: 1000000000 | Z196: 123043556.2 | AB196: 48.64183808 | AC196: -49.62838063 | AE196: 31.06870678 | AF196: -72.92229817 | AH196: 0 | AI196: 0
A197: 11156.25 | B197: 11.15625 | C197: 96.50639244 | D197: 1.560434133 | E197: 1.052872512 | F197: 0.3182559073 | G197: 1 | H197: 0 | I197: 675.4218267 | J197: 1.56931577 | K197: 2.685101239 | L197: 1.189175231 | M197: 1.131209994 | N197: 0.4864261573 | O197: 1 | P197: 0 | Q197: 1 | R197: 0 | S197: 0.9979635187 | T197: 0.02908321307 | U197: 13.27288261 | V197: -122.4885297 | W197: 57.51147034 | Y197: 1000000000 | Z197: 124461914.1 | AB197: 48.62407121 | AC197: -49.65061445 | AE197: 31.02398665 | AF197: -72.83791521 | AH197: 0 | AI197: 0
A198: 11220 | B198: 11.22 | C198: 97.05779849 | D198: 1.560493005 | E198: 1.053463115 | F198: 0.3199532244 | G198: 1 | H198: 0 | I198: 679.2813715 | J198: 1.569324182 | K198: 2.698321741 | L198: 1.191140606 | M198: 1.13262572 | N198: 0.4887846215 | O198: 1 | P198: 0 | Q198: 1 | R198: 0 | S198: 0.9979401891 | T198: 0.02925013411 | U198: 13.21077485 | V198: -122.4272218 | W198: 57.57277816 | Y198: 1000000000 | Z198: 125888400 | AB198: 48.60637657 | AC198: -49.67361875 | AE198: 30.97957353 | AF198: -72.75360308 | AH198: 0 | AI198: 0
A199: 11285.5 | B199: 11.2855 | C199: 97.62434153 | D199: 1.560552801 | E199: 1.054073088 | F199: 0.3216951484 | G199: 1 | H199: 0 | I199: 683.2468647 | J199: 1.569332726 | K199: 2.711915907 | L199: 1.193139967 | M199: 1.134086854 | N199: 0.4912016809 | O199: 1 | P199: 0 | Q199: 1 | R199: 0 | S199: 0.997916081 | T199: 0.02942165035 | U199: 13.1473518 | V199: -122.3650921 | W199: 57.63490794 | Y199: 1000000000 | Z199: 127362510.2 | AB199: 48.58826949 | AC199: -49.69804068 | AE199: 30.93425756 | AF199: -72.66705137 | AH199: 0 | AI199: 0
A200: 11351 | B200: 11.351 | C200: 98.19088492 | D200: 1.560611906 | E200: 1.054686255 | F200: 0.3234350521 | G200: 1 | H200: 0 | I200: 687.212358 | J200: 1.569341172 | K200: 2.725520805 | L200: 1.195119375 | M200: 1.135554597 | N200: 0.4936125061 | O200: 1 | P200: 0 | Q200: 1 | R200: 0 | S200: 0.9978918328 | T200: 0.02959317991 | U200: 13.08431828 | V200: -122.3038196 | W200: 57.6961804 | Y200: 1000000000 | Z200: 128845201 | AB200: 48.57023482 | AC200: -49.72324296 | AE200: 30.88925871 | AF200: -72.58057663 | AH200: 0 | AI200: 0
A201: 11416.5 | B201: 11.4165 | C201: 98.75742864 | D201: 1.560670333 | E201: 1.055302611 | F201: 0.3251729288 | G201: 1 | H201: 0 | I201: 691.1778513 | J201: 1.569349521 | K201: 2.739136277 | L201: 1.197079112 | M201: 1.137028923 | N201: 0.4960170933 | O201: 1 | P201: 0 | Q201: 1 | R201: 0 | S201: 0.9978674445 | T201: 0.02976472284 | U201: 13.02166898 | V201: -122.2433893 | W201: 57.75661073 | Y201: 1000000000 | Z201: 130336472.2 | AB201: 48.55227069 | AC201: -49.74920931 | AE201: 30.84457354 | AF201: -72.49417995 | AH201: 0 | AI201: 0
A202: 11482 | B202: 11.482 | C202: 99.3239727 | D202: 1.560728094 | E202: 1.055922151 | F202: 0.3269087713 | G202: 1 | H202: 0 | I202: 695.1433446 | J202: 1.569357774 | K202: 2.752762164 | L202: 1.199019456 | M202: 1.138509806 | N202: 0.4984154389 | O202: 1 | P202: 0 | Q202: 1 | R202: 0 | S202: 0.9978429161 | T202: 0.02993627925 | U202: 12.9593987 | V202: -122.1837862 | W202: 57.81621384 | Y202: 1000000000 | Z202: 131836324 | AB202: 48.53437531 | AC202: -49.77592376 | AE202: 30.80019864 | AF202: -72.4078624 | AH202: 0 | AI202: 0
... 433 more rows

Sheet Bode Plot Management (hidden)
J1: Single or dual output (MODE) | N1: 3.3V or 5V fixed (FB1/2)
A2: =CHOOSE(BODE_PLOT_TYPE, "BODE_PLOT_Ch1", "BODE_PLOT_Ch2") -> BODE_PLOT_Ch1 | J2: With/without dither (DITH) | N2: With/without VOUT connected to VCCX
J3: FPWM or DEM (DEMB)
J4: Shunt or inductor DCR current sensing
F6: =INDIRECT(A2) -> 0

Sheet Efficiency Calculations (hidden)
A1: BUCK CONTROLLER POWER DESIGN TOOL
H2: =AV19 -> 0.9863634214 | I2: 10% load
H3: =AV59 -> 0.9911913874 | I3: 50% load | AP3: =IF(MODE=1, (Qg_Q1+Qg_Q2)*Fsw*Vin, (Qg_Q1+Qg_Q2+Qg_Q3+Qg_Q4)*Fsw*Vin) -> 0.5346
H4: =AV109 -> 0.987123176 | I4: 100% load | AO4: I_VCC | AP4: =(Qg_Q1+Qg_Q2)*Fsw*1000 -> 9.9 | AQ4: mA | AR4: =AP4*5/1000 -> 0.0495
A6: Enter the values of your design and MOSFET datasheet specifications below. Note that thermal resistance (θJA) will change when components are placed on the PCB
G7: Operating Point Condtions | R7: Filter Inductor | V7: Cout | Y7: Cin | AB7: High-side BUCK "Control" MOSFET Losses | AH7: Low-side BUCK "Sync" MOSFET Losses | AL7: External Diode | AM7: Diode/FET | AN7: Sense Rs | AO7: Controller IC Losses | AT7: RESULTS | AZ7: Consolidated Buck/Boost Efficiency & Losses
A8: Input Parameters | G8: Step | H8: Vin | I8: Mode | J8: Iout | K8: Iout/ phase | L8: Iin | M8: Duty Cycle BUCK Leg | N8: Ripple Current pk-pk | O8: Peak Inductor Current | P8: Valley Inductor Current | Q8: SW node voltage at Q1 turn-on | R8: Irms Lf | S8: DCR Loss | T8: Core Loss | U8: Total Inductor Loss | V8: Irms Cout | W8: Cout ESR Loss | X8: Total Cout Loss | Y8: Irms Cin | Z8: Cin ESR Loss | AA8: Total Cin Loss | AB8: Irms | AC8: RDS(on) Loss | AD8: Transition Loss (not including capacitive loss) | AE8: MOSFET Output Capacitance Loss | AF8: Dead Time Loss | AG8: Total Control MOSFET Loss | AH8: Irms | AI8: RDS(on) Loss | AJ8: Deadtime Loss | AK8: Total Sync MOSFET Loss | AL8: Deadtime Loss | AM8: Reverse Recovery Loss | AN8: Isense Shunt Loss | AO8: IQ Loss | AP8: Switching Current Loss | AQ8: Switching Current Diss | AR8: LDO Loss Saved from Gate Drive Current (ext VCC) | AS8: Total IC Loss | AT8: Total Loss | AU8: Pout | AV8: EFF, h | AW8: =IF(Vin>Vout, "Buck ''CONTROL'' MOSFET Temp Rise", "Boost ''CONTROL'' MOSFET Temp Rise") -> Buck ''CONTROL'' MOSFET Temp Rise | AX8: =IF(Vin>Vout, "Buck ''SYNC'' MOSFET Temp Rise", "Boost ''SYNC'' MOSFET Temp Rise") -> Buck ''SYNC'' MOSFET Temp Rise | AZ8: h | BA8: Inductor Cu & Core Loss | BB8: Total MOSFET Loss | BC8: Control MOSFET Loss | BD8: SYNC MOSFET Loss | BE8: Shunt Loss
A9: Design | B9: Input Value | C9: Units | D9: Description | G9: 0 | H9: =Vin -> 54 | I9: =MODE -> 1 | J9: 0 | K9: =Iout*G9/100/Number_of_Phases -> 0 | L9: =Vout*K9/(Vin*Efficiency) -> 0 | M9: =(Vout+(Rdson2+Rs+Rdcr)*K9)/(Vin+(Rs+Rdson2-Rdson1)*K9) -> 0.9259259259 | N9: =(Vin-(Rdson1+Rdcr)*K9-Vout)*M9/(Fsw*Lf) -> 0.8230452675 | O9: =K9+N9/2 -> 0.4115226337 | P9: =K9-N9/2 -> -0.4115226337 | Q9: =IF(MIN(Vin, -P9/(Coss_Q1+Coss_Q2)*0.00000002)<0, 0, MIN(Vin, -P9/(Coss_Q1+Coss_Q2)*0.00000002)) -> 18.70557426 | R9: =SQRT(K9^2+(N9^2)/12) -> 0.2375927034 | S9: =R9^2*Rdcr -> 0.0003951520489 | T9: =Core_Loss_Ch1 -> 0.1 | U9: =(T9+S9*(1+Ltc*(Ta-25)))/(1-S9*Ltc*ThetaCa) -> 0.1003983259 | V9: =N9/SQRT(12) -> 0.2375927034 | W9: =RCoutEsr*V9^2 -> 0.0005645029269 | X9: =W9 -> 0.0005645029269 | Y9: =SQRT(M9*(1-M9))*SQRT(K9^2+(N9^2)/12) -> 0.06222348582 | Z9: =RCinEsr*Y9^2 -> 3.871762188e-05 | AA9: =Z9 -> 3.871762188e-05 | AB9: =SQRT(M9)*SQRT(K9^2+(N9^2)/12) -> 0.2286236854 | AC9: =Rdson1*AB9^2 -> 0.0003920159215 | AD9: =(Vin*K9/2)*Fsw*(Tr_buck+Tf_buck) -> 0 | AE9: =(0.5*Coss_Q1*(Vin-Q9)^2-0.5*Coss_Q2*(Vin-Q9)^2+(Qoss_Q2*(Vin-Q9)/Vin)*Vin)*Fsw -> 0.3652973064 | AF9: =IF(K9>N9/2,0,ABS(K9-N9/2)*Vsd_Q1*Deadtime*Fsw) -> 0.002074074074 | AG9: =(AF9+AE9+AD9+AC9*(1+RdsonTopTc*Ta-RdsonTopTc*25))/(1-AC9*RdsonTopTc*ThetaJA_Q1) -> 0.3677922325 | AH9: =SQRT((1-M9))*SQRT(K9^2+(N9^2)/12) -> 0.06466454332 | AI9: =Rdson2*AH9^2 -> 3.136127372e-05 | AJ9: =IF(K9<N9/2,Deadtime*Fsw*IF(VfdSky_Q2>0,0,Vsd_Q2)*(K9+N9/2),2*Deadtime*Fsw*IF(VfdSky_Q2>0,0,Vsd_Q2)*K9) -> 0.002074074074 | AK9: =(AJ9+AI9*(1+RdsonBotTc*Ta-RdsonBotTc*25))/(1-AI9*RdsonBotTc*ThetaJA_Q2) -> 0.002105448554 | AL9: =2*Deadtime*Fsw*IF(VfdSky_Q2>0,VfdSky_Q2,Vsd_Q2)*K9 -> 0 | AM9: =IF(QrrSky_Q2>0,QrrSky_Q2,Qrr_Q2*K9/(Iout/Number_of_Phases))*Fsw*Vin -> 0 | AN9: =Rs*R9^2 -> 0.0001693508781 | AO9: =Iq*Vin -> 0.0001188 | AP9: =IF(Ext_VCC=1, (Qg_Q1+Qg_Q2)*Fsw*VCC, (Qg_Q1+Qg_Q2)*Fsw*Vin) -> 0.0495 | AQ9: =(Vin-VCC)*Fsw*(Qg_Q1+Qg_Q2)+(RdsonDRT+RdsonDRT2)*Fsw*Qg_Q1*VCC/(RdsonDRT+2*Rgate1+RdsonDRT2)+(RdsonDRB+RdsonDRB2)*Fsw*Qg_Q2*VCC/(RdsonDRB+2*Rgate2+RdsonDRB2) -> 0.5016 | AR9: =(Qg_Q1+Qg_Q2)*Fsw*(Vin-VCC) -> 0.4851 | AS9: =SUM(AO9:AP9) -> 0.0496188 | AT9: =SUM(U9,X9,AA9,AG9,AK9,AL9,AM9,AS9,AN9) -> 0.5206873783 | AU9: =Vout*K9 -> 0 | AV9: =AU9/(AU9+AT9) -> 0 | AW9: =ThetaJA_Q1*BC9 -> 18.38961162 | AX9: =ThetaJA_Q2*BD9 -> 0.1052724277 | AZ9: =AV9*100 -> 0 | BA9: =U9 -> 0.1003983259 | BB9: =AG9+AK9+AM9 -> 0.369897681 | BC9: =AG9+AM9*0.66 -> 0.3677922325 | BD9: =AK9+AM9*0.33 -> 0.002105448554 | BE9: =AN9 -> 0.0001693508781
G10: 1 | H10: 54 | I10: 1 | J10: =Iout*G10/100 -> 0.15 | K10: 0.15 | L10: 0.1543209877 | M10: 0.9259668206 | N10: 0.8226340677 | O10: =K10+N10/2 -> 0.5613170339 | P10: =K10-N10/2 -> -0.2613170339 | Q10: 11.87804699 | R10: =SQRT(K10^2+(N10^2)/12) -> 0.280880581 | S10: 0.0005522573055 | T10: 0.1 | U10: 0.1005567 | V10: =N10/SQRT(12) -> 0.2374740002 | W10: 0.0005639390078 | X10: =W10 -> 0.0005639390078 | Y10: =SQRT(M10*(1-M10))*SQRT(K10^2+(N10^2)/12) -> 0.07354152437 | Z10: 5.408355807e-05 | AA10: =Z10 -> 5.408355807e-05 | AB10: =SQRT(M10)*SQRT(K10^2+(N10^2)/12) -> 0.2702834336 | AC10: 0.0005478985086 | AD10: 0.02043794472 | AE10: 0.4359622136 | AF10: 0.001317037851 | AG10: 0.4583153167 | AH10: 0.07642490632 | AI10: 4.38057473e-05 | AJ10: 0.002829037851 | AK10: 0.002872868768 | AL10: 0.001512 | AM10: 0.00486 | AN10: 0.0002366817023 | AO10: 0.0001188 | AP10: 0.0495 | AQ10: 0.5016 | AR10: 0.4851 | AS10: 0.0496188 | AT10: 0.6185903897 | AU10: 7.5 | AV10: =AU10/(AU10+AT10) -> 0.9238056904 | AW10: 23.07614584 | AX10: 0.2238334384 | AZ10: =AV10*100 -> 92.38056904 | BA10: 0.1005567 | BB10: 0.4660481855 | BC10: 0.4615229167 | BD10: 0.004476668768 | BE10: 0.0002366817023
A11: Vin | B11: =Vin -> 54 | C11: V | D11: Vin | G11: 2 | H11: 54 | I11: 1 | J11: 0.3 | K11: 0.3 | L11: 0.3086419753 | M11: 0.9260077147 | N11: 0.8222228278 | O11: 0.7111114139 | P11: -0.1111114139 | Q11: 5.050518814 | R11: 0.3825408887 | S11: 0.001024362721 | T11: 0.1 | U11: 0.1010326422 | V11: 0.2373552855 | W11: 0.0005633753155 | X11: 0.0005633753155 | Y11: 0.1001332669 | Z11: 0.0001002667114 | AA11: 0.0001002667114 | AB11: 0.3681163989 | AC11: 0.001016322624 | AD11: 0.04087588943 | AE11: 0.5066271303 | AF11: 0.0005600015261 | AG11: 0.5491909749 | AH11: 0.1040569478 | AI11: 8.12088629e-05 | AJ11: 0.003584001526 | AK11: 0.003665269919 | AL11: 0.003024 | AM11: 0.00972 | AN11: 0.0004390125946 | AO11: 0.0001188 | AP11: 0.0495 | AQ11: 0.5016 | AR11: 0.4851 | AS11: 0.0496188 | AT11: 0.7173543417 | AU11: 15 | AV11: 0.9543590908 | AW11: 27.78030874 | AX11: 0.343643496 | AZ11: 95.43590908 | BA11: 0.1010326422 | BB11: 0.5625762448 | BC11: 0.5556061749 | BD11: 0.006872869919 | BE11: 0.0004390125946
A12: Vout | B12: =Vout -> 50 | C12: V | D12: Vout | G12: 3 | H12: 54 | I12: 1 | J12: 0.45 | K12: 0.45 | L12: 0.462962963 | M12: 0.926048608 | N12: 0.8218115478 | O12: 0.8609057739 | P12: 0.03909422611 | Q12: 0 | R12: 0.508705401 | S12: 0.001811468295 | T12: 0.1 | U12: 0.1018262247 | V12: 0.2372365592 | W12: 0.0005628118501 | X12: 0.0005628118501 | Y12: 0.1331240179 | Z12: 0.0001772200413 | AA12: 0.0001772200413 | AB12: 0.489534428 | AC12: 0.001797329671 | AD12: 0.06131383415 | AE12: 0.5589 | AF12: 0 | AG12: 0.622234836 | AH12: 0.1383373733 | AI12: 0.0001435292163 | AJ12: 0.004536 | AK12: 0.00467966355 | AL12: 0.004536 | AM12: 0.01458 | AN12: 0.000776343555 | AO12: 0.0001188 | AP12: 0.0495 | AQ12: 0.5016 | AR12: 0.4851 | AS12: 0.0496188 | AT12: 0.7989918997 | AU12: 22.5 | AV12: 0.9657070184 | AW12: 31.5928818 | AX12: 0.4745531775 | AZ12: 96.57070184 | BA12: 0.1018262247 | BB12: 0.6414944996 | BC12: 0.631857636 | BD12: 0.00949106355 | BE12: 0.000776343555
A13: Fsw | B13: =Fsw/1000 -> 450 | C13: kHz | D13: Switching Frequency | G13: 4 | H13: 54 | I13: 1 | J13: 0.6 | K13: 0.6 | L13: 0.6172839506 | M13: 0.9260895007 | N13: 0.8214002276 | O13: 1.010700114 | P13: 0.1892998862 | Q13: 0 | R13: 0.6451549125 | S13: 0.002913574028 | T13: 0.1 | U13: 0.1029375673 | V13: 0.2371178213 | W13: 0.0005622486116 | X13: 0.0005622486116 | Y13: 0.1687887733 | Z13: 0.0002848964999 | AA13: 0.0002848964999 | AB13: 0.6208554372 | AC13: 0.002890961054 | AD13: 0.08175177886 | AE13: 0.5589 | AF13: 0 | AG13: 0.6439150466 | AH13: 0.1753949466 | AI13: 0.0002307254048 | AJ13: 0.006048 | AK13: 0.00627901515 | AL13: 0.006048 | AM13: 0.01944 | AN13: 0.001248674583 | AO13: 0.0001188 | AP13: 0.0495 | AQ13: 0.5016 | AR13: 0.4851 | AS13: 0.0496188 | AT13: 0.8303342488 | AU13: 30 | AV13: 0.9730676209 | AW13: 32.83727233 | AX13: 0.6347107575 | AZ13: 97.30676209 | BA13: 0.1029375673 | BB13: 0.6696340617 | BC13: 0.6567454466 | BD13: 0.01269421515 | BE13: 0.001248674583
A14: Iout | B14: =Iout -> 15 | C14: A | D14: Max Output Current | G14: 5 | H14: 54 | I14: 1 | J14: 0.75 | K14: 0.75 | L14: 0.7716049383 | M14: 0.9261303927 | N14: 0.8209888673 | O14: 1.160494434 | P14: 0.3395055664 | Q14: 0 | R14: 0.7865548678 | S14: 0.00433067992 | T14: 0.1 | U14: 0.1043668383 | V14: 0.2369990718 | W14: 0.0005616856002 | X14: 0.0005616856002 | Y14: 0.2057301707 | Z14: 0.0004232490316 | AA14: 0.0004232490316 | AB14: 0.7569463366 | AC14: 0.004297258173 | AD14: 0.1021897236 | AE14: 0.5589 | AF14: 0 | AG14: 0.6659593416 | AH14: 0.2137774627 | AI14: 0.0003427560268 | AJ14: 0.00756 | AK14: 0.007903297807 | AL14: 0.00756 | AM14: 0.0243 | AN14: 0.00185600568 | AO14: 0.0001188 | AP14: 0.0495 | AQ14: 0.5016 | AR14: 0.4851 | AS14: 0.0496188 | AT14: 0.862549218 | AU14: 37.5 | AV14: 0.9775158524 | AW14: 34.09986708 | AX14: 0.7961148904 | AZ14: 97.75158524 | BA14: 0.1043668383 | BB14: 0.6981626394 | BC14: 0.6819973416 | BD14: 0.01592229781 | BE14: 0.00185600568
A15: Ta | B15: =Ta -> 25 | C15: °C | D15: Ambient Temperature | G15: 6 | H15: 54 | I15: 1 | J15: 0.9 | K15: 0.9 | L15: 0.9259259259 | M15: 0.926171284 | N15: 0.8205774669 | O15: 1.310288733 | P15: 0.4897112666 | Q15: 0 | R15: 0.9306515361 | S15: 0.006062785971 | T15: 0.1 | U15: 0.1061142538 | V15: 0.2368803107 | W15: 0.0005611228159 | X15: 0.0005611228159 | Y15: 0.2433578792 | Z15: 0.0005922305735 | AA15: 0.0005922305735 | AB15: 0.8956385007 | AC15: 0.00601626243 | AD15: 0.1226276683 | AE15: 0.5589 | AF15: 0 | AG15: 0.6883722163 | AH15: 0.2528714251 | AI15: 0.0004795796823 | AJ15: 0.009072 | AK15: 0.009552495919 | AL15: 0.009072 | AM15: 0.02916 | AN15: 0.002598336845 | AO15: 0.0001188 | AP15: 0.0495 | AQ15: 0.5016 | AR15: 0.4851 | AS15: 0.0496188 | AT15: 0.8956414563 | AU15: 45 | AV15: 0.9804852612 | AW15: 35.38089082 | AX15: 0.9587647959 | AZ15: 98.04852612 | BA15: 0.1061142538 | BB15: 0.7270847122 | BC15: 0.7076178163 | BD15: 0.01917529592 | BE15: 0.002598336845
A16: Vcc | B16: =VCC -> 5 | C16: V | D16: Subregulated VCC Voltage | G16: 7 | H16: 54 | I16: 1 | J16: 1.05 | K16: 1.05 | L16: 1.080246914 | M16: 0.9262121747 | N16: 0.8201660263 | O16: 1.460083013 | P16: 0.6399169869 | Q16: 0 | R16: 1.076362405 | S16: 0.008109892181 | T16: 0.1 | U16: 0.1081800785 | V16: 0.236761538 | W16: 0.0005605602589 | X16: 0.0005605602589 | Y16: 0.2813883536 | Z16: 0.0007917940553 | AA16: 0.0007917940553 | AB16: 1.035890292 | AC16: 0.008048015222 | AD16: 0.143065613 | AE16: 0.5589 | AF16: 0 | AG16: 0.7111583108 | AH16: 0.2923821638 | AI16: 0.0006411549726 | AJ16: 0.010584 | AK16: 0.01122659457 | AL16: 0.010584 | AM16: 0.03402 | AN16: 0.003475668078 | AO16: 0.0001188 | AP16: 0.0495 | AQ16: 0.5016 | AR16: 0.4851 | AS16: 0.0496188 | AT16: 0.9296158063 | AU16: 52.5 | AV16: 0.9826011138 | AW16: 36.68057554 | AX16: 1.122659729 | AZ16: 98.26011138 | BA16: 0.1081800785 | BB16: 0.7564049054 | BC16: 0.7336115108 | BD16: 0.02245319457 | BE16: 0.003475668078
A17: Components | B17: Input Value | C17: Units | D17: Description | G17: 8 | H17: 54 | I17: 1 | J17: 1.2 | K17: 1.2 | L17: 1.234567901 | M17: 0.9262530646 | N17: 0.8197545456 | O17: 1.609877273 | P17: 0.7901227272 | Q17: 0 | R17: 1.223110703 | S17: 0.01047199855 | T17: 0.1 | U17: 0.1105646252 | V17: 0.2366427538 | W17: 0.0005599979292 | X17: 0.0005599979292 | Y17: 0.3196705178 | Z17: 0.001021892399 | AA17: 0.001021892399 | AB17: 1.177146717 | AC17: 0.01039255795 | AD17: 0.1635035577 | AE17: 0.5589 | AF17: 0 | AG17: 0.7343224133 | AH17: 0.3321526758 | AI17: 0.0008274405005 | AJ17: 0.012096 | AK17: 0.01292557953 | AL17: 0.012096 | AM17: 0.03888 | AN17: 0.004487999379 | AO17: 0.0001188 | AP17: 0.0495 | AQ17: 0.5016 | AR17: 0.4851 | AS17: 0.0496188 | AT17: 0.9644773077 | AU17: 60 | AV17: 0.9841796838 | AW17: 37.99916067 | AX17: 1.287798977 | AZ17: 98.41796838 | BA17: 0.1105646252 | BB17: 0.7861279928 | BC17: 0.7599832133 | BD17: 0.02575597953 | BE17: 0.004487999379
A18: L | B18: =Lf*1000000 -> 10 | C18: uH | D18: Filter Inductance | G18: 9 | H18: 54 | I18: 1 | J18: 1.35 | K18: 1.35 | L18: 1.388888889 | M18: 0.9262939539 | N18: 0.8193430247 | O18: 1.759671512 | P18: 0.9403284876 | Q18: 0 | R18: 1.370563236 | S18: 0.01314910508 | T18: 0.1 | U18: 0.1132682552 | V18: 0.2365239579 | W18: 0.0005594358268 | X18: 0.0005594358268 | Y18: 0.3581170926 | Z18: 0.00128247852 | AA18: 0.00128247852 | AB18: 1.319087159 | AC18: 0.013049932 | AD18: 0.1839415024 | AE18: 0.5589 | AF18: 0 | AG18: 0.7578694634 | AH18: 0.3720922592 | AI18: 0.00103839487 | AJ18: 0.013608 | AK18: 0.01464943725 | AL18: 0.013608 | AM18: 0.04374 | AN18: 0.005635330748 | AO18: 0.0001188 | AP18: 0.0495 | AQ18: 0.5016 | AR18: 0.4851 | AS18: 0.0496188 | AT18: 1.000231201 | AU18: 67.5 | AV18: 0.9853981339 | AW18: 39.33689317 | AX18: 1.454181863 | AZ18: 98.53981339 | BA18: 0.1132682552 | BB18: 0.8162589007 | BC18: 0.7867378634 | BD18: 0.02908363725 | BE18: 0.005635330748
A19: Rdcr | B19: =Rdcr*1000 -> 7 | C19: mW | D19: Inductor DCR at 25°C | G19: 10 | H19: 54 | I19: 1 | J19: 1.5 | K19: 1.5 | L19: 1.543209877 | M19: 0.9263348425 | N19: 0.8189314638 | O19: 1.909465732 | P19: 1.090534268 | Q19: 0 | R19: 1.518514865 | S19: 0.01614121177 | T19: 0.1 | U19: 0.1162913785 | V19: 0.2364051505 | W19: 0.000558873952 | X19: 0.000558873952 | Y19: 0.3966743405 | Z19: 0.001573505324 | AA19: 0.001573505324 | AB19: 1.461514227 | AC19: 0.01602017878 | AD19: 0.2043794472 | AE19: 0.5589 | AF19: 0 | AG19: 0.7818045557 | AH19: 0.4121450694 | AI19: 0.001273976687 | AJ19: 0.01512 | AK19: 0.01639815486 | AL19: 0.01512 | AM19: 0.0486 | AN19: 0.006917662186 | AO19: 0.0001188 | AP19: 0.0495 | AQ19: 0.5016 | AR19: 0.4851 | AS19: 0.0496188 | AT19: 1.03688293 | AU19: 75 | AV19: 0.9863634214 | AW19: 40.69402778 | AX19: 1.621807743 | AZ19: 98.63634214 | BA19: 0.1162913785 | BB19: 0.8468027105 | BC19: 0.8138805557 | BD19: 0.03243615486 | BE19: 0.006917662186
A20: LTc | B20: =Ltc*1000000 -> 4000 | C20: ppm | D20: Inductor Series Resistance Temp Co | G20: 11 | H20: 54 | I20: 1 | J20: 1.65 | K20: 1.65 | L20: 1.697530864 | M20: 0.9263757304 | N20: 0.8185198627 | O20: 2.059259931 | P20: 1.240740069 | Q20: 0 | R20: 1.666832694 | S20: 0.01944831861 | T20: 0.1 | U20: 0.1196344537 | V20: 0.2362863315 | W20: 0.0005583123047 | X20: 0.0005583123047 | Y20: 0.4353074446 | Z20: 0.001894925713 | AA20: 0.001894925713 | AB20: 1.604300041 | AC20: 0.01930333967 | AD20: 0.2248173919 | AE20: 0.5589 | AF20: 0 | AG20: 0.8061329431 | AH20: 0.4522749248 | AI20: 0.001534144557 | AJ20: 0.016632 | AK20: 0.01817172017 | AL20: 0.016632 | AM20: 0.05346 | AN20: 0.008334993691 | AO20: 0.0001188 | AP20: 0.0495 | AQ20: 0.5016 | AR20: 0.4851 | AS20: 0.0496188 | AT20: 1.074438149 | AU20: 82.5 | AV20: 0.9871439381 | AW20: 42.07082716 | AX20: 1.790676008 | AZ20: 98.71439381 | BA20: 0.1196344537 | BB20: 0.8777646633 | BC20: 0.8414165431 | BD20: 0.03581352017 | BE20: 0.008334993691
A21: ThetaCa | B21: =ThetaCa -> 20 | C21: °C/W | D21: Core to Ambient Thermal Resistance | G21: 12 | H21: 54 | I21: 1 | J21: 1.8 | K21: 1.8 | L21: 1.851851852 | M21: 0.9264166176 | N21: 0.8181082215 | O21: 2.209054111 | P21: 1.390945889 | Q21: 0 | R21: 1.815426971 | S21: 0.02307042562 | T21: 0.1 | U21: 0.1232979886 | V21: 0.2361675009 | W21: 0.000557750885 | X21: 0.000557750885 | Y21: 0.4739928879 | Z21: 0.002246692577 | AA21: 0.002246692577 | AB21: 1.747358237 | AC21: 0.02289945607 | AD21: 0.2452553366 | AE21: 0.5589 | AF21: 0 | AG21: 0.8308600413 | AH21: 0.4924573876 | AI21: 0.00181885709 | AJ21: 0.018144 | AK21: 0.01997012165 | AL21: 0.018144 | AM21: 0.05832 | AN21: 0.009887325266 | AO21: 0.0001188 | AP21: 0.0495 | AQ21: 0.5016 | AR21: 0.4851 | AS21: 0.0496188 | AT21: 1.11290272 | AU21: 90 | AV21: 0.9877854542 | AW21: 43.46756206 | AX21: 1.960786082 | AZ21: 98.77854542 | BA21: 0.1232979886 | BB21: 0.9091501629 | BC21: 0.8693512413 | BD21: 0.03921572165 | BE21: 0.009887325266
A22: Cin | B22: =Cin*1000000 -> 470 | C22: μF | D22: Input Capacitance | G22: 13 | H22: 54 | I22: 1 | J22: 1.95 | K22: 1.95 | L22: 2.00617284 | M22: 0.9264575041 | N22: 0.8176965401 | O22: 2.35884827 | P22: 1.54115173 | Q22: 0 | R22: 1.964234958 | S22: 0.02700753279 | T22: 0.1 | U22: 0.1272825398 | V22: 0.2360486588 | W22: 0.0005571896931 | X22: 0.0005571896931 | Y22: 0.5127142287 | Z22: 0.002628758803 | AA22: 0.002628758803 | AB22: 1.890628445 | AC22: 0.02680856938 | AD22: 0.2656932813 | AE22: 0.5589 | AF22: 0 | AG22: 0.8559914318 | AH22: 0.5326753726 | AI22: 0.002128072894 | AJ22: 0.019656 | AK22: 0.02179334846 | AL22: 0.019656 | AM22: 0.06318 | AN22: 0.01157465691 | AO22: 0.0001188 | AP22: 0.0495 | AQ22: 0.5016 | AR22: 0.4851 | AS22: 0.0496188 | AT22: 1.152282725 | AU22: 97.5 | AV22: 0.9883197561 | AW22: 44.88451159 | AX22: 2.132137423 | AZ22: 98.83197561 | BA22: 0.1272825398 | BB22: 0.9409647803 | BC22: 0.8976902318 | BD22: 0.04264274846 | BE22: 0.01157465691
A23: RCinEsr | B23: =RCinEsr*1000 -> 10 | C23: mW | D23: Input Capacitor ESR | G23: 14 | H23: 54 | I23: 1 | J23: 2.1 | K23: 2.1 | L23: 2.160493827 | M23: 0.92649839 | N23: 0.8172848187 | O23: 2.508642409 | P23: 1.691357591 | Q23: 0 | R23: 2.113211507 | S23: 0.03125964011 | T23: 0.1 | U23: 0.1315887134 | V23: 0.235929805 | W23: 0.000556628729 | X23: 0.000556628729 | Y23: 0.5514596329 | Z23: 0.003041077267 | AA23: 0.003041077267 | AB23: 2.034067222 | AC23: 0.03103072097 | AD23: 0.286131226 | AE23: 0.5589 | AF23: 0 | AG23: 0.8815328671 | AH23: 0.5729165828 | AI23: 0.002461750581 | AJ23: 0.021168 | AK23: 0.02364139042 | AL23: 0.021168 | AM23: 0.06804 | AN23: 0.01339698862 | AO23: 0.0001188 | AP23: 0.0495 | AQ23: 0.5016 | AR23: 0.4851 | AS23: 0.0496188 | AT23: 1.192584465 | AU23: 105 | AV23: 0.9887696069 | AW23: 46.32196335 | AX23: 2.304729521 | AZ23: 98.87696069 | BA23: 0.1315887134 | BB23: 0.9732142575 | BC23: 0.9264392671 | BD23: 0.04609459042 | BE23: 0.01339698862
A24: Cout | B24: =Cout*1000000 -> 470 | C24: μF | D24: Output Capcitance | G24: 15 | H24: 54 | I24: 1 | J24: 2.25 | K24: 2.25 | L24: 2.314814815 | M24: 0.9265392752 | N24: 0.8168730571 | O24: 2.658436529 | P24: 1.841563471 | Q24: 0 | R24: 2.262323319 | S24: 0.03582674759 | T24: 0.1 | U24: 0.136217165 | V24: 0.2358109397 | W24: 0.0005560679928 | X24: 0.0005560679928 | Y24: 0.590220369 | Z24: 0.00348360084 | AA24: 0.00348360084 | AB24: 2.177642524 | AC24: 0.03556595223 | AD24: 0.3065691707 | AE24: 0.5589 | AF24: 0 | AG24: 0.9074902741 | AH24: 0.6131719458 | AI24: 0.002819848764 | AJ24: 0.02268 | AK24: 0.02551423802 | AL24: 0.02268 | AM24: 0.0729 | AN24: 0.0153543204 | AO24: 0.0001188 | AP24: 0.0495 | AQ24: 0.5016 | AR24: 0.4851 | AS24: 0.0496188 | AT24: 1.233814466 | AU24: 112.5 | AV24: 0.9891517358 | AW24: 47.78021371 | AX24: 2.478561901 | AZ24: 98.91517358 | BA24: 0.136217165 | BB24: 1.005904512 | BC24: 0.9556042741 | BD24: 0.04957123802 | BE24: 0.0153543204
A25: RCoutEsr | B25: =Cout_ESR*1000 -> 10 | C25: mW | D25: Output Capacitor ESR | G25: 16 | H25: 54 | I25: 1 | J25: 2.4 | K25: 2.4 | L25: 2.469135802 | M25: 0.9265801597 | N25: 0.8164612554 | O25: 2.808230628 | P25: 1.991769372 | Q25: 0 | R25: 2.411545303 | S25: 0.04070885524 | T25: 0.1 | U25: 0.1411686002 | V25: 0.2356920628 | W25: 0.0005555074846 | X25: 0.0005555074846 | Y25: 0.6289898555 | Z25: 0.003956282383 | AA25: 0.003956282383 | AB25: 2.321330209 | AC25: 0.04041430456 | AD25: 0.3270071154 | AE25: 0.5589 | AF25: 0 | AG25: 0.9338697594 | AH25: 0.6534346236 | AI25: 0.003202326055 | AJ25: 0.024192 | AK25: 0.02741188241 | AL25: 0.024192 | AM25: 0.07776 | AN25: 0.01744665225 | AO25: 0.0001188 | AP25: 0.0495 | AQ25: 0.5016 | AR25: 0.4851 | AS25: 0.0496188 | AT25: 1.275979484 | AU25: 120 | AV25: 0.9894787122 | AW25: 49.25956797 | AX25: 2.653634121 | AZ25: 98.94787122 | BA25: 0.1411686002 | BB25: 1.039041642 | BC25: 0.9851913594 | BD25: 0.05307268241 | BE25: 0.01744665225
A26: Top Driver | B26: Input Value | C26: Units | D26: Description | G26: 17 | H26: 54 | I26: 1 | J26: 2.55 | K26: 2.55 | L26: 2.62345679 | M26: 0.9266210435 | N26: 0.8160494135 | O26: 2.958024707 | P26: 2.141975293 | Q26: 0 | R26: 2.5608582 | S26: 0.04590596304 | T26: 0.1 | U26: 0.1464437744 | V26: 0.2355731743 | W26: 0.0005549472044 | X26: 0.0005549472044 | Y26: 0.6677630382 | Z26: 0.004459074752 | AA26: 0.004459074752 | AB26: 2.465111744 | AC26: 0.04557581933 | AD26: 0.3474450602 | AE26: 0.5589 | AF26: 0 | AG26: 0.9606776134 | AH26: 0.6936993652 | AI26: 0.00360914107 | AJ26: 0.025704 | AK26: 0.02933431541 | AL26: 0.025704 | AM26: 0.08262 | AN26: 0.01967398416 | AO26: 0.0001188 | AP26: 0.0495 | AQ26: 0.5016 | AR26: 0.4851 | AS26: 0.0496188 | AT26: 1.319086509 | AU26: 127.5 | AV26: 0.9897601625 | AW26: 50.76034067 | AX26: 2.82994577 | AZ26: 98.97601625 | BA26: 0.1464437744 | BB26: 1.072631929 | BC26: 1.015206813 | BD26: 0.05659891541 | BE26: 0.01967398416
A27: RdsonDRT | B27: 0.7 | C27: W | D27: Drain to Source Resistance of pullup Top FET Driver | G27: 18 | H27: 54 | I27: 1 | J27: 2.7 | K27: 2.7 | L27: 2.777777778 | M27: 0.9266619266 | N27: 0.8156375316 | O27: 3.107818766 | P27: 2.292181234 | Q27: 0 | R27: 2.710246984 | S27: 0.05141807101 | T27: 0.1 | U27: 0.1520434937 | V27: 0.2354542742 | W27: 0.0005543871524 | X27: 0.0005543871524 | Y27: 0.7065359719 | Z27: 0.004991930795 | AA27: 0.004991930795 | AB27: 2.60897267 | AC27: 0.05105053794 | AD27: 0.3678830049 | AE27: 0.5589 | AF27: 0 | AG27: 0.9879203155 | AH27: 0.7339620722 | AI27: 0.004040252425 | AJ27: 0.027216 | AK27: 0.03128152948 | AL27: 0.027216 | AM27: 0.08748 | AN27: 0.02203631615 | AO27: 0.0001188 | AP27: 0.0495 | AQ27: 0.5016 | AR27: 0.4851 | AS27: 0.0496188 | AT27: 1.363142773 | AU27: 135 | AV27: 0.9900035835 | AW27: 52.28285578 | AX27: 3.007496474 | AZ27: 99.00035835 | BA27: 0.1520434937 | BB27: 1.106681845 | BC27: 1.045657116 | BD27: 0.06014992948 | BE27: 0.02203631615
A28: RdsonDRT2 | B28: =RdsonDRT2 -> 0.5 | C28: W | D28: Drain to Source Resistance of pulldown Top FET Driver | G28: 19 | H28: 54 | I28: 1 | J28: 2.85 | K28: 2.85 | L28: 2.932098765 | M28: 0.9267028091 | N28: 0.8152256095 | O28: 3.257612805 | P28: 2.442387195 | Q28: 0 | R28: 2.859699763 | S28: 0.05724517913 | T28: 0.1 | U28: 0.1579686145 | V28: 0.2353353625 | W28: 0.0005538273287 | X28: 0.0005538273287 | Y28: 0.7453055315 | Z28: 0.005554803352 | AA28: 0.005554803352 | AB28: 2.752901542 | AC28: 0.05683850176 | AD28: 0.3883209496 | AE28: 0.5589 | AF28: 0 | AG28: 1.015604539 | AH28: 0.7742194985 | AI28: 0.004495618739 | AJ28: 0.028728 | AK28: 0.03325351777 | AL28: 0.028728 | AM28: 0.09234 | AN28: 0.0245336482 | AO28: 0.0001188 | AP28: 0.0495 | AQ28: 0.5016 | AR28: 0.4851 | AS28: 0.0496188 | AT28: 1.408155751 | AU28: 142.5 | AV28: 0.9902148996 | AW28: 53.82744697 | AX28: 3.186285888 | AZ28: 99.02148996 | BA28: 0.1579686145 | BB28: 1.141198057 | BC28: 1.076548939 | BD28: 0.06372571777 | BE28: 0.0245336482
A29: Bottom Driver | B29: Input Value | C29: Units | D29: Description | G29: 20 | H29: 54 | I29: 1 | J29: 3 | K29: 3 | L29: 3.086419753 | M29: 0.9267436909 | N29: 0.8148136473 | O29: 3.407406824 | P29: 2.592593176 | Q29: 0 | R29: 3.009207001 | S29: 0.06338728741 | T29: 0.1 | U29: 0.1642200445 | V29: 0.2352164393 | W29: 0.0005532677332 | X29: 0.0005532677332 | Y29: 0.7840692097 | Z29: 0.006147645256 | AA29: 0.006147645256 | AB29: 2.896889186 | AC29: 0.06293975217 | AD29: 0.4087588943 | AE29: 0.5589 | AF29: 0 | AG29: 1.043737158 | AH29: 0.8144690402 | AI29: 0.004975198631 | AJ29: 0.03024 | AK29: 0.03525027405 | AL29: 0.03024 | AM29: 0.0972 | AN29: 0.02716598032 | AO29: 0.0001188 | AP29: 0.0495 | AQ29: 0.5016 | AR29: 0.4851 | AS29: 0.0496188 | AT29: 1.45413317 | AU29: 150 | AV29: 0.9903988545 | AW29: 55.3944579 | AX29: 3.366313703 | AZ29: 99.03988545 | BA29: 0.1642200445 | BB29: 1.176187432 | BC29: 1.107889158 | BD29: 0.06732627405 | BE29: 0.02716598032
A30: RdsonDRB | B30: 0.7 | C30: W | D30: Drain to Source Resistance of pullup Bottom FET Driver | G30: 21 | H30: 54 | I30: 1 | J30: 3.15 | K30: 3.15 | L30: 3.240740741 | M30: 0.926784572 | N30: 0.814401645 | O30: 3.557200823 | P30: 2.742799177 | Q30: 0 | R30: 3.158760965 | S30: 0.06984439586 | T30: 0.1 | U30: 0.1707987427 | V30: 0.2350975045 | W30: 0.0005527083662 | X30: 0.0005527083662 | Y30: 0.8228249711 | Z30: 0.006770409331 | AA30: 0.006770409331 | AB30: 3.04092816 | AC30: 0.06935433055 | AD30: 0.429196839 | AE30: 0.5589 | AF30: 0 | AG30: 1.07232525 | AH30: 0.8547085835 | AI30: 0.00547895072 | AJ30: 0.031752 | AK30: 0.03727179278 | AL30: 0.031752 | AM30: 0.10206 | AN30: 0.02993331251 | AO30: 0.0001188 | AP30: 0.0495 | AQ30: 0.5016 | AR30: 0.4851 | AS30: 0.0496188 | AT30: 1.501083015 | AU30: 157.5 | AV30: 0.9905592906 | AW30: 56.98424248 | AX30: 3.547579639 | AZ30: 99.05592906 | BA30: 0.1707987427 | BB30: 1.211657042 | BC30: 1.13968485 | BD30: 0.07095159278 | BE30: 0.02993331251
A31: RdsonDRB2 | B31: 0.5 | C31: W | D31: Drain to Source Resistance of pulldown Bottom FET Driver | G31: 22 | H31: 54 | I31: 1 | J31: 3.3 | K31: 3.3 | L31: 3.395061728 | M31: 0.9268254524 | N31: 0.8139896026 | O31: 3.706994801 | P31: 2.893005199 | Q31: 0 | R31: 3.30835532 | S31: 0.07661650446 | T31: 0.1 | U31: 0.1777057197 | V31: 0.2349785581 | W31: 0.0005521492276 | X31: 0.0005521492276 | Y31: 0.861571146 | Z31: 0.007423048395 | AA31: 0.007423048395 | AB31: 3.185012366 | AC31: 0.07608227829 | AD31: 0.4496347837 | AE31: 0.5589 | AF31: 0 | AG31: 1.101376103 | AH31: 0.8949363948 | AI31: 0.00600683363 | AJ31: 0.033264 | AK31: 0.03931806905 | AL31: 0.033264 | AM31: 0.10692 | AN31: 0.03283564477 | AO31: 0.0001188 | AP31: 0.0495 | AQ31: 0.5016 | AR31: 0.4851 | AS31: 0.0496188 | AT31: 1.549013534 | AU31: 165 | AV31: 0.9906993533 | AW31: 58.59716513 | AX31: 3.730083452 | AZ31: 99.06993533 | BA31: 0.1777057197 | BB31: 1.247614172 | BC31: 1.171943303 | BD31: 0.07460166905 | BE31: 0.03283564477
A32: Deadtime | B32: Input Value | C32: Units | D32: Description | G32: 23 | H32: 54 | I32: 1 | J32: 3.45 | K32: 3.45 | L32: 3.549382716 | M32: 0.9268663321 | N32: 0.81357752 | O32: 3.85678876 | P32: 3.04321124 | Q32: 0 | R32: 3.457984822 | S32: 0.08370361322 | T32: 0.1 | U32: 0.1849420386 | V32: 0.2348596001 | W32: 0.0005515903176 | X32: 0.0005515903176 | Y32: 0.9003063512 | Z32: 0.00810551526 | AA32: 0.00810551526 | AB32: 3.32913676 | AC32: 0.08312363675 | AD32: 0.4700727285 | AE32: 0.5589 | AF32: 0 | AG32: 1.130897223 | AH32: 0.9351510383 | AI32: 0.006558805984 | AJ32: 0.034776 | AK32: 0.0413890986 | AL32: 0.034776 | AM32: 0.11178 | AN32: 0.0358729771 | AO32: 0.0001188 | AP32: 0.0495 | AQ32: 0.5016 | AR32: 0.4851 | AS32: 0.0496188 | AT32: 1.597933243 | AU32: 172.5 | AV32: 0.9908216415 | AW32: 60.23360116 | AX32: 3.91382493 | AZ32: 99.08216415 | BA32: 0.1849420386 | BB32: 1.284066322 | BC32: 1.204672023 | BD32: 0.0782764986 | BE32: 0.0358729771
A33: Deadtime | B33: =Deadtime*1000000000 -> 14 | C33: ns | D33: Total Deadtime | G33: 24 | H33: 54 | I33: 1 | J33: 3.6 | K33: 3.6 | L33: 3.703703704 | M33: 0.9269072112 | N33: 0.8131653974 | O33: 4.006582699 | P33: 3.193417301 | Q33: 0 | R33: 3.607645099 | S33: 0.09110572215 | T33: 0.1 | U33: 0.1925088145 | V33: 0.2347406305 | W33: 0.0005510316362 | X33: 0.0005510316362 | Y33: 0.9390294312 | Z33: 0.008817762727 | AA33: 0.008817762727 | AB33: 3.473297133 | AC33: 0.09047844732 | AD33: 0.4905106732 | AE33: 0.5589 | AF33: 0 | AG33: 1.16089634 | AH33: 0.9753513149 | AI33: 0.007134826405 | AJ33: 0.036288 | AK33: 0.04348487782 | AL33: 0.036288 | AM33: 0.11664 | AN33: 0.03904530949 | AO33: 0.0001188 | AP33: 0.0495 | AQ33: 0.5016 | AR33: 0.4851 | AS33: 0.0496188 | AT33: 1.647850936 | AU33: 180 | AV33: 0.9909283213 | AW33: 61.89393701 | AX33: 4.098803891 | AZ33: 99.09283213 | BA33: 0.1925088145 | BB33: 1.321021218 | BC33: 1.23787874 | BD33: 0.08197607782 | BE33: 0.03904530949
A34: IQ | B34: Input Value | C34: Units | D34: Description | G34: 25 | H34: 54 | I34: 1 | J34: 3.75 | K34: 3.75 | L34: 3.858024691 | M34: 0.9269480895 | N34: 0.8127532346 | O34: 4.156376617 | P34: 3.343623383 | Q34: 0 | R34: 3.757332474 | S34: 0.09882283123 | T34: 0.1 | U34: 0.2004072159 | V34: 0.2346216494 | W34: 0.0005504731836 | X34: 0.0005504731836 | Y34: 0.9777394128 | Z34: 0.009559743593 | AA34: 0.009559743593 | AB34: 3.617489947 | AC34: 0.09814675137 | AD34: 0.5109486179 | AE34: 0.5589 | AF34: 0 | AG34: 1.191381412 | AH34: 1.015536214 | AI34: 0.007734853522 | AJ34: 0.0378 | AK34: 0.04560540375 | AL34: 0.0378 | AM34: 0.1215 | AN34: 0.04235264196 | AO34: 0.0001188 | AP34: 0.0495 | AQ34: 0.5016 | AR34: 0.4851 | AS34: 0.0496188 | AT34: 1.698775691 | AU34: 187.5 | AV34: 0.991021212 | AW34: 63.57857062 | AX34: 4.285020187 | AZ34: 99.1021212 | BA34: 0.2004072159 | BB34: 1.358486816 | BC34: 1.271571412 | BD34: 0.08570040375 | BE34: 0.04235264196
A35: IQ | B35: =Iq*1000 -> 0.0022 | C35: mA | D35: Quiescent Current Of Controller (Not Switching!) | G35: 26 | H35: 54 | I35: 1 | J35: 3.9 | K35: 3.9 | L35: 4.012345679 | M35: 0.9269889672 | N35: 0.8123410317 | O35: 4.306170516 | P35: 3.493829484 | Q35: 0 | R35: 3.907043831 | S35: 0.1068549405 | T35: 0.1 | U35: 0.2086384645 | V35: 0.2345026567 | W35: 0.0005499149598 | X35: 0.0005499149598 | Y35: 1.01643547 | Z35: 0.01033141065 | AA35: 0.01033141065 | AB35: 3.761712203 | AC35: 0.1061285903 | AD35: 0.5313865626 | AE35: 0.5589 | AF35: 0 | AG35: 1.222360635 | AH35: 1.055704881 | AI35: 0.00835884596 | AJ35: 0.039312 | AK35: 0.04775067407 | AL35: 0.039312 | AM35: 0.12636 | AN35: 0.04579497449 | AO35: 0.0001188 | AP35: 0.0495 | AQ35: 0.5016 | AR35: 0.4851 | AS35: 0.0496188 | AT35: 1.750716874 | AU35: 195 | AV35: 0.9911018526 | AW35: 65.28791175 | AX35: 4.472473703 | AZ35: 99.11018526 | BA35: 0.2086384645 | BB35: 1.396471309 | BC35: 1.305758235 | BD35: 0.08944947407 | BE35: 0.04579497449
A36: High-side FET | B36: Input Value | C36: Units | D36: Description | G36: 27 | H36: 54 | I36: 1 | J36: 4.05 | K36: 4.05 | L36: 4.166666667 | M36: 0.9270298442 | N36: 0.8119287887 | O36: 4.455964394 | P36: 3.644035606 | Q36: 0 | R36: 4.056776515 | S36: 0.1152020499 | T36: 0.1 | U36: 0.217203836 | V36: 0.2343836524 | W36: 0.000549356965 | X36: 0.000549356965 | Y36: 1.055116897 | Z36: 0.01113271666 | AA36: 0.01113271666 | AB36: 3.905961348 | AC36: 0.1144240054 | AD36: 0.5518245073 | AE36: 0.5589 | AF36: 0 | AG36: 1.253842448 | AH36: 1.095856581 | AI36: 0.00900676235 | AJ36: 0.040824 | AK36: 0.0499206871 | AL36: 0.040824 | AM36: 0.13122 | AN36: 0.04937230709 | AO36: 0.0001188 | AP36: 0.0495 | AQ36: 0.5016 | AR36: 0.4851 | AS36: 0.0496188 | AT36: 1.803684152 | AU36: 202.5 | AV36: 0.9911715535 | AW36: 67.02238238 | AX36: 4.661164355 | AZ36: 99.11715535 | BA36: 0.217203836 | BB36: 1.434983135 | BC36: 1.340447648 | BD36: 0.0932232871 | BE36: 0.04937230709
A37: RdsonTop | B37: =Rdson1*1000 -> 7.5 | C37: mW | D37: Drain-Source Resistance of Top FET | G37: 28 | H37: 54 | I37: 1 | J37: 4.2 | K37: 4.2 | L37: 4.320987654 | M37: 0.9270707205 | N37: 0.8115165056 | O37: 4.605758253 | P37: 3.794241747 | Q37: 0 | R37: 4.20652825 | S37: 0.1238641594 | T37: 0.1 | U37: 0.2261046605 | V37: 0.2342646365 | W37: 0.0005487991991 | X37: 0.0005487991991 | Y37: 1.093783087 | Z37: 0.01196361442 | AA37: 0.01196361442 | AB37: 4.050235188 | AC37: 0.1230330381 | AD37: 0.572262452 | AE37: 0.5589 | AF37: 0 | AG37: 1.285835541 | AH37: 1.135990688 | AI37: 0.009678561321 | AJ37: 0.042336 | AK37: 0.05211544182 | AL37: 0.042336 | AM37: 0.13608 | AN37: 0.05308463976 | AO37: 0.0001188 | AP37: 0.0495 | AQ37: 0.5016 | AR37: 0.4851 | AS37: 0.0496188 | AT37: 1.857687496 | AU37: 210 | AV37: 0.9912314369 | AW37: 68.78241704 | AX37: 4.851092091 | AZ37: 99.12314369 | BA37: 0.2261046605 | BB37: 1.474030983 | BC37: 1.375648341 | BD37: 0.09702184182 | BE37: 0.05308463976
A38: RdsonTopTc | B38: =RdsonTopTc*1000000 -> 4000 | C38: ppm | D38: Drain to Source Resistance Temp Co | G38: 29 | H38: 54 | I38: 1 | J38: 4.35 | K38: 4.35 | L38: 4.475308642 | M38: 0.9271115962 | N38: 0.8111041824 | O38: 4.755552091 | P38: 3.944447909 | Q38: 0 | R38: 4.35629707 | S38: 0.1328412692 | T38: 0.1 | U38: 0.235342323 | V38: 0.234145609 | W38: 0.0005482416623 | X38: 0.0005482416623 | Y38: 1.132433516 | Z38: 0.01282405669 | AA38: 0.01282405669 | AB38: 4.194531833 | AC38: 0.1319557297 | AD38: 0.5927003968 | AE38: 0.5589 | AF38: 0 | AG38: 1.318348864 | AH38: 1.176106656 | AI38: 0.0103742015 | AJ38: 0.043848 | AK38: 0.05433493782 | AL38: 0.043848 | AM38: 0.14094 | AN38: 0.0569319725 | AO38: 0.0001188 | AP38: 0.0495 | AQ38: 0.5016 | AR38: 0.4851 | AS38: 0.0496188 | AT38: 1.912737195 | AU38: 217.5 | AV38: 0.9912824697 | AW38: 70.56846319 | AX38: 5.042256891 | AZ38: 99.12824697 | BA38: 0.235342323 | BB38: 1.513623802 | BC38: 1.411369264 | BD38: 0.1008451378 | BE38: 0.0569319725
A39: QgTop | B39: =Qg_Q1*1000000000 -> 11 | C39: nC | D39: Gate Charge Of Top FET | G39: 30 | H39: 54 | I39: 1 | J39: 4.5 | K39: 4.5 | L39: 4.62962963 | M39: 0.9271524711 | N39: 0.8106918191 | O39: 4.90534591 | P39: 4.09465409 | Q39: 0 | R39: 4.506081273 | S39: 0.142133379 | T39: 0.1 | U39: 0.2449182639 | V39: 0.23402657 | W39: 0.0005476843546 | X39: 0.0005476843546 | Y39: 1.171067727 | Z39: 0.01371399622 | AA39: 0.01371399622 | AB39: 4.338849644 | AC39: 0.1411921217 | AD39: 0.6131383415 | AE39: 0.5589 | AF39: 0 | AG39: 1.351391634 | AH39: 1.216204014 | AI39: 0.01109364153 | AJ39: 0.04536 | AK39: 0.05657917535 | AL39: 0.04536 | AM39: 0.1458 | AN39: 0.06091430531 | AO39: 0.0001188 | AP39: 0.0495 | AQ39: 0.5016 | AR39: 0.4851 | AS39: 0.0496188 | AT39: 1.968843859 | AU39: 225 | AV39: 0.9913254884 | AW39: 72.38098168 | AX39: 5.234658768 | AZ39: 99.13254884 | BA39: 0.2449182639 | BB39: 1.553770809 | BC39: 1.447619634 | BD39: 0.1046931754 | BE39: 0.06091430531
A40: QgdTop | B40: =Qgd_Q1*1000000000 -> 3.9 | C40: nC | D40: Gate to Drain Charge | G40: 31 | H40: 54 | I40: 1 | J40: 4.65 | K40: 4.65 | L40: 4.783950617 | M40: 0.9271933454 | N40: 0.8102794156 | O40: 5.055139708 | P40: 4.244860292 | Q40: 0 | R40: 4.655879372 | S40: 0.1517404891 | T40: 0.1 | U40: 0.2548339797 | V40: 0.2339075194 | W40: 0.0005471272762 | X40: 0.0005471272762 | Y40: 1.209685321 | Z40: 0.01463338576 | AA40: 0.01463338576 | AB40: 4.483187191 | AC40: 0.1507422554 | AD40: 0.6335762862 | AE40: 0.5589 | AF40: 0 | AG40: 1.384973343 | AH40: 1.256282349 | AI40: 0.01183684004 | AJ40: 0.046872 | AK40: 0.05884815528 | AL40: 0.046872 | AM40: 0.15066 | AN40: 0.06503163818 | AO40: 0.0001188 | AP40: 0.0495 | AQ40: 0.5016 | AR40: 0.4851 | AS40: 0.0496188 | AT40: 2.026018429 | AU40: 232.5 | AV40: 0.9913612211 | AW40: 74.22044713 | AX40: 5.428297764 | AZ40: 99.13612211 | BA40: 0.2548339797 | BB40: 1.594481498 | BC40: 1.484408943 | BD40: 0.1085659553 | BE40: 0.06503163818
A41: QgsTop | B41: =Qgs_Q1*1000000000 -> 4.3 | C41: nC | G41: 32 | H41: =Vin -> 54 | I41: =MODE -> 1 | J41: 4.8 | K41: =Iout*G41/100/Number_of_Phases -> 4.8 | L41: =Vout*K41/(Vin*Efficiency) -> 4.938271605 | M41: =(Vout+(Rdson2+Rs+Rdcr)*K41)/(Vin+(Rs+Rdson2-Rdson1)*K41) -> 0.927234219 | N41: =(Vin-(Rdson1+Rdcr)*K41-Vout)*M41/(Fsw*Lf) -> 0.8098669721 | O41: 5.204933486 | P41: 4.395066514 | Q41: =IF(MIN(Vin, -P41/(Coss_Q1+Coss_Q2)*0.00000002)<0, 0, MIN(Vin, -P41/(Coss_Q1+Coss_Q2)*0.00000002)) -> 0 | R41: 4.805690069 | S41: =R41^2*Rdcr -> 0.1616625993 | T41: =Core_Loss_Ch1 -> 0.1 | U41: =(T41+S41*(1+Ltc*(Ta-25)))/(1-S41*Ltc*ThetaCa) -> 0.2650910236 | V41: 0.2337884572 | W41: 0.0005465704271 | X41: 0.0005465704271 | Y41: 1.248285947 | Z41: 0.01558217806 | AA41: 0.01558217806 | AB41: 4.627543224 | AC41: =Rdson1*AB41^2 -> 0.1606061721 | AD41: =(Vin*K41/2)*Fsw*(Tr_buck+Tf_buck) -> 0.6540142309 | AE41: =(0.5*Coss_Q1*(Vin-Q41)^2-0.5*Coss_Q2*(Vin-Q41)^2+(Qoss_Q2*(Vin-Q41)/Vin)*Vin)*Fsw -> 0.5589 | AF41: =IF(K41>N41/2,0,ABS(K41-N41/2)*Vsd_Q1*Deadtime*Fsw) -> 0 | AG41: =(AF41+AE41+AD41+AC41*(1+RdsonTopTc*Ta-RdsonTopTc*25))/(1-AC41*RdsonTopTc*ThetaJA_Q1) -> 1.419103768 | AH41: =SQRT((1-M41))*SQRT(K41^2+(N41^2)/12) -> 1.296341296 | AI41: =Rdson2*AH41^2 -> 0.01260375567 | AJ41: =IF(K41<N41/2,Deadtime*Fsw*IF(VfdSky_Q2>0,0,Vsd_Q2)*(K41+N41/2),2*Deadtime*Fsw*IF(VfdSky_Q2>0,0,Vsd_Q2)*K41) -> 0.048384 | AK41: =(AJ41+AI41*(1+RdsonBotTc*Ta-RdsonBotTc*25))/(1-AI41*RdsonBotTc*ThetaJA_Q2) -> 0.06114187913 | AL41: =2*Deadtime*Fsw*IF(VfdSky_Q2>0,VfdSky_Q2,Vsd_Q2)*K41 -> 0.048384 | AM41: =IF(QrrSky_Q2>0,QrrSky_Q2,Qrr_Q2*K41/(Iout/Number_of_Phases))*Fsw*Vin -> 0.15552 | AN41: =Rs*R41^2 -> 0.06928397113 | AO41: =Iq*Vin -> 0.0001188 | AP41: =IF(Ext_VCC=1, (Qg_Q1+Qg_Q2)*Fsw*VCC, (Qg_Q1+Qg_Q2)*Fsw*Vin) -> 0.0495 | AQ41: 0.5016 | AR41: =(Qg_Q1+Qg_Q2)*Fsw*(Vin-VCC) -> 0.4851 | AS41: =SUM(AO41:AP41) -> 0.0496188 | AT41: =SUM(U41,X41,AA41,AG41,AK41,AL41,AM41,AS41,AN41) -> 2.08427219 | AU41: =Vout*K41 -> 240 | AV41: 0.9913903032 | AW41: =ThetaJA_Q1*BC41 -> 76.08734839 | AX41: =ThetaJA_Q2*BD41 -> 5.623173957 | AZ41: 99.13903032 | BA41: =U41 -> 0.2650910236 | BB41: =AG41+AK41+AM41 -> 1.635765647 | BC41: =AG41+AM41*0.66 -> 1.521746968 | BD41: =AK41+AM41*0.33 -> 0.1124634791 | BE41: =AN41 -> 0.06928397113
A42: RGateTop | B42: =Rgate1 -> 1.5 | C42: W | D42: Gate Resistance | G42: 33 | H42: 54 | I42: 1 | J42: =Iout*G42/100 -> 4.95 | K42: 4.95 | L42: 5.092592593 | M42: 0.9272750919 | N42: 0.8094544885 | O42: 5.354727244 | P42: 4.545272756 | Q42: 0 | R42: 4.955512222 | S42: 0.1718997097 | T42: 0.1 | U42: 0.275691006 | V42: 0.2336693834 | W42: 0.0005460138074 | X42: 0.0005460138074 | Y42: 1.286869296 | Z42: 0.01656032586 | AA42: 0.01656032586 | AB42: 4.771916642 | AC42: 0.1707839133 | AD42: 0.6744521756 | AE42: 0.5589 | AF42: 0 | AG42: 1.45379298 | AH42: 1.336380537 | AI42: 0.01339434705 | AJ42: 0.049896 | AK42: 0.06346034904 | AL42: 0.049896 | AM42: =IF(QrrSky_Q2>0,QrrSky_Q2,Qrr_Q2*K42/(Iout/Number_of_Phases))*Fsw*Vin -> 0.16038 | AN42: 0.07367130414 | AO42: 0.0001188 | AP42: 0.0495 | AQ42: 0.5016 | AR42: 0.4851 | AS42: 0.0496188 | AT42: 2.143616779 | AU42: 247.5 | AV42: 0.9914132923 | AW42: 77.98218899 | AX42: 5.819287452 | AZ42: 99.14132923 | BA42: 0.275691006 | BB42: 1.677633329 | BC42: 1.55964378 | BD42: 0.116385749 | BE42: 0.07367130414
A43: GfsTop | B43: =Gfs_Q1 -> 47 | C43: S | D43: Transconductance of Top FET | G43: 34 | H43: 54 | I43: 1 | J43: 5.1 | K43: 5.1 | L43: 5.24691358 | M43: 0.9273159642 | N43: 0.8090419647 | O43: 5.504520982 | P43: 4.695479018 | Q43: 0 | R43: 5.105344821 | S43: 0.1824518202 | T43: 0.1 | U43: 0.2866355951 | V43: 0.2335502981 | W43: 0.0005454574172 | X43: 0.0005454574172 | Y43: 1.325435094 | Z43: 0.01756778188 | AA43: 0.01756778188 | AB43: 4.916306476 | AC43: 0.1812755202 | AD43: 0.6948901203 | AE43: 0.5589 | AF43: 0 | AG43: 1.489051352 | AH43: 1.376399788 | AI43: 0.01420857282 | AJ43: 0.051408 | AK43: 0.06580356778 | AL43: 0.051408 | AM43: 0.16524 | AN43: 0.07819363723 | AO43: 0.0001188 | AP43: 0.0495 | AQ43: 0.5016 | AR43: 0.4851 | AS43: 0.0496188 | AT43: 2.204064192 | AU43: 255 | AV43: 0.991430679 | AW43: 79.90548761 | AX43: 6.016638389 | AZ43: 99.1430679 | BA43: 0.2866355951 | BB43: 1.72009492 | BC43: 1.598109752 | BD43: 0.1203327678 | BE43: 0.07819363723
A44: VthTop | B44: =Vth_Q1 -> 1.6 | C44: V | D44: Threshold Voltage of Top FET | G44: 35 | H44: 54 | I44: 1 | J44: 5.25 | K44: 5.25 | L44: 5.401234568 | M44: 0.9273568357 | N44: 0.8086294009 | O44: 5.6543147 | P44: 4.8456853 | Q44: 0 | R44: 5.255186973 | S44: 0.1933189309 | T44: 0.1 | U44: 0.2979265178 | V44: 0.2334312011 | W44: 0.0005449012566 | X44: 0.0005449012566 | Y44: 1.363983095 | Z44: 0.01860449884 | AA44: 0.01860449884 | AB44: 5.060711865 | AC44: 0.1920810343 | AD44: 0.715328065 | AE44: 0.5589 | AF44: 0 | AG44: 1.524889573 | AH44: 1.416398796 | AI44: 0.01504639163 | AJ44: 0.05292 | AK44: 0.06817153876 | AL44: 0.05292 | AM44: 0.1701 | AN44: 0.08285097038 | AO44: 0.0001188 | AP44: 0.0495 | AQ44: 0.5016 | AR44: 0.4851 | AS44: 0.0496188 | AT44: 2.2656268 | AU44: 262.5 | AV44: 0.9914428968 | AW44: 81.85777863 | AX44: 6.215226938 | AZ44: 99.14428968 | BA44: 0.2979265178 | BB44: 1.763161111 | BC44: 1.637155573 | BD44: 0.1243045388 | BE44: 0.08285097038
A45: VspTop | B45: =Vsp_Q1 -> 1.919148936 | C45: V | G45: 36 | H45: 54 | I45: 1 | J45: 5.4 | K45: 5.4 | L45: 5.555555556 | M45: 0.9273977066 | N45: 0.8082167969 | O45: 5.804108398 | P45: 4.995891602 | Q45: 0 | R45: 5.405037884 | S45: 0.2045010417 | T45: 0.1 | U45: 0.3095655601 | V45: 0.2333120926 | W45: 0.0005443453257 | X45: 0.0005443453257 | Y45: 1.402513082 | Z45: 0.01967042946 | AA45: 0.01967042946 | AB45: 5.205132043 | AC45: 0.2032004969 | AD45: 0.7357660098 | AE45: 0.5589 | AF45: 0 | AG45: 1.561318652 | AH45: 1.456377337 | AI45: 0.0159077621 | AJ45: 0.054432 | AK45: 0.07056426601 | AL45: 0.054432 | AM45: 0.17496 | AN45: 0.0876433036 | AO45: 0.0001188 | AP45: 0.0495 | AQ45: 0.5016 | AR45: 0.4851 | AS45: 0.0496188 | AT45: 2.328317356 | AU45: 270 | AV45: 0.9914503296 | AW45: 83.83961259 | AX45: 6.415053301 | AZ45: 99.14503296 | BA45: 0.3095655601 | BB45: 1.806842918 | BC45: 1.676792252 | BD45: 0.128301066 | BE45: 0.0876433036
A46: VsdTop | B46: =Vsd_Q1 -> 0.8 | C46: V | G46: 37 | H46: 54 | I46: 1 | J46: 5.55 | K46: 5.55 | L46: 5.709876543 | M46: 0.9274385768 | N46: 0.8078041528 | O46: 5.953902076 | P46: 5.146097924 | Q46: 0 | R46: 5.554896845 | S46: 0.2159981527 | T46: 0.1 | U46: 0.3215545682 | V46: 0.2331929725 | W46: 0.0005437896245 | X46: 0.0005437896245 | Y46: 1.441024859 | Z46: 0.02076552644 | AA46: 0.02076552644 | AB46: 5.349566329 | AC46: 0.2146339493 | AD46: 0.7562039545 | AE46: 0.5589 | AF46: 0 | AG46: 1.598349936 | AH46: 1.496335207 | AI46: 0.0167926429 | AJ46: 0.055944 | AK46: 0.0729817542 | AL46: 0.055944 | AM46: 0.17982 | AN46: 0.09257063689 | AO46: 0.0001188 | AP46: 0.0495 | AQ46: 0.5016 | AR46: 0.4851 | AS46: 0.0496188 | AT46: 2.392149011 | AU46: 277.5 | AV46: 0.9914533186 | AW46: 85.85155678 | AX46: 6.61611771 | AZ46: 99.14533186 | BA46: 0.3215545682 | BB46: 1.85115169 | BC46: 1.717031136 | BD46: 0.1323223542 | BE46: 0.09257063689
A47: θJATop | B47: =ThetaJA_Q1 -> 50 | C47: °C/W | D47: Junction to Ambient Resistance | G47: 38 | H47: 54 | I47: 1 | J47: 5.7 | K47: 5.7 | L47: 5.864197531 | M47: 0.9274794463 | N47: 0.8073914687 | O47: 6.103695734 | P47: 5.296304266 | Q47: 0 | R47: 5.704763222 | S47: 0.2278102639 | T47: 0.1 | U47: 0.3338954487 | V47: 0.2330738409 | W47: 0.0005432341531 | X47: 0.0005432341531 | Y47: 1.479518249 | Z47: 0.02188974248 | AA47: 0.02188974248 | AB47: 5.494014112 | AC47: 0.226381433 | AD47: 0.7766418992 | AE47: 0.5589 | AF47: 0 | AG47: 1.635995116 | AH47: 1.536272226 | AI47: 0.01770099265 | AJ47: 0.057456 | AK47: 0.07542400861 | AL47: 0.057456 | AM47: 0.18468 | AN47: 0.09763297025 | AO47: 0.0001188 | AP47: 0.0495 | AQ47: 0.5016 | AR47: 0.4851 | AS47: 0.0496188 | AT47: 2.45713532 | AU47: 285 | AV47: 0.9914521679 | AW47: 87.89419579 | AX47: 6.818420431 | AZ47: 99.14521679 | BA47: 0.3338954487 | BB47: 1.896099125 | BC47: 1.757883916 | BD47: 0.1363684086 | BE47: 0.09763297025
A48: Low-side FET | B48: Input Value | C48: Units | D48: Description | G48: 39 | H48: 54 | I48: 1 | J48: 5.85 | K48: 5.85 | L48: 6.018518519 | M48: 0.9275203152 | N48: 0.8069787444 | O48: 6.253489372 | P48: 5.446510628 | Q48: 0 | R48: 5.854636444 | S48: 0.2399373752 | T48: 0.1 | U48: 0.3465901701 | V48: 0.2329546977 | W48: 0.0005426789116 | X48: 0.0005426789116 | Y48: 1.517993092 | Z48: 0.02304303028 | AA48: 0.02304303028 | AB48: 5.638474843 | AC48: 0.2384429892 | AD48: 0.7970798439 | AE48: 0.5589 | AF48: 0 | AG48: 1.674266243 | AH48: 1.576188229 | AI48: 0.01863277001 | AJ48: 0.058968 | AK48: 0.07789103516 | AL48: 0.058968 | AM48: 0.18954 | AN48: 0.1028303037 | AO48: 0.0001188 | AP48: 0.0495 | AQ48: 0.5016 | AR48: 0.4851 | AS48: 0.0496188 | AT48: 2.523290261 | AU48: 292.5 | AV48: 0.9914471489 | AW48: 89.96813213 | AX48: 7.021961758 | AZ48: 99.14471489 | BA48: 0.3465901701 | BB48: 1.941697278 | BC48: 1.799362643 | BD48: 0.1404392352 | BE48: 0.1028303037
A49: RdsonBot | B49: =Rdson2*1000 -> 7.5 | C49: mW | D49: Drain-Source Resistance of Low-side FET | G49: 40 | H49: 54 | I49: 1 | J49: 6 | K49: 6 | L49: 6.172839506 | M49: 0.9275611833 | N49: 0.8065659801 | O49: 6.40328299 | P49: 5.59671701 | Q49: 0 | R49: 6.004516 | S49: 0.2523794867 | T49: 0.1 | U49: 0.3596407628 | V49: 0.2328355429 | W49: 0.0005421239002 | X49: 0.0005421239002 | Y49: 1.556449245 | Z49: 0.02422534251 | AA49: 0.02422534251 | AB49: 5.782948029 | AC49: 0.2508186593 | AD49: 0.8175177886 | AE49: 0.5589 | AF49: 0 | AG49: 1.713175736 | AH49: 1.616083068 | AI49: 0.01958793362 | AJ49: 0.06048 | AK49: 0.08038284037 | AL49: 0.06048 | AM49: 0.1944 | AN49: 0.1081626372 | AO49: 0.0001188 | AP49: 0.0495 | AQ49: 0.5016 | AR49: 0.4851 | AS49: 0.0496188 | AT49: 2.590628243 | AU49: 300 | AV49: 0.9914385047 | AW49: 92.07398681 | AX49: 7.226742018 | AZ49: 99.14385047 | BA49: 0.3596407628 | BB49: 1.987958577 | BC49: 1.841479736 | BD49: 0.1445348404 | BE49: 0.1081626372
A50: RdsonBotTc | B50: =RdsonBotTc*1000000 -> 4000 | C50: ppm | D50: Drain To Source Resitance Temp Co | G50: 41 | H50: 54 | I50: 1 | J50: 6.15 | K50: 6.15 | L50: 6.327160494 | M50: 0.9276020508 | N50: 0.8061531756 | O50: 6.553076588 | P50: 5.746923412 | Q50: 0 | R50: 6.154401426 | S50: 0.2651365984 | T50: 0.1 | U50: 0.3730493206 | V50: 0.2327163765 | W50: 0.0005415691188 | X50: 0.0005415691188 | Y50: 1.594886575 | Z50: 0.02543663186 | AA50: 0.02543663186 | AB50: 5.927433224 | AC50: 0.2635084847 | AD50: 0.8379557333 | AE50: 0.5589 | AF50: 0 | AG50: 1.752736401 | AH50: 1.655956607 | AI50: 0.02056644213 | AJ50: 0.061992 | AK50: 0.0828994314 | AL50: 0.061992 | AM50: 0.19926 | AN50: 0.1136299707 | AO50: 0.0001188 | AP50: 0.0495 | AQ50: 0.5016 | AR50: 0.4851 | AS50: 0.0496188 | AT50: 2.659164124 | AU50: 307.5 | AV50: 0.9914264532 | AW50: 94.21240003 | AX50: 7.43276157 | AZ50: 99.14264532 | BA50: 0.3730493206 | BB50: 2.034895832 | BC50: 1.884248001 | BD50: 0.1486552314 | BE50: 0.1136299707
A51: QgBot | B51: =Qg_Q2*1000000000 -> 11 | C51: nC | D51: Gate Charge Of Top FET | G51: 42 | H51: 54 | I51: 1 | J51: 6.3 | K51: 6.3 | L51: 6.481481481 | M51: 0.9276429176 | N51: 0.8057403311 | O51: 6.702870166 | P51: 5.897129834 | Q51: 0 | R51: 6.304292304 | S51: 0.2782087102 | T51: 0.1 | U51: 0.3868180012 | V51: 0.2325971985 | W51: 0.0005410145676 | X51: 0.0005410145676 | Y51: 1.633304962 | Z51: 0.02667685099 | AA51: 0.02667685099 | AB51: 6.071930025 | AC51: 0.2765125067 | AD51: 0.8583936781 | AE51: 0.5589 | AF51: 0 | AG51: 1.792961437 | AH51: 1.695808723 | AI51: 0.02156825419 | AJ51: 0.063504 | AK51: 0.08544081604 | AL51: 0.063504 | AM51: 0.20412 | AN51: 0.1192323044 | AO51: 0.0001188 | AP51: 0.0495 | AQ51: 0.5016 | AR51: 0.4851 | AS51: 0.0496188 | AT51: 2.728913224 | AU51: 315 | AV51: 0.9914111901 | AW51: 96.38403185 | AX51: 7.640020802 | AZ51: 99.14111901 | BA51: 0.3868180012 | BB51: 2.082522253 | BC51: 1.927680637 | BD51: 0.152800416 | BE51: 0.1192323044
A52: RGateBot | B52: =Rgate2 -> 1.5 | C52: W | D52: Gate Resistance | G52: 43 | H52: 54 | I52: 1 | J52: 6.45 | K52: 6.45 | L52: 6.635802469 | M52: 0.9276837837 | N52: 0.8053274464 | O52: 6.852663723 | P52: 6.047336277 | Q52: 0 | R52: 6.454188255 | S52: 0.2915958222 | T52: 0.1 | U52: 0.4009490271 | V52: 0.232478009 | W52: 0.0005404602466 | X52: 0.0005404602466 | Y52: 1.671704297 | Z52: 0.02794595256 | AA52: 0.02794595256 | AB52: 6.216438066 | AC52: 0.2898307667 | AD52: 0.8788316228 | AE52: 0.5589 | AF52: 0 | AG52: 1.833864458 | AH52: 1.735639304 | AI52: 0.02259332845 | AJ52: 0.065016 | AK52: 0.08800700267 | AL52: 0.065016 | AM52: 0.20898 | AN52: 0.1249696381 | AO52: 0.0001188 | AP52: 0.0495 | AQ52: 0.5016 | AR52: 0.4851 | AS52: 0.0496188 | AT52: 2.799891339 | AU52: 322.5 | AV52: 0.9913928919 | AW52: 98.58956289 | AX52: 7.848520134 | AZ52: 99.13928919 | BA52: 0.4009490271 | BB52: 2.130851461 | BC52: 1.971791258 | BD52: 0.1569704027 | BE52: 0.1249696381
A53: VsdBot | B53: =Vsd_Q2 -> 0.8 | C53: V | D53: Diode Forward Voltage of Bottom FET Body Diode | G53: 44 | H53: 54 | I53: 1 | J53: 6.6 | K53: 6.6 | L53: 6.790123457 | M53: 0.9277246491 | N53: 0.8049145217 | O53: 7.002457261 | P53: 6.197542739 | Q53: 0 | R53: 6.604088932 | S53: 0.3052979343 | T53: 0.1 | U53: 0.4154446867 | V53: 0.2323588079 | W53: 0.000539906156 | X53: 0.000539906156 | Y53: 1.710084478 | Z53: 0.02924388924 | AA53: 0.02924388924 | AB53: 6.360957014 | AC53: 0.3034633061 | AD53: 0.8992695675 | AE53: 0.5589 | AF53: 0 | AG53: 1.875459502 | AH53: 1.775448246 | AI53: 0.02364162357 | AJ53: 0.066528 | AK53: 0.09059800033 | AL53: 0.066528 | AM53: 0.21384 | AN53: 0.1308419718 | AO53: 0.0001188 | AP53: 0.0495 | AQ53: 0.5016 | AR53: 0.4851 | AS53: 0.0496188 | AT53: 2.872114756 | AU53: 330 | AV53: 0.9913717172 | AW53: 100.8296951 | AX53: 8.058260016 | AZ53: 99.13717172 | BA53: 0.4154446867 | BB53: 2.179897502 | BC53: 2.016593902 | BD53: 0.1611652003 | BE53: 0.1308419718
A54: QrrBot | B54: =Qrr_Q2*1000000000 -> 20 | C54: nC | D54: Reverse Recovery Charge of Body Diode | G54: 45 | H54: 54 | I54: 1 | J54: 6.75 | K54: 6.75 | L54: 6.944444444 | M54: 0.9277655139 | N54: 0.8045015568 | O54: 7.152250778 | P54: 6.347749222 | Q54: 0 | R54: 6.753994021 | S54: 0.3193150466 | T54: 0.1 | U54: 0.4303073351 | V54: 0.2322395952 | W54: 0.0005393522958 | X54: 0.0005393522958 | Y54: 1.748445414 | Z54: 0.03057061365 | AA54: 0.03057061365 | AB54: 6.505486567 | AC54: 0.317410166 | AD54: 0.9197075122 | AE54: 0.5589 | AF54: 0 | AG54: 1.917761049 | AH54: 1.815235455 | AI54: 0.02471309819 | AJ54: 0.06804 | AK54: 0.09321381864 | AL54: 0.06804 | AM54: 0.2187 | AN54: 0.1368493057 | AO54: 0.0001188 | AP54: 0.0495 | AQ54: 0.5016 | AR54: 0.4851 | AS54: 0.0496188 | AT54: 2.945600274 | AU54: 337.5 | AV54: 0.9913478092 | AW54: 103.1051524 | AX54: 8.269240932 | AZ54: 99.13478092 | BA54: 0.4303073351 | BB54: 2.229674867 | BC54: 2.062103049 | BD54: 0.1653848186 | BE54: 0.1368493057
A55: TrrBot | B55: =Trr_Q2*1000000000 -> 40 | C55: ns | D55: Reverse Recovery Time of Body Diode | G55: 46 | H55: 54 | I55: 1 | J55: 6.9 | K55: 6.9 | L55: 7.098765432 | M55: 0.9278063779 | N55: 0.8040885519 | O55: 7.302044276 | P55: 6.497955724 | Q55: 0 | R55: 6.903903234 | S55: 0.3336471591 | T55: 0.1 | U55: 0.4455393953 | V55: 0.2321203709 | W55: 0.0005387986661 | X55: 0.0005387986661 | Y55: 1.786787017 | Z55: 0.03192607845 | AA55: 0.03192607845 | AB55: 6.650026446 | AC55: 0.331671388 | AD55: 0.9401454569 | AE55: 0.5589 | AF55: 0 | AG55: 1.960784038 | AH55: 1.855000844 | AI55: 0.02580771097 | AJ55: 0.069552 | AK55: 0.09585446785 | AL55: 0.069552 | AM55: 0.22356 | AN55: 0.1429916396 | AO55: 0.0001188 | AP55: 0.0495 | AQ55: 0.5016 | AR55: 0.4851 | AS55: 0.0496188 | AT55: 3.020365218 | AU55: 345 | AV55: 0.9913212975 | AW55: 105.4166819 | AX55: 8.481463393 | AZ55: 99.13212975 | BA55: 0.4455393953 | BB55: 2.280198505 | BC55: 2.108333638 | BD55: 0.1696292679 | BE55: 0.1429916396
A56: θJABot | B56: =ThetaJA_Q2 -> 50 | C56: °C/W | D56: Junction to Ambient Resistance | G56: 47 | H56: 54 | I56: 1 | J56: 7.05 | K56: 7.05 | L56: 7.25308642 | M56: 0.9278472413 | N56: 0.8036755069 | O56: 7.451837753 | P56: 6.648162247 | Q56: 0 | R56: 7.053816309 | S56: 0.3482942717 | T56: 0.1 | U56: 0.4611433589 | V56: 0.2320011351 | W56: 0.000538245267 | X56: 0.000538245267 | Y56: 1.82510921 | Z56: 0.03331023627 | AA56: 0.03331023627 | AB56: 6.7945764 | AC56: 0.3462470134 | AD56: 0.9605834016 | AE56: 0.5589 | AF56: 0 | AG56: 2.004543881 | AH56: 1.89474433 | AI56: 0.02692542058 | AJ56: 0.071064 | AK56: 0.09851995884 | AL56: 0.071064 | AM56: 0.22842 | AN56: 0.1492689736 | AO56: 0.0001188 | AP56: 0.0495 | AQ56: 0.5016 | AR56: 0.4851 | AS56: 0.0496188 | AT56: 3.096427454 | AU56: 352.5 | AV56: 0.9912922988 | AW56: 107.7650541 | AX56: 8.694927942 | AZ56: 99.12922988 | BA56: 0.4611433589 | BB56: 2.33148384 | BC56: 2.155301081 | BD56: 0.1738985588 | BE56: 0.1492689736
A57: Bottom Schottky | B57: Input Value | C57: Units | D57: Std Units | G57: 48 | H57: 54 | I57: 1 | J57: 7.2 | K57: 7.2 | L57: 7.407407407 | M57: 0.927888104 | N57: 0.8032624218 | O57: 7.601631211 | P57: 6.798368789 | Q57: 0 | R57: 7.203733005 | S57: 0.3632563845 | T57: 0.1 | U57: 0.4771217873 | V57: 0.2318818877 | W57: 0.0005376920985 | X57: 0.0005376920985 | Y57: 1.863411917 | Z57: 0.03472303973 | AA57: 0.03472303973 | AB57: 6.939136194 | AC57: 0.3611370834 | AD57: 0.9810213463 | AE57: 0.5589 | AF57: 0 | AG57: 2.049056486 | AH57: 1.93446584 | AI57: 0.02806618566 | AJ57: 0.072576 | AK57: 0.1012103031 | AL57: 0.072576 | AM57: 0.23328 | AN57: 0.1556813076 | AO57: 0.0001188 | AP57: 0.0495 | AQ57: 0.5016 | AR57: 0.4851 | AS57: 0.0496188 | AT57: 3.173805416 | AU57: 360 | AV57: 0.9912609187 | AW57: 110.1510643 | AX57: 8.909635154 | AZ57: 99.12609187 | BA57: 0.4771217873 | BB57: 2.38354679 | BC57: 2.203021286 | BD57: 0.1781927031 | BE57: 0.1556813076
A58: VfdSky | B58: =VfdSky_Q2 -> 0 | C58: V | D58: Diode Forward Voltage | G58: 49 | H58: 54 | I58: 1 | J58: 7.35 | K58: 7.35 | L58: 7.561728395 | M58: 0.927928966 | N58: 0.8028492966 | O58: 7.751424648 | P58: 6.948575352 | Q58: 0 | R58: 7.3536531 | S58: 0.3785334974 | T58: 0.1 | U58: 0.4934773129 | V58: 0.2317626287 | W58: 0.0005371391609 | X58: 0.0005371391609 | Y58: 1.901695071 | Z58: 0.03616444144 | AA58: 0.03616444144 | AB58: 7.083705617 | AC58: 0.3763416395 | AD58: 1.001459291 | AE58: 0.5589 | AF58: 0 | AG58: 2.09433827 | AH58: 1.974165304 | AI58: 0.02922996487 | AJ58: 0.074088 | AK58: 0.1039255127 | AL58: 0.074088 | AM58: 0.23814 | AN58: 0.1622286417 | AO58: 0.0001188 | AP58: 0.0495 | AQ58: 0.5016 | AR58: 0.4851 | AS58: 0.0496188 | AT58: 3.252518118 | AU58: 367.5 | AV58: 0.9912272528 | AW58: 112.5755335 | AX58: 9.125585634 | AZ58: 99.12272528 | BA58: 0.4934773129 | BB58: 2.436403783 | BC58: 2.25151067 | BD58: 0.1825117127 | BE58: 0.1622286417
A59: QrrSky | B59: =QrrSky_Q2*1000000000 -> 0 | C59: nC | D59: Diode Reverse Recovery Charge | G59: 50 | H59: 54 | I59: 1 | J59: 7.5 | K59: 7.5 | L59: 7.716049383 | M59: 0.9279698274 | N59: 0.8024361313 | O59: 7.901218066 | P59: 7.098781934 | Q59: 0 | R59: 7.50357639 | S59: 0.3941256105 | T59: 0.1 | U59: 0.51021264 | V59: 0.2316433582 | W59: 0.000536586454 | X59: 0.000536586454 | Y59: 1.939958608 | Z59: 0.03763439402 | AA59: 0.03763439402 | AB59: 7.228284471 | AC59: 0.391860723 | AD59: 1.021897236 | AE59: 0.5589 | AF59: 0 | AG59: 2.140406181 | AH59: 2.013842658 | AI59: 0.03041671688 | AJ59: 0.0756 | AK59: 0.1066656004 | AL59: 0.0756 | AM59: 0.243 | AN59: 0.1689109759 | AO59: 0.0001188 | AP59: 0.0495 | AQ59: 0.5016 | AR59: 0.4851 | AS59: 0.0496188 | AT59: 3.332585178 | AU59: 375 | AV59: 0.9911913874 | AW59: 115.0393091 | AX59: 9.342780018 | AZ59: 99.11913874 | BA59: 0.51021264 | BB59: 2.490071782 | BC59: 2.300786181 | BD59: 0.1868556004 | BE59: 0.1689109759
A60: Ireverse | B60: =Ireverse -> 0 | C60: mA | D60: Reverse Leakage Current | G60: 51 | H60: 54 | I60: 1 | J60: 7.65 | K60: 7.65 | L60: 7.87037037 | M60: 0.9280106881 | N60: 0.8020229259 | O60: 8.051011463 | P60: 7.248988537 | Q60: 0 | R60: 7.653502688 | S60: 0.4100327238 | T60: 0.1 | U60: 0.5273305462 | V60: 0.2315240761 | W60: 0.0005360339781 | X60: 0.0005360339781 | Y60: 1.978202469 | Z60: 0.03913285007 | AA60: 0.03913285007 | AB60: 7.372872576 | AC60: 0.4076943751 | AD60: 1.04233518 | AE60: 0.5589 | AF60: 0 | AG60: 2.18727772 | AH60: 2.05349784 | AI60: 0.03162640035 | AJ60: 0.077112 | AK60: 0.1094305794 | AL60: 0.077112 | AM60: 0.24786 | AN60: 0.1757283102 | AO60: 0.0001188 | AP60: 0.0495 | AQ60: 0.5016 | AR60: 0.4851 | AS60: 0.0496188 | AT60: 3.41402684 | AU60: 382.5 | AV60: 0.9911534005 | AW60: 117.543266 | AX60: 9.561218971 | AZ60: 99.11534005 | BA60: 0.5273305462 | BB60: 2.5445683 | BC60: 2.35086532 | BD60: 0.1912243794 | BE60: 0.1757283102
A61: Controller | B61: Input Value | C61: Units | D61: Std Units | G61: 52 | H61: 54 | I61: 1 | J61: 7.8 | K61: 7.8 | L61: 8.024691358 | M61: 0.928051548 | N61: 0.8016096805 | O61: 8.20080484 | P61: 7.39919516 | Q61: 0 | R61: 7.80343182 | S61: 0.4262548372 | T61: 0.1 | U61: 0.5448338835 | V61: 0.2314047824 | W61: 0.0005354817332 | X61: 0.0005354817332 | Y61: 2.016426596 | Z61: 0.04065976218 | AA61: 0.04065976218 | AB61: 7.517469764 | AC61: 0.4238426374 | AD61: 1.062773125 | AE61: 0.5589 | AF61: 0 | AG61: 2.23497096 | AH61: 2.093130795 | AI61: 0.03285897394 | AJ61: 0.078624 | AK61: 0.1122204638 | AL61: 0.078624 | AM61: 0.25272 | AN61: 0.1826806445 | AO61: 0.0001188 | AP61: 0.0495 | AQ61: 0.5016 | AR61: 0.4851 | AS61: 0.0496188 | AT61: 3.496863995 | AU61: 390 | AV61: 0.9911133625 | AW61: 120.088308 | AX61: 9.78090319 | AZ61: 99.11133625 | BA61: 0.5448338835 | BB61: 2.599911424 | BC61: 2.40176616 | BD61: 0.1956180638 | BE61: 0.1826806445
A62: θJA | B62: 30 | C62: °C/W | D62: Junction to Ambient Resistance | G62: 53 | H62: 54 | I62: 1 | J62: 7.95 | K62: 7.95 | L62: 8.179012346 | M62: 0.9280924073 | N62: 0.8011963949 | O62: 8.350598197 | P62: 7.549401803 | Q62: 0 | R62: 7.953363626 | S62: 0.4427919508 | T62: 0.1 | U62: 0.5627255794 | V62: 0.2312854771 | W62: 0.0005349297193 | X62: 0.0005349297193 | Y62: 2.054630939 | Z62: 0.04221508294 | AA62: 0.04221508294 | AB62: 7.66207588 | AC62: 0.440305551 | AD62: 1.08321107 | AE62: 0.5589 | AF62: 0 | AG62: 2.283504568 | AH62: 2.13274147 | AI62: 0.03411439632 | AJ62: 0.080136 | AK62: 0.1150352681 | AL62: 0.080136 | AM62: 0.25758 | AN62: 0.1897679789 | AO62: 0.0001188 | AP62: 0.0495 | AQ62: 0.5016 | AR62: 0.4851 | AS62: 0.0496188 | AT62: 3.581118207 | AU62: 397.5 | AV62: 0.9910713368 | AW62: 122.6753684 | AX62: 10.0018334 | AZ62: 99.10713368 | BA62: 0.5627255794 | BB62: 2.656119836 | BC62: 2.453507368 | BD62: 0.2000366681 | BE62: 0.1897679789
A63: Theta Ja | B63: 2 | C63: °C/W | D63: Junction to Ambient Resistance | G63: 54 | H63: 54 | I63: 1 | J63: 8.1 | K63: 8.1 | L63: 8.333333333 | M63: 0.928133266 | N63: 0.8007830693 | O63: 8.500391535 | P63: 7.699608465 | Q63: 0 | R63: 8.103297958 | S63: 0.4596440646 | T63: 0.1 | U63: 0.5810086383 | V63: 0.2311661603 | W63: 0.0005343779367 | X63: 0.0005343779367 | Y63: 2.092815447 | Z63: 0.04379876494 | AA63: 0.04379876494 | AB63: 7.806690782 | AC63: 0.4570831573 | AD63: 1.103649015 | AE63: 0.5589 | AF63: 0 | AG63: 2.332897833 | AH63: 2.172329814 | AI63: 0.03539262615 | AJ63: 0.081648 | AK63: 0.1178750074 | AL63: 0.081648 | AM63: 0.26244 | AN63: 0.1969903134 | AO63: 0.0001188 | AP63: 0.0495 | AQ63: 0.5016 | AR63: 0.4851 | AS63: 0.0496188 | AT63: 3.666811735 | AU63: 405 | AV63: 0.9910273807 | AW63: 125.3054117 | AX63: 10.22401037 | AZ63: 99.10273807 | BA63: 0.5810086383 | BB63: 2.713212841 | BC63: 2.506108233 | BD63: 0.2044802074 | BE63: 0.1969903134
G64: 55 | H64: 54 | I64: 1 | J64: 8.25 | K64: 8.25 | L64: 8.487654321 | M64: 0.9281741239 | N64: 0.8003697036 | O64: 8.650184852 | P64: 7.849815148 | Q64: 0 | R64: 8.253234677 | S64: 0.4768111785 | T64: 0.1 | U64: 0.599686143 | V64: 0.2310468319 | W64: 0.0005338263853 | X64: 0.0005338263853 | Y64: 2.130980073 | Z64: 0.04541076073 | AA64: 0.04541076073 | AB64: 7.951314337 | AC64: 0.4741754977 | AD64: 1.124086959 | AE64: 0.5589 | AF64: 0 | AG64: 2.383170686 | AH64: 2.211895781 | AI64: 0.0366936221 | AJ64: 0.08316 | AK64: 0.1207396975 | AL64: 0.08316 | AM64: 0.2673 | AN64: 0.2043476479 | AO64: 0.0001188 | AP64: 0.0495 | AQ64: 0.5016 | AR64: 0.4851 | AS64: 0.0496188 | AT64: 3.753967562 | AU64: 412.5 | AV64: 0.9909815453 | AW64: 127.9794343 | AX64: 10.44743487 | AZ64: 99.09815453 | BA64: 0.599686143 | BB64: 2.771210384 | BC64: 2.559588686 | BD64: 0.2089486975 | BE64: 0.2043476479
G65: 56 | H65: 54 | I65: 1 | J65: 8.4 | K65: 8.4 | L65: 8.641975309 | M65: 0.9282149812 | N65: 0.7999562978 | O65: 8.799978149 | P65: 8.000021851 | Q65: 0 | R65: 8.403173657 | S65: 0.4942932925 | T65: 0.1 | U65: 0.6187612556 | V65: 0.2309274919 | W65: 0.0005332750653 | X65: 0.0005332750653 | Y65: 2.169124775 | Z65: 0.04705102289 | AA65: 0.04705102289 | AB65: 8.095946422 | AC65: 0.4915826135 | AD65: 1.144524904 | AE65: 0.5589 | AF65: 0 | AG65: 2.434343728 | AH65: 2.251439328 | AI65: 0.03801734284 | AJ65: 0.084672 | AK65: 0.1236293548 | AL65: 0.084672 | AM65: 0.27216 | AN65: 0.2118399825 | AO65: 0.0001188 | AP65: 0.0495 | AQ65: 0.5016 | AR65: 0.4851 | AS65: 0.0496188 | AT65: 3.842609419 | AU65: 420 | AV65: 0.9909338766 | AW65: 130.6984664 | AX65: 10.67210774 | AZ65: 99.09338766 | BA65: 0.6187612556 | BB65: 2.830133083 | BC65: 2.613969328 | BD65: 0.2134421548 | BE65: 0.2118399825
A66: Outputs | G66: 57 | H66: 54 | I66: 1 | J66: 8.55 | K66: 8.55 | L66: 8.796296296 | M66: 0.9282558377 | N66: 0.7995428519 | O66: 8.949771426 | P66: 8.150228574 | Q66: 0 | R66: 8.553114778 | S66: 0.5120904068 | T66: 0.1 | U66: 0.6382372194 | V66: 0.2308081404 | W66: 0.0005327239767 | X66: 0.0005327239767 | Y66: 2.20724951 | Z66: 0.04871950398 | AA66: 0.04871950398 | AB66: 8.24058692 | AC66: 0.5093045459 | AD66: 1.164962849 | AE66: 0.5589 | AF66: 0 | AG66: 2.486438256 | AH66: 2.290960411 | AI66: 0.03936374704 | AJ66: 0.086184 | AK66: 0.1265439962 | AL66: 0.086184 | AM66: 0.27702 | AN66: 0.2194673172 | AO66: 0.0001188 | AP66: 0.0495 | AQ66: 0.5016 | AR66: 0.4851 | AS66: 0.0496188 | AT66: 3.932761817 | AU66: 427.5 | AV66: 0.9908844155 | AW66: 133.4635728 | AX66: 10.89802981 | AZ66: 99.08844155 | BA66: 0.6382372194 | BB66: 2.890002252 | BC66: 2.669271456 | BD66: 0.2179605962 | BE66: 0.2194673172
A67: Design | B67: Value | C67: Units | G67: 58 | H67: 54 | I67: 1 | J67: 8.7 | K67: 8.7 | L67: 8.950617284 | M67: 0.9282966936 | N67: 0.7991293659 | O67: 9.099564683 | P67: 8.300435317 | Q67: 0 | R67: 8.703057929 | S67: 0.5302025212 | T67: 0.1 | U67: 0.6581173599 | V67: 0.2306887773 | W67: 0.0005321731196 | X67: 0.0005321731196 | Y67: 2.245354238 | Z67: 0.05041615654 | AA67: 0.05041615654 | AB67: 8.385235727 | AC67: 0.5273413365 | AD67: 1.185400794 | AE67: 0.5589 | AF67: 0 | AG67: 2.539476295 | AH67: 2.330458993 | AI67: 0.04073279337 | AJ67: 0.087696 | AK67: 0.1294836394 | AL67: 0.087696 | AM67: 0.28188 | AN67: 0.2272296519 | AO67: 0.0001188 | AP67: 0.0495 | AQ67: 0.5016 | AR67: 0.4851 | AS67: 0.0496188 | AT67: 4.024450075 | AU67: 435 | AV67: 0.9908331983 | AW67: 136.2758547 | AX67: 11.12520197 | AZ67: 99.08331983 | BA67: 0.6581173599 | BB67: 2.950839934 | BC67: 2.725517095 | BD67: 0.2225040394 | BE67: 0.2272296519
A68: Dmax | B68: =D1_Vinmin -> 0.9615384615 | C68: index | G68: 59 | H68: 54 | I68: 1 | J68: 8.85 | K68: 8.85 | L68: 9.104938272 | M68: 0.9283375489 | N68: 0.7987158399 | O68: 9.24935792 | P68: 8.45064208 | Q68: 0 | R68: 8.853003007 | S68: 0.5486296357 | T68: 0.1 | U68: 0.6784050866 | V68: 0.2305694026 | W68: 0.0005316224941 | X68: 0.0005316224941 | Y68: 2.283438922 | Z68: 0.05214093312 | AA68: 0.05214093312 | AB68: 8.529892742 | AC68: 0.5456930264 | AD68: 1.205838738 | AE68: 0.5589 | AF68: 0 | AG68: 2.593480623 | AH68: 2.369935034 | AI68: 0.0421244405 | AJ68: 0.089208 | AK68: 0.1324483026 | AL68: 0.089208 | AM68: 0.28674 | AN68: 0.2351269867 | AO68: 0.0001188 | AP68: 0.0495 | AQ68: 0.5016 | AR68: 0.4851 | AS68: 0.0496188 | AT68: 4.117700354 | AU68: 442.5 | AV68: 0.9907802571 | AW68: 139.1364511 | AX68: 11.35362513 | AZ68: 99.07802571 | BA68: 0.6784050866 | BB68: 3.012668925 | BC68: 2.782729023 | BD68: 0.2270725026 | BE68: 0.2351269867
A69: Dprime | B69: =1-B68 -> 0.03846153846 | C69: index | G69: 60 | H69: 54 | I69: 1 | J69: 9 | K69: 9 | L69: 9.259259259 | M69: 0.9283784034 | N69: 0.7983022738 | O69: 9.399151137 | P69: 8.600848863 | Q69: 0 | R69: 9.002949917 | S69: 0.5673717505 | T69: 0.1 | U69: 0.6991038945 | V69: 0.2304500163 | W69: 0.0005310721002 | X69: 0.0005310721002 | Y69: 2.321503527 | Z69: 0.05389378626 | AA69: 0.05389378626 | AB69: 8.674557871 | AC69: 0.564359657 | AD69: 1.226276683 | AE69: 0.5589 | AF69: 0 | AG69: 2.648474807 | AH69: 2.409388501 | AI69: 0.04353864711 | AJ69: 0.09072 | AK69: 0.1354380046 | AL69: 0.09072 | AM69: 0.2916 | AN69: 0.2431593216 | AO69: 0.0001188 | AP69: 0.0495 | AQ69: 0.5016 | AR69: 0.4851 | AS69: 0.0496188 | AT69: 4.212539686 | AU69: 450 | AV69: 0.99072562 | AW69: 142.0465403 | AX69: 11.58330023 | AZ69: 99.072562 | BA69: 0.6991038945 | BB69: 3.075512811 | BC69: 2.840930807 | BD69: 0.2316660046 | BE69: 0.2431593216
A70: Ipp | B70: =Iripple_Vinnom -> 0.8248270474 | C70: A | G70: 61 | H70: 54 | I70: 1 | J70: 9.15 | K70: 9.15 | L70: 9.413580247 | M70: 0.9284192572 | N70: 0.7978886676 | O70: 9.548944334 | P70: 8.751055666 | Q70: 0 | R70: 9.152898568 | S70: 0.5864288654 | T70: 0.1 | U70: 0.7202173656 | V70: 0.2303306185 | W70: 0.0005305219382 | X70: 0.0005305219382 | Y70: 2.359548018 | Z70: 0.05567466847 | AA70: 0.05567466847 | AB70: 8.819231029 | AC70: 0.5833412696 | AD70: 1.246714628 | AE70: 0.5589 | AF70: 0 | AG70: 2.704483234 | AH70: 2.448819358 | AI70: 0.04497537188 | AJ70: 0.092232 | AK70: 0.1384527648 | AL70: 0.092232 | AM70: 0.29646 | AN70: 0.2513266566 | AO70: 0.0001188 | AP70: 0.0495 | AQ70: 0.5016 | AR70: 0.4851 | AS70: 0.0496188 | AT70: 4.308996011 | AU70: 457.5 | AV70: 0.9906693112 | AW70: 145.0073417 | AX70: 11.81422824 | AZ70: 99.06693112 | BA70: 0.7202173656 | BB70: 3.139395999 | BC70: 2.900146834 | BD70: 0.2362845648 | BE70: 0.2513266566
A71: Top FET | B71: Value | C71: Units | G71: 62 | H71: 54 | I71: 1 | J71: 9.3 | K71: 9.3 | L71: 9.567901235 | M71: 0.9284601104 | N71: 0.7974750213 | O71: 9.698737511 | P71: 8.901262489 | Q71: 0 | R71: 9.302848876 | S71: 0.6058009804 | T71: 0.1 | U71: 0.7417491704 | V71: 0.2302112091 | W71: 0.000529972008 | X71: 0.000529972008 | Y71: 2.397572362 | Z71: 0.05748353229 | AA71: 0.05748353229 | AB71: 8.963912134 | AC71: 0.6026379055 | AD71: 1.267152572 | AE71: 0.5589 | AF71: 0 | AG71: 2.761531147 | AH71: 2.488227575 | AI71: 0.04643457347 | AJ71: 0.093744 | AK71: 0.1414926032 | AL71: 0.093744 | AM71: 0.30132 | AN71: 0.2596289916 | AO71: 0.0001188 | AP71: 0.0495 | AQ71: 0.5016 | AR71: 0.4851 | AS71: 0.0496188 | AT71: 4.407098217 | AU71: 465 | AV71: 0.9906113516 | AW71: 148.0201174 | AX71: 12.04641016 | AZ71: 99.06113516 | BA71: 0.7417491704 | BB71: 3.20434375 | BC71: 2.960402347 | BD71: 0.2409282032 | BE71: 0.2596289916
A72: Tr | B72: =(Qgd_Q1+Qgs_Q1/2)*(RdsonDRT+Rgate1)/(VCC-Vsp_Q1)*1000000000 -> 4.909357735 | C72: ns | D72: Turn on of MOSFET -> Rise time of current | G72: 63 | H72: 54 | I72: 1 | J72: 9.45 | K72: 9.45 | L72: 9.722222222 | M72: 0.9285009629 | N72: 0.7970613349 | O72: 9.848530667 | P72: 9.051469333 | Q72: 0 | R72: 9.452800761 | S72: 0.6254880956 | T72: 0.1 | U72: 0.7637030699 | V72: 0.2300917881 | W72: 0.0005294223097 | X72: 0.0005294223097 | Y72: 2.435576528 | Z72: 0.05932033022 | AA72: 0.05932033022 | AB72: 9.108601108 | AC72: 0.6222496062 | AD72: 1.287590517 | AE72: 0.5589 | AF72: 0 | AG72: 2.819644682 | AH72: 2.527613119 | AI72: 0.04791621058 | AJ72: 0.095256 | AK72: 0.1445575405 | AL72: 0.095256 | AM72: 0.30618 | AN72: 0.2680663267 | AO72: 0.0001188 | AP72: 0.0495 | AQ72: 0.5016 | AR72: 0.4851 | AS72: 0.0496188 | AT72: 4.506876171 | AU72: 472.5 | AV72: 0.9905517585 | AW72: 151.0861741 | AX72: 12.27984702 | AZ72: 99.05517585 | BA72: 0.7637030699 | BB72: 3.270382222 | BC72: 3.021723482 | BD72: 0.2455969405 | BE72: 0.2680663267
A73: Tf | B73: =(Qgd_Q1+Qgs_Q1/2)*(RdsonDRT2+Rgate1)/(Vsp_Q1)*1000000000 -> 6.304878049 | C73: ns | D73: Turn off of MOSFET -> Fall time of current | G73: 64 | H73: =Vin -> 54 | I73: =MODE -> 1 | J73: 9.6 | K73: =Iout*G73/100/Number_of_Phases -> 9.6 | L73: =Vout*K73/(Vin*Efficiency) -> 9.87654321 | M73: =(Vout+(Rdson2+Rs+Rdcr)*K73)/(Vin+(Rs+Rdson2-Rdson1)*K73) -> 0.9285418147 | N73: =(Vin-(Rdson1+Rdcr)*K73-Vout)*M73/(Fsw*Lf) -> 0.7966476085 | O73: 9.998323804 | P73: 9.201676196 | Q73: =IF(MIN(Vin, -P73/(Coss_Q1+Coss_Q2)*0.00000002)<0, 0, MIN(Vin, -P73/(Coss_Q1+Coss_Q2)*0.00000002)) -> 0 | R73: 9.602754151 | S73: =R73^2*Rdcr -> 0.645490211 | T73: =Core_Loss_Ch1 -> 0.1 | U73: =(T73+S73*(1+Ltc*(Ta-25)))/(1-S73*Ltc*ThetaCa) -> 0.7860829172 | V73: 0.2299723556 | W73: 0.0005288728435 | X73: 0.0005288728435 | Y73: 2.473560486 | Z73: 0.06118501477 | AA73: 0.06118501477 | AB73: 9.253297882 | AC73: =Rdson1*AB73^2 -> 0.6421764128 | AD73: =(Vin*K73/2)*Fsw*(Tr_buck+Tf_buck) -> 1.308028462 | AE73: =(0.5*Coss_Q1*(Vin-Q73)^2-0.5*Coss_Q2*(Vin-Q73)^2+(Qoss_Q2*(Vin-Q73)/Vin)*Vin)*Fsw -> 0.5589 | AF73: =IF(K73>N73/2,0,ABS(K73-N73/2)*Vsd_Q1*Deadtime*Fsw) -> 0 | AG73: =(AF73+AE73+AD73+AC73*(1+RdsonTopTc*Ta-RdsonTopTc*25))/(1-AC73*RdsonTopTc*ThetaJA_Q1) -> 2.878850904 | AH73: =SQRT((1-M73))*SQRT(K73^2+(N73^2)/12) -> 2.566975961 | AI73: =Rdson2*AH73^2 -> 0.04942024187 | AJ73: =IF(K73<N73/2,Deadtime*Fsw*IF(VfdSky_Q2>0,0,Vsd_Q2)*(K73+N73/2),2*Deadtime*Fsw*IF(VfdSky_Q2>0,0,Vsd_Q2)*K73) -> 0.096768 | AK73: =(AJ73+AI73*(1+RdsonBotTc*Ta-RdsonBotTc*25))/(1-AI73*RdsonBotTc*ThetaJA_Q2) -> 0.1476475979 | AL73: =2*Deadtime*Fsw*IF(VfdSky_Q2>0,VfdSky_Q2,Vsd_Q2)*K73 -> 0.096768 | AM73: =IF(QrrSky_Q2>0,QrrSky_Q2,Qrr_Q2*K73/(Iout/Number_of_Phases))*Fsw*Vin -> 0.31104 | AN73: =Rs*R73^2 -> 0.2766386619 | AO73: =Iq*Vin -> 0.0001188 | AP73: =IF(Ext_VCC=1, (Qg_Q1+Qg_Q2)*Fsw*VCC, (Qg_Q1+Qg_Q2)*Fsw*Vin) -> 0.0495 | AQ73: =(Vin-VCC)*Fsw*(Qg_Q1+Qg_Q2)+(RdsonDRT+RdsonDRT2)*Fsw*Qg_Q1*VCC/(RdsonDRT+2*Rgate1+RdsonDRT2)+(RdsonDRB+RdsonDRB2)*Fsw*Qg_Q2*VCC/(RdsonDRB+2*Rgate2+RdsonDRB2) -> 0.5016 | AR73: =(Qg_Q1+Qg_Q2)*Fsw*(Vin-VCC) -> 0.4851 | AS73: 0.0496188 | AT73: =SUM(U73,X73,AA73,AG73,AK73,AL73,AM73,AS73,AN73) -> 4.608360768 | AU73: =Vout*K73 -> 480 | AV73: 0.9904905463 | AW73: =ThetaJA_Q1*BC73 -> 154.2068652 | AX73: =ThetaJA_Q2*BD73 -> 12.51453989 | AZ73: 99.04905463 | BA73: =U73 -> 0.7860829172 | BB73: 3.337538502 | BC73: 3.084137304 | BD73: 0.2502907979 | BE73: 0.2766386619
A74: Part Power | B74: Value | C74: Units | G74: 65 | H74: 54 | I74: 1 | J74: =Iout*G74/100 -> 9.75 | K74: 9.75 | L74: 10.0308642 | M74: 0.9285826659 | N74: 0.796233842 | O74: =K74+N74/2 -> 10.14811692 | P74: =K74-N74/2 -> 9.351883079 | Q74: 0 | R74: =SQRT(K74^2+(N74^2)/12) -> 9.752708976 | S74: 0.6658073265 | T74: 0.1 | U74: 0.8088926592 | V74: =N74/SQRT(12) -> 0.2298529115 | W74: =RCoutEsr*V74^2 -> 0.0005283236093 | X74: =W74 -> 0.0005283236093 | Y74: =SQRT(M74*(1-M74))*SQRT(K74^2+(N74^2)/12) -> 2.511524207 | Z74: =RCinEsr*Y74^2 -> 0.06307753843 | AA74: =Z74 -> 0.06307753843 | AB74: =SQRT(M74)*SQRT(K74^2+(N74^2)/12) -> 9.398002388 | AC74: 0.6624183667 | AD74: 1.328466407 | AE74: 0.5589 | AF74: 0 | AG74: 2.939177852 | AH74: 2.606316073 | AI74: 0.05094662604 | AJ74: 0.09828 | AK74: 0.1507627972 | AL74: 0.09828 | AM74: 0.3159 | AN74: 0.2853459971 | AO74: 0.0001188 | AP74: 0.0495 | AQ74: 0.5016 | AR74: 0.4851 | AS74: 0.0496188 | AT74: 4.711583967 | AU74: 487.5 | AV74: =AU74/(AU74+AT74) -> 0.9904277264 | AW74: 157.3835926 | AX74: 12.75048986 | AZ74: =AV74*100 -> 99.04277264 | BA74: 0.8088926592 | BB74: =AG74+AK74+AM74 -> 3.405840649 | BC74: =AG74+AM74*0.66 -> 3.147671852 | BD74: =AK74+AM74*0.33 -> 0.2550097972 | BE74: =AN74 -> 0.2853459971
A75: Power Dis | B75: =AS9 -> 0.0496188 | C75: W | G75: 66 | H75: 54 | I75: 1 | J75: 9.9 | K75: 9.9 | L75: 10.18518519 | M75: 0.9286235163 | N75: 0.7958200355 | O75: 10.29791002 | P75: 9.502089982 | Q75: 0 | R75: 9.90266517 | S75: 0.6864394422 | T75: 0.1 | U75: 0.8321363386 | V75: 0.2297334558 | W75: 0.0005277746074 | X75: 0.0005277746074 | Y75: 2.549467664 | Z75: 0.06499785371 | AA75: 0.06499785371 | AB75: 9.542714563 | AC75: 0.6829755092 | AD75: 1.348904351 | AE75: 0.5589 | AF75: 0 | AG75: 3.000654578 | AH75: 2.645633428 | AI75: 0.05249532176 | AJ75: 0.099792 | AK75: 0.1539031609 | AL75: 0.099792 | AM75: 0.32076 | AN75: 0.2941883324 | AO75: 0.0001188 | AP75: 0.0495 | AQ75: 0.5016 | AR75: 0.4851 | AS75: =SUM(AO75:AP75) -> 0.0496188 | AT75: 4.816578838 | AU75: 495 | AV75: 0.9903633072 | AW75: 160.6178089 | AX75: 12.98769805 | AZ75: 99.03633072 | BA75: 0.8321363386 | BB75: 3.475317739 | BC75: 3.212356178 | BD75: 0.2597539609 | BE75: 0.2941883324
A76: Temp rise | B76: =B75*B62 -> 1.488564 | C76: °C | G76: 67 | H76: 54 | I76: 1 | J76: 10.05 | K76: 10.05 | L76: 10.33950617 | M76: 0.9286643661 | N76: 0.7954061888 | O76: 10.44770309 | P76: 9.652296906 | Q76: 0 | R76: 10.05262267 | S76: 0.7073865581 | T76: 0.1 | U76: 0.8558180954 | V76: 0.2296139886 | W76: 0.0005272258377 | X76: 0.0005272258377 | Y76: 2.58739083 | Z76: 0.06694591308 | AA76: 0.06694591308 | AB76: 9.687434347 | AC76: 0.7038478817 | AD76: 1.369342296 | AE76: 0.5589 | AF76: 0 | AG76: 3.063311197 | AH76: 2.684927999 | AI76: 0.05406628771 | AJ76: 0.101304 | AK76: 0.1570687122 | AL76: 0.101304 | AM76: 0.32562 | AN76: 0.3031656678 | AO76: 0.0001188 | AP76: 0.0495 | AQ76: 0.5016 | AR76: 0.4851 | AS76: 0.0496188 | AT76: 4.923379611 | AU76: 502.5 | AV76: 0.9902972945 | AW76: 163.9110198 | AX76: 13.22616561 | AZ76: 99.02972945 | BA76: 0.8558180954 | BB76: 3.545999909 | BC76: 3.278220397 | BD76: 0.2645233122 | BE76: 0.3031656678
A77: Current (switching) | B77: =(Qg_Q1+Qg_Q2)*Fsw+Iq -> 0.0099022 | C77: A | G77: 68 | H77: 54 | I77: 1 | J77: 10.2 | K77: 10.2 | L77: 10.49382716 | M77: 0.9287052152 | N77: 0.7949923021 | O77: 10.59749615 | P77: 9.802503849 | Q77: 0 | R77: 10.20258142 | S77: 0.7286486741 | T77: 0.1 | U77: 0.8799421697 | V77: 0.2294945098 | W77: 0.0005266773003 | X77: 0.0005266773003 | Y77: 2.625293679 | Z77: 0.06892166901 | AA77: 0.06892166901 | AB77: 9.832161684 | AC77: 0.7250355254 | AD77: 1.389780241 | AE77: 0.5589 | AF77: 0 | AG77: 3.12717893 | AH77: 2.724199762 | AI77: 0.05565948259 | AJ77: 0.102816 | AK77: 0.1602594745 | AL77: 0.102816 | AM77: 0.33048 | AN77: 0.3122780032 | AO77: 0.0001188 | AP77: 0.0495 | AQ77: 0.5016 | AR77: 0.4851 | AS77: 0.0496188 | AT77: 5.032021723 | AU77: 510 | AV77: 0.9902296915 | AW77: 167.2647865 | AX77: 13.46589372 | AZ77: 99.02296915 | BA77: 0.8799421697 | BB77: 3.617918404 | BC77: 3.34529573 | BD77: 0.2693178745 | BE77: 0.3122780032
A78: Qrr Current | B78: =Qrr_Q2*Fsw -> 0.009 | C78: A | G78: 69 | H78: 54 | I78: 1 | J78: 10.35 | K78: 10.35 | L78: 10.64814815 | M78: 0.9287460636 | N78: 0.7945783753 | O78: 10.74728919 | P78: 9.952710812 | Q78: 0 | R78: 10.35254137 | S78: 0.7502257903 | T78: 0.1 | U78: 0.9045129029 | V78: 0.2293750194 | W78: 0.0005261289954 | X78: 0.0005261289954 | Y78: 2.663176186 | Z78: 0.07092507398 | AA78: 0.07092507398 | AB78: 9.976896523 | AC78: 0.7465384817 | AD78: 1.410218185 | AE78: 0.5589 | AF78: 0 | AG78: 3.192290156 | AH78: 2.763448693 | AI78: 0.05727486508 | AJ78: 0.104328 | AK78: 0.1634754722 | AL78: 0.104328 | AM78: 0.33534 | AN78: 0.3215253387 | AO78: 0.0001188 | AP78: 0.0495 | AQ78: 0.5016 | AR78: 0.4851 | AS78: 0.0496188 | AT78: 5.142541873 | AU78: 517.5 | AV78: 0.9901604989 | AW78: 170.6807278 | AX78: 13.70688361 | AZ78: 99.01604989 | BA78: 0.9045129029 | BB78: 3.691105629 | BC78: 3.413614556 | BD78: 0.2741376722 | BE78: 0.3215253387
A79: Diode Current | B79: =Deadtime*Fsw*(Iripple_Vinnom/2)*(Vsd_Q2)/Vin -> 3.849192888e-05 | G79: 70 | H79: 54 | I79: 1 | J79: 10.5 | K79: 10.5 | L79: 10.80246914 | M79: 0.9287869113 | N79: 0.7941644085 | O79: 10.8970822 | P79: 10.1029178 | Q79: 0 | R79: 10.50250247 | S79: 0.7721179066 | T79: 0.1 | U79: 0.9295347401 | V79: 0.2292555175 | W79: 0.0005255809231 | X79: 0.0005255809231 | Y79: 2.701038327 | Z79: 0.07295608045 | AA79: 0.07295608045 | AB79: 10.12163881 | AC79: 0.7683567918 | AD79: 1.43065613 | AE79: 0.5589 | AF79: 0 | AG79: 3.258678469 | AH79: 2.802674767 | AI79: 0.05891239387 | AJ79: 0.10584 | AK79: 0.1667167302 | AL79: 0.10584 | AM79: 0.3402 | AN79: 0.3309076743 | AO79: 0.0001188 | AP79: 0.0495 | AQ79: 0.5016 | AR79: 0.4851 | AS79: 0.0496188 | AT79: 5.254978075 | AU79: 525 | AV79: 0.9900897148 | AW79: 174.1605234 | AX79: 13.94913651 | AZ79: 99.00897148 | BA79: 0.9295347401 | BB79: 3.765595199 | BC79: 3.483210469 | BD79: 0.2789827302 | BE79: 0.3309076743
A80: Total | B80: =SUM(B77:B79) -> 0.01894069193 | C80: A | G80: 71 | H80: 54 | I80: 1 | J80: 10.65 | K80: 10.65 | L80: 10.95679012 | M80: 0.9288277584 | N80: 0.7937504015 | O80: 11.0468752 | P80: 10.2531248 | Q80: 0 | R80: 10.65246466 | S80: 0.7943250232 | T80: 0.1 | U80: 0.9550122322 | V80: 0.229136004 | W80: 0.0005250330833 | X80: 0.0005250330833 | Y80: 2.738880079 | Z80: 0.07501464087 | AA80: 0.07501464087 | AB80: 10.26638851 | AC80: 0.7904904972 | AD80: 1.451094075 | AE80: 0.5589 | AF80: 0 | AG80: 3.326378727 | AH80: 2.841877962 | AI80: 0.06057202764 | AJ80: 0.107352 | AK80: 0.169983274 | AL80: 0.107352 | AM80: 0.34506 | AN80: 0.3404250099 | AO80: 0.0001188 | AP80: 0.0495 | AQ80: 0.5016 | AR80: 0.4851 | AS80: 0.0496188 | AT80: 5.369369717 | AU80: 532.5 | AV80: 0.990017335 | AW80: 177.7059163 | AX80: 14.1926537 | AZ80: 99.0017335 | BA80: 0.9550122322 | BB80: 3.841422001 | BC80: 3.554118327 | BD80: 0.283853074 | BE80: 0.3404250099
G81: 72 | H81: 54 | I81: 1 | J81: 10.8 | K81: 10.8 | L81: 11.11111111 | M81: 0.9288686048 | N81: 0.7933363546 | O81: 11.19666818 | P81: 10.40333182 | Q81: 0 | R81: 10.8024279 | S81: 0.8168471398 | T81: 0.1 | U81: 0.9809500385 | V81: 0.2290164789 | W81: 0.0005244854762 | X81: 0.0005244854762 | Y81: 2.776701419 | Z81: 0.07710070769 | AA81: 0.07710070769 | AB81: 10.41114556 | AC81: 0.812939639 | AD81: 1.47153202 | AE81: 0.5589 | AF81: 0 | AG81: 3.395427118 | AH81: 2.881058257 | AI81: 0.06225372509 | AJ81: 0.108864 | AK81: 0.1732751295 | AL81: 0.108864 | AM81: 0.34992 | AN81: 0.3500773456 | AO81: 0.0001188 | AP81: 0.0495 | AQ81: 0.5016 | AR81: 0.4851 | AS81: 0.0496188 | AT81: 5.485757624 | AU81: 540 | AV81: 0.9899433532 | AW81: 181.3187159 | AX81: 14.43743648 | AZ81: 98.99433532 | BA81: 0.9809500385 | BB81: 3.918622247 | BC81: 3.626374318 | BD81: 0.2887487295 | BE81: 0.3500773456
G82: 73 | H82: 54 | I82: 1 | J82: 10.95 | K82: 10.95 | L82: 11.2654321 | M82: 0.9289094505 | N82: 0.7929222675 | O82: 11.34646113 | P82: 10.55353887 | Q82: 0 | R82: 10.95239215 | S82: 0.8396842567 | T82: 0.1 | U82: 1.007352928 | V82: 0.2288969423 | W82: 0.0005239381019 | X82: 0.0005239381019 | Y82: 2.814502324 | Z82: 0.07921423334 | AA82: 0.07921423334 | AB82: 10.55590993 | AC82: 0.8357042587 | AD82: 1.491969964 | AE82: 0.5589 | AF82: 0 | AG82: 3.465861219 | AH82: 2.920215629 | AI82: 0.06395744491 | AJ82: 0.110376 | AK82: 0.1765923237 | AL82: 0.110376 | AM82: 0.35478 | AN82: 0.3598646814 | AO82: 0.0001188 | AP82: 0.0495 | AQ82: 0.5016 | AR82: 0.4851 | AS82: 0.0496188 | AT82: 5.604184124 | AU82: 547.5 | AV82: 0.9898677604 | AW82: 185.000801 | AX82: 14.68348618 | AZ82: 98.98677604 | BA82: 1.007352928 | BB82: 3.997233543 | BC82: 3.700016019 | BD82: 0.2936697237 | BE82: 0.3598646814
G83: 74 | H83: 54 | I83: 1 | J83: 11.1 | K83: 11.1 | L83: 11.41975309 | M83: 0.9289502955 | N83: 0.7925081404 | O83: 11.49625407 | P83: 10.70374593 | Q83: 0 | R83: 11.10235737 | S83: 0.8628363737 | T83: 0.1 | U83: 1.034225784 | V83: 0.2287773941 | W83: 0.0005233909605 | X83: 0.0005233909605 | Y83: 2.852282775 | Z83: 0.08135517026 | AA83: 0.08135517026 | AB83: 10.70068158 | AC83: 0.8587843974 | AD83: 1.512407909 | AE83: 0.5589 | AF83: 0 | AG83: 3.537720065 | AH83: 2.959350059 | AI83: 0.0656831458 | AJ83: 0.111888 | AK83: 0.1799348836 | AL83: 0.111888 | AM83: 0.35964 | AN83: 0.3697870173 | AO83: 0.0001188 | AP83: 0.0495 | AQ83: 0.5016 | AR83: 0.4851 | AS83: 0.0496188 | AT83: 5.724693111 | AU83: 555 | AV83: 0.9897905457 | AW83: 188.7541233 | AX83: 14.93080418 | AZ83: 98.97905457 | BA83: 1.034225784 | BB83: 4.077294949 | BC83: 3.775082465 | BD83: 0.2986160836 | BE83: 0.3697870173
G84: 75 | H84: 54 | I84: 1 | J84: 11.25 | K84: 11.25 | L84: 11.57407407 | M84: 0.9289911398 | N84: 0.7920939732 | O84: 11.64604699 | P84: 10.85395301 | Q84: 0 | R84: 11.25232351 | S84: 0.8863034908 | T84: 0.1 | U84: 1.061573602 | V84: 0.2286578343 | W84: 0.000522844052 | X84: 0.000522844052 | Y84: 2.890042748 | Z84: 0.08352347087 | AA84: 0.08352347087 | AB84: 10.84546047 | AC84: 0.8821800966 | AD84: 1.532845854 | AE84: 0.5589 | AF84: 0 | AG84: 3.611044218 | AH84: 2.998461526 | AI84: 0.06743078644 | AJ84: 0.1134 | AK84: 0.1833028373 | AL84: 0.1134 | AM84: 0.3645 | AN84: 0.3798443532 | AO84: 0.0001188 | AP84: 0.0495 | AQ84: 0.5016 | AR84: 0.4851 | AS84: 0.0496188 | AT84: 5.847330125 | AU84: 562.5 | AV84: 0.989711696 | AW84: 192.5807109 | AX84: 15.17939187 | AZ84: 98.9711696 | BA84: 1.061573602 | BB84: 4.158847055 | BC84: 3.851614218 | BD84: 0.3035878373 | BE84: 0.3798443532
G85: 76 | H85: 54 | I85: 1 | J85: 11.4 | K85: 11.4 | L85: 11.72839506 | M85: 0.9290319834 | N85: 0.791679766 | O85: 11.79583988 | P85: 11.00416012 | Q85: 0 | R85: 11.40229055 | S85: 0.9100856082 | T85: 0.1 | U85: 1.089401498 | V85: 0.228538263 | W85: 0.0005222973766 | X85: 0.0005222973766 | Y85: 2.927782225 | Z85: 0.08571908759 | AA85: 0.08571908759 | AB85: 10.99024657 | AC85: 0.9058913975 | AD85: 1.553283798 | AE85: 0.5589 | AF85: 0 | AG85: 3.685875839 | AH85: 3.037550011 | AI85: 0.06920032554 | AJ85: 0.114912 | AK85: 0.1866962133 | AL85: 0.114912 | AM85: 0.36936 | AN85: 0.3900366892 | AO85: 0.0001188 | AP85: 0.0495 | AQ85: 0.5016 | AR85: 0.4851 | AS85: 0.0496188 | AT85: 5.972142424 | AU85: 570 | AV85: 0.9896311957 | AW85: 196.4826719 | AX85: 15.42925066 | AZ85: 98.96311957 | BA85: 1.089401498 | BB85: 4.241932052 | BC85: 3.929653439 | BD85: 0.3085850133 | BE85: 0.3900366892
G86: 77 | H86: 54 | I86: 1 | J86: 11.55 | K86: 11.55 | L86: 11.88271605 | M86: 0.9290728264 | N86: 0.7912655187 | O86: 11.94563276 | P86: 11.15436724 | Q86: 0 | R86: 11.55225844 | S86: 0.9341827257 | T86: 0.1 | U86: 1.117714707 | V86: 0.2284186801 | W86: 0.0005217509342 | X86: 0.0005217509342 | Y86: 2.965501186 | Z86: 0.08794197282 | AA86: 0.08794197282 | AB86: 11.13503984 | AC86: 0.9299183414 | AD86: 1.573721743 | AE86: 0.5589 | AF86: 0 | AG86: 3.762258772 | AH86: 3.076615495 | AI86: 0.07099172179 | AJ86: 0.116424 | AK86: 0.1901150406 | AL86: 0.116424 | AM86: 0.37422 | AN86: 0.4003640253 | AO86: 0.0001188 | AP86: 0.0495 | AQ86: 0.5016 | AR86: 0.4851 | AS86: 0.0496188 | AT86: 6.099179069 | AU86: 577.5 | AV86: 0.9895490273 | AW86: 200.4621986 | AX86: 15.68038203 | AZ86: 98.95490273 | BA86: 1.117714707 | BB86: 4.326593813 | BC86: 4.009243972 | BD86: 0.3136076406 | BE86: 0.4003640253
G87: 78 | H87: 54 | I87: 1 | J87: 11.7 | K87: 11.7 | L87: 12.03703704 | M87: 0.9291136687 | N87: 0.7908512313 | O87: 12.09542562 | P87: 11.30457438 | Q87: 0 | R87: 11.70222716 | S87: 0.9585948433 | T87: 0.1 | U87: 1.146518588 | V87: 0.2282990856 | W87: 0.0005212047251 | X87: 0.0005212047251 | Y87: 3.00319961 | Z87: 0.09019207898 | AA87: 0.09019207898 | AB87: 11.27984025 | AC87: 0.9542609696 | AD87: 1.594159688 | AE87: 0.5589 | AF87: 0 | AG87: 3.840238624 | AH87: 3.115657959 | AI87: 0.0728049339 | AJ87: 0.117936 | AK87: 0.193559349 | AL87: 0.117936 | AM87: 0.37908 | AN87: 0.4108263614 | AO87: 0.0001188 | AP87: 0.0495 | AQ87: 0.5016 | AR87: 0.4851 | AS87: 0.0496188 | AT87: 6.228491006 | AU87: 585 | AV87: 0.9894651711 | AW87: 204.5215712 | AX87: 15.93278745 | AZ87: 98.94651711 | BA87: 1.146518588 | BB87: 4.412877973 | BC87: 4.090431424 | BD87: 0.318655749 | BE87: 0.4108263614
G88: 79 | H88: 54 | I88: 1 | J88: 11.85 | K88: 11.85 | L88: 12.19135802 | M88: 0.9291545103 | N88: 0.7904369039 | O88: 12.24521845 | P88: 11.45478155 | Q88: 0 | R88: 11.85219667 | S88: 0.9833219611 | T88: 0.1 | U88: 1.175818623 | V88: 0.2281794796 | W88: 0.0005206587492 | X88: 0.0005206587492 | Y88: 3.040877479 | Z88: 0.09246935844 | AA88: 0.09246935844 | AB88: 11.42464776 | AC88: 0.9789193235 | AD88: 1.614597633 | AE88: 0.5589 | AF88: 0 | AG88: 3.919862855 | AH88: 3.154677386 | AI88: 0.07463992055 | AJ88: 0.119448 | AK88: 0.1970291689 | AL88: 0.119448 | AM88: 0.38394 | AN88: 0.4214236976 | AO88: 0.0001188 | AP88: 0.0495 | AQ88: 0.5016 | AR88: 0.4851 | AS88: 0.0496188 | AT88: 6.360131162 | AU88: 592.5 | AV88: 0.989379605 | AW88: 208.6631627 | AX88: 16.18646844 | AZ88: 98.9379605 | BA88: 1.175818623 | BB88: 4.500832024 | BC88: 4.173263255 | BD88: 0.3237293689 | BE88: 0.4214236976
G89: 80 | H89: 54 | I89: 1 | J89: 12 | K89: 12 | L89: 12.34567901 | M89: 0.9291953512 | N89: 0.7900225364 | O89: 12.39501127 | P89: 11.60498873 | Q89: 0 | R89: 12.00216694 | S89: 1.008364079 | T89: 0.1 | U89: 1.205620426 | V89: 0.228059862 | W89: 0.0005201130067 | X89: 0.0005201130067 | Y89: 3.078534775 | Z89: 0.09477376361 | AA89: 0.09477376361 | AB89: 11.56946236 | AC89: 1.003893444 | AD89: 1.635035577 | AE89: 0.5589 | AF89: 0 | AG89: 4.001180871 | AH89: 3.193673756 | AI89: 0.07649664047 | AJ89: 0.12096 | AK89: 0.2005245311 | AL89: 0.12096 | AM89: 0.3888 | AN89: 0.4321560339 | AO89: 0.0001188 | AP89: 0.0495 | AQ89: 0.5016 | AR89: 0.4851 | AS89: 0.0496188 | AT89: 6.494154538 | AU89: 600 | AV89: 0.9892923048 | AW89: 212.8894435 | AX89: 16.44142655 | AZ89: 98.92923048 | BA89: 1.205620426 | BB89: 4.590505402 | BC89: 4.257788871 | BD89: 0.3288285311 | BE89: 0.4321560339
G90: 81 | H90: 54 | I90: 1 | J90: 12.15 | K90: 12.15 | L90: 12.5 | M90: 0.9292361915 | N90: 0.7896081289 | O90: 12.54480406 | P90: 11.75519594 | Q90: 0 | R90: 12.15213795 | S90: 1.033721197 | T90: 0.1 | U90: 1.235929739 | V90: 0.2279402329 | W90: 0.0005195674977 | X90: 0.0005195674977 | Y90: 3.116171479 | Z90: 0.09710524686 | AA90: 0.09710524686 | AB90: 11.71428401 | AC90: 1.029183373 | AD90: 1.655473522 | AE90: 0.5589 | AF90: 0 | AG90: 4.084244124 | AH90: 3.232647054 | AI90: 0.07837505234 | AJ90: 0.122472 | AK90: 0.2040454672 | AL90: 0.122472 | AM90: 0.39366 | AN90: 0.4430233702 | AO90: 0.0001188 | AP90: 0.0495 | AQ90: 0.5016 | AR90: 0.4851 | AS90: 0.0496188 | AT90: 6.630618315 | AU90: 607.5 | AV90: 0.9892032442 | AW90: 217.2029862 | AX90: 16.69766336 | AZ90: 98.92032442 | BA90: 1.235929739 | BB90: 4.681949591 | BC90: 4.344059724 | BD90: 0.3339532672 | BE90: 0.4430233702
G91: 82 | H91: 54 | I91: 1 | J91: 12.3 | K91: 12.3 | L91: 12.65432099 | M91: 0.9292770311 | N91: 0.7891936813 | O91: 12.69459684 | P91: 11.90540316 | Q91: 0 | R91: 12.30210967 | S91: 1.059393316 | T91: 0.1 | U91: 1.266752441 | V91: 0.2278205922 | W91: 0.0005190222221 | X91: 0.0005190222221 | Y91: 3.153787573 | Z91: 0.09946376055 | AA91: 0.09946376055 | AB91: 11.85911268 | AC91: 1.054789152 | AD91: 1.675911467 | AE91: 0.5589 | AF91: 0 | AG91: 4.169106222 | AH91: 3.271597263 | AI91: 0.08027511487 | AJ91: 0.123984 | AK91: 0.2075920093 | AL91: 0.123984 | AM91: 0.39852 | AN91: 0.4540257067 | AO91: 0.0001188 | AP91: 0.0495 | AQ91: 0.5016 | AR91: 0.4851 | AS91: 0.0496188 | AT91: 6.769581961 | AU91: 615 | AV91: 0.9891123944 | AW91: 221.6064711 | AX91: 16.95518047 | AZ91: 98.91123944 | BA91: 1.266752441 | BB91: 4.775218231 | BC91: 4.432129422 | BD91: 0.3391036093 | BE91: 0.4540257067
G92: 83 | H92: 54 | I92: 1 | J92: 12.45 | K92: 12.45 | L92: 12.80864198 | M92: 0.92931787 | N92: 0.7887791936 | O92: 12.8443896 | P92: 12.0556104 | Q92: 0 | R92: 12.45208206 | S92: 1.085380434 | T92: 0.1 | U92: 1.298094548 | V92: 0.2277009399 | W92: 0.0005184771803 | X92: 0.0005184771803 | Y92: 3.19138304 | Z92: 0.1018492571 | AA92: 0.1018492571 | AB92: 12.00394836 | AC92: 1.080710821 | AD92: 1.696349411 | AE92: 0.5589 | AF92: 0 | AG92: 4.255823034 | AH92: 3.310524365 | AI92: 0.08219678677 | AJ92: 0.125496 | AK92: 0.2111641904 | AL92: 0.125496 | AM92: 0.40338 | AN92: 0.4651630432 | AO92: 0.0001188 | AP92: 0.0495 | AQ92: 0.5016 | AR92: 0.4851 | AS92: 0.0496188 | AT92: 6.911107349 | AU92: 622.5 | AV92: 0.9890197245 | AW92: 226.1026917 | AX92: 17.21397952 | AZ92: 98.90197245 | BA92: 1.298094548 | BB92: 4.870367224 | BC92: 4.522053834 | BD92: 0.3442795904 | BE92: 0.4651630432
G93: 84 | H93: 54 | I93: 1 | J93: 12.6 | K93: 12.6 | L93: 12.96296296 | M93: 0.9293587082 | N93: 0.7883646659 | O93: 12.99418233 | P93: 12.20581767 | Q93: 0 | R93: 12.60205512 | S93: 1.111682553 | T93: 0.1 | U93: 1.329962216 | V93: 0.227581276 | W93: 0.0005179323721 | X93: 0.0005179323721 | Y93: 3.228957862 | Z93: 0.1042616888 | AA93: 0.1042616888 | AB93: 12.14879101 | AC93: 1.106948423 | AD93: 1.716787356 | AE93: 0.5589 | AF93: 0 | AG93: 4.344452817 | AH93: 3.349428344 | AI93: 0.08414002675 | AJ93: 0.127008 | AK93: 0.2147620436 | AL93: 0.127008 | AM93: 0.40824 | AN93: 0.4764353797 | AO93: 0.0001188 | AP93: 0.0495 | AQ93: 0.5016 | AR93: 0.4851 | AS93: 0.0496188 | AT93: 7.055258878 | AU93: 630 | AV93: 0.9889252011 | AW93: 230.6945609 | AX93: 17.47406218 | AZ93: 98.89252011 | BA93: 1.329962216 | BB93: 4.967454861 | BC93: 4.613891217 | BD93: 0.3494812436 | BE93: 0.4764353797
G94: 85 | H94: 54 | I94: 1 | J94: 12.75 | K94: 12.75 | L94: 13.11728395 | M94: 0.9293995457 | N94: 0.7879500982 | O94: 13.14397505 | P94: 12.35602495 | Q94: 0 | R94: 12.75202881 | S94: 1.138299671 | T94: 0.1 | U94: 1.362361746 | V94: 0.2274616006 | W94: 0.0005173877977 | X94: 0.0005173877977 | Y94: 3.266512023 | Z94: 0.106701008 | AA94: 0.106701008 | AB94: 12.29364062 | AC94: 1.133501997 | AD94: 1.737225301 | AE94: 0.5589 | AF94: 0 | AG94: 4.435056343 | AH94: 3.388309185 | AI94: 0.08610479351 | AJ94: 0.12852 | AK94: 0.218385603 | AL94: 0.12852 | AM94: 0.4131 | AN94: 0.4878427163 | AO94: 0.0001188 | AP94: 0.0495 | AQ94: 0.5016 | AR94: 0.4851 | AS94: 0.0496188 | AT94: 7.202103603 | AU94: 637.5 | AV94: 0.9888287884 | AW94: 235.3851171 | AX94: 17.73543015 | AZ94: 98.88287884 | BA94: 1.362361746 | BB94: 5.066541946 | BC94: 4.707702343 | BD94: 0.354708603 | BE94: 0.4878427163
G95: 86 | H95: 54 | I95: 1 | J95: 12.9 | K95: 12.9 | L95: 13.27160494 | M95: 0.9294403825 | N95: 0.7875354904 | O95: 13.29376775 | P95: 12.50623225 | Q95: 0 | R95: 12.90200311 | S95: 1.16523179 | T95: 0.1 | U95: 1.395299585 | V95: 0.2273419137 | W95: 0.0005168434571 | X95: 0.0005168434571 | Y95: 3.304045506 | Z95: 0.109167167 | AA95: 0.109167167 | AB95: 12.43849716 | AC95: 1.160371587 | AD95: 1.757663246 | AE95: 0.5589 | AF95: 0 | AG95: 4.52769703 | AH95: 3.427166872 | AI95: 0.08809104577 | AJ95: 0.130032 | AK95: 0.2220349031 | AL95: 0.130032 | AM95: 0.41796 | AN95: 0.499385053 | AO95: 0.0001188 | AP95: 0.0495 | AQ95: 0.5016 | AR95: 0.4851 | AS95: 0.0496188 | AT95: 7.351711382 | AU95: 645 | AV95: 0.9887304482 | AW95: 240.1775315 | AX95: 17.99808516 | AZ95: 98.87304482 | BA95: 1.395299585 | BB95: 5.167691933 | BC95: 4.80355063 | BD95: 0.3599617031 | BE95: 0.499385053
G96: 87 | H96: 54 | I96: 1 | J96: 13.05 | K96: 13.05 | L96: 13.42592593 | M96: 0.9294812187 | N96: 0.7871208425 | O96: 13.44356042 | P96: 12.65643958 | Q96: 0 | R96: 13.05197801 | S96: 1.19247891 | T96: 0.1 | U96: 1.428782333 | V96: 0.2272222151 | W96: 0.0005162993506 | X96: 0.0005162993506 | Y96: 3.341558294 | Z96: 0.1116601183 | AA96: 0.1116601183 | AB96: 12.58336061 | AC96: 1.187557232 | AD96: 1.77810119 | AE96: 0.5589 | AF96: 0 | AG96: 4.622441093 | AH96: 3.466001389 | AI96: 0.09009874223 | AJ96: 0.131544 | AK96: 0.2257099793 | AL96: 0.131544 | AM96: 0.42282 | AN96: 0.5110623898 | AO96: 0.0001188 | AP96: 0.0495 | AQ96: 0.5016 | AR96: 0.4851 | AS96: 0.0496188 | AT96: 7.504155013 | AU96: 652.5 | AV96: 0.9886301397 | AW96: 245.0751146 | AX96: 18.26202896 | AZ96: 98.86301397 | BA96: 1.428782333 | BB96: 5.270971072 | BC96: 4.901502293 | BD96: 0.3652405793 | BE96: 0.5110623898
G97: 88 | H97: 54 | I97: 1 | J97: 13.2 | K97: 13.2 | L97: 13.58024691 | M97: 0.9295220542 | N97: 0.7867061546 | O97: 13.59335308 | P97: 12.80664692 | Q97: 0 | R97: 13.20195347 | S97: 1.220041029 | T97: 0.1 | U97: 1.462816745 | V97: 0.2271025051 | W97: 0.000515755478 | X97: 0.000515755478 | Y97: 3.379050371 | Z97: 0.1141798141 | AA97: 0.1141798141 | AB97: 12.72823096 | AC97: 1.215058975 | AD97: 1.798539135 | AE97: 0.5589 | AF97: 0 | AG97: 4.719357695 | AH97: 3.504812722 | AI97: 0.09212784161 | AJ97: 0.133056 | AK97: 0.2294108672 | AL97: 0.133056 | AM97: 0.42768 | AN97: 0.5228747266 | AO97: 0.0001188 | AP97: 0.0495 | AQ97: 0.5016 | AR97: 0.4851 | AS97: 0.0496188 | AT97: 7.659510403 | AU97: 660 | AV97: 0.9885278195 | AW97: 250.0813247 | AX97: 18.52726336 | AZ97: 98.85278195 | BA97: 1.462816745 | BB97: 5.376448562 | BC97: 5.001626495 | BD97: 0.3705452672 | BE97: 0.5228747266
G98: 89 | H98: 54 | I98: 1 | J98: 13.35 | K98: 13.35 | L98: 13.7345679 | M98: 0.929562889 | N98: 0.7862914266 | O98: 13.74314571 | P98: 12.95685429 | Q98: 0 | R98: 13.35192949 | S98: 1.247918148 | T98: 0.1 | U98: 1.497409731 | V98: 0.2269827834 | W98: 0.0005152118396 | X98: 0.0005152118396 | Y98: 3.416521722 | Z98: 0.1167262068 | AA98: 0.1167262068 | AB98: 12.87310818 | AC98: 1.242876856 | AD98: 1.81897708 | AE98: 0.5589 | AF98: 0 | AG98: 4.818519113 | AH98: 3.543600855 | AI98: 0.09417830263 | AJ98: 0.134568 | AK98: 0.2331376034 | AL98: 0.134568 | AM98: 0.43254 | AN98: 0.5348220636 | AO98: 0.0001188 | AP98: 0.0495 | AQ98: 0.5016 | AR98: 0.4851 | AS98: 0.0496188 | AT98: 7.81785673 | AU98: 667.5 | AV98: 0.9884234414 | AW98: 255.1997757 | AX98: 18.79379017 | AZ98: 98.84234414 | BA98: 1.497409731 | BB98: 5.484196717 | BC98: 5.103995513 | BD98: 0.3758758034 | BE98: 0.5348220636
G99: 90 | H99: 54 | I99: 1 | J99: 13.5 | K99: 13.5 | L99: 13.88888889 | M99: 0.9296037231 | N99: 0.7858766586 | O99: 13.89293833 | P99: 13.10706167 | Q99: 0 | R99: 13.50190604 | S99: 1.276110268 | T99: 0.1 | U99: 1.532568366 | V99: 0.2268630502 | W99: 0.0005146684355 | X99: 0.0005146684355 | Y99: 3.45397233 | Z99: 0.1192992486 | AA99: 0.1192992486 | AB99: 13.01799225 | AC99: 1.271010917 | AD99: 1.839415024 | AE99: 0.5589 | AF99: 0 | AG99: 4.920000918 | AH99: 3.582365773 | AI99: 0.096250084 | AJ99: 0.13608 | AK99: 0.2368902248 | AL99: 0.13608 | AM99: 0.4374 | AN99: 0.5469044005 | AO99: 0.0001188 | AP99: 0.0495 | AQ99: 0.5016 | AR99: 0.4851 | AS99: 0.0496188 | AT99: 7.979276626 | AU99: 675 | AV99: 0.9883169565 | AW99: 260.4342459 | AX99: 19.06161124 | AZ99: 98.83169565 | BA99: 1.532568366 | BB99: 5.594291142 | BC99: 5.208684918 | BD99: 0.3812322248 | BE99: 0.5469044005
G100: 91 | H100: 54 | I100: 1 | J100: 13.65 | K100: 13.65 | L100: 14.04320988 | M100: 0.9296445566 | N100: 0.7854618505 | O100: 14.04273093 | P100: 13.25726907 | Q100: 0 | R100: 13.65188311 | S100: 1.304617388 | T100: 0.1 | U100: 1.568299892 | V100: 0.2267433054 | W100: 0.0005141252656 | X100: 0.0005141252656 | Y100: 3.491402181 | Z100: 0.1218988919 | AA100: 0.1218988919 | AB100: 13.16288317 | AC100: 1.2994612 | AD100: 1.859852969 | AE100: 0.5589 | AF100: 0 | AG100: 5.023882155 | AH100: 3.621107463 | AI100: 0.09834314443 | AJ100: 0.137592 | AK100: 0.2406687691 | AL100: 0.137592 | AM100: 0.44226 | AN100: 0.5591217376 | AO100: 0.0001188 | AP100: 0.0495 | AQ100: 0.5016 | AR100: 0.4851 | AS100: 0.0496188 | AT100: 8.143856371 | AU100: 682.5 | AV100: 0.9882083127 | AW100: 265.7886877 | AX100: 19.33072846 | AZ100: 98.82083127 | BA100: 1.568299892 | BB100: 5.706810924 | BC100: 5.315773755 | BD100: 0.3866145691 | BE100: 0.5591217376
G101: 92 | H101: 54 | I101: 1 | J101: 13.8 | K101: 13.8 | L101: 14.19753086 | M101: 0.9296853893 | N101: 0.7850470024 | O101: 14.1925235 | P101: 13.4074765 | Q101: 0 | R101: 13.80186068 | S101: 1.333439508 | T101: 0.1 | U101: 1.604611721 | V101: 0.2266235491 | W101: 0.00051358233 | X101: 0.00051358233 | Y101: 3.528811257 | Z101: 0.1245250889 | AA101: 0.1245250889 | AB101: 13.3077809 | AC101: 1.328227744 | AD101: 1.880290914 | AE101: 0.5589 | AF101: 0 | AG101: 5.130245554 | AH101: 3.659825909 | AI101: 0.1004574426 | AJ101: 0.139104 | AK101: 0.2444732746 | AL101: 0.139104 | AM101: 0.44712 | AN101: 0.5714740747 | AO101: 0.0001188 | AP101: 0.0495 | AQ101: 0.5016 | AR101: 0.4851 | AS101: 0.0496188 | AT101: 8.311686095 | AU101: 690 | AV101: 0.9880974552 | AW101: 271.2672377 | AX101: 19.60114373 | AZ101: 98.80974552 | BA101: 1.604611721 | BB101: 5.821838828 | BC101: 5.425344754 | BD101: 0.3920228746 | BE101: 0.5714740747
G102: 93 | H102: 54 | I102: 1 | J102: 13.95 | K102: 13.95 | L102: 14.35185185 | M102: 0.9297262214 | N102: 0.7846321143 | O102: 14.34231606 | P102: 13.55768394 | Q102: 0 | R102: 13.95183873 | S102: 1.362576628 | T102: 0.1 | U102: 1.641511437 | V102: 0.2265037812 | W102: 0.000513039629 | X102: 0.000513039629 | Y102: 3.566199546 | Z102: 0.127177792 | AA102: 0.127177792 | AB102: 13.45268544 | AC102: 1.357310592 | AD102: 1.900728859 | AE102: 0.5589 | AF102: 0 | AG102: 5.239177739 | AH102: 3.698521098 | AI102: 0.1025929374 | AJ102: 0.140616 | AK102: 0.2483037802 | AL102: 0.140616 | AM102: 0.45198 | AN102: 0.5839614119 | AO102: 0.0001188 | AP102: 0.0495 | AQ102: 0.5016 | AR102: 0.4851 | AS102: 0.0496188 | AT102: 8.48286 | AU102: 697.5 | AV102: 0.9879843259 | AW102: 276.8742269 | AX102: 19.87285901 | AZ102: 98.79843259 | BA102: 1.641511437 | BB102: 5.939461519 | BC102: 5.537484539 | BD102: 0.3974571802 | BE102: 0.5839614119
G103: 94 | H103: 54 | I103: 1 | J103: 14.1 | K103: 14.1 | L103: 14.50617284 | M103: 0.9297670528 | N103: 0.7842171861 | O103: 14.49210859 | P103: 13.70789141 | Q103: 0 | R103: 14.10181725 | S103: 1.392028748 | T103: 0.1 | U103: 1.679006808 | V103: 0.2263840017 | W103: 0.0005124971625 | X103: 0.0005124971625 | Y103: 3.603567031 | Z103: 0.1298569534 | AA103: 0.1298569534 | AB103: 13.59759678 | AC103: 1.386709786 | AD103: 1.921166803 | AE103: 0.5589 | AF103: 0 | AG103: 5.350769464 | AH103: 3.737193016 | AI103: 0.1047495873 | AJ103: 0.142128 | AK103: 0.2521603253 | AL103: 0.142128 | AM103: 0.45684 | AN103: 0.5965837491 | AO103: 0.0001188 | AP103: 0.0495 | AQ103: 0.5016 | AR103: 0.4851 | AS103: 0.0496188 | AT103: 8.657476597 | AU103: 705 | AV103: 0.987868863 | AW103: 282.6141932 | AX103: 20.14587627 | AZ103: 98.7868863 | BA103: 1.679006808 | BB103: 6.059769789 | BC103: 5.652283864 | BD103: 0.4029175253 | BE103: 0.5965837491
G104: 95 | H104: 54 | I104: 1 | J104: 14.25 | K104: 14.25 | L104: 14.66049383 | M104: 0.9298078836 | N104: 0.7838022179 | O104: 14.64190111 | P104: 13.85809889 | Q104: 0 | R104: 14.25179622 | S104: 1.421795868 | T104: 0.1 | U104: 1.717105781 | V104: 0.2262642107 | W104: 0.0005119549306 | X104: 0.0005119549306 | Y104: 3.640913697 | Z104: 0.1325625255 | AA104: 0.1325625255 | AB104: 13.74251488 | AC104: 1.416425365 | AD104: 1.941604748 | AE104: 0.5589 | AF104: 0 | AG104: 5.465115858 | AH104: 3.775841649 | AI104: 0.1069273512 | AJ104: 0.14364 | AK104: 0.2560429501 | AL104: 0.14364 | AM104: 0.4617 | AN104: 0.6093410865 | AO104: 0.0001188 | AP104: 0.0495 | AQ104: 0.5016 | AR104: 0.4851 | AS104: 0.0496188 | AT104: 8.835638955 | AU104: 712.5 | AV104: 0.9877510018 | AW104: 288.4918929 | AX104: 20.42019751 | AZ104: 98.77510018 | BA104: 1.717105781 | BB104: 6.182858808 | BC104: 5.769837858 | BD104: 0.4084039501 | BE104: 0.6093410865
G105: 96 | H105: 54 | I105: 1 | J105: 14.4 | K105: 14.4 | L105: =Vout*K105/(Vin*Efficiency) -> 14.81481481 | M105: 0.9298487136 | N105: =(Vin-(Rdson1+Rdcr)*K105-Vout)*M105/(Fsw*Lf) -> 0.7833872096 | O105: 14.7916936 | P105: 14.0083064 | Q105: =IF(MIN(Vin, -P105/(Coss_Q1+Coss_Q2)*0.00000002)<0, 0, MIN(Vin, -P105/(Coss_Q1+Coss_Q2)*0.00000002)) -> 0 | R105: 14.40177563 | S105: =R105^2*Rdcr -> 1.451877989 | T105: 0.1 | U105: =(T105+S105*(1+Ltc*(Ta-25)))/(1-S105*Ltc*ThetaCa) -> 1.755816495 | V105: 0.2261444082 | W105: 0.0005114129334 | X105: 0.0005114129334 | Y105: 3.678239531 | Z105: 0.1352944604 | AA105: 0.1352944604 | AB105: 13.88743975 | AC105: =Rdson1*AB105^2 -> 1.446457372 | AD105: 1.962042693 | AE105: 0.5589 | AF105: 0 | AG105: =(AF105+AE105+AD105+AC105*(1+RdsonTopTc*Ta-RdsonTopTc*25))/(1-AC105*RdsonTopTc*ThetaJA_Q1) -> 5.58231669 | AH105: 3.814466984 | AI105: =Rdson2*AH105^2 -> 0.1091261878 | AJ105: 0.145152 | AK105: =(AJ105+AI105*(1+RdsonBotTc*Ta-RdsonBotTc*25))/(1-AI105*RdsonBotTc*ThetaJA_Q2) -> 0.2599516953 | AL105: 0.145152 | AM105: 0.46656 | AN105: 0.6222334239 | AO105: 0.0001188 | AP105: 0.0495 | AQ105: 0.5016 | AR105: 0.4851 | AS105: 0.0496188 | AT105: =SUM(U105,X105,AA105,AG105,AK105,AL105,AM105,AS105,AN105) -> 9.017454978 | AU105: 720 | AV105: 0.9876306734 | AW105: 294.5123145 | AX105: 20.69582476 | AZ105: 98.76306734 | BA105: 1.755816495 | BB105: 6.308828386 | BC105: 5.89024629 | BD105: 0.4139164953 | BE105: 0.6222334239
G106: 97 | H106: 54 | I106: 1 | J106: 14.55 | K106: 14.55 | L106: =Vout*K106/(Vin*Efficiency) -> 14.9691358 | M106: 0.929889543 | N106: =(Vin-(Rdson1+Rdcr)*K106-Vout)*M106/(Fsw*Lf) -> 0.7829721613 | O106: 14.94148608 | P106: 14.15851392 | Q106: =IF(MIN(Vin, -P106/(Coss_Q1+Coss_Q2)*0.00000002)<0, 0, MIN(Vin, -P106/(Coss_Q1+Coss_Q2)*0.00000002)) -> 0 | R106: 14.55175547 | S106: =R106^2*Rdcr -> 1.48227511 | T106: 0.1 | U106: =(T106+S106*(1+Ltc*(Ta-25)))/(1-S106*Ltc*ThetaCa) -> 1.79514728 | V106: 0.226024594 | W106: 0.0005108711711 | X106: 0.0005108711711 | Y106: 3.715544516 | Z106: 0.1380527105 | AA106: 0.1380527105 | AB106: 14.03237137 | AC106: =Rdson1*AB106^2 -> 1.476805848 | AD106: 1.982480637 | AE106: 0.5589 | AF106: 0 | AG106: =(AF106+AE106+AD106+AC106*(1+RdsonTopTc*Ta-RdsonTopTc*25))/(1-AC106*RdsonTopTc*ThetaJA_Q1) -> 5.702476661 | AH106: 3.853069006 | AI106: =Rdson2*AH106^2 -> 0.1113460557 | AJ106: 0.146664 | AK106: =(AJ106+AI106*(1+RdsonBotTc*Ta-RdsonBotTc*25))/(1-AI106*RdsonBotTc*ThetaJA_Q2) -> 0.2638866022 | AL106: 0.146664 | AM106: 0.47142 | AN106: 0.6352607614 | AO106: 0.0001188 | AP106: 0.0495 | AQ106: 0.5016 | AR106: 0.4851 | AS106: 0.0496188 | AT106: =SUM(U106,X106,AA106,AG106,AK106,AL106,AM106,AS106,AN106) -> 9.203037686 | AU106: 727.5 | AV106: 0.9875078054 | AW106: 300.680693 | AX106: 20.97276011 | AZ106: 98.75078054 | BA106: 1.79514728 | BB106: 6.437783263 | BC106: 6.013613861 | BD106: 0.4194552022 | BE106: 0.6352607614
G107: 98 | H107: 54 | I107: 1 | J107: 14.7 | K107: 14.7 | L107: =Vout*K107/(Vin*Efficiency) -> 15.12345679 | M107: 0.9299303717 | N107: =(Vin-(Rdson1+Rdcr)*K107-Vout)*M107/(Fsw*Lf) -> 0.7825570729 | O107: 15.09127854 | P107: 14.30872146 | Q107: =IF(MIN(Vin, -P107/(Coss_Q1+Coss_Q2)*0.00000002)<0, 0, MIN(Vin, -P107/(Coss_Q1+Coss_Q2)*0.00000002)) -> 0 | R107: 14.70173571 | S107: =R107^2*Rdcr -> 1.512987231 | T107: 0.1 | U107: =(T107+S107*(1+Ltc*(Ta-25)))/(1-S107*Ltc*ThetaCa) -> 1.835106667 | V107: 0.2259047683 | W107: 0.0005103296436 | X107: 0.0005103296436 | Y107: 3.75282864 | Z107: 0.140837228 | AA107: 0.140837228 | AB107: 14.17730973 | AC107: =Rdson1*AB107^2 -> 1.507470833 | AD107: 2.002918582 | AE107: 0.5589 | AF107: 0 | AG107: =(AF107+AE107+AD107+AC107*(1+RdsonTopTc*Ta-RdsonTopTc*25))/(1-AC107*RdsonTopTc*ThetaJA_Q1) -> 5.825705701 | AH107: 3.891647703 | AI107: =Rdson2*AH107^2 -> 0.1135869138 | AJ107: 0.148176 | AK107: =(AJ107+AI107*(1+RdsonBotTc*Ta-RdsonBotTc*25))/(1-AI107*RdsonBotTc*ThetaJA_Q2) -> 0.2678477129 | AL107: 0.148176 | AM107: 0.47628 | AN107: 0.6484230989 | AO107: 0.0001188 | AP107: 0.0495 | AQ107: 0.5016 | AR107: 0.4851 | AS107: 0.0496188 | AT107: =SUM(U107,X107,AA107,AG107,AK107,AL107,AM107,AS107,AN107) -> 9.392505538 | AU107: 735 | AV107: 0.9873823212 | AW107: 307.0025251 | AX107: 21.25100564 | AZ107: 98.73823212 | BA107: 1.835106667 | BB107: 6.569833414 | BC107: 6.140050501 | BD107: 0.4250201129 | BE107: 0.6484230989
G108: 99 | H108: 54 | I108: 1 | J108: 14.85 | K108: 14.85 | L108: =Vout*K108/(Vin*Efficiency) -> 15.27777778 | M108: 0.9299711997 | N108: =(Vin-(Rdson1+Rdcr)*K108-Vout)*M108/(Fsw*Lf) -> 0.7821419445 | O108: 15.24107097 | P108: 14.45892903 | Q108: =IF(MIN(Vin, -P108/(Coss_Q1+Coss_Q2)*0.00000002)<0, 0, MIN(Vin, -P108/(Coss_Q1+Coss_Q2)*0.00000002)) -> 0 | R108: 14.85171636 | S108: =R108^2*Rdcr -> 1.544014352 | T108: 0.1 | U108: =(T108+S108*(1+Ltc*(Ta-25)))/(1-S108*Ltc*ThetaCa) -> 1.875703388 | V108: 0.2257849311 | W108: 0.0005097883511 | X108: 0.0005097883511 | Y108: 3.790091887 | Z108: 0.1436479651 | AA108: 0.1436479651 | AB108: 14.32225481 | AC108: =Rdson1*AB108^2 -> 1.53845237 | AD108: 2.023356527 | AE108: 0.5589 | AF108: 0 | AG108: =(AF108+AE108+AD108+AC108*(1+RdsonTopTc*Ta-RdsonTopTc*25))/(1-AC108*RdsonTopTc*ThetaJA_Q1) -> 5.95211931 | AH108: 3.930203061 | AI108: =Rdson2*AH108^2 -> 0.1158487208 | AJ108: 0.149688 | AK108: =(AJ108+AI108*(1+RdsonBotTc*Ta-RdsonBotTc*25))/(1-AI108*RdsonBotTc*ThetaJA_Q2) -> 0.2718350698 | AL108: 0.149688 | AM108: 0.48114 | AN108: 0.6617204365 | AO108: 0.0001188 | AP108: 0.0495 | AQ108: 0.5016 | AR108: 0.4851 | AS108: 0.0496188 | AT108: =SUM(U108,X108,AA108,AG108,AK108,AL108,AM108,AS108,AN108) -> 9.585982757 | AU108: 742.5 | AV108: 0.9872541398 | AW108: 313.4835855 | AX108: 21.53056349 | AZ108: 98.72541398 | BA108: 1.875703388 | BB108: 6.705094379 | BC108: 6.26967171 | BD108: 0.4306112698 | BE108: 0.6617204365
G109: 100 | H109: 54 | I109: 1 | J109: 15 | K109: 15 | L109: =Vout*K109/(Vin*Efficiency) -> 15.43209877 | M109: 0.930012027 | N109: =(Vin-(Rdson1+Rdcr)*K109-Vout)*M109/(Fsw*Lf) -> 0.781726776 | O109: 15.39086339 | P109: 14.60913661 | Q109: =IF(MIN(Vin, -P109/(Coss_Q1+Coss_Q2)*0.00000002)<0, 0, MIN(Vin, -P109/(Coss_Q1+Coss_Q2)*0.00000002)) -> 0 | R109: 15.00169739 | S109: =R109^2*Rdcr -> 1.575356473 | T109: 0.1 | U109: =(T109+S109*(1+Ltc*(Ta-25)))/(1-S109*Ltc*ThetaCa) -> 1.916946385 | V109: 0.2256650823 | W109: 0.0005092472936 | X109: 0.0005092472936 | Y109: 3.827334244 | Z109: 0.1464848741 | AA109: 0.1464848741 | AB109: 14.4672066 | AC109: =Rdson1*AB109^2 -> 1.5697505 | AD109: 2.043794472 | AE109: 0.5589 | AF109: 0 | AG109: =(AF109+AE109+AD109+AC109*(1+RdsonTopTc*Ta-RdsonTopTc*25))/(1-AC109*RdsonTopTc*ThetaJA_Q1) -> 6.081838904 | AH109: 3.968735068 | AI109: =Rdson2*AH109^2 -> 0.1181314353 | AJ109: 0.1512 | AK109: =(AJ109+AI109*(1+RdsonBotTc*Ta-RdsonBotTc*25))/(1-AI109*RdsonBotTc*ThetaJA_Q2) -> 0.2758487163 | AL109: 0.1512 | AM109: 0.486 | AN109: 0.6751527742 | AO109: 0.0001188 | AP109: 0.0495 | AQ109: 0.5016 | AR109: 0.4851 | AS109: 0.0496188 | AT109: =SUM(U109,X109,AA109,AG109,AK109,AL109,AM109,AS109,AN109) -> 9.783599701 | AU109: 750 | AV109: 0.987123176 | AW109: 320.1299452 | AX109: 21.81143581 | AZ109: 98.7123176 | BA109: 1.916946385 | BB109: 6.84368762 | BC109: 6.402598904 | BD109: 0.4362287163 | BE109: 0.6751527742

Sheet Efficiency Plot Management (hidden)
A2: =IF(PLOT_TYPE=1, "EFF_Ch1", "EFF_Ch2") -> EFF_Ch1

Sheet Input Filter Calculations (hidden)
AD2: AEF comparison Values
D3: =L_infilter*0.000001 -> 6.8e-07 | L3: Lfilter Passive | M3: ='Input Filters'!O9*0.000001 -> 6.8e-07 | AD3: Lfilter | AE3: ='Input Filters'!G9*0.000001 -> 1e-06
L4: Cfilter Passive | M4: ='Input Filters'!O10*0.000001 -> 4.7e-07 | AD4: Cinj | AE4: ='Input Filters'!G10*0.000001 -> 1e-06
L5: Cdamp passive | M5: ='Input Filters'!O11*0.000001 -> 1e-06 | AD5: Cdamp | AE5: ='Input Filters'!G11*0.000001 -> 1e-06
L6: Rdamp passive | M6: ='Input Filters'!O12 -> 0.35 | AD6: Rdamp | AE6: ='Input Filters'!G12 -> 10
A10: Freq (Hz) | B10: (kHz) | W10: AEF | AA10: Passive | AD10: AEFCompare
I11: AEF Numerator | L11: AEF Denominator | Q11: Passive | W11: Magnitude | X11: Phase | AA11: Magnitude | AB11: Phase | AD11: AEF Numerator | AF11: AEF Denominator
C12: jω | D12: -ω^2 | E12: -jω^3 | G12: Gop | Q12: Numerator | R12: Denominator | AM12: Magnitude | AN12: Phase
A13: 1 | B13: =A13/1000 -> 0.001 | C13: =COMPLEX(0,2*Pi*A13) -> 6,2831853i | D13: =COMPLEX(-POWER(2*Pi*A13,2),0) -> -39,4784175141361 | E13: =COMPLEX(0,-POWER(2*Pi*A13,3)) -> -248,050212592082i | G13: =IMSUM(IMPRODUCT(C13,Rcomp_AEF*Csen_AEF),Csen_AEF/Ccomp_AEF) -> 100+0,00062831853i | I13: =IMPRODUCT((RdampSel*CdampSel+RdampSel*CinjSel),C13) -> 0,00002011059118971i | J13: =IMSUM(1,I13) -> 1+0,00002011059118971i | L13: =IMPRODUCT(G13,L_infilterStd*RdampSel*CinjSel*CdampSel,E13) -> 0 | M13: =IMPRODUCT(G13,L_infilterStd*CinjSel,D13) -> -1,26173022375179E-09-7,92768479444296E-15i | N13: =J13 -> 1+0,00002011059118971i | O13: =IMSUM(L13:N13) -> 0,99999999873827+0,0000201105911817823i | P13: 0 | Q13: =IMSUM(IMPRODUCT(C13,RdampPssv*CdampPssv),1) -> 1+0,000002199114855i | R13: =IMPRODUCT(RdampPssv*CdampPssv*CfilterPssv*LinfilterPssv,E13) -> -2,77468967805503E-17i | S13: =IMPRODUCT(D13,LinfilterPssv*(CfilterPssv+CdampPssv)) -> -3,94626261471304E-11 | T13: =IMSUM(S13,R13,Q13) -> 0,999999999960537+2,19911485497225E-06i | U13: 1 | V13: =CHOOSE(INFILTER_TYPE,U13,IMDIV(J13,O13)) -> 1 | W13: =20*LOG10(IMABS(V13)) -> 0 | X13: =IMARGUMENT(V13)*180/Pi -> 0 | Z13: =IMDIV(Q13,T13) -> 1,00000000003946-5,9033537744459E-17i | AA13: =20*LOG10(IMABS(Z13)) -> 3.427451255e-10 | AB13: =IMARGUMENT(Z13)*180/Pi -> -3.382372566e-15 | AD13: =IMPRODUCT((RdampCom*CdampCom+RdampCom*CinjCom),C13) -> 0,000125663706i | AE13: =IMSUM(1,AD13) -> 1+0,000125663706i | AF13: =IMPRODUCT(G13,L_infilterStd*RdampSel*CinjSel*CdampSel,E13) -> 0 | AG13: =IMPRODUCT(G13,LAEFCom*CinjCom,D13) -> -3,94784175141361E-09-2,48050212592082E-14i | AH13: =AE13 -> 1+0,000125663706i | AI13: =IMSUM(AF13:AH13) -> 0,999999996052158+0,000125663705975195i | AK13: =IMDIV(AE13,AI13) -> 1,00000000394784-4,71295468853202E-13i | AM13: =20*LOG10(IMABS(AK13)) -> 3.429050296e-08 | AN13: =IMARGUMENT(AK13)*180/Pi -> -2.700324119e-11
A14: 2 | B14: =A14/1000 -> 0.002 | C14: 12,5663706i | D14: -157,913670056544 | E14: -1984,40170073666i | G14: 100+0,00125663706i | I14: 0,00004022118237942i | J14: =IMSUM(1,I14) -> 1+0,00004022118237942i | L14: 0 | M14: -5,04692089500715E-09-6,34214783555435E-14i | N14: =J14 -> 1+0,00004022118237942i | O14: =IMSUM(L14:N14) -> 0,999999994953079+0,0000402211823159985i | P14: 0 | Q14: 1+0,00000439822971i | R14: -2,21975174244403E-16i | S14: -1,57850504588521E-10 | T14: =IMSUM(S14,R14,Q14) -> 0,999999999842149+4,39822970977802E-06i | U14: 1 | V14: =CHOOSE(INFILTER_TYPE,U14,IMDIV(J14,O14),IMDIV(Q14,T14)) -> 1 | W14: =20*LOG10(IMABS(V14)) -> 0 | X14: 0 | Z14: 1,00000000015785-4,72284395630731E-16i | AA14: =20*LOG10(IMABS(Z14)) -> 1.371067291e-09 | AB14: -2.705990263e-14 | AD14: 0,000251327412i | AE14: =IMSUM(1,AD14) -> 1+0,000251327412i | AF14: 0 | AG14: -1,57913670056544E-08-1,98440170073665E-13i | AH14: =AE14 -> 1+0,000251327412i | AI14: =IMSUM(AF14:AH14) -> 0,999999984208633+0,00025132741180156i | AK14: =IMDIV(AE14,AI14) -> 1,00000001579137-3,77036329160179E-12i | AM14: =20*LOG10(IMABS(AK14)) -> 1.371620959e-07 | AN14: -2.160259007e-10
A15: 3 | B15: 0.003 | C15: 18,8495559i | D15: -355,305757627225 | E15: -6697,35573998623i | G15: 100+0,00188495559i | I15: 0,00006033177356913i | J15: 1+0,00006033177356913i | L15: 0 | M15: -1,13555720137661E-08-2,1404748944996E-13i | N15: 1+0,00006033177356913i | O15: 0,999999988644428+0,0000603317733550825i | P15: 0 | Q15: 1+0,000006597344565i | R15: -7,4916621307486E-16i | S15: -3,55163635324174E-10 | T15: 0,999999999644836+6,59734456425083E-06i | U15: 1 | V15: 1 | W15: 0 | X15: 0 | Z15: 1,00000000035516-1,59396947052946E-15i | AA15: 3.084879708e-09 | AB15: -9.132772341e-14 | AD15: 0,000376991118i | AE15: 1+0,000376991118i | AF15: 0 | AG15: -3,55305757627225E-08-6,69735573998623E-13i | AH15: 1+0,000376991118i | AI15: 0,999999964469424+0,000376991117330264i | AK15: 1,00000003553057-1,27249747186445E-11i | AM15: 3.086146047e-07 | AN15: -7.290873207e-10
A16: 4 | B16: 0.004 | C16: 25,1327412i | D16: -631,654680226178 | E16: -15875,2136058933i | G16: 100+0,00251327412i | I16: 0,00008044236475884i | J16: 1+0,00008044236475884i | L16: 0 | M16: -2,01876835800286E-08-5,0737182684435E-13i | N16: 1+0,00008044236475884i | O16: 0,999999979812316+0,0000804423642514682i | P16: 0 | Q16: 1+0,00000879645942i | R16: -1,77580139395522E-15i | S16: -6,31402018354088E-10 | T16: 0,999999999368598+0,0000087964594182242i | U16: 1 | V16: 1 | W16: 0 | X16: 0 | Z16: 1,0000000006314-3,77830227167012E-15i | AA16: 5.484271092e-09 | AB16: -2.16480774e-13 | AD16: 0,000502654824i | AE16: 1+0,000502654824i | AF16: 0 | AG16: -6,31654680226178E-08-1,58752136058933E-12i | AH16: 1+0,000502654824i | AI16: 0,999999936834532+0,000502654822412479i | AK16: 1,00000006316546-3,01629023712536E-11i | AM16: 5.486481969e-07 | AN16: -1.728206897e-09
A17: 5 | B17: 0.005 | C17: 31,4159265i | D17: -986,960437853402 | E17: -31006,2765740103i | G17: 100+0,00314159265i | I17: 0,00010055295594855i | J17: 1+0,00010055295594855i | L17: 0 | M17: -3,15432555937947E-08-9,90960599305369E-13i | N17: 1+0,00010055295594855i | O17: 0,999999968456744+0,000100552954957589i | P17: 0 | Q17: 1+0,000010995574275i | R17: -3,46836209756879E-15i | S17: -9,86565653678261E-10 | T17: 0,999999999013434+0,0000109955742715316i | U17: 1 | V17: 1 | W17: 0 | X17: 0 | Z17: 1,00000000098657-7,37945946308484E-15i | AA17: 8.569237588e-09 | AB17: -4.228118824e-13 | AD17: 0,00062831853i | AE17: 1+0,00062831853i | AF17: 0 | AG17: -9,86960437853402E-08-3,10062765740103E-12i | AH17: 1+0,00062831853i | AI17: 0,999999901303956+0,000628318526899372i | AK17: 1,00000009869602-5,89119136628583E-11i | AM17: 8.572626953e-07 | AN17: -3.375403687e-09
A18: 6 | B18: 0.006 | C18: 37,6991118i | D18: -1421,2230305089 | E18: -53578,8459198898i | G18: 100+0,00376991118i | I18: 0,00012066354713826i | J18: 1+0,00012066354713826i | L18: 0 | M18: -4,54222880550644E-08-1,71237991559968E-12i | N18: 1+0,00012066354713826i | O18: 0,999999954577712+0,00012066354542588i | P18: 0 | Q18: 1+0,00001319468913i | R18: -5,99332970459887E-15i | S18: -1,4206545412967E-09 | T18: 0,999999998579345+0,0000131946891240067i | U18: 1 | V18: 1 | W18: 0 | X18: 0 | Z18: 1,00000000142066-1,27518015159367E-14i | AA18: 1.233969626e-08 | AB18: -7.306244078e-13 | AD18: 0,000753982236i | AE18: 1+0,000753982236i | AF18: 0 | AG18: -1,4212230305089E-07-5,35788459198898E-12i | AH18: 1+0,000753982236i | AI18: 0,999999857877697+0,000753982230642115i | AK18: 1,00000014212225-1,01799777989694E-10i | AM18: 1.234458091e-06 | AN18: -5.832696812e-09
A19: 7 | B19: 0.007 | C19: 43,9822971i | D19: -1934,44245819267 | E19: -85081,2229190843i | G19: 100+0,00439822971i | I19: 0,00014077413832797i | J19: 1+0,00014077413832797i | L19: 0 | M19: -6,18247809638377E-08-2,71919588449394E-12i | N19: 1+0,00014077413832797i | O19: 0,999999938175219+0,000140774135608774i | P19: 0 | Q19: 1+0,000015393803985i | R19: -9,51718559572877E-15i | S19: -1,93366868120939E-09 | T19: 0,999999998066331+0,0000153938039754828i | U19: 1 | V19: 1 | W19: 0 | X19: 0 | Z19: 1,00000000193367-2,02493221373488E-14i | AA19: 1.679564325e-08 | AB19: -1.160200696e-12 | AD19: 0,000879645942i | AE19: 1+0,000879645942i | AF19: 0 | AG19: -1,93444245819267E-07-8,50812229190843E-12i | AH19: 1+0,000879645942i | AI19: 0,999999806555754+0,000879645933491878i | AK19: 1,00000019344414-1,61654261344709E-10i | AM19: 1.680234289e-06 | AN19: -9.262105134e-09
A20: 8 | B20: 0.008 | C20: 50,2654824i | D20: -2526,61872090471 | E20: -127001,708847146i | G20: 100+0,00502654824i | I20: 0,00016088472951768i | J20: 1+0,00016088472951768i | L20: 0 | M20: -8,07507343201145E-08-4,05897461475479E-12i | N20: 1+0,00016088472951768i | O20: 0,999999919249266+0,000160884725458705i | P20: 0 | Q20: 1+0,00001759291884i | R20: -1,42064111516417E-14i | S20: -2,52560807341635E-09 | T20: 0,999999997474392+0,0000175929188257936i | U20: 1 | V20: 1 | W20: 0 | X20: 0 | Z20: 1,00000000252561-3,02264148354676E-14i | AA20: 2.193716921e-08 | AB20: -1.731845997e-12 | AD20: 0,001005309648i | AE20: 1+0,001005309648i | AF20: 0 | AG20: -2,52661872090471E-07-1,27001708847146E-11i | AH20: 1+0,001005309648i | AI20: 0,999999747338128+0,00100530963529983i | AK20: 1,00000025266169-2,41303125593538E-10i | AM20: 2.194591278e-06 | AN20: -1.38256472e-08
A21: 9 | B21: 0.009 | C21: 56,5486677i | D21: -3197,75181864502 | E21: -180828,604979628i | G21: 100+0,00565486677i | I21: 0,00018099532070739i | J21: 1+0,00018099532070739i | L21: 0 | M21: -1,02200148123895E-07-5,77928221514891E-12i | N21: 1+0,00018099532070739i | O21: 0,999999897799852+0,000180995314928108i | P21: 0 | Q21: 1+0,000019792033695i | R21: -2,02274877530212E-14i | S21: -3,19647271791756E-09 | T21: 0,999999996803527+0,0000197920336747725i | U21: 1 | V21: 1 | W21: 0 | X21: 0 | Z21: 1,00000000319647-4,30372020696133E-14i | AA21: 2.776418541e-08 | AB21: -2.465850036e-12 | AD21: 0,001130973354i | AE21: 1+0,001130973354i | AF21: 0 | AG21: -3,19775181864502E-07-1,80828604979628E-11i | AH21: 1+0,001130973354i | AI21: 0,999999680224818+0,00113097333591714i | AK21: 1,0000003197749-3,43574130298358E-10i | AM21: 2.777529045e-06 | AN21: -1.968534134e-08
A22: 10 | B22: 0.01 | C22: 62,831853i | D22: -3947,84175141361 | E22: -248050,212592082i | G22: 100+0,0062831853i | I22: 0,0002011059118971i | J22: 1+0,0002011059118971i | L22: 0 | M22: -1,26173022375179E-07-7,92768479444296E-12i | N22: 1+0,0002011059118971i | O22: 0,999999873826978+0,000201105903969415i | P22: 0 | Q22: 1+0,00002199114855i | R22: -2,77468967805503E-14i | S22: -3,94626261471304E-09 | T22: 0,999999996053737+0,0000219911485222531i | U22: 1 | V22: 1 | W22: 0 | X22: 0 | Z22: 1,00000000394626-5,90359570729332E-14i | AA22: 3.427677865e-08 | AB22: -3.38251117e-12 | AD22: 0,00125663706i | AE22: 1+0,00125663706i | AF22: 0 | AG22: -3,94784175141361E-07-2,48050212592082E-11i | AH22: 1+0,00125663706i | AI22: 0,999999605215825+0,00125663703519498i | AK22: 1,00000039478374-4,71295032915428E-10i | AM22: 3.429047319e-06 | AN22: -2.700320566e-08
A23: 20 | B23: 0.02 | C23: 125,663706i | D23: -15791,3670056544 | E23: -1984401,70073666i | G23: 100+0,0125663706i | I23: 0,0004022118237942i | J23: 1+0,0004022118237942i | L23: 0 | M23: -5,04692089500715E-07-6,34214783555435E-11i | N23: 1+0,0004022118237942i | O23: 0,999999495307911+0,000402211760372722i | P23: 0 | Q23: 1+0,0000439822971i | R23: -2,21975174244403E-13i | S23: -1,57850504588521E-08 | T23: 0,99999998421495+0,0000439822968780248i | U23: 1 | V23: 1 | W23: 0 | X23: 0 | Z23: 1,00000001578505-4,72287580174405E-13i | AA23: 1.371072006e-07 | AB23: -2.706008466e-11 | AD23: 0,00251327412i | AE23: 1+0,00251327412i | AF23: 0 | AG23: -1,57913670056544E-06-1,98440170073665E-10i | AH23: 1+0,00251327412i | AI23: 0,999998420863299+0,00251327392155983i | AK23: 1,00000157912972-3,77035132439892E-09i | AM23: 1.371613564e-05 | AN23: -2.160248773e-07
A24: 30 | B24: 0.03 | C24: 188,495559i | D24: -35530,5757627225 | E24: -6697355,73998623i | G24: 100+0,0188495559i | I24: 0,0006033177356913i | J24: 1+0,0006033177356913i | L24: 0 | M24: -1,13555720137661E-06-2,1404748944996E-10i | N24: 1+0,0006033177356913i | O24: 0,999998864442799+0,000603317521643811i | P24: 0 | Q24: 1+0,00006597344565i | R24: -7,4916621307486E-13i | S24: -3,55163635324174E-08 | T24: 0,999999964483636+0,0000659734449008338i | U24: 1 | V24: 1 | W24: 0 | X24: 0 | Z24: 1,00000003551637-1,59397081397336E-12i | AA24: 3.084912653e-07 | AB24: -9.132779717e-11 | AD24: 0,00376991118i | AE24: 1+0,00376991118i | AF24: 0 | AG24: -3,55305757627225E-06-6,69735573998623E-10i | AH24: 1+0,00376991118i | AI24: 0,999996446942424+0,00376991051026443i | AK24: 1,00000355302223-1,27248854845565E-08i | AM24: 3.086110415e-05 | AN24: -7.290796434e-07
A25: 40 | B25: 0.04 | C25: 251,327412i | D25: -63165,4680226178 | E25: -15875213,6058933i | G25: 100+0,0251327412i | I25: 0,0008044236475884i | J25: 1+0,0008044236475884i | L25: 0 | M25: -2,01876835800286E-06-5,07371826844349E-10i | N25: 1+0,0008044236475884i | O25: 0,999997981231642+0,000804423140216573i | P25: 0 | Q25: 1+0,0000879645942i | R25: -1,77580139395522E-12i | S25: -6,31402018354088E-08 | T25: 0,999999936859798+0,0000879645924241986i | U25: 1 | V25: 1 | W25: 0 | X25: 0 | Z25: 1,00000006314021-3,77830129983406E-12i | AA25: 5.48428878e-07 | AB25: -2.164807048e-10 | AD25: 0,00502654824i | AE25: 1+0,00502654824i | AF25: 0 | AG25: -6,31654680226178E-06-1,58752136058933E-09i | AH25: 1+0,00502654824i | AI25: 0,999993683453198+0,00502654665247864i | AK25: 1,00000631643509-3,01625248040398E-08i | AM25: 5.486368483e-05 | AN25: -1.728174457e-06
A26: 50 | B26: 0.05 | C26: 314,159265i | D26: -98696,0437853402 | E26: -31006276,5740103i | G26: 100+0,0314159265i | I26: 0,0010055295594855i | J26: 1+0,0010055295594855i | L26: 0 | M26: -3,15432555937947E-06-9,90960599305369E-10i | N26: 1+0,0010055295594855i | O26: 0,999996845674441+0,0010055285685249i | P26: 0 | Q26: 1+0,00010995574275i | R26: -3,46836209756879E-12i | S26: -9,86565653678261E-08 | T26: 0,999999901343435+0,000109955739281638i | U26: 1 | V26: 1 | W26: 0 | X26: 0 | Z26: 1,00000009865657-7,37949525076775E-12i | AA26: 8.56920037e-07 | AB26: -4.228138916e-10 | AD26: 0,0062831853i | AE26: 1+0,0062831853i | AF26: 0 | AG26: -9,86960437853402E-06-3,10062765740103E-09i | AH26: 1+0,0062831853i | AI26: 0,999990130395621+0,00628318219937234i | AK26: 1,00000986933164-5,89107626360051E-08i | AM26: 8.572350243e-05 | AN26: -3.375304759e-06
A27: 60 | B27: 0.06 | C27: 376,991118i | D27: -142122,30305089 | E27: -53578845,9198898i | G27: 100+0,0376991118i | I27: 0,0012066354713826i | J27: 1+0,0012066354713826i | L27: 0 | M27: -4,54222880550644E-06-1,71237991559968E-09i | N27: 1+0,0012066354713826i | O27: 0,999995457771194+0,00120663375900268i | P27: 0 | Q27: 1+0,0001319468913i | R27: -5,99332970459887E-12i | S27: -1,4206545412967E-07 | T27: 0,999999857934546+0,00013194688530667i | U27: 1 | V27: 1 | W27: 0 | X27: 0 | Z27: 1,00000014206547-1,27517683815965E-11i | AA27: 1.233964907e-06 | AB27: -7.306224066e-10 | AD27: 0,00753982236i | AE27: 1+0,00753982236i | AF27: 0 | AG27: -0,000014212230305089-5,35788459198898E-09i | AH27: 1+0,00753982236i | AI27: 0,999985787769695+0,00753981700211541i | AK27: 1,00001421166475-1,0179691371395E-07i | AM27: 0.0001234400745 | AN27: -5.832450641e-06
A28: 70 | B28: 0.07 | C28: 439,822971i | D28: -193444,245819267 | E28: -85081222,9190843i | G28: 100+0,0439822971i | I28: 0,0014077413832797i | J28: 1+0,0014077413832797i | L28: 0 | M28: -6,18247809638377E-06-2,71919588449394E-09i | N28: 1+0,0014077413832797i | O28: 0,999993817521904+0,00140773866408382i | P28: 0 | Q28: 1+0,00015393803985i | R28: -9,51718559572877E-12i | S28: -1,93366868120939E-07 | T28: 0,999999806633132+0,000153938030332814i | U28: 1 | V28: 1 | W28: 0 | X28: 0 | Z28: 1,0000001933669-2,02493379799158E-11i | AA28: 1.679563391e-06 | AB28: -1.160201381e-09 | AD28: 0,00879645942i | AE28: 1+0,00879645942i | AF28: 0 | AG28: -0,0000193444245819267-8,50812229190843E-09i | AH28: 1+0,00879645942i | AI28: 0,999980655575418+0,00879645091187771i | AK28: 1,00001934337684-1,61648069534687E-07i | AM28: 0.0001680128116 | AN28: -9.261573011e-06
A29: 80 | B29: 0.08 | C29: 502,654824i | D29: -252661,872090471 | E29: -127001708,847146i | G29: 100+0,0502654824i | I29: 0,0016088472951768i | J29: 1+0,0016088472951768i | L29: 0 | M29: -8,07507343201145E-06-4,05897461475479E-09i | N29: 1+0,0016088472951768i | O29: 0,999991924926568+0,00160884323620219i | P29: 0 | Q29: 1+0,0001759291884i | R29: -1,42064111516417E-11i | S29: -2,52560807341635E-07 | T29: 0,999999747439193+0,000175929174193589i | U29: 1 | V29: 1 | W29: 0 | X29: 0 | Z29: 1,00000025256087-3,02264211687963E-11i | AA29: 2.193715567e-06 | AB29: -1.731845927e-09 | AD29: 0,01005309648i | AE29: 1+0,01005309648i | AF29: 0 | AG29: -0,0000252661872090471-1,27001708847146E-08i | AH29: 1+0,01005309648i | AI29: 0,999974733812791+0,0100530837798291i | AK29: 1,00002526439982-2,41291053691115E-07i | AM29: 0.0002194410168 | AN29: -1.382460976e-05
A30: 90 | B30: 0.09 | C30: 565,486677i | D30: -319775,181864502 | E30: -180828604,979628i | G30: 100+0,0565486677i | I30: 0,0018099532070739i | J30: 1+0,0018099532070739i | L30: 0 | M30: -0,0000102200148123895-5,77928221514891E-09i | N30: 1+0,0018099532070739i | O30: 0,999989779985188+0,00180994742779168i | P30: 0 | Q30: 1+0,00019792033695i | R30: -2,02274877530212E-11i | S30: -3,19647271791756E-07 | T30: 0,999999680352728+0,000197920316722512i | U30: 1 | V30: 1 | W30: 0 | X30: 0 | Z30: 1,00000031964737-4,30372335896138E-11i | AA30: 2.776421334e-06 | AB30: -2.465851061e-09 | AD30: 0,01130973354i | AE30: 1+0,01130973354i | AF30: 0 | AG30: -0,0000319775181864502-1,80828604979628E-08i | AH30: 1+0,01130973354i | AI30: 0,999968022481814+0,0113097154571395i | AK30: 1,00003197465518-3,43552377337812E-07i | AM30: 0.0002777238866 | AN30: -1.968347191e-05
A31: 100 | B31: 0.1 | C31: 628,31853i | D31: -394784,175141361 | E31: -248050212,592082i | G31: 100+0,062831853i | I31: 0,002011059118971i | J31: 1+0,002011059118971i | L31: 0 | M31: -0,0000126173022375179-7,92768479444295E-09i | N31: 1+0,002011059118971i | O31: 0,999987382697762+0,00201105119128621i | P31: 0 | Q31: 1+0,0002199114855i | R31: -2,77468967805503E-11i | S31: -3,94626261471305E-07 | T31: 0,999999605373739+0,000219911457753103i | U31: 1 | V31: 1 | W31: 0 | X31: 0 | Z31: 1,0000003946264-5,90359940073355E-11i | AA31: 3.427680682e-06 | AB31: -3.382511965e-09 | AD31: 0,0125663706i | AE31: 1+0,0125663706i | AF31: 0 | AG31: -0,0000394784175141361-2,48050212592082E-08i | AH31: 1+0,0125663706i | AI31: 0,999960521582486+0,0125663457949787i | AK31: 1,00003947405389-4,71258194387049E-07i | AM31: 0.0003428605096 | AN31: -2.700003983e-05
A32: 200 | B32: 0.2 | C32: 1256,63706i | D32: -1579136,70056544 | E32: -1984401700,73666i | G32: 100+0,125663706i | I32: 0,004022118237942i | J32: 1+0,004022118237942i | L32: 0 | M32: -0,0000504692089500715-6,34214783555435E-08i | N32: 1+0,004022118237942i | O32: 0,99994953079105+0,00402205481646364i | P32: 0 | Q32: 1+0,000439822971i | R32: -2,21975174244403E-10i | S32: -1,57850504588521E-06 | T32: 0,999998421494954+0,000439822749024826i | U32: 1 | V32: 1 | W32: 0 | X32: 0 | Z32: 1,00000157850733-4,72289004721146E-10i | AA32: 1.371072964e-05 | AB32: -2.7060124e-08 | AD32: 0,0251327412i | AE32: 1+0,0251327412i | AF32: 0 | AG32: -0,000157913670056544-1,98440170073665E-07i | AH32: 1+0,0251327412i | AI32: 0,999842086329943+0,0251325427598299i | AK32: 1,00015784386687-3,76917276718269E-06i | AM32: 0.001370906278 | AN32: -0.0002159236098
A33: 300 | B33: 0.3 | C33: 1884,95559i | D33: -3553057,57627225 | E33: -6697355739,98623i | G33: 100+0,188495559i | I33: 0,006033177356913i | J33: 1+0,006033177356913i | L33: 0 | M33: -0,000113555720137661-2,1404748944996E-07i | N33: 1+0,006033177356913i | O33: 0,999886444279862+0,00603296330942355i | P33: 0 | Q33: 1+0,0006597344565i | R33: -7,4916621307486E-10i | S33: -3,55163635324174E-06 | T33: 0,999996448363647+0,000659733707333787i | U33: 1 | V33: 1 | W33: 0 | X33: 0 | Z33: 1,00000355164792-1,59398129480179E-09i | AA33: 3.084916708e-05 | AB33: -9.132807655e-08 | AD33: 0,0376991118i | AE33: 1+0,0376991118i | AF33: 0 | AG33: -0,000355305757627225-6,69735573998623E-07i | AH33: 1+0,0376991118i | AI33: 0,999644694242373+0,037698442064426i | AK33: 1,00035495250321-0,0000127159388502096i | AM33: 0.003082531928 | AN33: -0.0007283111136
A34: 400 | B34: 0.4 | C34: 2513,27412i | D34: -6316546,80226177 | E34: -15875213605,8933i | G34: 100+0,251327412i | I34: 0,008044236475884i | J34: 1+0,008044236475884i | L34: 0 | M34: -0,000201876835800286-5,07371826844349E-07i | N34: 1+0,008044236475884i | O34: 0,9997981231642+0,00804372910405716i | P34: 0 | Q34: 1+0,000879645942i | R34: -1,77580139395522E-09i | S34: -6,31402018354087E-06 | T34: 0,999993685979816+0,000879644166198606i | U34: 1 | V34: 1 | W34: 0 | X34: 0 | Z34: 1,00000631405673-3,77834562794476E-09i | AA34: 5.484302678e-05 | AB34: -2.164818914e-07 | AD34: 0,0502654824i | AE34: 1+0,0502654824i | AF34: 0 | AG34: -0,000631654680226177-1,58752136058933E-06i | AH34: 1+0,0502654824i | AI34: 0,999368345319774+0,0502638948786394i | AK34: 1,00063053877112-0,0000301248416450087i | AM34: 0.005475068176 | AN34: -0.001724938646
A35: 500 | B35: 0.5 | C35: 3141,59265i | D35: -9869604,37853402 | E35: -31006276574,0103i | G35: 100+0,314159265i | I35: 0,010055295594855i | J35: 1+0,010055295594855i | L35: 0 | M35: -0,000315432555937947-9,90960599305369E-07i | N35: 1+0,010055295594855i | O35: 0,999684567444062+0,0100543046342557i | P35: 0 | Q35: 1+0,0010995574275i | R35: -3,46836209756879E-09i | S35: -9,86565653678261E-06 | T35: 0,999990134343463+0,0010995539591379i | U35: 1 | V35: 1 | W35: 0 | X35: 0 | Z35: 1,00000986574575-7,37963050952798E-09i | AA35: 8.569235607e-05 | AB35: -4.228175116e-07 | AD35: 0,062831853i | AE35: 1+0,062831853i | AF35: 0 | AG35: -0,000986960437853402-3,10062765740103E-06i | AH35: 1+0,062831853i | AI35: 0,999013039562147+0,0628287523723426i | AK35: 1,00098423777278-0,0000587958328047741i | AM35: 0.008544791299 | AN35: -0.003365440679
A36: 600 | B36: 0.6 | C36: 3769,91118i | D36: -14212230,305089 | E36: -53578845919,8898i | G36: 100+0,376991118i | I36: 0,012066354713826i | J36: 1+0,012066354713826i | L36: 0 | M36: -0,000454222880550644-1,71237991559968E-06i | N36: 1+0,012066354713826i | O36: 0,999545777119449+0,0120646423339104i | P36: 0 | Q36: 1+0,001319468913i | R36: -5,99332970459887E-09i | S36: -0,000014206545412967 | T36: 0,999985793454587+0,0013194629196703i | U36: 1 | V36: 1 | W36: 0 | X36: 0 | Z36: 1,00001420673042-1,27521054564846E-08i | AA36: 0.000123397216 | AB36: -7.306314435e-07 | AD36: 0,0753982236i | AE36: 1+0,0753982236i | AF36: 0 | AG36: -0,0014212230305089-5,35788459198898E-06i | AH36: 1+0,0753982236i | AI36: 0,998578776969491+0,075392865715408i | AK36: 1,00141558167171-0,000101511144268809i | AM36: 0.0122869363 | AN36: -0.005807938516
A37: 700 | B37: 0.7 | C37: 4398,22971i | D37: -19344424,5819267 | E37: -85081222919,0843i | G37: 100+0,439822971i | I37: 0,014077413832797i | J37: 1+0,014077413832797i | L37: 0 | M37: -0,000618247809638377-2,71919588449394E-06i | N37: 1+0,014077413832797i | O37: 0,999381752190362+0,0140746946369125i | P37: 0 | Q37: 1+0,0015393803985i | R37: -9,51718559572877E-09i | S37: -0,0000193366868120939 | T37: 0,999980663313188+0,0015393708813144i | U37: 1 | V37: 1 | W37: 0 | X37: 0 | Z37: 1,00001933702955-2,02500661951286E-08i | AA37: 0.0001679576807 | AB37: -1.160220894e-06 | AD37: 0,0879645942i | AE37: 1+0,0879645942i | AF37: 0 | AG37: -0,00193444245819267-8,50812229190843E-06i | AH37: 1+0,0879645942i | AI37: 0,998065557541807+0,0879560860777081i | AK37: 1,00192400067453-0,000161030951761084i | AM37: 0.01669571368 | AN37: -0.009208676338
A38: 800 | B38: 0.8 | C38: 5026,54824i | D38: -25266187,2090471 | E38: -127001708847,146i | G38: 100+0,502654824i | I38: 0,016088472951768i | J38: 1+0,016088472951768i | L38: 0 | M38: -0,000807507343201145-4,05897461475479E-06i | N38: 1+0,016088472951768i | O38: 0,999192492656799+0,0160844139771532i | P38: 0 | Q38: 1+0,001759291884i | R38: -1,42064111516417E-08i | S38: -0,0000252560807341635 | T38: 0,999974743919266+0,00175927767758885i | U38: 1 | V38: 1 | W38: 0 | X38: 0 | Z38: 1,00002525666544-3,02278400042037E-08i | AA38: 0.0002193738383 | AB38: -1.731883916e-06 | AD38: 0,1005309648i | AE38: 1+0,1005309648i | AF38: 0 | AG38: -0,00252661872090471-0,0000127001708847146i | AH38: 1+0,1005309648i | AI38: 0,997473381279095+0,100518264629115i | AK38: 1,00250882422347-0,000240089099932661i | AM38: 0.02176432969 | AN38: -0.01372166664
A39: 900 | B39: 0.9 | C39: 5654,86677i | D39: -31977518,1864502 | E39: -180828604979,628i | G39: 100+0,565486677i | I39: 0,018099532070739i | J39: 1+0,018099532070739i | L39: 0 | M39: -0,00102200148123895-5,77928221514891E-06i | N39: 1+0,018099532070739i | O39: 0,998977998518761+0,0180937527885239i | P39: 0 | Q39: 1+0,0019792033695i | R39: -2,02274877530212E-08i | S39: -0,0000319647271791756 | T39: 0,999968035272821+0,00197918314201225i | U39: 1 | V39: 1 | W39: 0 | X39: 0 | Z39: 1,00003196566377-4,30397908600739E-08i | AA39: 0.0002776457902 | AB39: -2.465919545e-06 | AD39: 0,1130973354i | AE39: 1+0,1130973354i | AF39: 0 | AG39: -0,00319775181864502-0,0000180828604979628i | AH39: 1+0,1130973354i | AI39: 0,996802248181355+0,113079252539502i | AK39: 1,00316928239546-0,000341388900845323i | AM39: 0.02748500997 | AN39: -0.01949834669
A40: 1000 | B40: 1 | C40: 6283,1853i | D40: -39478417,5141361 | E40: -248050212592,082i | G40: 100+0,62831853i | I40: 0,02011059118971i | J40: 1+0,02011059118971i | L40: 0 | M40: -0,00126173022375179-7,92768479444296E-06i | N40: 1+0,02011059118971i | O40: 0,998738269776248+0,0201026635049156i | P40: 0 | Q40: 1+0,002199114855i | R40: -2,77468967805503E-08i | S40: -0,0000394626261471304 | T40: 0,999960537373853+0,00219908710810322i | U40: 1 | V40: 1 | W40: 0 | X40: 0 | Z40: 1,00003946405367-5,90403247598128E-08i | AA40: 0.0003427736513 | AB40: -3.382627941e-06 | AD40: 0,125663706i | AE40: 1+0,125663706i | AF40: 0 | AG40: -0,00394784175141361-0,0000248050212592082i | AH40: 1+0,125663706i | AI40: 0,996052158248586+0,125638900978741i | AK40: 1,00390450750254-0,000467599017146001i | AM40: 0.03384902633 | AN40: -0.02668724772
A41: 2000 | B41: 2 | C41: 12566,3706i | D41: -157913670,056544 | E41: -1984401700736,66i | G41: 100+1,25663706i | I41: 0,04022118237942i | J41: 1+0,04022118237942i | L41: 0 | M41: -0,00504692089500715-0,0000634214783555435i | N41: 1+0,04022118237942i | O41: 0,994953079104993+0,0401577609010645i | P41: 0 | Q41: 1+0,00439822971i | R41: -2,21975174244403E-07i | S41: -0,000157850504588521 | T41: 0,999842149495412+0,00439800773482576i | U41: 1 | V41: 1 | W41: 0 | X41: 0 | Z41: 1,00015787334724-4,72427600959129E-07i | AA41: 0.00137116224 | AB41: -2.706383503e-05 | AD41: 0,251327412i | AE41: 1+0,251327412i | AF41: 0 | AG41: -0,0157913670056544-0,000198440170073665i | AH41: 1+0,251327412i | AI41: 0,984208632994346+0,251128971829926i | AK41: 1,01511228483668-0,00365440036023725i | AM41: 0.1303379564 | AN41: -0.2062636973
A42: 3000 | B42: 3 | C42: 18849,5559i | D42: -355305757,627225 | E42: -6697355739986,23i | G42: 100+1,88495559i | I42: 0,06033177356913i | J42: 1+0,06033177356913i | L42: 0 | M42: -0,0113555720137661-0,00021404748944996i | N42: 1+0,06033177356913i | O42: 0,988644427986234+0,06011772607968i | P42: 0 | Q42: 1+0,006597344565i | R42: -7,4916621307486E-07i | S42: -0,000355163635324174 | T42: 0,999644836364676+0,00659659539878692i | U42: 1 | V42: 1 | W42: 0 | X42: 0 | Z42: 1,00035527929582-1,59503405307709E-06i | AA42: 0.003085368714 | AB42: -9.135626254e-05 | AD42: 0,376991118i | AE42: 1+0,376991118i | AF42: 0 | AG42: -0,0355305757627225-0,000669735573998623i | AH42: 1+0,376991118i | AI42: 0,964469424237278+0,376321382426001i | AK42: 1,032207105914-0,0118723173174254i | AM42: 0.275911394 | AN42: -0.658979848
A43: 4000 | B43: 4 | C43: 25132,7412i | D43: -631654680,226177 | E43: -15875213605893,3i | G43: 100+2,51327412i | I43: 0,08044236475884i | J43: 1+0,08044236475884i | L43: 0 | M43: -0,0201876835800286-0,000507371826844349i | N43: 1+0,08044236475884i | O43: 0,979812316419971+0,0799349929319956i | P43: 0 | Q43: 1+0,00879645942i | R43: -1,77580139395522E-06i | S43: -0,000631402018354087 | T43: 0,999368597981646+0,00879468361860604i | U43: 1 | V43: 1 | W43: 0 | X43: 0 | Z43: 1,00063176764934-3,78278365967147E-06i | AA43: 0.00548573147 | AB43: -0.0002166006974 | AD43: 0,502654824i | AE43: 1+0,502654824i | AF43: 0 | AG43: -0,0631654680226177-0,00158752136058933i | AH43: 1+0,502654824i | AI43: 0,936834531977382+0,501067302639411i | AK43: 1,05313156008286-0,0267229326851488i | AM43: 0.4524479795 | AN43: -1.453553222
A44: 5000 | B44: 5 | C44: 31415,9265i | D44: -986960437,853402 | E44: -31006276574010,3i | G44: 100+3,14159265i | I44: 0,10055295594855i | J44: 1+0,10055295594855i | L44: 0 | M44: -0,0315432555937947-0,000990960599305369i | N44: 1+0,10055295594855i | O44: 0,968456744406205+0,0995619953492446i | P44: 0 | Q44: 1+0,010995574275i | R44: -3,46836209756879E-06i | S44: -0,000986565653678261 | T44: 0,999013434346322+0,0109921059129024i | U44: 1 | V44: 1 | W44: 0 | X44: 0 | Z44: 1,00098745857977-7,39318105431537E-06i | AA44: 0.008572724574 | AB44: -0.0004231801991 | AD44: 0,62831853i | AE44: 1+0,62831853i | AF44: 0 | AG44: -0,0986960437853402-0,00310062765740103i | AH44: 1+0,62831853i | AI44: 0,90130395621466+0,625217902342599i | AK44: 1,07554039988132-0,0489608221446789i | AM44: 0.6415249562 | AN44: -2.606422917
A45: 6000 | B45: 6 | C45: =COMPLEX(0,2*Pi*A45) -> 37699,1118i | D45: =COMPLEX(-POWER(2*Pi*A45,2),0) -> -1421223030,5089 | E45: =COMPLEX(0,-POWER(2*Pi*A45,3)) -> -53578845919889,8i | G45: =IMSUM(IMPRODUCT(C45,Rcomp_AEF*Csen_AEF),Csen_AEF/Ccomp_AEF) -> 100+3,76991118i | I45: =IMPRODUCT((RdampSel*CdampSel+RdampSel*CinjSel),C45) -> 0,12066354713826i | J45: 1+0,12066354713826i | L45: =IMPRODUCT(G45,L_infilterStd*RdampSel*CinjSel*CdampSel,E45) -> 0 | M45: =IMPRODUCT(G45,L_infilterStd*CinjSel,D45) -> -0,0454222880550644-0,00171237991559968i | N45: 1+0,12066354713826i | O45: 0,954577711944936+0,11895116722266i | P45: 0 | Q45: =IMSUM(IMPRODUCT(C45,RdampPssv*CdampPssv),1) -> 1+0,01319468913i | R45: =IMPRODUCT(RdampPssv*CdampPssv*CfilterPssv*LinfilterPssv,E45) -> -5,99332970459887E-06i | S45: =IMPRODUCT(D45,LinfilterPssv*(CfilterPssv+CdampPssv)) -> -0,0014206545412967 | T45: 0,998579345458703+0,0131886958002954i | U45: 1 | V45: =CHOOSE(INFILTER_TYPE,U45,IMDIV(J45,O45),IMDIV(Q45,T45)) -> 1 | W45: 0 | X45: =IMARGUMENT(V45)*180/Pi -> 0 | Z45: =IMDIV(Q45,T45) -> 1,00142250680344-0,000012785844067251i | AA45: 0.01234695808 | AB45: =IMARGUMENT(Z45)*180/Pi -> -0.0007315342909 | AD45: =IMPRODUCT((RdampCom*CdampCom+RdampCom*CinjCom),C45) -> 0,753982236i | AE45: 1+0,753982236i | AF45: =IMPRODUCT(G45,L_infilterStd*RdampSel*CinjSel*CdampSel,E45) -> 0 | AG45: =IMPRODUCT(G45,LAEFCom*CinjCom,D45) -> -0,14212230305089-0,00535788459198898i | AH45: 1+0,753982236i | AI45: 0,85787769694911+0,748624351408011i | AK45: 1,09714233215486-0,0785254483841624i | AM45: 0.8274500527 | AN45: =IMARGUMENT(AK45)*180/Pi -> -4.093833228
A46: 7000 | B46: 7 | C46: 43982,2971i | D46: -1934442458,19267 | E46: -85081222919084,3i | G46: 100+4,39822971i | I46: 0,14077413832797i | J46: 1+0,14077413832797i | L46: 0 | M46: -0,0618247809638377-0,00271919588449394i | N46: 1+0,14077413832797i | O46: 0,938175219036162+0,138054942443476i | P46: 0 | Q46: 1+0,015393803985i | R46: -9,51718559572877E-06i | S46: -0,00193366868120939 | T46: 0,998066331318791+0,0153842867994043i | U46: 1 | V46: 1 | W46: 0 | X46: 0 | Z46: 1,00193710173868-0,0000203230411399365i | AA46: 0.01680917842 | AB46: -0.001162173238 | AD46: 0,879645942i | AE46: 1+0,879645942i | AF46: 0 | AG46: -0,193444245819267-0,00850812229190843i | AH46: 1+0,879645942i | AI46: 0,806555754180733+0,871137819708092i | AK46: 1,11595982410557-0,114696182593257i | AM46: 0.9986065418 | AN46: -5.868144412
A47: 8000 | B47: 8 | C47: 50265,4824i | D47: -2526618720,90471 | E47: -127001708847146i | G47: 100+5,02654824i | I47: 0,16088472951768i | J47: 1+0,16088472951768i | L47: 0 | M47: -0,0807507343201145-0,00405897461475479i | N47: 1+0,16088472951768i | O47: 0,919249265679886+0,156825754902925i | P47: 0 | Q47: 1+0,01759291884i | R47: -0,0000142064111516418i | S47: -0,00252560807341635 | T47: 0,997474391926584+0,0175787124288484i | U47: 1 | V47: 1 | W47: 0 | X47: 0 | Z47: 1,00253146769905-0,0000303702348632679i | AA47: 0.0219602689 | AB47: -0.001735692433 | AD47: 1,005309648i | AE47: 1+1,005309648i | AF47: 0 | AG47: -0,252661872090471-0,0127001708847146i | AH47: 1+1,005309648i | AI47: 0,747338127909529+0,992609477115285i | AK47: 1,13047787639307-0,156305963009907i | AM47: 1.147483167 | AN47: -7.872111887
A48: 9000 | B48: 9 | C48: 56548,6677i | D48: -3197751818,64502 | E48: -180828604979628i | G48: 100+5,65486677i | I48: 0,18099532070739i | J48: 1+0,18099532070739i | L48: 0 | M48: -0,102200148123895-0,00577928221514891i | N48: 1+0,18099532070739i | O48: 0,897799851876105+0,175216038492241i | P48: 0 | Q48: 1+0,019792033695i | R48: -0,0000202274877530212i | S48: -0,00319647271791756 | T48: 0,996803527282082+0,019771806207247i | U48: 1 | V48: 1 | W48: 0 | X48: 0 | Z48: 1,00320586412249-0,0000432966329094656i | AA48: 0.02780125032 | AB48: -0.002472786915 | AD48: 1,130973354i | AE48: 1+1,130973354i | AF48: 0 | AG48: -0,319775181864502-0,0180828604979628i | AH48: 1+1,130973354i | AI48: 0,680224818135498+1,11289049350204i | AK48: 1,13968899635933-0,201956311993631i | AM48: 1.270002182 | AN48: -10.04867157
A49: 10000 | B49: 10 | C49: 62831,853i | D49: -3947841751,41361 | E49: -248050212592082i | G49: 100+6,2831853i | I49: 0,2011059118971i | J49: 1+0,2011059118971i | L49: 0 | M49: -0,126173022375179-0,00792768479444296i | N49: 1+0,2011059118971i | O49: 0,873826977624821+0,193178227102657i | P49: 0 | Q49: 1+0,02199114855i | R49: -0,0000277468967805503i | S49: -0,00394626261471305 | T49: 0,996053737385287+0,0219634016532194i | U49: 1 | V49: 1 | W49: 0 | X49: 0 | Z49: 1,0039605858368-0,0000594757476545141i | AA49: 0.03433328159 | AB49: -0.003394266042 | AD49: 1,25663706i | AE49: 1+1,25663706i | AF49: 0 | AG49: -0,394784175141361-0,0248050212592082i | AH49: 1+1,25663706i | AI49: 0,605215824858639+1,23183203874079i | AK49: 1,14306193658665-0,250197118999478i | AM49: 1.364634614 | AN49: -12.34637346
A50: 11000 | B50: 11 | C50: 69115,0383i | D50: -4776888519,21047 | E50: -330154832960062i | G50: 100+6,91150383i | I50: 0,22121650308681i | J50: 1+0,22121650308681i | L50: 0 | M50: -0,152669357073967-0,0105517484614036i | N50: =J50 -> 1+0,22121650308681i | O50: =IMSUM(L50:N50) -> 0,847330642926033+0,210664754625406i | P50: 0 | Q50: 1+0,024190263405i | R50: -0,0000369311196149125i | S50: -0,00477497776380279 | T50: =IMSUM(S50,R50,Q50) -> 0,995225022236197+0,0241533322853851i | U50: 1 | V50: 1 | W50: 0 | X50: 0 | Z50: 1,00479596336193-0,0000792859658181959i | AA50: 0.04155766053 | AB50: -0.004521068334 | AD50: 1,382300766i | AE50: 1+1,382300766i | AF50: 0 | AG50: -0,477688851921047-0,0330154832960062i | AH50: 1+1,382300766i | AI50: 0,522311148078953+1,34928528270399i | AK50: 1,1404664032261-0,299656187441126i | AM50: 1.431577026 | AN50: -14.72163974
A51: 12000 | B51: 12 | C51: 75398,2236i | D51: -5684892122,0356 | E51: -428630767359119i | G51: 100+7,53982236i | I51: 0,24132709427652i | J51: 1+0,24132709427652i | L51: 0 | M51: -0,181689152220258-0,0136990393247974i | N51: =J51 -> 1+0,24132709427652i | O51: =IMSUM(L51:N51) -> 0,818310847779742+0,227628054951723i | P51: 0 | Q51: 1+0,02638937826i | R51: -0,000047946637636791i | S51: -0,00568261816518679 | T51: =IMSUM(S51,R51,Q51) -> 0,994317381834813+0,0263414316223632i | U51: 1 | V51: 1 | W51: 0 | X51: 0 | Z51: 1,00571236324959-0,000103111129481765i | AA51: 0.04947582475 | AB51: -0.005874276525 | AD51: 1,507964472i | AE51: 1+1,507964472i | AF51: 0 | AG51: -0,56848921220356-0,0428630767359119i | AH51: 1+1,507964472i | AI51: 0,43151078779644+1,46510139526409i | AK51: 1,13208078901019-0,349119131643989i | AM51: 1.472096571 | AN51: -17.13908857
A52: 13000 | B52: 13 | C52: 81681,4089i | D52: -6671852559,889 | E52: -544966317064805i | G52: 100+8,16814089i | I52: 0,26143768546623i | J52: 1+0,26143768546623i | L52: 0 | M52: -0,213232407814052-0,0174171234933912i | N52: =J52 -> 1+0,26143768546623i | O52: =IMSUM(L52:N52) -> 0,786767592185948+0,244020561972839i | P52: 0 | Q52: 1+0,028588493115i | R52: -0,0000609599322268691i | S52: -0,00666918381886504 | T52: =IMSUM(S52,R52,Q52) -> 0,993330816181135+0,0285275331827731i | U52: 1 | V52: 1 | W52: 0 | X52: 0 | Z52: 1,00671018846073-0,00013134112988737i | AA52: 0.05808935257 | AB52: -0.007475132835 | AD52: 1,633628178i | AE52: 1+1,633628178i | AF52: 0 | AG52: -0,6671852559889-0,0544966317064805i | AH52: 1+1,633628178i | AI52: 0,3328147440111+1,57913154629352i | AK52: 1,11830126965405-0,397568429739991i | AM52: 1.488056851 | AN52: -19.57086072
A53: 15000 | B53: 15 | C53: 94247,7795i | D53: -8882643940,68062 | E53: -837169467498278i | G53: 100+9,42477795i | I53: 0,30165886784565i | J53: 1+0,30165886784565i | L53: 0 | M53: -0,283889300344153-0,026755936181245i | N53: =J53 -> 1+0,30165886784565i | O53: =IMSUM(L53:N53) -> 0,716110699655847+0,274902931664405i | P53: 0 | Q53: 1+0,032986722825i | R53: -0,0000936457766343574i | S53: -0,00887909088310435 | T53: =IMSUM(S53,R53,Q53) -> 0,991120909116896+0,0328930770483656i | U53: 1 | V53: 1 | W53: 0 | X53: 0 | Z53: 1,00895191127968-0,00020260911556929i | AA53: 0.07740952239 | AB53: -0.01150564952 | AD53: 1,88495559i | AE53: 1+1,88495559i | AF53: 0 | AG53: -0,888264394068062-0,0837169467498278i | AH53: 1+1,88495559i | AI53: 0,111735605931938+1,80123864325017i | AK53: 1,07677284136923-0,48837844858316i | AM53: 1.454926515 | AN53: -24.3970267
A54: 16000 | B54: 16 | C54: 100530,9648i | D54: -10106474883,6188 | E54: -1016013670777170i | G54: 100+10,05309648i | I54: 0,32176945903536i | J54: 1+0,32176945903536i | L54: 0 | M54: -0,323002937280457-0,0324717969180382i | N54: =J54 -> 1+0,32176945903536i | O54: =IMSUM(L54:N54) -> 0,676997062719543+0,289297662117322i | P54: 0 | Q54: 1+0,03518583768i | R54: -0,000113651289213134i | S54: -0,0101024322936654 | T54: =IMSUM(S54,R54,Q54) -> 0,989897567706335+0,0350721863907869i | U54: 1 | V54: 1 | W54: 0 | X54: 0 | Z54: 1,01019680079824-0,000246462681525396i | AA54: 0.08812003465 | AB54: -0.01397873284 | AD54: 2,010619296i | AE54: 1+2,010619296i | AF54: 0 | AG54: -1,01064748836188-0,101601367077717i | AH54: 1+2,010619296i | AI54: -0,0106474883618799+1,90901792892228i | AK54: 1,05026748328463-0,529687382965538i | AM54: 1.4102013 | AN54: -26.76344005
A55: 17500 | B55: 17.5 | C55: 109955,74275i | D55: -12090265363,7042 | E55: -1329394108110690i | G55: 100+10,995574275i | I55: 0,351935345819925i | J55: 1+0,351935345819925i | L55: 0 | M55: -0,386404881023986-0,0424874356952178i | N55: 1+0,351935345819925i | O55: 0,613595118976014+0,309447910124707i | P55: 0 | Q55: 1+0,0384845099625i | R55: -0,000148706024933262i | S55: -0,0120854292575587 | T55: 0,987914570742441+0,0383358039375667i | U55: 1 | V55: 1 | W55: 0 | X55: 0 | Z55: 1,01222071263725-0,000323696833892721i | AA55: 0.105504841 | AB55: -0.01832254723 | AD55: 2,199114855i | AE55: 1+2,199114855i | AF55: 0 | AG55: -1,20902653637042-0,132939410811069i | AH55: 1+2,199114855i | AI55: -0,20902653637042+2,06617544418893i | AK55: 1,00509127575334-0,585666987530125i | AM55: 1.313665762 | AN55: -30.22936807
A56: 19000 | B56: 19 | C56: 119380,5207i | D56: -14251708722,6031 | E56: -1701376408169090i | G56: 100+11,93805207i | I56: 0,38210123260449i | J56: 1+0,38210123260449i | L56: 0 | M56: -0,455484610774395-0,0543759900050841i | N56: 1+0,38210123260449i | O56: 0,544515389225605+0,327725242599406i | P56: 0 | Q56: 1+0,041783182245i | R56: -0,000190315965017794i | S56: -0,0142460080391141 | T56: 0,985753991960886+0,0415928662799822i | U56: 1 | V56: 1 | W56: 0 | X56: 0 | Z56: 1,01443433812182-0,000415975520938413i | AA56: 0.1244795592 | AB56: -0.02349451268 | AD56: 2,387610414i | AE56: 1+2,387610414i | AF56: 0 | AG56: -1,42517087226031-0,170137640816909i | AH56: 1+2,387610414i | AI56: -0,42517087226031+2,21747277318309i | AK56: 0,955145637394447-0,634100278835996i | AM56: 1.18723041 | AN56: -33.57931334
A57: 20000 | B57: 20 | C57: 125663,706i | D57: -15791367005,6544 | E57: -1984401700736660i | G57: 100+12,5663706i | I57: 0,4022118237942i | J57: 1+0,4022118237942i | L57: 0 | M57: -0,504692089500715-0,0634214783555435i | N57: 1+0,4022118237942i | O57: 0,495307910499285+0,338790345438656i | P57: 0 | Q57: 1+0,0439822971i | R57: -0,000221975174244403i | S57: -0,0157850504588521 | T57: 0,984214949541148+0,0437603219257556i | U57: 1 | V57: 1 | W57: 0 | X57: 0 | Z57: 1,01601657935512-0,000486596443905099i | AA57: 0.1380168926 | AB57: -0.02744041882 | AD57: 2,51327412i | AE57: 1+2,51327412i | AF57: 0 | AG57: -1,57913670056544-0,198440170073665i | AH57: 1+2,51327412i | AI57: -0,57913670056544+2,31483394992634i | AK57: 0,920057687958595-0,662181049220824i | AM57: 1.088997111 | AN57: -35.74320255
A58: 25000 | B58: 25 | C58: 157079,6325i | D58: -24674010946,3351 | E58: -3875784571751290i | G58: 100+15,70796325i | I58: 0,50276477974275i | J58: 1+0,50276477974275i | L58: 0 | M58: -0,78858138984487-0,123870074913171i | N58: 1+0,50276477974275i | O58: 0,21141861015513+0,378894704829579i | P58: 0 | Q58: 1+0,054977871375i | R58: -0,000433545262196099i | S58: -0,0246641413419566 | T58: 0,975335858658043+0,0545443261128039i | U58: 1 | V58: 1 | W58: 0 | X58: 0 | Z58: 1,02523378537434-0,000966656304033977i | AA58: 0.2164620491 | AB58: -0.05402212734 | AD58: 3,14159265i | AE58: 1+3,14159265i | AF58: 0 | AG58: -2,46740109463351-0,387578457175129i | AH58: 1+3,14159265i | AI58: -1,46740109463351+2,75401419282487i | AK58: 0,737799633925998-0,756222678833395i | AM58: 0.4775020433 | AN58: -45.70648831
A59: 30000 | B59: 30 | C59: 188495,559i | D59: -35530575762,7225 | E59: -6697355739986230i | G59: 100+18,8495559i | I59: 0,6033177356913i | J59: 1+0,6033177356913i | L59: 0 | M59: -1,13555720137661-0,21404748944996i | N59: 1+0,6033177356913i | O59: -0,13555720137661+0,38927024624134i | P59: 0 | Q59: 1+0,06597344565i | R59: -0,00074916621307486i | S59: -0,0355163635324174 | T59: 0,964483636467583+0,0652242794369251i | U59: 1 | V59: 1 | W59: 0 | X59: 0 | Z59: 1,03670887459481-0,00170572482425677i | AA59: 0.3131480821 | AB59: -0.09427019268 | AD59: 3,76991118i | AE59: 1+3,76991118i | AF59: 0 | AG59: -3,55305757627225-0,669735573998623i | AH59: 1+3,76991118i | AI59: -2,55305757627225+3,10017560600138i | AK59: 0,566322803257668-0,788940703467892i | AM59: -0.2541971392 | AN59: -54.32820046
A60: 35000 | B60: 35 | C60: 219911,4855i | D60: -48361061454,8167 | E60: -10635152864885500i | G60: 100+21,99114855i | I60: 0,70387069163985i | J60: 1+0,70387069163985i | L60: 0 | M60: -1,54561952409594-0,339899485561742i | N60: 1+0,70387069163985i | O60: -0,54561952409594+0,363971206078108i | P60: 0 | Q60: 1+0,076969019925i | R60: -0,00118964819946609i | S60: -0,0483417170302348 | T60: 0,951658282969765+0,0757793717255339i | U60: 1 | V60: 1 | W60: 0 | X60: 0 | Z60: 1,05057619978726-0,00277724104542023i | AA60: 0.4285815074 | AB60: -0.151463378 | AD60: 4,39822971i | AE60: 1+4,39822971i | AF60: 0 | AG60: -4,83610614548167-1,06351528648855i | AH60: 1+4,39822971i | AI60: -3,83610614548167+3,33471442351145i | AK60: 0,41921044508987-0,782116677299459i | AM60: -1.037803802 | AN60: -61.80892468
A61: 40000 | B61: 40 | C61: 251327,412i | D61: -63165468022,6178 | E61: -15875213605893300i | G61: 100+25,1327412i | I61: 0,8044236475884i | J61: 1+0,8044236475884i | L61: 0 | M61: -2,01876835800286-0,50737182684435i | N61: 1+0,8044236475884i | O61: -1,01876835800286+0,29705182074405i | P61: 0 | Q61: 1+0,0879645942i | R61: -0,00177580139395522i | S61: -0,0631402018354088 | T61: 0,936859798164591+0,0861887928060448i | U61: 1 | V61: 1 | W61: 0 | X61: 0 | Z61: 1,06700286965865-0,00426861635465528i | AA61: 0.5633812551 | AB61: -0.229214376 | AD61: 5,02654824i | AE61: 1+5,02654824i | AF61: 0 | AG61: -6,31654680226178-1,58752136058933i | AH61: 1+5,02654824i | AI61: -5,31654680226178+3,43902687941067i | AK61: 0,298556215795346-0,752331454537946i | AM61: -1.836669234 | AN61: -68.35477618
A62: 45000 | B62: 45 | C62: 282743,3385i | D62: -79943795466,1256 | E62: -22603575622453500i | G62: 100+28,27433385i | I62: 0,90497660353695i | J62: 1+0,90497660353695i | L62: 0 | M62: -2,55500370309737-0,722410276893614i | N62: 1+0,90497660353695i | O62: -1,55500370309737+0,182566326643336i | P62: 0 | Q62: 1+0,098960168475i | R62: -0,00252843596912765i | S62: -0,0799118179479392 | T62: 0,920088182052061+0,0964317325058724i | U62: 1 | V62: 1 | W62: 0 | X62: 0 | Z62: 1,08619356566251-0,00628565719175738i | AA62: 0.7182899496 | AB62: -0.3315593282 | AD62: 5,65486677i | AE62: 1+5,65486677i | AF62: 0 | AG62: -7,99437954661256-2,26035756224535i | AH62: 1+5,65486677i | AI62: -6,99437954661256+3,39450920775465i | AK62: 0,201858085193628-0,710521584942778i | AM62: -2.631355014 | AN62: -74.14023371
A63: 50000 | B63: 50 | C63: 314159,265i | D63: -98696043785,3402 | E63: -31006276574010300i | G63: 100+31,4159265i | I63: 1,0055295594855i | J63: 1+1,0055295594855i | L63: 0 | M63: -3,15432555937947-0,990960599305369i | N63: 1+1,0055295594855i | O63: -2,15432555937947+0,0145689601801311i | P63: 0 | Q63: 1+0,10995574275i | R63: -0,00346836209756879i | S63: -0,0986565653678261 | T63: 0,901343434632174+0,106487380652431i | U63: 1 | V63: 1 | W63: 0 | X63: 0 | Z63: 1,10839666057698-0,00895831050462997i | AA63: 0.8941878551 | AB63: -0.4630672635 | AD63: 6,2831853i | AE63: 1+6,2831853i | AF63: 0 | AG63: -9,86960437853402-3,10062765740103i | AH63: 1+6,2831853i | AI63: -8,86960437853402+3,18255764259897i | AK63: 0,125306037022006-0,663433380236561i | AM63: -3.411823729 | AN63: -79.30425294
A64: 55000 | B64: 55 | C64: 345575,1915i | D64: -119422212980,262 | E64: -41269354120007700i | G64: 100+34,55751915i | I64: 1,10608251543405i | J64: 1+1,10608251543405i | L64: 0 | M64: -3,81673392684917-1,31896855767545i | N64: 1+1,10608251543405i | O64: -2,81673392684917-0,2128860422414i | P64: 0 | Q64: 1+0,120951317025i | R64: -0,00461638995186406i | S64: -0,11937444409507 | T64: 0,88062555590493+0,116334927073136i | U64: 1 | V64: 1 | W64: 0 | X64: 0 | Z64: 1,1339119415625-0,0124482487823856i | AA64: 1.092109959 | AB64: -0.628976062 | AD64: 6,91150383i | AE64: 1+6,91150383i | AF64: 0 | AG64: -11,9422212980262-4,12693541200078i | AH64: 1+6,91150383i | AI64: -10,9422212980262+2,78456841799922i | AK64: 0,0651313254047545-0,615061696793639i | AM64: -4.173197628 | AN64: -83.95524966
A65: 60000 | B65: 60 | C65: 376991,118i | D65: -142122303050,89 | E65: -53578845919889800i | G65: 100+37,6991118i | I65: 1,2066354713826i | J65: 1+1,2066354713826i | L65: 0 | M65: -4,54222880550644-1,71237991559968i | N65: 1+1,2066354713826i | O65: -3,54222880550644-0,50574444421708i | P65: 0 | Q65: 1+0,1319468913i | R65: -0,00599332970459887i | S65: -0,14206545412967 | T65: 0,85793454587033+0,125953561595401i | U65: 1 | V65: 1 | W65: 0 | X65: 0 | Z65: 1,1631003258263-0,0169590294511739i | AA65: 1.313266769 | AB65: -0.8353638461 | AD65: 7,53982236i | AE65: 1+7,53982236i | AF65: 0 | AG65: -14,212230305089-5,35788459198898i | AH65: 1+7,53982236i | AI65: -13,212230305089+2,18193776801102i | AK65: 0,0180633657330593-0,567686836127938i | AM65: -4.913428675 | AN65: -88.17750664
A66: 65000 | B66: 65 | C66: 408407,0445i | D66: -166796313997,225 | E66: -68120789633100600i | G66: 100+40,84070445i | I66: 1,30718842733115i | J66: 1+1,30718842733115i | L66: 0 | M66: -5,33081019535131-2,1771404366739i | N66: 1+1,30718842733115i | O66: -4,33081019535131-0,86995200934275i | P66: 0 | Q66: 1+0,142942465575i | R66: -0,00761999152835863i | S66: -0,166729595471626 | T66: 0,833270404528374+0,135322474046641i | U66: 1 | V66: 1 | W66: 0 | X66: 0 | Z66: 1,19639605981863-0,0227498889631618i | AA66: 1.559069535 | AB66: -1.089367975 | AD66: 8,16814089i | AE66: 1+8,16814089i | AF66: 0 | AG66: -16,6796313997225-6,81207896331006i | AH66: 1+8,16814089i | AI66: -15,6796313997225+1,35606192668994i | AK66: -0,0185842434899328-0,522546867726625i | AM66: -5.632005318 | AN66: -92.03685113
A67: 70000 | B67: 70 | C67: 439822,971i | D67: -193444245819,267 | E67: -85081222919084300i | G67: 100+43,9822971i | I67: 1,4077413832797i | J67: 1+1,4077413832797i | L67: 0 | M67: -6,18247809638377-2,71919588449394i | N67: 1+1,4077413832797i | O67: -5,18247809638377-1,31145450121424i | P67: 0 | Q67: 1+0,15393803985i | R67: -0,00951718559572877i | S67: -0,193366868120939 | T67: 0,806633131879061+0,144420854254271i | U67: 1 | V67: 1 | W67: 0 | X67: 0 | Z67: 1,23432201043572-0,0301547238275632i | AA67: 1.831160713 | AB67: -1.399468529 | AD67: 8,79645942i | AE67: 1+8,79645942i | AF67: 0 | AG67: -19,3444245819267-8,50812229190843i | AH67: 1+8,79645942i | AI67: -18,3444245819267+0,28833712809157i | AK67: -0,0469638423973967-0,480254957035873i | AM67: -6.329229627 | AN67: -95.58516178
A68: 75000 | B68: 75 | C68: 471238,8975i | D68: -222066098517,016 | E68: -104646183437285000i | G68: 100+47,12388975i | I68: 1,50829433922825i | J68: 1+1,50829433922825i | L68: 0 | M68: -7,09723250860383-3,34449202265563i | N68: 1+1,50829433922825i | O68: -6,09723250860383-1,83619768342738i | P68: 0 | Q68: 1+0,164933614125i | R68: -0,0117057220792947i | S68: -0,221977272077609 | T68: 0,778022727922391+0,153227892045705i | U68: 1 | V68: 1 | W68: 0 | X68: 0 | Z68: 1,27750877655212-0,0396085636961541i | AA68: 2.131450634 | AB68: -1.775860031 | AD68: 9,42477795i | AE68: 1+9,42477795i | AF68: 0 | AG68: -22,2066098517016-10,4646183437285i | AH68: 1+9,42477795i | AI68: -21,2066098517016-1,0398403937285i | AK68: -0,0687816475530221-0,441053807276823i | AM68: -7.005812342 | AN68: -98.86379143
A69: 80000 | B69: 80 | C69: 502654,824i | D69: -252661872090,471 | E69: -127001708847146000i | G69: 100+50,2654824i | I69: 1,6088472951768i | J69: 1+1,6088472951768i | L69: 0 | M69: -8,07507343201145-4,05897461475479i | N69: 1+1,6088472951768i | O69: -7,07507343201145-2,45012731957799i | P69: 0 | Q69: 1+0,1759291884i | R69: -0,0142064111516417i | S69: -0,252560807341635 | T69: 0,747439192658365+0,161722777248358i | U69: 1 | V69: 1 | W69: 0 | X69: 0 | Z69: 1,32671843606306-0,0516850094110243i | AA69: 2.462161357 | AB69: -2.23094524 | AD69: 10,05309648i | AE69: 1+10,05309648i | AF69: 0 | AG69: -25,2661872090471-12,7001708847146i | AH69: 1+10,05309648i | AI69: -24,2661872090471-2,6470744047146i | AK69: -0,0853856976294546-0,404969849635569i | AM69: -7.662647035 | AN69: -101.9061183
